Workbook

Sheet 战斗模拟
A1: 等级 | B1: 战斗结果 | C1: 总体时长 | D1: 喽啰存活时间 | E1: 精英存活时间 | F1: Boss存活时间 | G1: 玩家受伤 | H1: 恢复血量 | I1: 剩余血量 | K1: 玩家阵容 | L1: 数量 | M1: 生存 | N1: 伤害系数 | O1: 伤害个数 | P1: 治疗 | T1: 怪物阵容 | U1: 数量 | V1: 生存 | W1: 伤害 | X1: 治疗
A2: 1 | B2: =IF(I2>0,"胜利","失败") -> 胜利 | C2: =D2+E2+F2 -> 11.3 | D2: =ROUND(标准怪物数值!C3*($U$2*$V$2+$U$3*$V$3)/(($L$2*$N$2+$L$3*$N$3+$L$4*$N$4+$L$5*$N$5*IF(SUM($U$2:$U$5)<$O$5,SUM($U$2:$U$5),$O$5)+$L$6*$N$6)*标准英雄数值!K3),2) -> 0 | E2: =IFERROR(ROUND(标准怪物数值!C3*($U$4*$V$4)/((L$2*N$2+L$3*N$3+L$4*N$4+L$5*N$5*IF(SUM($U$4:$U$5)<$O$5,SUM($U$4:$U$5),$O$5)+L$6*N$6)*标准英雄数值!K3),2),0) -> 0 | F2: =IFERROR(ROUND(标准怪物数值!C3*($U$5*$V$5)/((L$2*N$2+L$3*N$3+L$4*N$4+L$5*N$5*IF(SUM($U$5:$U$5)<$O$5,SUM($U$5:$U$5),$O$5)+L$6*N$6)*标准英雄数值!K3),2),0) -> 11.3 | G2: =标准怪物数值!L3*(($Y$2+$Y$3)*D2+$Y$4*(E2+D2)+$Y$5*(F2+E2+D2)) -> 2260 | H2: =标准英雄数值!Z3*C2*($L$2*$P$2+$L$3*$P$3+$L$4*$P$4+$L$5*$P$5+$L$6*$P$6) -> 565 | I2: =标准英雄数值!E3*($L$2*$M$2+$L$3*$M$3+$L$4*$M$4+$L$5*$M$5+$L$6*$M$6)-G2+H2 -> 905 | K2: 标准 | L2: 0 | M2: 1 | N2: 1 | O2: 1 | P2: 0 | T2: 标准 | U2: 0 | V2: 1 | W2: 1 | X2: 0 | Y2: =IF(W2*((U2+1)/2)<=W2/2,0,W2*((U2+1)/2)) -> 0
A3: 2 | B3: =IF(I3>0,"胜利","失败") -> 胜利 | C3: =D3+E3+F3 -> 11.45 | D3: =ROUND(标准怪物数值!C4*($U$2*$V$2+$U$3*$V$3)/(($L$2*$N$2+$L$3*$N$3+$L$4*$N$4+$L$5*$N$5*IF(SUM($U$2:$U$5)<$O$5,SUM($U$2:$U$5),$O$5)+$L$6*$N$6)*标准英雄数值!K4),2) -> 0 | E3: =IFERROR(ROUND(标准怪物数值!C4*($U$4*$V$4)/((L$2*N$2+L$3*N$3+L$4*N$4+L$5*N$5*IF(SUM($U$4:$U$5)<$O$5,SUM($U$4:$U$5),$O$5)+L$6*N$6)*标准英雄数值!K4),2),0) -> 0 | F3: =IFERROR(ROUND(标准怪物数值!C4*($U$5*$V$5)/((L$2*N$2+L$3*N$3+L$4*N$4+L$5*N$5*IF(SUM($U$5:$U$5)<$O$5,SUM($U$5:$U$5),$O$5)+L$6*N$6)*标准英雄数值!K4),2),0) -> 11.45 | G3: =标准怪物数值!L4*(($Y$2+$Y$3)*D3+$Y$4*(E3+D3)+$Y$5*(F3+E3+D3)) -> 2380.693069 | H3: =标准英雄数值!Z4*C3*($L$2*$P$2+$L$3*$P$3+$L$4*$P$4+$L$5*$P$5+$L$6*$P$6) -> 606.85 | I3: =标准英雄数值!E4*($L$2*$M$2+$L$3*$M$3+$L$4*$M$4+$L$5*$M$5+$L$6*$M$6)-G3+H3 -> 956.1569307 | K3: 坦克 | L3: 1 | M3: 2 | N3: 0.9 | O3: 1 | P3: 0 | T3: 喽啰 | U3: 0 | V3: 0.1 | W3: 0.5 | X3: 0 | Y3: =IF(W3*((U3+1)/2)<=W3/2,0,W3*((U3+1)/2)) -> 0
A4: 3 | B4: 胜利 | C4: 11.59 | D4: =ROUND(标准怪物数值!C5*($U$2*$V$2+$U$3*$V$3)/(($L$2*$N$2+$L$3*$N$3+$L$4*$N$4+$L$5*$N$5*IF(SUM($U$2:$U$5)<$O$5,SUM($U$2:$U$5),$O$5)+$L$6*$N$6)*标准英雄数值!K5),2) -> 0 | E4: =IFERROR(ROUND(标准怪物数值!C5*($U$4*$V$4)/((L$2*N$2+L$3*N$3+L$4*N$4+L$5*N$5*IF(SUM($U$4:$U$5)<$O$5,SUM($U$4:$U$5),$O$5)+L$6*N$6)*标准英雄数值!K5),2),0) -> 0 | F4: =IFERROR(ROUND(标准怪物数值!C5*($U$5*$V$5)/((L$2*N$2+L$3*N$3+L$4*N$4+L$5*N$5*IF(SUM($U$5:$U$5)<$O$5,SUM($U$5:$U$5),$O$5)+L$6*N$6)*标准英雄数值!K5),2),0) -> 11.59 | G4: =标准怪物数值!L5*(($Y$2+$Y$3)*D4+$Y$4*(E4+D4)+$Y$5*(F4+E4+D4)) -> 2504.34902 | H4: =标准英雄数值!Z5*C4*($L$2*$P$2+$L$3*$P$3+$L$4*$P$4+$L$5*$P$5+$L$6*$P$6) -> 649.04 | I4: =标准英雄数值!E5*($L$2*$M$2+$L$3*$M$3+$L$4*$M$4+$L$5*$M$5+$L$6*$M$6)-G4+H4 -> 1009.89098 | K4: 单体dps | L4: 0 | M4: 1 | N4: 2 | O4: 1 | P4: 0 | T4: 精英 | U4: 0 | V4: 1 | W4: 2 | X4: 0 | Y4: =IF(W4*((U4+1)/2)<=W4/2,0,W4*((U4+1)/2)) -> 0
A5: 4 | B5: 胜利 | C5: 11.73 | D5: =ROUND(标准怪物数值!C6*($U$2*$V$2+$U$3*$V$3)/(($L$2*$N$2+$L$3*$N$3+$L$4*$N$4+$L$5*$N$5*IF(SUM($U$2:$U$5)<$O$5,SUM($U$2:$U$5),$O$5)+$L$6*$N$6)*标准英雄数值!K6),2) -> 0 | E5: =IFERROR(ROUND(标准怪物数值!C6*($U$4*$V$4)/((L$2*N$2+L$3*N$3+L$4*N$4+L$5*N$5*IF(SUM($U$4:$U$5)<$O$5,SUM($U$4:$U$5),$O$5)+L$6*N$6)*标准英雄数值!K6),2),0) -> 0 | F5: =IFERROR(ROUND(标准怪物数值!C6*($U$5*$V$5)/((L$2*N$2+L$3*N$3+L$4*N$4+L$5*N$5*IF(SUM($U$5:$U$5)<$O$5,SUM($U$5:$U$5),$O$5)+L$6*N$6)*标准英雄数值!K6),2),0) -> 11.73 | G5: =标准怪物数值!L6*(($Y$2+$Y$3)*D5+$Y$4*(E5+D5)+$Y$5*(F5+E5+D5)) -> 2637.541748 | H5: =标准英雄数值!Z6*C5*($L$2*$P$2+$L$3*$P$3+$L$4*$P$4+$L$5*$P$5+$L$6*$P$6) -> 692.07 | I5: =标准英雄数值!E6*($L$2*$M$2+$L$3*$M$3+$L$4*$M$4+$L$5*$M$5+$L$6*$M$6)-G5+H5 -> 1065.328252 | K5: 群体dps | L5: 2 | M5: 1 | N5: 1.5 | O5: 5 | P5: 0 | T5: Boss | U5: 1 | V5: 6.5 | W5: 4 | X5: 0 | Y5: =IF(W5*((U5+1)/2)<=W5/2,0,W5*((U5+1)/2)) -> 4
A6: 5 | B6: 胜利 | C6: 11.87 | D6: =ROUND(标准怪物数值!C7*($U$2*$V$2+$U$3*$V$3)/(($L$2*$N$2+$L$3*$N$3+$L$4*$N$4+$L$5*$N$5*IF(SUM($U$2:$U$5)<$O$5,SUM($U$2:$U$5),$O$5)+$L$6*$N$6)*标准英雄数值!K7),2) -> 0 | E6: =IFERROR(ROUND(标准怪物数值!C7*($U$4*$V$4)/((L$2*N$2+L$3*N$3+L$4*N$4+L$5*N$5*IF(SUM($U$4:$U$5)<$O$5,SUM($U$4:$U$5),$O$5)+L$6*N$6)*标准英雄数值!K7),2),0) -> 0 | F6: =IFERROR(ROUND(标准怪物数值!C7*($U$5*$V$5)/((L$2*N$2+L$3*N$3+L$4*N$4+L$5*N$5*IF(SUM($U$5:$U$5)<$O$5,SUM($U$5:$U$5),$O$5)+L$6*N$6)*标准英雄数值!K7),2),0) -> 11.87 | G6: =标准怪物数值!L7*(($Y$2+$Y$3)*D6+$Y$4*(E6+D6)+$Y$5*(F6+E6+D6)) -> 2775.753846 | H6: =标准英雄数值!Z7*C6*($L$2*$P$2+$L$3*$P$3+$L$4*$P$4+$L$5*$P$5+$L$6*$P$6) -> 735.94 | I6: =标准英雄数值!E7*($L$2*$M$2+$L$3*$M$3+$L$4*$M$4+$L$5*$M$5+$L$6*$M$6)-G6+H6 -> 1121.786154 | K6: 奶妈 | L6: 1 | M6: 1.2 | N6: 0.7 | O6: 1 | P6: 1
A7: 6 | B7: 胜利 | C7: 12.01 | D7: =ROUND(标准怪物数值!C8*($U$2*$V$2+$U$3*$V$3)/(($L$2*$N$2+$L$3*$N$3+$L$4*$N$4+$L$5*$N$5*IF(SUM($U$2:$U$5)<$O$5,SUM($U$2:$U$5),$O$5)+$L$6*$N$6)*标准英雄数值!K8),2) -> 0 | E7: =IFERROR(ROUND(标准怪物数值!C8*($U$4*$V$4)/((L$2*N$2+L$3*N$3+L$4*N$4+L$5*N$5*IF(SUM($U$4:$U$5)<$O$5,SUM($U$4:$U$5),$O$5)+L$6*N$6)*标准英雄数值!K8),2),0) -> 0 | F7: =IFERROR(ROUND(标准怪物数值!C8*($U$5*$V$5)/((L$2*N$2+L$3*N$3+L$4*N$4+L$5*N$5*IF(SUM($U$5:$U$5)<$O$5,SUM($U$5:$U$5),$O$5)+L$6*N$6)*标准英雄数值!K8),2),0) -> 12.01 | G7: =标准怪物数值!L8*(($Y$2+$Y$3)*D7+$Y$4*(E7+D7)+$Y$5*(F7+E7+D7)) -> 2919.001905 | H7: =标准英雄数值!Z8*C7*($L$2*$P$2+$L$3*$P$3+$L$4*$P$4+$L$5*$P$5+$L$6*$P$6) -> 780.65 | I7: =标准英雄数值!E8*($L$2*$M$2+$L$3*$M$3+$L$4*$M$4+$L$5*$M$5+$L$6*$M$6)-G7+H7 -> 1179.248095
A8: 7 | B8: 胜利 | C8: 12.17 | D8: =ROUND(标准怪物数值!C9*($U$2*$V$2+$U$3*$V$3)/(($L$2*$N$2+$L$3*$N$3+$L$4*$N$4+$L$5*$N$5*IF(SUM($U$2:$U$5)<$O$5,SUM($U$2:$U$5),$O$5)+$L$6*$N$6)*标准英雄数值!K9),2) -> 0 | E8: =IFERROR(ROUND(标准怪物数值!C9*($U$4*$V$4)/((L$2*N$2+L$3*N$3+L$4*N$4+L$5*N$5*IF(SUM($U$4:$U$5)<$O$5,SUM($U$4:$U$5),$O$5)+L$6*N$6)*标准英雄数值!K9),2),0) -> 0 | F8: =IFERROR(ROUND(标准怪物数值!C9*($U$5*$V$5)/((L$2*N$2+L$3*N$3+L$4*N$4+L$5*N$5*IF(SUM($U$5:$U$5)<$O$5,SUM($U$5:$U$5),$O$5)+L$6*N$6)*标准英雄数值!K9),2),0) -> 12.17 | G8: =标准怪物数值!L9*(($Y$2+$Y$3)*D8+$Y$4*(E8+D8)+$Y$5*(F8+E8+D8)) -> 3074.043355 | H8: =标准英雄数值!Z9*C8*($L$2*$P$2+$L$3*$P$3+$L$4*$P$4+$L$5*$P$5+$L$6*$P$6) -> 827.56 | I8: =标准英雄数值!E9*($L$2*$M$2+$L$3*$M$3+$L$4*$M$4+$L$5*$M$5+$L$6*$M$6)-G8+H8 -> 1237.516645
A9: 8 | B9: 胜利 | C9: 12.32 | D9: =ROUND(标准怪物数值!C10*($U$2*$V$2+$U$3*$V$3)/(($L$2*$N$2+$L$3*$N$3+$L$4*$N$4+$L$5*$N$5*IF(SUM($U$2:$U$5)<$O$5,SUM($U$2:$U$5),$O$5)+$L$6*$N$6)*标准英雄数值!K10),2) -> 0 | E9: =IFERROR(ROUND(标准怪物数值!C10*($U$4*$V$4)/((L$2*N$2+L$3*N$3+L$4*N$4+L$5*N$5*IF(SUM($U$4:$U$5)<$O$5,SUM($U$4:$U$5),$O$5)+L$6*N$6)*标准英雄数值!K10),2),0) -> 0 | F9: =IFERROR(ROUND(标准怪物数值!C10*($U$5*$V$5)/((L$2*N$2+L$3*N$3+L$4*N$4+L$5*N$5*IF(SUM($U$5:$U$5)<$O$5,SUM($U$5:$U$5),$O$5)+L$6*N$6)*标准英雄数值!K10),2),0) -> 12.32 | G9: =标准怪物数值!L10*(($Y$2+$Y$3)*D9+$Y$4*(E9+D9)+$Y$5*(F9+E9+D9)) -> 3236.298507 | H9: =标准英雄数值!Z10*C9*($L$2*$P$2+$L$3*$P$3+$L$4*$P$4+$L$5*$P$5+$L$6*$P$6) -> 874.72 | I9: =标准英雄数值!E10*($L$2*$M$2+$L$3*$M$3+$L$4*$M$4+$L$5*$M$5+$L$6*$M$6)-G9+H9 -> 1299.221493
A10: 9 | B10: 胜利 | C10: 12.48 | D10: =ROUND(标准怪物数值!C11*($U$2*$V$2+$U$3*$V$3)/(($L$2*$N$2+$L$3*$N$3+$L$4*$N$4+$L$5*$N$5*IF(SUM($U$2:$U$5)<$O$5,SUM($U$2:$U$5),$O$5)+$L$6*$N$6)*标准英雄数值!K11),2) -> 0 | E10: =IFERROR(ROUND(标准怪物数值!C11*($U$4*$V$4)/((L$2*N$2+L$3*N$3+L$4*N$4+L$5*N$5*IF(SUM($U$4:$U$5)<$O$5,SUM($U$4:$U$5),$O$5)+L$6*N$6)*标准英雄数值!K11),2),0) -> 0 | F10: =IFERROR(ROUND(标准怪物数值!C11*($U$5*$V$5)/((L$2*N$2+L$3*N$3+L$4*N$4+L$5*N$5*IF(SUM($U$5:$U$5)<$O$5,SUM($U$5:$U$5),$O$5)+L$6*N$6)*标准英雄数值!K11),2),0) -> 12.48 | G10: =标准怪物数值!L11*(($Y$2+$Y$3)*D10+$Y$4*(E10+D10)+$Y$5*(F10+E10+D10)) -> 3406.360111 | H10: =标准英雄数值!Z11*C10*($L$2*$P$2+$L$3*$P$3+$L$4*$P$4+$L$5*$P$5+$L$6*$P$6) -> 936 | I10: =标准英雄数值!E11*($L$2*$M$2+$L$3*$M$3+$L$4*$M$4+$L$5*$M$5+$L$6*$M$6)-G10+H10 -> 1372.439889
A11: 10 | B11: 胜利 | C11: 12.63 | D11: =ROUND(标准怪物数值!C12*($U$2*$V$2+$U$3*$V$3)/(($L$2*$N$2+$L$3*$N$3+$L$4*$N$4+$L$5*$N$5*IF(SUM($U$2:$U$5)<$O$5,SUM($U$2:$U$5),$O$5)+$L$6*$N$6)*标准英雄数值!K12),2) -> 0 | E11: =IFERROR(ROUND(标准怪物数值!C12*($U$4*$V$4)/((L$2*N$2+L$3*N$3+L$4*N$4+L$5*N$5*IF(SUM($U$4:$U$5)<$O$5,SUM($U$4:$U$5),$O$5)+L$6*N$6)*标准英雄数值!K12),2),0) -> 0 | F11: =IFERROR(ROUND(标准怪物数值!C12*($U$5*$V$5)/((L$2*N$2+L$3*N$3+L$4*N$4+L$5*N$5*IF(SUM($U$5:$U$5)<$O$5,SUM($U$5:$U$5),$O$5)+L$6*N$6)*标准英雄数值!K12),2),0) -> 12.63 | G11: =标准怪物数值!L12*(($Y$2+$Y$3)*D11+$Y$4*(E11+D11)+$Y$5*(F11+E11+D11)) -> 3583.502742 | H11: =标准英雄数值!Z12*C11*($L$2*$P$2+$L$3*$P$3+$L$4*$P$4+$L$5*$P$5+$L$6*$P$6) -> 997.77 | I11: =标准英雄数值!E12*($L$2*$M$2+$L$3*$M$3+$L$4*$M$4+$L$5*$M$5+$L$6*$M$6)-G11+H11 -> 1449.467258
A12: 11 | B12: 胜利 | C12: 12.79 | D12: =ROUND(标准怪物数值!C13*($U$2*$V$2+$U$3*$V$3)/(($L$2*$N$2+$L$3*$N$3+$L$4*$N$4+$L$5*$N$5*IF(SUM($U$2:$U$5)<$O$5,SUM($U$2:$U$5),$O$5)+$L$6*$N$6)*标准英雄数值!K13),2) -> 0 | E12: =IFERROR(ROUND(标准怪物数值!C13*($U$4*$V$4)/((L$2*N$2+L$3*N$3+L$4*N$4+L$5*N$5*IF(SUM($U$4:$U$5)<$O$5,SUM($U$4:$U$5),$O$5)+L$6*N$6)*标准英雄数值!K13),2),0) -> 0 | F12: =IFERROR(ROUND(标准怪物数值!C13*($U$5*$V$5)/((L$2*N$2+L$3*N$3+L$4*N$4+L$5*N$5*IF(SUM($U$5:$U$5)<$O$5,SUM($U$5:$U$5),$O$5)+L$6*N$6)*标准英雄数值!K13),2),0) -> 12.79 | G12: =标准怪物数值!L13*(($Y$2+$Y$3)*D12+$Y$4*(E12+D12)+$Y$5*(F12+E12+D12)) -> 3773.339367 | H12: =标准英雄数值!Z13*C12*($L$2*$P$2+$L$3*$P$3+$L$4*$P$4+$L$5*$P$5+$L$6*$P$6) -> 1061.57 | I12: =标准英雄数值!E13*($L$2*$M$2+$L$3*$M$3+$L$4*$M$4+$L$5*$M$5+$L$6*$M$6)-G12+H12 -> 1526.230633
A13: 12 | B13: 胜利 | C13: 12.94 | D13: =ROUND(标准怪物数值!C14*($U$2*$V$2+$U$3*$V$3)/(($L$2*$N$2+$L$3*$N$3+$L$4*$N$4+$L$5*$N$5*IF(SUM($U$2:$U$5)<$O$5,SUM($U$2:$U$5),$O$5)+$L$6*$N$6)*标准英雄数值!K14),2) -> 0 | E13: =IFERROR(ROUND(标准怪物数值!C14*($U$4*$V$4)/((L$2*N$2+L$3*N$3+L$4*N$4+L$5*N$5*IF(SUM($U$4:$U$5)<$O$5,SUM($U$4:$U$5),$O$5)+L$6*N$6)*标准英雄数值!K14),2),0) -> 0 | F13: =IFERROR(ROUND(标准怪物数值!C14*($U$5*$V$5)/((L$2*N$2+L$3*N$3+L$4*N$4+L$5*N$5*IF(SUM($U$5:$U$5)<$O$5,SUM($U$5:$U$5),$O$5)+L$6*N$6)*标准英雄数值!K14),2),0) -> 12.94 | G13: =标准怪物数值!L14*(($Y$2+$Y$3)*D13+$Y$4*(E13+D13)+$Y$5*(F13+E13+D13)) -> 3970.121864 | H13: =标准英雄数值!Z14*C13*($L$2*$P$2+$L$3*$P$3+$L$4*$P$4+$L$5*$P$5+$L$6*$P$6) -> 1125.78 | I13: =标准英雄数值!E14*($L$2*$M$2+$L$3*$M$3+$L$4*$M$4+$L$5*$M$5+$L$6*$M$6)-G13+H13 -> 1606.858136
A14: 13 | B14: 胜利 | C14: 13.1 | D14: =ROUND(标准怪物数值!C15*($U$2*$V$2+$U$3*$V$3)/(($L$2*$N$2+$L$3*$N$3+$L$4*$N$4+$L$5*$N$5*IF(SUM($U$2:$U$5)<$O$5,SUM($U$2:$U$5),$O$5)+$L$6*$N$6)*标准英雄数值!K15),2) -> 0 | E14: =IFERROR(ROUND(标准怪物数值!C15*($U$4*$V$4)/((L$2*N$2+L$3*N$3+L$4*N$4+L$5*N$5*IF(SUM($U$4:$U$5)<$O$5,SUM($U$4:$U$5),$O$5)+L$6*N$6)*标准英雄数值!K15),2),0) -> 0 | F14: =IFERROR(ROUND(标准怪物数值!C15*($U$5*$V$5)/((L$2*N$2+L$3*N$3+L$4*N$4+L$5*N$5*IF(SUM($U$5:$U$5)<$O$5,SUM($U$5:$U$5),$O$5)+L$6*N$6)*标准英雄数值!K15),2),0) -> 13.1 | G14: =标准怪物数值!L15*(($Y$2+$Y$3)*D14+$Y$4*(E14+D14)+$Y$5*(F14+E14+D14)) -> 4179.911269 | H14: =标准英雄数值!Z15*C14*($L$2*$P$2+$L$3*$P$3+$L$4*$P$4+$L$5*$P$5+$L$6*$P$6) -> 1192.1 | I14: =标准英雄数值!E15*($L$2*$M$2+$L$3*$M$3+$L$4*$M$4+$L$5*$M$5+$L$6*$M$6)-G14+H14 -> 1686.988731
A15: 14 | B15: 胜利 | C15: 13.25 | D15: =ROUND(标准怪物数值!C16*($U$2*$V$2+$U$3*$V$3)/(($L$2*$N$2+$L$3*$N$3+$L$4*$N$4+$L$5*$N$5*IF(SUM($U$2:$U$5)<$O$5,SUM($U$2:$U$5),$O$5)+$L$6*$N$6)*标准英雄数值!K16),2) -> 0 | E15: =IFERROR(ROUND(标准怪物数值!C16*($U$4*$V$4)/((L$2*N$2+L$3*N$3+L$4*N$4+L$5*N$5*IF(SUM($U$4:$U$5)<$O$5,SUM($U$4:$U$5),$O$5)+L$6*N$6)*标准英雄数值!K16),2),0) -> 0 | F15: =IFERROR(ROUND(标准怪物数值!C16*($U$5*$V$5)/((L$2*N$2+L$3*N$3+L$4*N$4+L$5*N$5*IF(SUM($U$5:$U$5)<$O$5,SUM($U$5:$U$5),$O$5)+L$6*N$6)*标准英雄数值!K16),2),0) -> 13.25 | G15: =标准怪物数值!L16*(($Y$2+$Y$3)*D15+$Y$4*(E15+D15)+$Y$5*(F15+E15+D15)) -> 4396.485062 | H15: =标准英雄数值!Z16*C15*($L$2*$P$2+$L$3*$P$3+$L$4*$P$4+$L$5*$P$5+$L$6*$P$6) -> 1272 | I15: =标准英雄数值!E16*($L$2*$M$2+$L$3*$M$3+$L$4*$M$4+$L$5*$M$5+$L$6*$M$6)-G15+H15 -> 1784.314938
A16: 15 | B16: 胜利 | C16: 13.41 | D16: =ROUND(标准怪物数值!C17*($U$2*$V$2+$U$3*$V$3)/(($L$2*$N$2+$L$3*$N$3+$L$4*$N$4+$L$5*$N$5*IF(SUM($U$2:$U$5)<$O$5,SUM($U$2:$U$5),$O$5)+$L$6*$N$6)*标准英雄数值!K17),2) -> 0 | E16: =IFERROR(ROUND(标准怪物数值!C17*($U$4*$V$4)/((L$2*N$2+L$3*N$3+L$4*N$4+L$5*N$5*IF(SUM($U$4:$U$5)<$O$5,SUM($U$4:$U$5),$O$5)+L$6*N$6)*标准英雄数值!K17),2),0) -> 0 | F16: =IFERROR(ROUND(标准怪物数值!C17*($U$5*$V$5)/((L$2*N$2+L$3*N$3+L$4*N$4+L$5*N$5*IF(SUM($U$5:$U$5)<$O$5,SUM($U$5:$U$5),$O$5)+L$6*N$6)*标准英雄数值!K17),2),0) -> 13.41 | G16: =标准怪物数值!L17*(($Y$2+$Y$3)*D16+$Y$4*(E16+D16)+$Y$5*(F16+E16+D16)) -> 4626.391645 | H16: =标准英雄数值!Z17*C16*($L$2*$P$2+$L$3*$P$3+$L$4*$P$4+$L$5*$P$5+$L$6*$P$6) -> 1354.41 | I16: =标准英雄数值!E17*($L$2*$M$2+$L$3*$M$3+$L$4*$M$4+$L$5*$M$5+$L$6*$M$6)-G16+H16 -> 1881.218355
A17: 16 | B17: 胜利 | C17: 13.57 | D17: =ROUND(标准怪物数值!C18*($U$2*$V$2+$U$3*$V$3)/(($L$2*$N$2+$L$3*$N$3+$L$4*$N$4+$L$5*$N$5*IF(SUM($U$2:$U$5)<$O$5,SUM($U$2:$U$5),$O$5)+$L$6*$N$6)*标准英雄数值!K18),2) -> 0 | E17: =IFERROR(ROUND(标准怪物数值!C18*($U$4*$V$4)/((L$2*N$2+L$3*N$3+L$4*N$4+L$5*N$5*IF(SUM($U$4:$U$5)<$O$5,SUM($U$4:$U$5),$O$5)+L$6*N$6)*标准英雄数值!K18),2),0) -> 0 | F17: =IFERROR(ROUND(标准怪物数值!C18*($U$5*$V$5)/((L$2*N$2+L$3*N$3+L$4*N$4+L$5*N$5*IF(SUM($U$5:$U$5)<$O$5,SUM($U$5:$U$5),$O$5)+L$6*N$6)*标准英雄数值!K18),2),0) -> 13.57 | G17: =标准怪物数值!L18*(($Y$2+$Y$3)*D17+$Y$4*(E17+D17)+$Y$5*(F17+E17+D17)) -> 4871.162069 | H17: =标准英雄数值!Z18*C17*($L$2*$P$2+$L$3*$P$3+$L$4*$P$4+$L$5*$P$5+$L$6*$P$6) -> 1438.42 | I17: =标准英雄数值!E18*($L$2*$M$2+$L$3*$M$3+$L$4*$M$4+$L$5*$M$5+$L$6*$M$6)-G17+H17 -> 1980.457931
A18: 17 | B18: 胜利 | C18: 13.73 | D18: =ROUND(标准怪物数值!C19*($U$2*$V$2+$U$3*$V$3)/(($L$2*$N$2+$L$3*$N$3+$L$4*$N$4+$L$5*$N$5*IF(SUM($U$2:$U$5)<$O$5,SUM($U$2:$U$5),$O$5)+$L$6*$N$6)*标准英雄数值!K19),2) -> 0 | E18: =IFERROR(ROUND(标准怪物数值!C19*($U$4*$V$4)/((L$2*N$2+L$3*N$3+L$4*N$4+L$5*N$5*IF(SUM($U$4:$U$5)<$O$5,SUM($U$4:$U$5),$O$5)+L$6*N$6)*标准英雄数值!K19),2),0) -> 0 | F18: =IFERROR(ROUND(标准怪物数值!C19*($U$5*$V$5)/((L$2*N$2+L$3*N$3+L$4*N$4+L$5*N$5*IF(SUM($U$5:$U$5)<$O$5,SUM($U$5:$U$5),$O$5)+L$6*N$6)*标准英雄数值!K19),2),0) -> 13.73 | G18: =标准怪物数值!L19*(($Y$2+$Y$3)*D18+$Y$4*(E18+D18)+$Y$5*(F18+E18+D18)) -> 5121.805461 | H18: =标准英雄数值!Z19*C18*($L$2*$P$2+$L$3*$P$3+$L$4*$P$4+$L$5*$P$5+$L$6*$P$6) -> 1524.03 | I18: =标准英雄数值!E19*($L$2*$M$2+$L$3*$M$3+$L$4*$M$4+$L$5*$M$5+$L$6*$M$6)-G18+H18 -> 2085.824539
A19: 18 | B19: 胜利 | C19: 13.9 | D19: =ROUND(标准怪物数值!C20*($U$2*$V$2+$U$3*$V$3)/(($L$2*$N$2+$L$3*$N$3+$L$4*$N$4+$L$5*$N$5*IF(SUM($U$2:$U$5)<$O$5,SUM($U$2:$U$5),$O$5)+$L$6*$N$6)*标准英雄数值!K20),2) -> 0 | E19: =IFERROR(ROUND(标准怪物数值!C20*($U$4*$V$4)/((L$2*N$2+L$3*N$3+L$4*N$4+L$5*N$5*IF(SUM($U$4:$U$5)<$O$5,SUM($U$4:$U$5),$O$5)+L$6*N$6)*标准英雄数值!K20),2),0) -> 0 | F19: =IFERROR(ROUND(标准怪物数值!C20*($U$5*$V$5)/((L$2*N$2+L$3*N$3+L$4*N$4+L$5*N$5*IF(SUM($U$5:$U$5)<$O$5,SUM($U$5:$U$5),$O$5)+L$6*N$6)*标准英雄数值!K20),2),0) -> 13.9 | G19: =标准怪物数值!L20*(($Y$2+$Y$3)*D19+$Y$4*(E19+D19)+$Y$5*(F19+E19+D19)) -> 5390.945946 | H19: =标准英雄数值!Z20*C19*($L$2*$P$2+$L$3*$P$3+$L$4*$P$4+$L$5*$P$5+$L$6*$P$6) -> 1626.3 | I19: =标准英雄数值!E20*($L$2*$M$2+$L$3*$M$3+$L$4*$M$4+$L$5*$M$5+$L$6*$M$6)-G19+H19 -> 2204.954054
A20: 19 | B20: 胜利 | C20: 14.07 | D20: =ROUND(标准怪物数值!C21*($U$2*$V$2+$U$3*$V$3)/(($L$2*$N$2+$L$3*$N$3+$L$4*$N$4+$L$5*$N$5*IF(SUM($U$2:$U$5)<$O$5,SUM($U$2:$U$5),$O$5)+$L$6*$N$6)*标准英雄数值!K21),2) -> 0 | E20: =IFERROR(ROUND(标准怪物数值!C21*($U$4*$V$4)/((L$2*N$2+L$3*N$3+L$4*N$4+L$5*N$5*IF(SUM($U$4:$U$5)<$O$5,SUM($U$4:$U$5),$O$5)+L$6*N$6)*标准英雄数值!K21),2),0) -> 0 | F20: =IFERROR(ROUND(标准怪物数值!C21*($U$5*$V$5)/((L$2*N$2+L$3*N$3+L$4*N$4+L$5*N$5*IF(SUM($U$5:$U$5)<$O$5,SUM($U$5:$U$5),$O$5)+L$6*N$6)*标准英雄数值!K21),2),0) -> 14.07 | G20: =标准怪物数值!L21*(($Y$2+$Y$3)*D20+$Y$4*(E20+D20)+$Y$5*(F20+E20+D20)) -> 5670.351171 | H20: =标准英雄数值!Z21*C20*($L$2*$P$2+$L$3*$P$3+$L$4*$P$4+$L$5*$P$5+$L$6*$P$6) -> 1730.61 | I20: =标准英雄数值!E21*($L$2*$M$2+$L$3*$M$3+$L$4*$M$4+$L$5*$M$5+$L$6*$M$6)-G20+H20 -> 2326.258829
A21: 20 | B21: 胜利 | C21: 14.24 | D21: =ROUND(标准怪物数值!C22*($U$2*$V$2+$U$3*$V$3)/(($L$2*$N$2+$L$3*$N$3+$L$4*$N$4+$L$5*$N$5*IF(SUM($U$2:$U$5)<$O$5,SUM($U$2:$U$5),$O$5)+$L$6*$N$6)*标准英雄数值!K22),2) -> 0 | E21: =IFERROR(ROUND(标准怪物数值!C22*($U$4*$V$4)/((L$2*N$2+L$3*N$3+L$4*N$4+L$5*N$5*IF(SUM($U$4:$U$5)<$O$5,SUM($U$4:$U$5),$O$5)+L$6*N$6)*标准英雄数值!K22),2),0) -> 0 | F21: =IFERROR(ROUND(标准怪物数值!C22*($U$5*$V$5)/((L$2*N$2+L$3*N$3+L$4*N$4+L$5*N$5*IF(SUM($U$5:$U$5)<$O$5,SUM($U$5:$U$5),$O$5)+L$6*N$6)*标准英雄数值!K22),2),0) -> 14.24 | G21: =标准怪物数值!L22*(($Y$2+$Y$3)*D21+$Y$4*(E21+D21)+$Y$5*(F21+E21+D21)) -> 5964.768212 | H21: =标准英雄数值!Z22*C21*($L$2*$P$2+$L$3*$P$3+$L$4*$P$4+$L$5*$P$5+$L$6*$P$6) -> 1836.96 | I21: =标准英雄数值!E22*($L$2*$M$2+$L$3*$M$3+$L$4*$M$4+$L$5*$M$5+$L$6*$M$6)-G21+H21 -> 2450.191788
A22: 21 | B22: 胜利 | C22: 14.41 | D22: =ROUND(标准怪物数值!C23*($U$2*$V$2+$U$3*$V$3)/(($L$2*$N$2+$L$3*$N$3+$L$4*$N$4+$L$5*$N$5*IF(SUM($U$2:$U$5)<$O$5,SUM($U$2:$U$5),$O$5)+$L$6*$N$6)*标准英雄数值!K23),2) -> 0 | E22: =IFERROR(ROUND(标准怪物数值!C23*($U$4*$V$4)/((L$2*N$2+L$3*N$3+L$4*N$4+L$5*N$5*IF(SUM($U$4:$U$5)<$O$5,SUM($U$4:$U$5),$O$5)+L$6*N$6)*标准英雄数值!K23),2),0) -> 0 | F22: =IFERROR(ROUND(标准怪物数值!C23*($U$5*$V$5)/((L$2*N$2+L$3*N$3+L$4*N$4+L$5*N$5*IF(SUM($U$5:$U$5)<$O$5,SUM($U$5:$U$5),$O$5)+L$6*N$6)*标准英雄数值!K23),2),0) -> 14.41 | G22: =标准怪物数值!L23*(($Y$2+$Y$3)*D22+$Y$4*(E22+D22)+$Y$5*(F22+E22+D22)) -> 6274.255738 | H22: =标准英雄数值!Z23*C22*($L$2*$P$2+$L$3*$P$3+$L$4*$P$4+$L$5*$P$5+$L$6*$P$6) -> 1945.35 | I22: =标准英雄数值!E23*($L$2*$M$2+$L$3*$M$3+$L$4*$M$4+$L$5*$M$5+$L$6*$M$6)-G22+H22 -> 2576.694262
A23: 22 | B23: 胜利 | C23: 14.58 | D23: =ROUND(标准怪物数值!C24*($U$2*$V$2+$U$3*$V$3)/(($L$2*$N$2+$L$3*$N$3+$L$4*$N$4+$L$5*$N$5*IF(SUM($U$2:$U$5)<$O$5,SUM($U$2:$U$5),$O$5)+$L$6*$N$6)*标准英雄数值!K24),2) -> 0 | E23: =IFERROR(ROUND(标准怪物数值!C24*($U$4*$V$4)/((L$2*N$2+L$3*N$3+L$4*N$4+L$5*N$5*IF(SUM($U$4:$U$5)<$O$5,SUM($U$4:$U$5),$O$5)+L$6*N$6)*标准英雄数值!K24),2),0) -> 0 | F23: =IFERROR(ROUND(标准怪物数值!C24*($U$5*$V$5)/((L$2*N$2+L$3*N$3+L$4*N$4+L$5*N$5*IF(SUM($U$5:$U$5)<$O$5,SUM($U$5:$U$5),$O$5)+L$6*N$6)*标准英雄数值!K24),2),0) -> 14.58 | G23: =标准怪物数值!L24*(($Y$2+$Y$3)*D23+$Y$4*(E23+D23)+$Y$5*(F23+E23+D23)) -> 6598.87013 | H23: =标准英雄数值!Z24*C23*($L$2*$P$2+$L$3*$P$3+$L$4*$P$4+$L$5*$P$5+$L$6*$P$6) -> 2070.36 | I23: =标准英雄数值!E24*($L$2*$M$2+$L$3*$M$3+$L$4*$M$4+$L$5*$M$5+$L$6*$M$6)-G23+H23 -> 2720.28987
A24: 23 | B24: 胜利 | C24: 14.75 | D24: =ROUND(标准怪物数值!C25*($U$2*$V$2+$U$3*$V$3)/(($L$2*$N$2+$L$3*$N$3+$L$4*$N$4+$L$5*$N$5*IF(SUM($U$2:$U$5)<$O$5,SUM($U$2:$U$5),$O$5)+$L$6*$N$6)*标准英雄数值!K25),2) -> 0 | E24: =IFERROR(ROUND(标准怪物数值!C25*($U$4*$V$4)/((L$2*N$2+L$3*N$3+L$4*N$4+L$5*N$5*IF(SUM($U$4:$U$5)<$O$5,SUM($U$4:$U$5),$O$5)+L$6*N$6)*标准英雄数值!K25),2),0) -> 0 | F24: =IFERROR(ROUND(标准怪物数值!C25*($U$5*$V$5)/((L$2*N$2+L$3*N$3+L$4*N$4+L$5*N$5*IF(SUM($U$5:$U$5)<$O$5,SUM($U$5:$U$5),$O$5)+L$6*N$6)*标准英雄数值!K25),2),0) -> 14.75 | G24: =标准怪物数值!L25*(($Y$2+$Y$3)*D24+$Y$4*(E24+D24)+$Y$5*(F24+E24+D24)) -> 6943.40836 | H24: =标准英雄数值!Z25*C24*($L$2*$P$2+$L$3*$P$3+$L$4*$P$4+$L$5*$P$5+$L$6*$P$6) -> 2197.75 | I24: =标准英雄数值!E25*($L$2*$M$2+$L$3*$M$3+$L$4*$M$4+$L$5*$M$5+$L$6*$M$6)-G24+H24 -> 2867.14164
A25: 24 | B25: 胜利 | C25: 14.92 | D25: =ROUND(标准怪物数值!C26*($U$2*$V$2+$U$3*$V$3)/(($L$2*$N$2+$L$3*$N$3+$L$4*$N$4+$L$5*$N$5*IF(SUM($U$2:$U$5)<$O$5,SUM($U$2:$U$5),$O$5)+$L$6*$N$6)*标准英雄数值!K26),2) -> 0 | E25: =IFERROR(ROUND(标准怪物数值!C26*($U$4*$V$4)/((L$2*N$2+L$3*N$3+L$4*N$4+L$5*N$5*IF(SUM($U$4:$U$5)<$O$5,SUM($U$4:$U$5),$O$5)+L$6*N$6)*标准英雄数值!K26),2),0) -> 0 | F25: =IFERROR(ROUND(标准怪物数值!C26*($U$5*$V$5)/((L$2*N$2+L$3*N$3+L$4*N$4+L$5*N$5*IF(SUM($U$5:$U$5)<$O$5,SUM($U$5:$U$5),$O$5)+L$6*N$6)*标准英雄数值!K26),2),0) -> 14.92 | G25: =标准怪物数值!L26*(($Y$2+$Y$3)*D25+$Y$4*(E25+D25)+$Y$5*(F25+E25+D25)) -> 7303.197452 | H25: =标准英雄数值!Z26*C25*($L$2*$P$2+$L$3*$P$3+$L$4*$P$4+$L$5*$P$5+$L$6*$P$6) -> 2327.52 | I25: =标准英雄数值!E26*($L$2*$M$2+$L$3*$M$3+$L$4*$M$4+$L$5*$M$5+$L$6*$M$6)-G25+H25 -> 3016.722548
A26: 25 | B26: 胜利 | C26: 15.11 | D26: =ROUND(标准怪物数值!C27*($U$2*$V$2+$U$3*$V$3)/(($L$2*$N$2+$L$3*$N$3+$L$4*$N$4+$L$5*$N$5*IF(SUM($U$2:$U$5)<$O$5,SUM($U$2:$U$5),$O$5)+$L$6*$N$6)*标准英雄数值!K27),2) -> 0 | E26: =IFERROR(ROUND(标准怪物数值!C27*($U$4*$V$4)/((L$2*N$2+L$3*N$3+L$4*N$4+L$5*N$5*IF(SUM($U$4:$U$5)<$O$5,SUM($U$4:$U$5),$O$5)+L$6*N$6)*标准英雄数值!K27),2),0) -> 0 | F26: =IFERROR(ROUND(标准怪物数值!C27*($U$5*$V$5)/((L$2*N$2+L$3*N$3+L$4*N$4+L$5*N$5*IF(SUM($U$5:$U$5)<$O$5,SUM($U$5:$U$5),$O$5)+L$6*N$6)*标准英雄数值!K27),2),0) -> 15.11 | G26: =标准怪物数值!L27*(($Y$2+$Y$3)*D26+$Y$4*(E26+D26)+$Y$5*(F26+E26+D26)) -> 7687.167849 | H26: =标准英雄数值!Z27*C26*($L$2*$P$2+$L$3*$P$3+$L$4*$P$4+$L$5*$P$5+$L$6*$P$6) -> 2478.04 | I26: =标准英雄数值!E27*($L$2*$M$2+$L$3*$M$3+$L$4*$M$4+$L$5*$M$5+$L$6*$M$6)-G26+H26 -> 3183.672151
A27: 26 | B27: 胜利 | C27: 15.29 | D27: =ROUND(标准怪物数值!C28*($U$2*$V$2+$U$3*$V$3)/(($L$2*$N$2+$L$3*$N$3+$L$4*$N$4+$L$5*$N$5*IF(SUM($U$2:$U$5)<$O$5,SUM($U$2:$U$5),$O$5)+$L$6*$N$6)*标准英雄数值!K28),2) -> 0 | E27: =IFERROR(ROUND(标准怪物数值!C28*($U$4*$V$4)/((L$2*N$2+L$3*N$3+L$4*N$4+L$5*N$5*IF(SUM($U$4:$U$5)<$O$5,SUM($U$4:$U$5),$O$5)+L$6*N$6)*标准英雄数值!K28),2),0) -> 0 | F27: =IFERROR(ROUND(标准怪物数值!C28*($U$5*$V$5)/((L$2*N$2+L$3*N$3+L$4*N$4+L$5*N$5*IF(SUM($U$5:$U$5)<$O$5,SUM($U$5:$U$5),$O$5)+L$6*N$6)*标准英雄数值!K28),2),0) -> 15.29 | G27: =标准怪物数值!L28*(($Y$2+$Y$3)*D27+$Y$4*(E27+D27)+$Y$5*(F27+E27+D27)) -> 8086.287051 | H27: =标准英雄数值!Z28*C27*($L$2*$P$2+$L$3*$P$3+$L$4*$P$4+$L$5*$P$5+$L$6*$P$6) -> 2629.88 | I27: =标准英雄数值!E28*($L$2*$M$2+$L$3*$M$3+$L$4*$M$4+$L$5*$M$5+$L$6*$M$6)-G27+H27 -> 3357.592949
A28: 27 | B28: 胜利 | C28: 15.47 | D28: =ROUND(标准怪物数值!C29*($U$2*$V$2+$U$3*$V$3)/(($L$2*$N$2+$L$3*$N$3+$L$4*$N$4+$L$5*$N$5*IF(SUM($U$2:$U$5)<$O$5,SUM($U$2:$U$5),$O$5)+$L$6*$N$6)*标准英雄数值!K29),2) -> 0 | E28: =IFERROR(ROUND(标准怪物数值!C29*($U$4*$V$4)/((L$2*N$2+L$3*N$3+L$4*N$4+L$5*N$5*IF(SUM($U$4:$U$5)<$O$5,SUM($U$4:$U$5),$O$5)+L$6*N$6)*标准英雄数值!K29),2),0) -> 0 | F28: =IFERROR(ROUND(标准怪物数值!C29*($U$5*$V$5)/((L$2*N$2+L$3*N$3+L$4*N$4+L$5*N$5*IF(SUM($U$5:$U$5)<$O$5,SUM($U$5:$U$5),$O$5)+L$6*N$6)*标准英雄数值!K29),2),0) -> 15.47 | G28: =标准怪物数值!L29*(($Y$2+$Y$3)*D28+$Y$4*(E28+D28)+$Y$5*(F28+E28+D28)) -> 8505.513514 | H28: =标准英雄数值!Z29*C28*($L$2*$P$2+$L$3*$P$3+$L$4*$P$4+$L$5*$P$5+$L$6*$P$6) -> 2800.07 | I28: =标准英雄数值!E29*($L$2*$M$2+$L$3*$M$3+$L$4*$M$4+$L$5*$M$5+$L$6*$M$6)-G28+H28 -> 3550.556486
A29: 28 | B29: 胜利 | C29: 15.66 | D29: =ROUND(标准怪物数值!C30*($U$2*$V$2+$U$3*$V$3)/(($L$2*$N$2+$L$3*$N$3+$L$4*$N$4+$L$5*$N$5*IF(SUM($U$2:$U$5)<$O$5,SUM($U$2:$U$5),$O$5)+$L$6*$N$6)*标准英雄数值!K30),2) -> 0 | E29: =IFERROR(ROUND(标准怪物数值!C30*($U$4*$V$4)/((L$2*N$2+L$3*N$3+L$4*N$4+L$5*N$5*IF(SUM($U$4:$U$5)<$O$5,SUM($U$4:$U$5),$O$5)+L$6*N$6)*标准英雄数值!K30),2),0) -> 0 | F29: =IFERROR(ROUND(标准怪物数值!C30*($U$5*$V$5)/((L$2*N$2+L$3*N$3+L$4*N$4+L$5*N$5*IF(SUM($U$5:$U$5)<$O$5,SUM($U$5:$U$5),$O$5)+L$6*N$6)*标准英雄数值!K30),2),0) -> 15.66 | G29: =标准怪物数值!L30*(($Y$2+$Y$3)*D29+$Y$4*(E29+D29)+$Y$5*(F29+E29+D29)) -> 8950.623853 | H29: =标准英雄数值!Z30*C29*($L$2*$P$2+$L$3*$P$3+$L$4*$P$4+$L$5*$P$5+$L$6*$P$6) -> 2975.4 | I29: =标准英雄数值!E30*($L$2*$M$2+$L$3*$M$3+$L$4*$M$4+$L$5*$M$5+$L$6*$M$6)-G29+H29 -> 3743.576147
A30: 29 | B30: 胜利 | C30: 15.84 | D30: =ROUND(标准怪物数值!C31*($U$2*$V$2+$U$3*$V$3)/(($L$2*$N$2+$L$3*$N$3+$L$4*$N$4+$L$5*$N$5*IF(SUM($U$2:$U$5)<$O$5,SUM($U$2:$U$5),$O$5)+$L$6*$N$6)*标准英雄数值!K31),2) -> 0 | E30: =IFERROR(ROUND(标准怪物数值!C31*($U$4*$V$4)/((L$2*N$2+L$3*N$3+L$4*N$4+L$5*N$5*IF(SUM($U$4:$U$5)<$O$5,SUM($U$4:$U$5),$O$5)+L$6*N$6)*标准英雄数值!K31),2),0) -> 0 | F30: =IFERROR(ROUND(标准怪物数值!C31*($U$5*$V$5)/((L$2*N$2+L$3*N$3+L$4*N$4+L$5*N$5*IF(SUM($U$5:$U$5)<$O$5,SUM($U$5:$U$5),$O$5)+L$6*N$6)*标准英雄数值!K31),2),0) -> 15.84 | G30: =标准怪物数值!L31*(($Y$2+$Y$3)*D30+$Y$4*(E30+D30)+$Y$5*(F30+E30+D30)) -> 9410.470855 | H30: =标准英雄数值!Z31*C30*($L$2*$P$2+$L$3*$P$3+$L$4*$P$4+$L$5*$P$5+$L$6*$P$6) -> 3168 | I30: =标准英雄数值!E31*($L$2*$M$2+$L$3*$M$3+$L$4*$M$4+$L$5*$M$5+$L$6*$M$6)-G30+H30 -> 3959.929145
A31: 30 | B31: 胜利 | C31: 16.02 | D31: =ROUND(标准怪物数值!C32*($U$2*$V$2+$U$3*$V$3)/(($L$2*$N$2+$L$3*$N$3+$L$4*$N$4+$L$5*$N$5*IF(SUM($U$2:$U$5)<$O$5,SUM($U$2:$U$5),$O$5)+$L$6*$N$6)*标准英雄数值!K32),2) -> 0 | E31: =IFERROR(ROUND(标准怪物数值!C32*($U$4*$V$4)/((L$2*N$2+L$3*N$3+L$4*N$4+L$5*N$5*IF(SUM($U$4:$U$5)<$O$5,SUM($U$4:$U$5),$O$5)+L$6*N$6)*标准英雄数值!K32),2),0) -> 0 | F31: =IFERROR(ROUND(标准怪物数值!C32*($U$5*$V$5)/((L$2*N$2+L$3*N$3+L$4*N$4+L$5*N$5*IF(SUM($U$5:$U$5)<$O$5,SUM($U$5:$U$5),$O$5)+L$6*N$6)*标准英雄数值!K32),2),0) -> 16.02 | G31: =标准怪物数值!L32*(($Y$2+$Y$3)*D31+$Y$4*(E31+D31)+$Y$5*(F31+E31+D31)) -> 9895.412294 | H31: =标准英雄数值!Z32*C31*($L$2*$P$2+$L$3*$P$3+$L$4*$P$4+$L$5*$P$5+$L$6*$P$6) -> 3364.2 | I31: =标准英雄数值!E32*($L$2*$M$2+$L$3*$M$3+$L$4*$M$4+$L$5*$M$5+$L$6*$M$6)-G31+H31 -> 4180.787706
A32: 31 | B32: 胜利 | C32: 16.21 | D32: =ROUND(标准怪物数值!C33*($U$2*$V$2+$U$3*$V$3)/(($L$2*$N$2+$L$3*$N$3+$L$4*$N$4+$L$5*$N$5*IF(SUM($U$2:$U$5)<$O$5,SUM($U$2:$U$5),$O$5)+$L$6*$N$6)*标准英雄数值!K33),2) -> 0 | E32: =IFERROR(ROUND(标准怪物数值!C33*($U$4*$V$4)/((L$2*N$2+L$3*N$3+L$4*N$4+L$5*N$5*IF(SUM($U$4:$U$5)<$O$5,SUM($U$4:$U$5),$O$5)+L$6*N$6)*标准英雄数值!K33),2),0) -> 0 | F32: =IFERROR(ROUND(标准怪物数值!C33*($U$5*$V$5)/((L$2*N$2+L$3*N$3+L$4*N$4+L$5*N$5*IF(SUM($U$5:$U$5)<$O$5,SUM($U$5:$U$5),$O$5)+L$6*N$6)*标准英雄数值!K33),2),0) -> 16.21 | G32: =标准怪物数值!L33*(($Y$2+$Y$3)*D32+$Y$4*(E32+D32)+$Y$5*(F32+E32+D32)) -> 10411.94655 | H32: =标准英雄数值!Z33*C32*($L$2*$P$2+$L$3*$P$3+$L$4*$P$4+$L$5*$P$5+$L$6*$P$6) -> 3582.41 | I32: =标准英雄数值!E33*($L$2*$M$2+$L$3*$M$3+$L$4*$M$4+$L$5*$M$5+$L$6*$M$6)-G32+H32 -> 4418.063452
A33: 32 | B33: 胜利 | C33: 16.39 | D33: =ROUND(标准怪物数值!C34*($U$2*$V$2+$U$3*$V$3)/(($L$2*$N$2+$L$3*$N$3+$L$4*$N$4+$L$5*$N$5*IF(SUM($U$2:$U$5)<$O$5,SUM($U$2:$U$5),$O$5)+$L$6*$N$6)*标准英雄数值!K34),2) -> 0 | E33: =IFERROR(ROUND(标准怪物数值!C34*($U$4*$V$4)/((L$2*N$2+L$3*N$3+L$4*N$4+L$5*N$5*IF(SUM($U$4:$U$5)<$O$5,SUM($U$4:$U$5),$O$5)+L$6*N$6)*标准英雄数值!K34),2),0) -> 0 | F33: =IFERROR(ROUND(标准怪物数值!C34*($U$5*$V$5)/((L$2*N$2+L$3*N$3+L$4*N$4+L$5*N$5*IF(SUM($U$5:$U$5)<$O$5,SUM($U$5:$U$5),$O$5)+L$6*N$6)*标准英雄数值!K34),2),0) -> 16.39 | G33: =标准怪物数值!L34*(($Y$2+$Y$3)*D33+$Y$4*(E33+D33)+$Y$5*(F33+E33+D33)) -> 10947.55588 | H33: =标准英雄数值!Z34*C33*($L$2*$P$2+$L$3*$P$3+$L$4*$P$4+$L$5*$P$5+$L$6*$P$6) -> 3802.48 | I33: =标准英雄数值!E34*($L$2*$M$2+$L$3*$M$3+$L$4*$M$4+$L$5*$M$5+$L$6*$M$6)-G33+H33 -> 4664.124118
A34: 33 | B34: 胜利 | C34: 16.59 | D34: =ROUND(标准怪物数值!C35*($U$2*$V$2+$U$3*$V$3)/(($L$2*$N$2+$L$3*$N$3+$L$4*$N$4+$L$5*$N$5*IF(SUM($U$2:$U$5)<$O$5,SUM($U$2:$U$5),$O$5)+$L$6*$N$6)*标准英雄数值!K35),2) -> 0 | E34: =IFERROR(ROUND(标准怪物数值!C35*($U$4*$V$4)/((L$2*N$2+L$3*N$3+L$4*N$4+L$5*N$5*IF(SUM($U$4:$U$5)<$O$5,SUM($U$4:$U$5),$O$5)+L$6*N$6)*标准英雄数值!K35),2),0) -> 0 | F34: =IFERROR(ROUND(标准怪物数值!C35*($U$5*$V$5)/((L$2*N$2+L$3*N$3+L$4*N$4+L$5*N$5*IF(SUM($U$5:$U$5)<$O$5,SUM($U$5:$U$5),$O$5)+L$6*N$6)*标准英雄数值!K35),2),0) -> 16.59 | G34: =标准怪物数值!L35*(($Y$2+$Y$3)*D34+$Y$4*(E34+D34)+$Y$5*(F34+E34+D34)) -> 11518.82096 | H34: =标准英雄数值!Z35*C34*($L$2*$P$2+$L$3*$P$3+$L$4*$P$4+$L$5*$P$5+$L$6*$P$6) -> 4047.96 | I34: =标准英雄数值!E35*($L$2*$M$2+$L$3*$M$3+$L$4*$M$4+$L$5*$M$5+$L$6*$M$6)-G34+H34 -> 4931.139039
A35: 34 | B35: =IF(I35>0,"胜利","失败") -> 胜利 | C35: =D35+E35+F35 -> 16.79 | D35: =ROUND(标准怪物数值!C36*($U$2*$V$2+$U$3*$V$3)/(($L$2*$N$2+$L$3*$N$3+$L$4*$N$4+$L$5*$N$5*IF(SUM($U$2:$U$5)<$O$5,SUM($U$2:$U$5),$O$5)+$L$6*$N$6)*标准英雄数值!K36),2) -> 0 | E35: =IFERROR(ROUND(标准怪物数值!C36*($U$4*$V$4)/((L$2*N$2+L$3*N$3+L$4*N$4+L$5*N$5*IF(SUM($U$4:$U$5)<$O$5,SUM($U$4:$U$5),$O$5)+L$6*N$6)*标准英雄数值!K36),2),0) -> 0 | F35: =IFERROR(ROUND(标准怪物数值!C36*($U$5*$V$5)/((L$2*N$2+L$3*N$3+L$4*N$4+L$5*N$5*IF(SUM($U$5:$U$5)<$O$5,SUM($U$5:$U$5),$O$5)+L$6*N$6)*标准英雄数值!K36),2),0) -> 16.79 | G35: =标准怪物数值!L36*(($Y$2+$Y$3)*D35+$Y$4*(E35+D35)+$Y$5*(F35+E35+D35)) -> 12115.89625 | H35: =标准英雄数值!Z36*C35*($L$2*$P$2+$L$3*$P$3+$L$4*$P$4+$L$5*$P$5+$L$6*$P$6) -> 4298.24 | I35: =标准英雄数值!E36*($L$2*$M$2+$L$3*$M$3+$L$4*$M$4+$L$5*$M$5+$L$6*$M$6)-G35+H35 -> 5203.143746 | L35: 英雄 | M35: 敌人
A36: 35 | B36: 胜利 | C36: 16.98 | D36: =ROUND(标准怪物数值!C37*($U$2*$V$2+$U$3*$V$3)/(($L$2*$N$2+$L$3*$N$3+$L$4*$N$4+$L$5*$N$5*IF(SUM($U$2:$U$5)<$O$5,SUM($U$2:$U$5),$O$5)+$L$6*$N$6)*标准英雄数值!K37),2) -> 0 | E36: =IFERROR(ROUND(标准怪物数值!C37*($U$4*$V$4)/((L$2*N$2+L$3*N$3+L$4*N$4+L$5*N$5*IF(SUM($U$4:$U$5)<$O$5,SUM($U$4:$U$5),$O$5)+L$6*N$6)*标准英雄数值!K37),2),0) -> 0 | F36: =IFERROR(ROUND(标准怪物数值!C37*($U$5*$V$5)/((L$2*N$2+L$3*N$3+L$4*N$4+L$5*N$5*IF(SUM($U$5:$U$5)<$O$5,SUM($U$5:$U$5),$O$5)+L$6*N$6)*标准英雄数值!K37),2),0) -> 16.98 | G36: =标准怪物数值!L37*(($Y$2+$Y$3)*D36+$Y$4*(E36+D36)+$Y$5*(F36+E36+D36)) -> 12736.21113 | H36: =标准英雄数值!Z37*C36*($L$2*$P$2+$L$3*$P$3+$L$4*$P$4+$L$5*$P$5+$L$6*$P$6) -> 4567.62 | I36: =标准英雄数值!E37*($L$2*$M$2+$L$3*$M$3+$L$4*$M$4+$L$5*$M$5+$L$6*$M$6)-G36+H36 -> 5502.208873 | K36: 均衡 | L36: 1 | M36: 19 | N36: 0 | O36: 5
A37: 36 | B37: 胜利 | C37: 17.18 | D37: =ROUND(标准怪物数值!C38*($U$2*$V$2+$U$3*$V$3)/(($L$2*$N$2+$L$3*$N$3+$L$4*$N$4+$L$5*$N$5*IF(SUM($U$2:$U$5)<$O$5,SUM($U$2:$U$5),$O$5)+$L$6*$N$6)*标准英雄数值!K38),2) -> 0 | E37: =IFERROR(ROUND(标准怪物数值!C38*($U$4*$V$4)/((L$2*N$2+L$3*N$3+L$4*N$4+L$5*N$5*IF(SUM($U$4:$U$5)<$O$5,SUM($U$4:$U$5),$O$5)+L$6*N$6)*标准英雄数值!K38),2),0) -> 0 | F37: =IFERROR(ROUND(标准怪物数值!C38*($U$5*$V$5)/((L$2*N$2+L$3*N$3+L$4*N$4+L$5*N$5*IF(SUM($U$5:$U$5)<$O$5,SUM($U$5:$U$5),$O$5)+L$6*N$6)*标准英雄数值!K38),2),0) -> 17.18 | G37: =标准怪物数值!L38*(($Y$2+$Y$3)*D37+$Y$4*(E37+D37)+$Y$5*(F37+E37+D37)) -> 13394.57627 | H37: =标准英雄数值!Z38*C37*($L$2*$P$2+$L$3*$P$3+$L$4*$P$4+$L$5*$P$5+$L$6*$P$6) -> 4844.76 | I37: =标准英雄数值!E38*($L$2*$M$2+$L$3*$M$3+$L$4*$M$4+$L$5*$M$5+$L$6*$M$6)-G37+H37 -> 5802.183729 | L37: 1 | M37: 0 | N37: 4 | O37: 0
A38: 37 | B38: 胜利 | C38: 17.38 | D38: =ROUND(标准怪物数值!C39*($U$2*$V$2+$U$3*$V$3)/(($L$2*$N$2+$L$3*$N$3+$L$4*$N$4+$L$5*$N$5*IF(SUM($U$2:$U$5)<$O$5,SUM($U$2:$U$5),$O$5)+$L$6*$N$6)*标准英雄数值!K39),2) -> 0 | E38: =IFERROR(ROUND(标准怪物数值!C39*($U$4*$V$4)/((L$2*N$2+L$3*N$3+L$4*N$4+L$5*N$5*IF(SUM($U$4:$U$5)<$O$5,SUM($U$4:$U$5),$O$5)+L$6*N$6)*标准英雄数值!K39),2),0) -> 0 | F38: =IFERROR(ROUND(标准怪物数值!C39*($U$5*$V$5)/((L$2*N$2+L$3*N$3+L$4*N$4+L$5*N$5*IF(SUM($U$5:$U$5)<$O$5,SUM($U$5:$U$5),$O$5)+L$6*N$6)*标准英雄数值!K39),2),0) -> 17.38 | G38: =标准怪物数值!L39*(($Y$2+$Y$3)*D38+$Y$4*(E38+D38)+$Y$5*(F38+E38+D38)) -> 14088.73846 | H38: =标准英雄数值!Z39*C38*($L$2*$P$2+$L$3*$P$3+$L$4*$P$4+$L$5*$P$5+$L$6*$P$6) -> 5144.48 | I38: =标准英雄数值!E39*($L$2*$M$2+$L$3*$M$3+$L$4*$M$4+$L$5*$M$5+$L$6*$M$6)-G38+H38 -> 6125.341538 | L38: 1 | M38: 0 | N38: 0 | O38: 1
A39: 38 | B39: 胜利 | C39: 17.58 | D39: =ROUND(标准怪物数值!C40*($U$2*$V$2+$U$3*$V$3)/(($L$2*$N$2+$L$3*$N$3+$L$4*$N$4+$L$5*$N$5*IF(SUM($U$2:$U$5)<$O$5,SUM($U$2:$U$5),$O$5)+$L$6*$N$6)*标准英雄数值!K40),2) -> 0 | E39: =IFERROR(ROUND(标准怪物数值!C40*($U$4*$V$4)/((L$2*N$2+L$3*N$3+L$4*N$4+L$5*N$5*IF(SUM($U$4:$U$5)<$O$5,SUM($U$4:$U$5),$O$5)+L$6*N$6)*标准英雄数值!K40),2),0) -> 0 | F39: =IFERROR(ROUND(标准怪物数值!C40*($U$5*$V$5)/((L$2*N$2+L$3*N$3+L$4*N$4+L$5*N$5*IF(SUM($U$5:$U$5)<$O$5,SUM($U$5:$U$5),$O$5)+L$6*N$6)*标准英雄数值!K40),2),0) -> 17.58 | G39: =标准怪物数值!L40*(($Y$2+$Y$3)*D39+$Y$4*(E39+D39)+$Y$5*(F39+E39+D39)) -> 14818.81994 | H39: =标准英雄数值!Z40*C39*($L$2*$P$2+$L$3*$P$3+$L$4*$P$4+$L$5*$P$5+$L$6*$P$6) -> 5467.38 | I39: =标准英雄数值!E40*($L$2*$M$2+$L$3*$M$3+$L$4*$M$4+$L$5*$M$5+$L$6*$M$6)-G39+H39 -> 6472.160055 | L39: 1
A40: 39 | B40: 胜利 | C40: 17.78 | D40: =ROUND(标准怪物数值!C41*($U$2*$V$2+$U$3*$V$3)/(($L$2*$N$2+$L$3*$N$3+$L$4*$N$4+$L$5*$N$5*IF(SUM($U$2:$U$5)<$O$5,SUM($U$2:$U$5),$O$5)+$L$6*$N$6)*标准英雄数值!K41),2) -> 0 | E40: =IFERROR(ROUND(标准怪物数值!C41*($U$4*$V$4)/((L$2*N$2+L$3*N$3+L$4*N$4+L$5*N$5*IF(SUM($U$4:$U$5)<$O$5,SUM($U$4:$U$5),$O$5)+L$6*N$6)*标准英雄数值!K41),2),0) -> 0 | F40: =IFERROR(ROUND(标准怪物数值!C41*($U$5*$V$5)/((L$2*N$2+L$3*N$3+L$4*N$4+L$5*N$5*IF(SUM($U$5:$U$5)<$O$5,SUM($U$5:$U$5),$O$5)+L$6*N$6)*标准英雄数值!K41),2),0) -> 17.78 | G40: =标准怪物数值!L41*(($Y$2+$Y$3)*D40+$Y$4*(E40+D40)+$Y$5*(F40+E40+D40)) -> 15584.93827 | H40: =标准英雄数值!Z41*C40*($L$2*$P$2+$L$3*$P$3+$L$4*$P$4+$L$5*$P$5+$L$6*$P$6) -> 5814.06 | I40: =标准英雄数值!E41*($L$2*$M$2+$L$3*$M$3+$L$4*$M$4+$L$5*$M$5+$L$6*$M$6)-G40+H40 -> 6843.121728
A41: 40 | B41: 胜利 | C41: 17.99 | D41: =ROUND(标准怪物数值!C42*($U$2*$V$2+$U$3*$V$3)/(($L$2*$N$2+$L$3*$N$3+$L$4*$N$4+$L$5*$N$5*IF(SUM($U$2:$U$5)<$O$5,SUM($U$2:$U$5),$O$5)+$L$6*$N$6)*标准英雄数值!K42),2) -> 0 | E41: =IFERROR(ROUND(标准怪物数值!C42*($U$4*$V$4)/((L$2*N$2+L$3*N$3+L$4*N$4+L$5*N$5*IF(SUM($U$4:$U$5)<$O$5,SUM($U$4:$U$5),$O$5)+L$6*N$6)*标准英雄数值!K42),2),0) -> 0 | F41: =IFERROR(ROUND(标准怪物数值!C42*($U$5*$V$5)/((L$2*N$2+L$3*N$3+L$4*N$4+L$5*N$5*IF(SUM($U$5:$U$5)<$O$5,SUM($U$5:$U$5),$O$5)+L$6*N$6)*标准英雄数值!K42),2),0) -> 17.99 | G41: =标准怪物数值!L42*(($Y$2+$Y$3)*D41+$Y$4*(E41+D41)+$Y$5*(F41+E41+D41)) -> 16390.07468 | H41: =标准英雄数值!Z42*C41*($L$2*$P$2+$L$3*$P$3+$L$4*$P$4+$L$5*$P$5+$L$6*$P$6) -> 6170.57 | I41: =标准英雄数值!E42*($L$2*$M$2+$L$3*$M$3+$L$4*$M$4+$L$5*$M$5+$L$6*$M$6)-G41+H41 -> 7226.495322 | K41: 单体dps | L41: 1 | M41: 15 | N41: 0 | O41: 5 | P41: 0
A42: 41 | B42: 胜利 | C42: 18.2 | D42: =ROUND(标准怪物数值!C43*($U$2*$V$2+$U$3*$V$3)/(($L$2*$N$2+$L$3*$N$3+$L$4*$N$4+$L$5*$N$5*IF(SUM($U$2:$U$5)<$O$5,SUM($U$2:$U$5),$O$5)+$L$6*$N$6)*标准英雄数值!K43),2) -> 0 | E42: =IFERROR(ROUND(标准怪物数值!C43*($U$4*$V$4)/((L$2*N$2+L$3*N$3+L$4*N$4+L$5*N$5*IF(SUM($U$4:$U$5)<$O$5,SUM($U$4:$U$5),$O$5)+L$6*N$6)*标准英雄数值!K43),2),0) -> 0 | F42: =IFERROR(ROUND(标准怪物数值!C43*($U$5*$V$5)/((L$2*N$2+L$3*N$3+L$4*N$4+L$5*N$5*IF(SUM($U$5:$U$5)<$O$5,SUM($U$5:$U$5),$O$5)+L$6*N$6)*标准英雄数值!K43),2),0) -> 18.2 | G42: =标准怪物数值!L43*(($Y$2+$Y$3)*D42+$Y$4*(E42+D42)+$Y$5*(F42+E42+D42)) -> 17236.1828 | H42: =标准英雄数值!Z43*C42*($L$2*$P$2+$L$3*$P$3+$L$4*$P$4+$L$5*$P$5+$L$6*$P$6) -> 6552 | I42: =标准英雄数值!E43*($L$2*$M$2+$L$3*$M$3+$L$4*$M$4+$L$5*$M$5+$L$6*$M$6)-G42+H42 -> 7635.417204 | L42: 2 | M42: 0 | N42: 3 | O42: 0 | P42: 1
A43: 42 | B43: 胜利 | C43: 18.41 | D43: =ROUND(标准怪物数值!C44*($U$2*$V$2+$U$3*$V$3)/(($L$2*$N$2+$L$3*$N$3+$L$4*$N$4+$L$5*$N$5*IF(SUM($U$2:$U$5)<$O$5,SUM($U$2:$U$5),$O$5)+$L$6*$N$6)*标准英雄数值!K44),2) -> 0 | E43: =IFERROR(ROUND(标准怪物数值!C44*($U$4*$V$4)/((L$2*N$2+L$3*N$3+L$4*N$4+L$5*N$5*IF(SUM($U$4:$U$5)<$O$5,SUM($U$4:$U$5),$O$5)+L$6*N$6)*标准英雄数值!K44),2),0) -> 0 | F43: =IFERROR(ROUND(标准怪物数值!C44*($U$5*$V$5)/((L$2*N$2+L$3*N$3+L$4*N$4+L$5*N$5*IF(SUM($U$5:$U$5)<$O$5,SUM($U$5:$U$5),$O$5)+L$6*N$6)*标准英雄数值!K44),2),0) -> 18.41 | G43: =标准怪物数值!L44*(($Y$2+$Y$3)*D43+$Y$4*(E43+D43)+$Y$5*(F43+E43+D43)) -> 18123.37725 | H43: =标准英雄数值!Z44*C43*($L$2*$P$2+$L$3*$P$3+$L$4*$P$4+$L$5*$P$5+$L$6*$P$6) -> 6958.98 | I43: =标准英雄数值!E44*($L$2*$M$2+$L$3*$M$3+$L$4*$M$4+$L$5*$M$5+$L$6*$M$6)-G43+H43 -> 8070.402754 | L43: 0 | M43: 0 | N43: 0 | O43: 1 | P43: 1
A44: 43 | B44: 胜利 | C44: 18.62 | D44: =ROUND(标准怪物数值!C45*($U$2*$V$2+$U$3*$V$3)/(($L$2*$N$2+$L$3*$N$3+$L$4*$N$4+$L$5*$N$5*IF(SUM($U$2:$U$5)<$O$5,SUM($U$2:$U$5),$O$5)+$L$6*$N$6)*标准英雄数值!K45),2) -> 0 | E44: =IFERROR(ROUND(标准怪物数值!C45*($U$4*$V$4)/((L$2*N$2+L$3*N$3+L$4*N$4+L$5*N$5*IF(SUM($U$4:$U$5)<$O$5,SUM($U$4:$U$5),$O$5)+L$6*N$6)*标准英雄数值!K45),2),0) -> 0 | F44: =IFERROR(ROUND(标准怪物数值!C45*($U$5*$V$5)/((L$2*N$2+L$3*N$3+L$4*N$4+L$5*N$5*IF(SUM($U$5:$U$5)<$O$5,SUM($U$5:$U$5),$O$5)+L$6*N$6)*标准英雄数值!K45),2),0) -> 18.62 | G44: =标准怪物数值!L45*(($Y$2+$Y$3)*D44+$Y$4*(E44+D44)+$Y$5*(F44+E44+D44)) -> 19056.67457 | H44: =标准英雄数值!Z45*C44*($L$2*$P$2+$L$3*$P$3+$L$4*$P$4+$L$5*$P$5+$L$6*$P$6) -> 7392.14 | I44: =标准英雄数值!E45*($L$2*$M$2+$L$3*$M$3+$L$4*$M$4+$L$5*$M$5+$L$6*$M$6)-G44+H44 -> 8532.265428 | L44: 1
A45: 44 | B45: 胜利 | C45: 18.84 | D45: =ROUND(标准怪物数值!C46*($U$2*$V$2+$U$3*$V$3)/(($L$2*$N$2+$L$3*$N$3+$L$4*$N$4+$L$5*$N$5*IF(SUM($U$2:$U$5)<$O$5,SUM($U$2:$U$5),$O$5)+$L$6*$N$6)*标准英雄数值!K46),2) -> 0 | E45: =IFERROR(ROUND(标准怪物数值!C46*($U$4*$V$4)/((L$2*N$2+L$3*N$3+L$4*N$4+L$5*N$5*IF(SUM($U$4:$U$5)<$O$5,SUM($U$4:$U$5),$O$5)+L$6*N$6)*标准英雄数值!K46),2),0) -> 0 | F45: =IFERROR(ROUND(标准怪物数值!C46*($U$5*$V$5)/((L$2*N$2+L$3*N$3+L$4*N$4+L$5*N$5*IF(SUM($U$5:$U$5)<$O$5,SUM($U$5:$U$5),$O$5)+L$6*N$6)*标准英雄数值!K46),2),0) -> 18.84 | G45: =标准怪物数值!L46*(($Y$2+$Y$3)*D45+$Y$4*(E45+D45)+$Y$5*(F45+E45+D45)) -> 20046.84149 | H45: =标准英雄数值!Z46*C45*($L$2*$P$2+$L$3*$P$3+$L$4*$P$4+$L$5*$P$5+$L$6*$P$6) -> 7856.28 | I45: =标准英雄数值!E46*($L$2*$M$2+$L$3*$M$3+$L$4*$M$4+$L$5*$M$5+$L$6*$M$6)-G45+H45 -> 9015.038513
A46: 45 | B46: 胜利 | C46: 19.05 | D46: =ROUND(标准怪物数值!C47*($U$2*$V$2+$U$3*$V$3)/(($L$2*$N$2+$L$3*$N$3+$L$4*$N$4+$L$5*$N$5*IF(SUM($U$2:$U$5)<$O$5,SUM($U$2:$U$5),$O$5)+$L$6*$N$6)*标准英雄数值!K47),2) -> 0 | E46: =IFERROR(ROUND(标准怪物数值!C47*($U$4*$V$4)/((L$2*N$2+L$3*N$3+L$4*N$4+L$5*N$5*IF(SUM($U$4:$U$5)<$O$5,SUM($U$4:$U$5),$O$5)+L$6*N$6)*标准英雄数值!K47),2),0) -> 0 | F46: =IFERROR(ROUND(标准怪物数值!C47*($U$5*$V$5)/((L$2*N$2+L$3*N$3+L$4*N$4+L$5*N$5*IF(SUM($U$5:$U$5)<$O$5,SUM($U$5:$U$5),$O$5)+L$6*N$6)*标准英雄数值!K47),2),0) -> 19.05 | G46: =标准怪物数值!L47*(($Y$2+$Y$3)*D46+$Y$4*(E46+D46)+$Y$5*(F46+E46+D46)) -> 21078.06202 | H46: =标准英雄数值!Z47*C46*($L$2*$P$2+$L$3*$P$3+$L$4*$P$4+$L$5*$P$5+$L$6*$P$6) -> 8343.9 | I46: =标准英雄数值!E47*($L$2*$M$2+$L$3*$M$3+$L$4*$M$4+$L$5*$M$5+$L$6*$M$6)-G46+H46 -> 9532.237984 | K46: AOE | L46: 1 | M46: 22 | N46: 0 | O46: 0
A47: 46 | B47: 胜利 | C47: 19.26 | D47: =ROUND(标准怪物数值!C48*($U$2*$V$2+$U$3*$V$3)/(($L$2*$N$2+$L$3*$N$3+$L$4*$N$4+$L$5*$N$5*IF(SUM($U$2:$U$5)<$O$5,SUM($U$2:$U$5),$O$5)+$L$6*$N$6)*标准英雄数值!K48),2) -> 0 | E47: =IFERROR(ROUND(标准怪物数值!C48*($U$4*$V$4)/((L$2*N$2+L$3*N$3+L$4*N$4+L$5*N$5*IF(SUM($U$4:$U$5)<$O$5,SUM($U$4:$U$5),$O$5)+L$6*N$6)*标准英雄数值!K48),2),0) -> 0 | F47: =IFERROR(ROUND(标准怪物数值!C48*($U$5*$V$5)/((L$2*N$2+L$3*N$3+L$4*N$4+L$5*N$5*IF(SUM($U$5:$U$5)<$O$5,SUM($U$5:$U$5),$O$5)+L$6*N$6)*标准英雄数值!K48),2),0) -> 19.26 | G47: =标准怪物数值!L48*(($Y$2+$Y$3)*D47+$Y$4*(E47+D47)+$Y$5*(F47+E47+D47)) -> 22160.70633 | H47: =标准英雄数值!Z48*C47*($L$2*$P$2+$L$3*$P$3+$L$4*$P$4+$L$5*$P$5+$L$6*$P$6) -> 8859.6 | I47: =标准英雄数值!E48*($L$2*$M$2+$L$3*$M$3+$L$4*$M$4+$L$5*$M$5+$L$6*$M$6)-G47+H47 -> 10078.09367 | L47: 0 | M47: 0 | N47: 5 | O47: 0
A48: 47 | B48: 胜利 | C48: 19.49 | D48: =ROUND(标准怪物数值!C49*($U$2*$V$2+$U$3*$V$3)/(($L$2*$N$2+$L$3*$N$3+$L$4*$N$4+$L$5*$N$5*IF(SUM($U$2:$U$5)<$O$5,SUM($U$2:$U$5),$O$5)+$L$6*$N$6)*标准英雄数值!K49),2) -> 0 | E48: =IFERROR(ROUND(标准怪物数值!C49*($U$4*$V$4)/((L$2*N$2+L$3*N$3+L$4*N$4+L$5*N$5*IF(SUM($U$4:$U$5)<$O$5,SUM($U$4:$U$5),$O$5)+L$6*N$6)*标准英雄数值!K49),2),0) -> 0 | F48: =IFERROR(ROUND(标准怪物数值!C49*($U$5*$V$5)/((L$2*N$2+L$3*N$3+L$4*N$4+L$5*N$5*IF(SUM($U$5:$U$5)<$O$5,SUM($U$5:$U$5),$O$5)+L$6*N$6)*标准英雄数值!K49),2),0) -> 19.49 | G48: =标准怪物数值!L49*(($Y$2+$Y$3)*D48+$Y$4*(E48+D48)+$Y$5*(F48+E48+D48)) -> 23309.00317 | H48: =标准英雄数值!Z49*C48*($L$2*$P$2+$L$3*$P$3+$L$4*$P$4+$L$5*$P$5+$L$6*$P$6) -> 9413.67 | I48: =标准英雄数值!E49*($L$2*$M$2+$L$3*$M$3+$L$4*$M$4+$L$5*$M$5+$L$6*$M$6)-G48+H48 -> 10653.86683 | L48: 2 | M48: 0 | N48: 0 | O48: 1
A49: 48 | B49: 胜利 | C49: 19.71 | D49: =ROUND(标准怪物数值!C50*($U$2*$V$2+$U$3*$V$3)/(($L$2*$N$2+$L$3*$N$3+$L$4*$N$4+$L$5*$N$5*IF(SUM($U$2:$U$5)<$O$5,SUM($U$2:$U$5),$O$5)+$L$6*$N$6)*标准英雄数值!K50),2) -> 0 | E49: =IFERROR(ROUND(标准怪物数值!C50*($U$4*$V$4)/((L$2*N$2+L$3*N$3+L$4*N$4+L$5*N$5*IF(SUM($U$4:$U$5)<$O$5,SUM($U$4:$U$5),$O$5)+L$6*N$6)*标准英雄数值!K50),2),0) -> 0 | F49: =IFERROR(ROUND(标准怪物数值!C50*($U$5*$V$5)/((L$2*N$2+L$3*N$3+L$4*N$4+L$5*N$5*IF(SUM($U$5:$U$5)<$O$5,SUM($U$5:$U$5),$O$5)+L$6*N$6)*标准英雄数值!K50),2),0) -> 19.71 | G49: =标准怪物数值!L50*(($Y$2+$Y$3)*D49+$Y$4*(E49+D49)+$Y$5*(F49+E49+D49)) -> 24502.18683 | H49: =标准英雄数值!Z50*C49*($L$2*$P$2+$L$3*$P$3+$L$4*$P$4+$L$5*$P$5+$L$6*$P$6) -> 9992.97 | I49: =标准英雄数值!E50*($L$2*$M$2+$L$3*$M$3+$L$4*$M$4+$L$5*$M$5+$L$6*$M$6)-G49+H49 -> 11267.18317 | L49: 1
A50: 49 | B50: 胜利 | C50: 19.94 | D50: =ROUND(标准怪物数值!C51*($U$2*$V$2+$U$3*$V$3)/(($L$2*$N$2+$L$3*$N$3+$L$4*$N$4+$L$5*$N$5*IF(SUM($U$2:$U$5)<$O$5,SUM($U$2:$U$5),$O$5)+$L$6*$N$6)*标准英雄数值!K51),2) -> 0 | E50: =IFERROR(ROUND(标准怪物数值!C51*($U$4*$V$4)/((L$2*N$2+L$3*N$3+L$4*N$4+L$5*N$5*IF(SUM($U$4:$U$5)<$O$5,SUM($U$4:$U$5),$O$5)+L$6*N$6)*标准英雄数值!K51),2),0) -> 0 | F50: =IFERROR(ROUND(标准怪物数值!C51*($U$5*$V$5)/((L$2*N$2+L$3*N$3+L$4*N$4+L$5*N$5*IF(SUM($U$5:$U$5)<$O$5,SUM($U$5:$U$5),$O$5)+L$6*N$6)*标准英雄数值!K51),2),0) -> 19.94 | G50: =标准怪物数值!L51*(($Y$2+$Y$3)*D50+$Y$4*(E50+D50)+$Y$5*(F50+E50+D50)) -> 25769.75791 | H50: =标准英雄数值!Z51*C50*($L$2*$P$2+$L$3*$P$3+$L$4*$P$4+$L$5*$P$5+$L$6*$P$6) -> 10608.08 | I50: =标准英雄数值!E51*($L$2*$M$2+$L$3*$M$3+$L$4*$M$4+$L$5*$M$5+$L$6*$M$6)-G50+H50 -> 11904.32209
A51: 50 | B51: 胜利 | C51: 20.16 | D51: =ROUND(标准怪物数值!C52*($U$2*$V$2+$U$3*$V$3)/(($L$2*$N$2+$L$3*$N$3+$L$4*$N$4+$L$5*$N$5*IF(SUM($U$2:$U$5)<$O$5,SUM($U$2:$U$5),$O$5)+$L$6*$N$6)*标准英雄数值!K52),2) -> 0 | E51: =IFERROR(ROUND(标准怪物数值!C52*($U$4*$V$4)/((L$2*N$2+L$3*N$3+L$4*N$4+L$5*N$5*IF(SUM($U$4:$U$5)<$O$5,SUM($U$4:$U$5),$O$5)+L$6*N$6)*标准英雄数值!K52),2),0) -> 0 | F51: =IFERROR(ROUND(标准怪物数值!C52*($U$5*$V$5)/((L$2*N$2+L$3*N$3+L$4*N$4+L$5*N$5*IF(SUM($U$5:$U$5)<$O$5,SUM($U$5:$U$5),$O$5)+L$6*N$6)*标准英雄数值!K52),2),0) -> 20.16 | G51: =标准怪物数值!L52*(($Y$2+$Y$3)*D51+$Y$4*(E51+D51)+$Y$5*(F51+E51+D51)) -> 27086.51506 | H51: =标准英雄数值!Z52*C51*($L$2*$P$2+$L$3*$P$3+$L$4*$P$4+$L$5*$P$5+$L$6*$P$6) -> 11269.44 | I51: =标准英雄数值!E52*($L$2*$M$2+$L$3*$M$3+$L$4*$M$4+$L$5*$M$5+$L$6*$M$6)-G51+H51 -> 12600.92494
A52: 51 | B52: 胜利 | C52: 20.39 | D52: =ROUND(标准怪物数值!C53*($U$2*$V$2+$U$3*$V$3)/(($L$2*$N$2+$L$3*$N$3+$L$4*$N$4+$L$5*$N$5*IF(SUM($U$2:$U$5)<$O$5,SUM($U$2:$U$5),$O$5)+$L$6*$N$6)*标准英雄数值!K53),2) -> 0 | E52: =IFERROR(ROUND(标准怪物数值!C53*($U$4*$V$4)/((L$2*N$2+L$3*N$3+L$4*N$4+L$5*N$5*IF(SUM($U$4:$U$5)<$O$5,SUM($U$4:$U$5),$O$5)+L$6*N$6)*标准英雄数值!K53),2),0) -> 0 | F52: =IFERROR(ROUND(标准怪物数值!C53*($U$5*$V$5)/((L$2*N$2+L$3*N$3+L$4*N$4+L$5*N$5*IF(SUM($U$5:$U$5)<$O$5,SUM($U$5:$U$5),$O$5)+L$6*N$6)*标准英雄数值!K53),2),0) -> 20.39 | G52: =标准怪物数值!L53*(($Y$2+$Y$3)*D52+$Y$4*(E52+D52)+$Y$5*(F52+E52+D52)) -> 28483.94887 | H52: =标准英雄数值!Z53*C52*($L$2*$P$2+$L$3*$P$3+$L$4*$P$4+$L$5*$P$5+$L$6*$P$6) -> 11968.93 | I52: =标准英雄数值!E53*($L$2*$M$2+$L$3*$M$3+$L$4*$M$4+$L$5*$M$5+$L$6*$M$6)-G52+H52 -> 13322.58113
A53: 52 | B53: 胜利 | C53: 20.62 | D53: =ROUND(标准怪物数值!C54*($U$2*$V$2+$U$3*$V$3)/(($L$2*$N$2+$L$3*$N$3+$L$4*$N$4+$L$5*$N$5*IF(SUM($U$2:$U$5)<$O$5,SUM($U$2:$U$5),$O$5)+$L$6*$N$6)*标准英雄数值!K54),2) -> 0 | E53: =IFERROR(ROUND(标准怪物数值!C54*($U$4*$V$4)/((L$2*N$2+L$3*N$3+L$4*N$4+L$5*N$5*IF(SUM($U$4:$U$5)<$O$5,SUM($U$4:$U$5),$O$5)+L$6*N$6)*标准英雄数值!K54),2),0) -> 0 | F53: =IFERROR(ROUND(标准怪物数值!C54*($U$5*$V$5)/((L$2*N$2+L$3*N$3+L$4*N$4+L$5*N$5*IF(SUM($U$5:$U$5)<$O$5,SUM($U$5:$U$5),$O$5)+L$6*N$6)*标准英雄数值!K54),2),0) -> 20.62 | G53: =标准怪物数值!L54*(($Y$2+$Y$3)*D53+$Y$4*(E53+D53)+$Y$5*(F53+E53+D53)) -> 29954.30983 | H53: =标准英雄数值!Z54*C53*($L$2*$P$2+$L$3*$P$3+$L$4*$P$4+$L$5*$P$5+$L$6*$P$6) -> 12701.92 | I53: =标准英雄数值!E54*($L$2*$M$2+$L$3*$M$3+$L$4*$M$4+$L$5*$M$5+$L$6*$M$6)-G53+H53 -> 14077.61017
A54: 53 | B54: 胜利 | C54: 20.86 | D54: =ROUND(标准怪物数值!C55*($U$2*$V$2+$U$3*$V$3)/(($L$2*$N$2+$L$3*$N$3+$L$4*$N$4+$L$5*$N$5*IF(SUM($U$2:$U$5)<$O$5,SUM($U$2:$U$5),$O$5)+$L$6*$N$6)*标准英雄数值!K55),2) -> 0 | E54: =IFERROR(ROUND(标准怪物数值!C55*($U$4*$V$4)/((L$2*N$2+L$3*N$3+L$4*N$4+L$5*N$5*IF(SUM($U$4:$U$5)<$O$5,SUM($U$4:$U$5),$O$5)+L$6*N$6)*标准英雄数值!K55),2),0) -> 0 | F54: =IFERROR(ROUND(标准怪物数值!C55*($U$5*$V$5)/((L$2*N$2+L$3*N$3+L$4*N$4+L$5*N$5*IF(SUM($U$5:$U$5)<$O$5,SUM($U$5:$U$5),$O$5)+L$6*N$6)*标准英雄数值!K55),2),0) -> 20.86 | G54: =标准怪物数值!L55*(($Y$2+$Y$3)*D54+$Y$4*(E54+D54)+$Y$5*(F54+E54+D54)) -> 31494.11933 | H54: =标准英雄数值!Z55*C54*($L$2*$P$2+$L$3*$P$3+$L$4*$P$4+$L$5*$P$5+$L$6*$P$6) -> 13496.42 | I54: =标准英雄数值!E55*($L$2*$M$2+$L$3*$M$3+$L$4*$M$4+$L$5*$M$5+$L$6*$M$6)-G54+H54 -> 14897.50067
A55: 54 | B55: 胜利 | C55: 21.1 | D55: =ROUND(标准怪物数值!C56*($U$2*$V$2+$U$3*$V$3)/(($L$2*$N$2+$L$3*$N$3+$L$4*$N$4+$L$5*$N$5*IF(SUM($U$2:$U$5)<$O$5,SUM($U$2:$U$5),$O$5)+$L$6*$N$6)*标准英雄数值!K56),2) -> 0 | E55: =IFERROR(ROUND(标准怪物数值!C56*($U$4*$V$4)/((L$2*N$2+L$3*N$3+L$4*N$4+L$5*N$5*IF(SUM($U$4:$U$5)<$O$5,SUM($U$4:$U$5),$O$5)+L$6*N$6)*标准英雄数值!K56),2),0) -> 0 | F55: =IFERROR(ROUND(标准怪物数值!C56*($U$5*$V$5)/((L$2*N$2+L$3*N$3+L$4*N$4+L$5*N$5*IF(SUM($U$5:$U$5)<$O$5,SUM($U$5:$U$5),$O$5)+L$6*N$6)*标准英雄数值!K56),2),0) -> 21.1 | G55: =标准怪物数值!L56*(($Y$2+$Y$3)*D55+$Y$4*(E55+D55)+$Y$5*(F55+E55+D55)) -> 33111.91967 | H55: =标准英雄数值!Z56*C55*($L$2*$P$2+$L$3*$P$3+$L$4*$P$4+$L$5*$P$5+$L$6*$P$6) -> 14326.9 | I55: =标准英雄数值!E56*($L$2*$M$2+$L$3*$M$3+$L$4*$M$4+$L$5*$M$5+$L$6*$M$6)-G55+H55 -> 15753.38033
A56: 55 | B56: 胜利 | C56: 21.34 | D56: =ROUND(标准怪物数值!C57*($U$2*$V$2+$U$3*$V$3)/(($L$2*$N$2+$L$3*$N$3+$L$4*$N$4+$L$5*$N$5*IF(SUM($U$2:$U$5)<$O$5,SUM($U$2:$U$5),$O$5)+$L$6*$N$6)*标准英雄数值!K57),2) -> 0 | E56: =IFERROR(ROUND(标准怪物数值!C57*($U$4*$V$4)/((L$2*N$2+L$3*N$3+L$4*N$4+L$5*N$5*IF(SUM($U$4:$U$5)<$O$5,SUM($U$4:$U$5),$O$5)+L$6*N$6)*标准英雄数值!K57),2),0) -> 0 | F56: =IFERROR(ROUND(标准怪物数值!C57*($U$5*$V$5)/((L$2*N$2+L$3*N$3+L$4*N$4+L$5*N$5*IF(SUM($U$5:$U$5)<$O$5,SUM($U$5:$U$5),$O$5)+L$6*N$6)*标准英雄数值!K57),2),0) -> 21.34 | G56: =标准怪物数值!L57*(($Y$2+$Y$3)*D56+$Y$4*(E56+D56)+$Y$5*(F56+E56+D56)) -> 34812.90292 | H56: =标准英雄数值!Z57*C56*($L$2*$P$2+$L$3*$P$3+$L$4*$P$4+$L$5*$P$5+$L$6*$P$6) -> 15215.42 | I56: =标准英雄数值!E57*($L$2*$M$2+$L$3*$M$3+$L$4*$M$4+$L$5*$M$5+$L$6*$M$6)-G56+H56 -> 16667.31708
A57: 56 | B57: 胜利 | C57: 21.58 | D57: =ROUND(标准怪物数值!C58*($U$2*$V$2+$U$3*$V$3)/(($L$2*$N$2+$L$3*$N$3+$L$4*$N$4+$L$5*$N$5*IF(SUM($U$2:$U$5)<$O$5,SUM($U$2:$U$5),$O$5)+$L$6*$N$6)*标准英雄数值!K58),2) -> 0 | E57: =IFERROR(ROUND(标准怪物数值!C58*($U$4*$V$4)/((L$2*N$2+L$3*N$3+L$4*N$4+L$5*N$5*IF(SUM($U$4:$U$5)<$O$5,SUM($U$4:$U$5),$O$5)+L$6*N$6)*标准英雄数值!K58),2),0) -> 0 | F57: =IFERROR(ROUND(标准怪物数值!C58*($U$5*$V$5)/((L$2*N$2+L$3*N$3+L$4*N$4+L$5*N$5*IF(SUM($U$5:$U$5)<$O$5,SUM($U$5:$U$5),$O$5)+L$6*N$6)*标准英雄数值!K58),2),0) -> 21.58 | G57: =标准怪物数值!L58*(($Y$2+$Y$3)*D57+$Y$4*(E57+D57)+$Y$5*(F57+E57+D57)) -> 36602.2791 | H57: =标准英雄数值!Z58*C57*($L$2*$P$2+$L$3*$P$3+$L$4*$P$4+$L$5*$P$5+$L$6*$P$6) -> 16163.42 | I57: =标准英雄数值!E58*($L$2*$M$2+$L$3*$M$3+$L$4*$M$4+$L$5*$M$5+$L$6*$M$6)-G57+H57 -> 17640.7409
A58: 57 | B58: 胜利 | C58: 21.82 | D58: =ROUND(标准怪物数值!C59*($U$2*$V$2+$U$3*$V$3)/(($L$2*$N$2+$L$3*$N$3+$L$4*$N$4+$L$5*$N$5*IF(SUM($U$2:$U$5)<$O$5,SUM($U$2:$U$5),$O$5)+$L$6*$N$6)*标准英雄数值!K59),2) -> 0 | E58: =IFERROR(ROUND(标准怪物数值!C59*($U$4*$V$4)/((L$2*N$2+L$3*N$3+L$4*N$4+L$5*N$5*IF(SUM($U$4:$U$5)<$O$5,SUM($U$4:$U$5),$O$5)+L$6*N$6)*标准英雄数值!K59),2),0) -> 0 | F58: =IFERROR(ROUND(标准怪物数值!C59*($U$5*$V$5)/((L$2*N$2+L$3*N$3+L$4*N$4+L$5*N$5*IF(SUM($U$5:$U$5)<$O$5,SUM($U$5:$U$5),$O$5)+L$6*N$6)*标准英雄数值!K59),2),0) -> 21.82 | G58: =标准怪物数值!L59*(($Y$2+$Y$3)*D58+$Y$4*(E58+D58)+$Y$5*(F58+E58+D58)) -> 38480.27064 | H58: =标准英雄数值!Z59*C58*($L$2*$P$2+$L$3*$P$3+$L$4*$P$4+$L$5*$P$5+$L$6*$P$6) -> 17150.52 | I58: =标准英雄数值!E59*($L$2*$M$2+$L$3*$M$3+$L$4*$M$4+$L$5*$M$5+$L$6*$M$6)-G58+H58 -> 18653.04936
A59: 58 | B59: 胜利 | C59: 22.06 | D59: =ROUND(标准怪物数值!C60*($U$2*$V$2+$U$3*$V$3)/(($L$2*$N$2+$L$3*$N$3+$L$4*$N$4+$L$5*$N$5*IF(SUM($U$2:$U$5)<$O$5,SUM($U$2:$U$5),$O$5)+$L$6*$N$6)*标准英雄数值!K60),2) -> 0 | E59: =IFERROR(ROUND(标准怪物数值!C60*($U$4*$V$4)/((L$2*N$2+L$3*N$3+L$4*N$4+L$5*N$5*IF(SUM($U$4:$U$5)<$O$5,SUM($U$4:$U$5),$O$5)+L$6*N$6)*标准英雄数值!K60),2),0) -> 0 | F59: =IFERROR(ROUND(标准怪物数值!C60*($U$5*$V$5)/((L$2*N$2+L$3*N$3+L$4*N$4+L$5*N$5*IF(SUM($U$5:$U$5)<$O$5,SUM($U$5:$U$5),$O$5)+L$6*N$6)*标准英雄数值!K60),2),0) -> 22.06 | G59: =标准怪物数值!L60*(($Y$2+$Y$3)*D59+$Y$4*(E59+D59)+$Y$5*(F59+E59+D59)) -> 40452.10221 | H59: =标准英雄数值!Z60*C59*($L$2*$P$2+$L$3*$P$3+$L$4*$P$4+$L$5*$P$5+$L$6*$P$6) -> 18199.5 | I59: =标准英雄数值!E60*($L$2*$M$2+$L$3*$M$3+$L$4*$M$4+$L$5*$M$5+$L$6*$M$6)-G59+H59 -> 19726.99779
A60: 59 | B60: 胜利 | C60: 22.31 | D60: =ROUND(标准怪物数值!C61*($U$2*$V$2+$U$3*$V$3)/(($L$2*$N$2+$L$3*$N$3+$L$4*$N$4+$L$5*$N$5*IF(SUM($U$2:$U$5)<$O$5,SUM($U$2:$U$5),$O$5)+$L$6*$N$6)*标准英雄数值!K61),2) -> 0 | E60: =IFERROR(ROUND(标准怪物数值!C61*($U$4*$V$4)/((L$2*N$2+L$3*N$3+L$4*N$4+L$5*N$5*IF(SUM($U$4:$U$5)<$O$5,SUM($U$4:$U$5),$O$5)+L$6*N$6)*标准英雄数值!K61),2),0) -> 0 | F60: =IFERROR(ROUND(标准怪物数值!C61*($U$5*$V$5)/((L$2*N$2+L$3*N$3+L$4*N$4+L$5*N$5*IF(SUM($U$5:$U$5)<$O$5,SUM($U$5:$U$5),$O$5)+L$6*N$6)*标准英雄数值!K61),2),0) -> 22.31 | G60: =标准怪物数值!L61*(($Y$2+$Y$3)*D60+$Y$4*(E60+D60)+$Y$5*(F60+E60+D60)) -> 42523.18606 | H60: =标准英雄数值!Z61*C60*($L$2*$P$2+$L$3*$P$3+$L$4*$P$4+$L$5*$P$5+$L$6*$P$6) -> 19320.46 | I60: =标准英雄数值!E61*($L$2*$M$2+$L$3*$M$3+$L$4*$M$4+$L$5*$M$5+$L$6*$M$6)-G60+H60 -> 20877.67394
A61: 60 | B61: 胜利 | C61: 22.57 | D61: =ROUND(标准怪物数值!C62*($U$2*$V$2+$U$3*$V$3)/(($L$2*$N$2+$L$3*$N$3+$L$4*$N$4+$L$5*$N$5*IF(SUM($U$2:$U$5)<$O$5,SUM($U$2:$U$5),$O$5)+$L$6*$N$6)*标准英雄数值!K62),2) -> 0 | E61: =IFERROR(ROUND(标准怪物数值!C62*($U$4*$V$4)/((L$2*N$2+L$3*N$3+L$4*N$4+L$5*N$5*IF(SUM($U$4:$U$5)<$O$5,SUM($U$4:$U$5),$O$5)+L$6*N$6)*标准英雄数值!K62),2),0) -> 0 | F61: =IFERROR(ROUND(标准怪物数值!C62*($U$5*$V$5)/((L$2*N$2+L$3*N$3+L$4*N$4+L$5*N$5*IF(SUM($U$5:$U$5)<$O$5,SUM($U$5:$U$5),$O$5)+L$6*N$6)*标准英雄数值!K62),2),0) -> 22.57 | G61: =标准怪物数值!L62*(($Y$2+$Y$3)*D61+$Y$4*(E61+D61)+$Y$5*(F61+E61+D61)) -> 44717.98998 | H61: =标准英雄数值!Z62*C61*($L$2*$P$2+$L$3*$P$3+$L$4*$P$4+$L$5*$P$5+$L$6*$P$6) -> 20516.13 | I61: =标准英雄数值!E62*($L$2*$M$2+$L$3*$M$3+$L$4*$M$4+$L$5*$M$5+$L$6*$M$6)-G61+H61 -> 22083.34002
A62: 61 | B62: 胜利 | C62: 22.82 | D62: =ROUND(标准怪物数值!C63*($U$2*$V$2+$U$3*$V$3)/(($L$2*$N$2+$L$3*$N$3+$L$4*$N$4+$L$5*$N$5*IF(SUM($U$2:$U$5)<$O$5,SUM($U$2:$U$5),$O$5)+$L$6*$N$6)*标准英雄数值!K63),2) -> 0 | E62: =IFERROR(ROUND(标准怪物数值!C63*($U$4*$V$4)/((L$2*N$2+L$3*N$3+L$4*N$4+L$5*N$5*IF(SUM($U$4:$U$5)<$O$5,SUM($U$4:$U$5),$O$5)+L$6*N$6)*标准英雄数值!K63),2),0) -> 0 | F62: =IFERROR(ROUND(标准怪物数值!C63*($U$5*$V$5)/((L$2*N$2+L$3*N$3+L$4*N$4+L$5*N$5*IF(SUM($U$5:$U$5)<$O$5,SUM($U$5:$U$5),$O$5)+L$6*N$6)*标准英雄数值!K63),2),0) -> 22.82 | G62: =标准怪物数值!L63*(($Y$2+$Y$3)*D62+$Y$4*(E62+D62)+$Y$5*(F62+E62+D62)) -> 47002.9135 | H62: =标准英雄数值!Z63*C62*($L$2*$P$2+$L$3*$P$3+$L$4*$P$4+$L$5*$P$5+$L$6*$P$6) -> 21770.28 | I62: =标准英雄数值!E63*($L$2*$M$2+$L$3*$M$3+$L$4*$M$4+$L$5*$M$5+$L$6*$M$6)-G62+H62 -> 23366.5665
A63: 62 | B63: 胜利 | C63: 23.08 | D63: =ROUND(标准怪物数值!C64*($U$2*$V$2+$U$3*$V$3)/(($L$2*$N$2+$L$3*$N$3+$L$4*$N$4+$L$5*$N$5*IF(SUM($U$2:$U$5)<$O$5,SUM($U$2:$U$5),$O$5)+$L$6*$N$6)*标准英雄数值!K64),2) -> 0 | E63: =IFERROR(ROUND(标准怪物数值!C64*($U$4*$V$4)/((L$2*N$2+L$3*N$3+L$4*N$4+L$5*N$5*IF(SUM($U$4:$U$5)<$O$5,SUM($U$4:$U$5),$O$5)+L$6*N$6)*标准英雄数值!K64),2),0) -> 0 | F63: =IFERROR(ROUND(标准怪物数值!C64*($U$5*$V$5)/((L$2*N$2+L$3*N$3+L$4*N$4+L$5*N$5*IF(SUM($U$5:$U$5)<$O$5,SUM($U$5:$U$5),$O$5)+L$6*N$6)*标准英雄数值!K64),2),0) -> 23.08 | G63: =标准怪物数值!L64*(($Y$2+$Y$3)*D63+$Y$4*(E63+D63)+$Y$5*(F63+E63+D63)) -> 49423.68576 | H63: =标准英雄数值!Z64*C63*($L$2*$P$2+$L$3*$P$3+$L$4*$P$4+$L$5*$P$5+$L$6*$P$6) -> 23126.16 | I63: =标准英雄数值!E64*($L$2*$M$2+$L$3*$M$3+$L$4*$M$4+$L$5*$M$5+$L$6*$M$6)-G63+H63 -> 24730.07424
A64: 63 | B64: 胜利 | C64: 23.33 | D64: =ROUND(标准怪物数值!C65*($U$2*$V$2+$U$3*$V$3)/(($L$2*$N$2+$L$3*$N$3+$L$4*$N$4+$L$5*$N$5*IF(SUM($U$2:$U$5)<$O$5,SUM($U$2:$U$5),$O$5)+$L$6*$N$6)*标准英雄数值!K65),2) -> 0 | E64: =IFERROR(ROUND(标准怪物数值!C65*($U$4*$V$4)/((L$2*N$2+L$3*N$3+L$4*N$4+L$5*N$5*IF(SUM($U$4:$U$5)<$O$5,SUM($U$4:$U$5),$O$5)+L$6*N$6)*标准英雄数值!K65),2),0) -> 0 | F64: =IFERROR(ROUND(标准怪物数值!C65*($U$5*$V$5)/((L$2*N$2+L$3*N$3+L$4*N$4+L$5*N$5*IF(SUM($U$5:$U$5)<$O$5,SUM($U$5:$U$5),$O$5)+L$6*N$6)*标准英雄数值!K65),2),0) -> 23.33 | G64: =标准怪物数值!L65*(($Y$2+$Y$3)*D64+$Y$4*(E64+D64)+$Y$5*(F64+E64+D64)) -> 51948.63749 | H64: =标准英雄数值!Z65*C64*($L$2*$P$2+$L$3*$P$3+$L$4*$P$4+$L$5*$P$5+$L$6*$P$6) -> 24543.16 | I64: =标准英雄数值!E65*($L$2*$M$2+$L$3*$M$3+$L$4*$M$4+$L$5*$M$5+$L$6*$M$6)-G64+H64 -> 26175.32251
A65: 64 | B65: 胜利 | C65: 23.6 | D65: =ROUND(标准怪物数值!C66*($U$2*$V$2+$U$3*$V$3)/(($L$2*$N$2+$L$3*$N$3+$L$4*$N$4+$L$5*$N$5*IF(SUM($U$2:$U$5)<$O$5,SUM($U$2:$U$5),$O$5)+$L$6*$N$6)*标准英雄数值!K66),2) -> 0 | E65: =IFERROR(ROUND(标准怪物数值!C66*($U$4*$V$4)/((L$2*N$2+L$3*N$3+L$4*N$4+L$5*N$5*IF(SUM($U$4:$U$5)<$O$5,SUM($U$4:$U$5),$O$5)+L$6*N$6)*标准英雄数值!K66),2),0) -> 0 | F65: =IFERROR(ROUND(标准怪物数值!C66*($U$5*$V$5)/((L$2*N$2+L$3*N$3+L$4*N$4+L$5*N$5*IF(SUM($U$5:$U$5)<$O$5,SUM($U$5:$U$5),$O$5)+L$6*N$6)*标准英雄数值!K66),2),0) -> 23.6 | G65: =标准怪物数值!L66*(($Y$2+$Y$3)*D65+$Y$4*(E65+D65)+$Y$5*(F65+E65+D65)) -> 54615.70053 | H65: =标准英雄数值!Z66*C65*($L$2*$P$2+$L$3*$P$3+$L$4*$P$4+$L$5*$P$5+$L$6*$P$6) -> 26078 | I65: =标准英雄数值!E66*($L$2*$M$2+$L$3*$M$3+$L$4*$M$4+$L$5*$M$5+$L$6*$M$6)-G65+H65 -> 27721.09947
A66: 65 | B66: 胜利 | C66: 23.87 | D66: =ROUND(标准怪物数值!C67*($U$2*$V$2+$U$3*$V$3)/(($L$2*$N$2+$L$3*$N$3+$L$4*$N$4+$L$5*$N$5*IF(SUM($U$2:$U$5)<$O$5,SUM($U$2:$U$5),$O$5)+$L$6*$N$6)*标准英雄数值!K67),2) -> 0 | E66: =IFERROR(ROUND(标准怪物数值!C67*($U$4*$V$4)/((L$2*N$2+L$3*N$3+L$4*N$4+L$5*N$5*IF(SUM($U$4:$U$5)<$O$5,SUM($U$4:$U$5),$O$5)+L$6*N$6)*标准英雄数值!K67),2),0) -> 0 | F66: =IFERROR(ROUND(标准怪物数值!C67*($U$5*$V$5)/((L$2*N$2+L$3*N$3+L$4*N$4+L$5*N$5*IF(SUM($U$5:$U$5)<$O$5,SUM($U$5:$U$5),$O$5)+L$6*N$6)*标准英雄数值!K67),2),0) -> 23.87 | G66: =标准怪物数值!L67*(($Y$2+$Y$3)*D66+$Y$4*(E66+D66)+$Y$5*(F66+E66+D66)) -> 57419.41768 | H66: =标准英雄数值!Z67*C66*($L$2*$P$2+$L$3*$P$3+$L$4*$P$4+$L$5*$P$5+$L$6*$P$6) -> 27689.2 | I66: =标准英雄数值!E67*($L$2*$M$2+$L$3*$M$3+$L$4*$M$4+$L$5*$M$5+$L$6*$M$6)-G66+H66 -> 29341.78232
A67: 66 | B67: =IF(I67>0,"胜利","失败") -> 胜利 | C67: =D67+E67+F67 -> 24.13 | D67: =ROUND(标准怪物数值!C68*($U$2*$V$2+$U$3*$V$3)/(($L$2*$N$2+$L$3*$N$3+$L$4*$N$4+$L$5*$N$5*IF(SUM($U$2:$U$5)<$O$5,SUM($U$2:$U$5),$O$5)+$L$6*$N$6)*标准英雄数值!K68),2) -> 0 | E67: =IFERROR(ROUND(标准怪物数值!C68*($U$4*$V$4)/((L$2*N$2+L$3*N$3+L$4*N$4+L$5*N$5*IF(SUM($U$4:$U$5)<$O$5,SUM($U$4:$U$5),$O$5)+L$6*N$6)*标准英雄数值!K68),2),0) -> 0 | F67: =IFERROR(ROUND(标准怪物数值!C68*($U$5*$V$5)/((L$2*N$2+L$3*N$3+L$4*N$4+L$5*N$5*IF(SUM($U$5:$U$5)<$O$5,SUM($U$5:$U$5),$O$5)+L$6*N$6)*标准英雄数值!K68),2),0) -> 24.13 | G67: =标准怪物数值!L68*(($Y$2+$Y$3)*D67+$Y$4*(E67+D67)+$Y$5*(F67+E67+D67)) -> 60340.1761 | H67: =标准英雄数值!Z68*C67*($L$2*$P$2+$L$3*$P$3+$L$4*$P$4+$L$5*$P$5+$L$6*$P$6) -> 29390.34 | I67: =标准英雄数值!E68*($L$2*$M$2+$L$3*$M$3+$L$4*$M$4+$L$5*$M$5+$L$6*$M$6)-G67+H67 -> 31075.7639
A68: 67 | B68: 胜利 | C68: 24.4 | D68: =ROUND(标准怪物数值!C69*($U$2*$V$2+$U$3*$V$3)/(($L$2*$N$2+$L$3*$N$3+$L$4*$N$4+$L$5*$N$5*IF(SUM($U$2:$U$5)<$O$5,SUM($U$2:$U$5),$O$5)+$L$6*$N$6)*标准英雄数值!K69),2) -> 0 | E68: =IFERROR(ROUND(标准怪物数值!C69*($U$4*$V$4)/((L$2*N$2+L$3*N$3+L$4*N$4+L$5*N$5*IF(SUM($U$4:$U$5)<$O$5,SUM($U$4:$U$5),$O$5)+L$6*N$6)*标准英雄数值!K69),2),0) -> 0 | F68: =IFERROR(ROUND(标准怪物数值!C69*($U$5*$V$5)/((L$2*N$2+L$3*N$3+L$4*N$4+L$5*N$5*IF(SUM($U$5:$U$5)<$O$5,SUM($U$5:$U$5),$O$5)+L$6*N$6)*标准英雄数值!K69),2),0) -> 24.4 | G68: =标准怪物数值!L69*(($Y$2+$Y$3)*D68+$Y$4*(E68+D68)+$Y$5*(F68+E68+D68)) -> 63432.4027 | H68: =标准英雄数值!Z69*C68*($L$2*$P$2+$L$3*$P$3+$L$4*$P$4+$L$5*$P$5+$L$6*$P$6) -> 31207.6 | I68: =标准英雄数值!E69*($L$2*$M$2+$L$3*$M$3+$L$4*$M$4+$L$5*$M$5+$L$6*$M$6)-G68+H68 -> 32899.9973
A69: 68 | B69: 胜利 | C69: 24.67 | D69: =ROUND(标准怪物数值!C70*($U$2*$V$2+$U$3*$V$3)/(($L$2*$N$2+$L$3*$N$3+$L$4*$N$4+$L$5*$N$5*IF(SUM($U$2:$U$5)<$O$5,SUM($U$2:$U$5),$O$5)+$L$6*$N$6)*标准英雄数值!K70),2) -> 0 | E69: =IFERROR(ROUND(标准怪物数值!C70*($U$4*$V$4)/((L$2*N$2+L$3*N$3+L$4*N$4+L$5*N$5*IF(SUM($U$4:$U$5)<$O$5,SUM($U$4:$U$5),$O$5)+L$6*N$6)*标准英雄数值!K70),2),0) -> 0 | F69: =IFERROR(ROUND(标准怪物数值!C70*($U$5*$V$5)/((L$2*N$2+L$3*N$3+L$4*N$4+L$5*N$5*IF(SUM($U$5:$U$5)<$O$5,SUM($U$5:$U$5),$O$5)+L$6*N$6)*标准英雄数值!K70),2),0) -> 24.67 | G69: =标准怪物数值!L70*(($Y$2+$Y$3)*D69+$Y$4*(E69+D69)+$Y$5*(F69+E69+D69)) -> 66682.52826 | H69: =标准英雄数值!Z70*C69*($L$2*$P$2+$L$3*$P$3+$L$4*$P$4+$L$5*$P$5+$L$6*$P$6) -> 33131.81 | I69: =标准英雄数值!E70*($L$2*$M$2+$L$3*$M$3+$L$4*$M$4+$L$5*$M$5+$L$6*$M$6)-G69+H69 -> 34829.28174
A70: 69 | B70: 胜利 | C70: 24.94 | D70: =ROUND(标准怪物数值!C71*($U$2*$V$2+$U$3*$V$3)/(($L$2*$N$2+$L$3*$N$3+$L$4*$N$4+$L$5*$N$5*IF(SUM($U$2:$U$5)<$O$5,SUM($U$2:$U$5),$O$5)+$L$6*$N$6)*标准英雄数值!K71),2) -> 0 | E70: =IFERROR(ROUND(标准怪物数值!C71*($U$4*$V$4)/((L$2*N$2+L$3*N$3+L$4*N$4+L$5*N$5*IF(SUM($U$4:$U$5)<$O$5,SUM($U$4:$U$5),$O$5)+L$6*N$6)*标准英雄数值!K71),2),0) -> 0 | F70: =IFERROR(ROUND(标准怪物数值!C71*($U$5*$V$5)/((L$2*N$2+L$3*N$3+L$4*N$4+L$5*N$5*IF(SUM($U$5:$U$5)<$O$5,SUM($U$5:$U$5),$O$5)+L$6*N$6)*标准英雄数值!K71),2),0) -> 24.94 | G70: =标准怪物数值!L71*(($Y$2+$Y$3)*D70+$Y$4*(E70+D70)+$Y$5*(F70+E70+D70)) -> 70101.07277 | H70: =标准英雄数值!Z71*C70*($L$2*$P$2+$L$3*$P$3+$L$4*$P$4+$L$5*$P$5+$L$6*$P$6) -> 35165.4 | I70: =标准英雄数值!E71*($L$2*$M$2+$L$3*$M$3+$L$4*$M$4+$L$5*$M$5+$L$6*$M$6)-G70+H70 -> 36865.92723
A71: 70 | B71: 胜利 | C71: 25.22 | D71: =ROUND(标准怪物数值!C72*($U$2*$V$2+$U$3*$V$3)/(($L$2*$N$2+$L$3*$N$3+$L$4*$N$4+$L$5*$N$5*IF(SUM($U$2:$U$5)<$O$5,SUM($U$2:$U$5),$O$5)+$L$6*$N$6)*标准英雄数值!K72),2) -> 0 | E71: =IFERROR(ROUND(标准怪物数值!C72*($U$4*$V$4)/((L$2*N$2+L$3*N$3+L$4*N$4+L$5*N$5*IF(SUM($U$4:$U$5)<$O$5,SUM($U$4:$U$5),$O$5)+L$6*N$6)*标准英雄数值!K72),2),0) -> 0 | F71: =IFERROR(ROUND(标准怪物数值!C72*($U$5*$V$5)/((L$2*N$2+L$3*N$3+L$4*N$4+L$5*N$5*IF(SUM($U$5:$U$5)<$O$5,SUM($U$5:$U$5),$O$5)+L$6*N$6)*标准英雄数值!K72),2),0) -> 25.22 | G71: =标准怪物数值!L72*(($Y$2+$Y$3)*D71+$Y$4*(E71+D71)+$Y$5*(F71+E71+D71)) -> 73680.51587 | H71: =标准英雄数值!Z72*C71*($L$2*$P$2+$L$3*$P$3+$L$4*$P$4+$L$5*$P$5+$L$6*$P$6) -> 37350.82 | I71: =标准英雄数值!E72*($L$2*$M$2+$L$3*$M$3+$L$4*$M$4+$L$5*$M$5+$L$6*$M$6)-G71+H71 -> 39059.90413
A72: 71 | B72: 胜利 | C72: 25.51 | D72: =ROUND(标准怪物数值!C73*($U$2*$V$2+$U$3*$V$3)/(($L$2*$N$2+$L$3*$N$3+$L$4*$N$4+$L$5*$N$5*IF(SUM($U$2:$U$5)<$O$5,SUM($U$2:$U$5),$O$5)+$L$6*$N$6)*标准英雄数值!K73),2) -> 0 | E72: =IFERROR(ROUND(标准怪物数值!C73*($U$4*$V$4)/((L$2*N$2+L$3*N$3+L$4*N$4+L$5*N$5*IF(SUM($U$4:$U$5)<$O$5,SUM($U$4:$U$5),$O$5)+L$6*N$6)*标准英雄数值!K73),2),0) -> 0 | F72: =IFERROR(ROUND(标准怪物数值!C73*($U$5*$V$5)/((L$2*N$2+L$3*N$3+L$4*N$4+L$5*N$5*IF(SUM($U$5:$U$5)<$O$5,SUM($U$5:$U$5),$O$5)+L$6*N$6)*标准英雄数值!K73),2),0) -> 25.51 | G72: =标准怪物数值!L73*(($Y$2+$Y$3)*D72+$Y$4*(E72+D72)+$Y$5*(F72+E72+D72)) -> 77474.06085 | H72: =标准英雄数值!Z73*C72*($L$2*$P$2+$L$3*$P$3+$L$4*$P$4+$L$5*$P$5+$L$6*$P$6) -> 39668.05 | I72: =标准英雄数值!E73*($L$2*$M$2+$L$3*$M$3+$L$4*$M$4+$L$5*$M$5+$L$6*$M$6)-G72+H72 -> 41353.58915
A73: 72 | B73: 胜利 | C73: 25.79 | D73: =ROUND(标准怪物数值!C74*($U$2*$V$2+$U$3*$V$3)/(($L$2*$N$2+$L$3*$N$3+$L$4*$N$4+$L$5*$N$5*IF(SUM($U$2:$U$5)<$O$5,SUM($U$2:$U$5),$O$5)+$L$6*$N$6)*标准英雄数值!K74),2) -> 0 | E73: =IFERROR(ROUND(标准怪物数值!C74*($U$4*$V$4)/((L$2*N$2+L$3*N$3+L$4*N$4+L$5*N$5*IF(SUM($U$4:$U$5)<$O$5,SUM($U$4:$U$5),$O$5)+L$6*N$6)*标准英雄数值!K74),2),0) -> 0 | F73: =IFERROR(ROUND(标准怪物数值!C74*($U$5*$V$5)/((L$2*N$2+L$3*N$3+L$4*N$4+L$5*N$5*IF(SUM($U$5:$U$5)<$O$5,SUM($U$5:$U$5),$O$5)+L$6*N$6)*标准英雄数值!K74),2),0) -> 25.79 | G73: =标准怪物数值!L74*(($Y$2+$Y$3)*D73+$Y$4*(E73+D73)+$Y$5*(F73+E73+D73)) -> 81427.62667 | H73: =标准英雄数值!Z74*C73*($L$2*$P$2+$L$3*$P$3+$L$4*$P$4+$L$5*$P$5+$L$6*$P$6) -> 42115.07 | I73: =标准英雄数值!E74*($L$2*$M$2+$L$3*$M$3+$L$4*$M$4+$L$5*$M$5+$L$6*$M$6)-G73+H73 -> 43804.24333
A74: 73 | B74: 胜利 | C74: 26.07 | D74: =ROUND(标准怪物数值!C75*($U$2*$V$2+$U$3*$V$3)/(($L$2*$N$2+$L$3*$N$3+$L$4*$N$4+$L$5*$N$5*IF(SUM($U$2:$U$5)<$O$5,SUM($U$2:$U$5),$O$5)+$L$6*$N$6)*标准英雄数值!K75),2) -> 0 | E74: =IFERROR(ROUND(标准怪物数值!C75*($U$4*$V$4)/((L$2*N$2+L$3*N$3+L$4*N$4+L$5*N$5*IF(SUM($U$4:$U$5)<$O$5,SUM($U$4:$U$5),$O$5)+L$6*N$6)*标准英雄数值!K75),2),0) -> 0 | F74: =IFERROR(ROUND(标准怪物数值!C75*($U$5*$V$5)/((L$2*N$2+L$3*N$3+L$4*N$4+L$5*N$5*IF(SUM($U$5:$U$5)<$O$5,SUM($U$5:$U$5),$O$5)+L$6*N$6)*标准英雄数值!K75),2),0) -> 26.07 | G74: =标准怪物数值!L75*(($Y$2+$Y$3)*D74+$Y$4*(E74+D74)+$Y$5*(F74+E74+D74)) -> 85580.98973 | H74: =标准英雄数值!Z75*C74*($L$2*$P$2+$L$3*$P$3+$L$4*$P$4+$L$5*$P$5+$L$6*$P$6) -> 44710.05 | I74: =标准英雄数值!E75*($L$2*$M$2+$L$3*$M$3+$L$4*$M$4+$L$5*$M$5+$L$6*$M$6)-G74+H74 -> 46400.66027
A75: 74 | B75: 胜利 | C75: 26.35 | D75: =ROUND(标准怪物数值!C76*($U$2*$V$2+$U$3*$V$3)/(($L$2*$N$2+$L$3*$N$3+$L$4*$N$4+$L$5*$N$5*IF(SUM($U$2:$U$5)<$O$5,SUM($U$2:$U$5),$O$5)+$L$6*$N$6)*标准英雄数值!K76),2) -> 0 | E75: =IFERROR(ROUND(标准怪物数值!C76*($U$4*$V$4)/((L$2*N$2+L$3*N$3+L$4*N$4+L$5*N$5*IF(SUM($U$4:$U$5)<$O$5,SUM($U$4:$U$5),$O$5)+L$6*N$6)*标准英雄数值!K76),2),0) -> 0 | F75: =IFERROR(ROUND(标准怪物数值!C76*($U$5*$V$5)/((L$2*N$2+L$3*N$3+L$4*N$4+L$5*N$5*IF(SUM($U$5:$U$5)<$O$5,SUM($U$5:$U$5),$O$5)+L$6*N$6)*标准英雄数值!K76),2),0) -> 26.35 | G75: =标准怪物数值!L76*(($Y$2+$Y$3)*D75+$Y$4*(E75+D75)+$Y$5*(F75+E75+D75)) -> 89944.73608 | H75: =标准英雄数值!Z76*C75*($L$2*$P$2+$L$3*$P$3+$L$4*$P$4+$L$5*$P$5+$L$6*$P$6) -> 47456.35 | I75: =标准英雄数值!E76*($L$2*$M$2+$L$3*$M$3+$L$4*$M$4+$L$5*$M$5+$L$6*$M$6)-G75+H75 -> 49146.01392
A76: 75 | B76: 胜利 | C76: 26.65 | D76: =ROUND(标准怪物数值!C77*($U$2*$V$2+$U$3*$V$3)/(($L$2*$N$2+$L$3*$N$3+$L$4*$N$4+$L$5*$N$5*IF(SUM($U$2:$U$5)<$O$5,SUM($U$2:$U$5),$O$5)+$L$6*$N$6)*标准英雄数值!K77),2) -> 0 | E76: =IFERROR(ROUND(标准怪物数值!C77*($U$4*$V$4)/((L$2*N$2+L$3*N$3+L$4*N$4+L$5*N$5*IF(SUM($U$4:$U$5)<$O$5,SUM($U$4:$U$5),$O$5)+L$6*N$6)*标准英雄数值!K77),2),0) -> 0 | F76: =IFERROR(ROUND(标准怪物数值!C77*($U$5*$V$5)/((L$2*N$2+L$3*N$3+L$4*N$4+L$5*N$5*IF(SUM($U$5:$U$5)<$O$5,SUM($U$5:$U$5),$O$5)+L$6*N$6)*标准英雄数值!K77),2),0) -> 26.65 | G76: =标准怪物数值!L77*(($Y$2+$Y$3)*D76+$Y$4*(E76+D76)+$Y$5*(F76+E76+D76)) -> 94555.11985 | H76: =标准英雄数值!Z77*C76*($L$2*$P$2+$L$3*$P$3+$L$4*$P$4+$L$5*$P$5+$L$6*$P$6) -> 50395.15 | I76: =标准英雄数值!E77*($L$2*$M$2+$L$3*$M$3+$L$4*$M$4+$L$5*$M$5+$L$6*$M$6)-G76+H76 -> 52055.63015
A77: 76 | B77: 胜利 | C77: 26.95 | D77: =ROUND(标准怪物数值!C78*($U$2*$V$2+$U$3*$V$3)/(($L$2*$N$2+$L$3*$N$3+$L$4*$N$4+$L$5*$N$5*IF(SUM($U$2:$U$5)<$O$5,SUM($U$2:$U$5),$O$5)+$L$6*$N$6)*标准英雄数值!K78),2) -> 0 | E77: =IFERROR(ROUND(标准怪物数值!C78*($U$4*$V$4)/((L$2*N$2+L$3*N$3+L$4*N$4+L$5*N$5*IF(SUM($U$4:$U$5)<$O$5,SUM($U$4:$U$5),$O$5)+L$6*N$6)*标准英雄数值!K78),2),0) -> 0 | F77: =IFERROR(ROUND(标准怪物数值!C78*($U$5*$V$5)/((L$2*N$2+L$3*N$3+L$4*N$4+L$5*N$5*IF(SUM($U$5:$U$5)<$O$5,SUM($U$5:$U$5),$O$5)+L$6*N$6)*标准英雄数值!K78),2),0) -> 26.95 | G77: =标准怪物数值!L78*(($Y$2+$Y$3)*D77+$Y$4*(E77+D77)+$Y$5*(F77+E77+D77)) -> 99399.06977 | H77: =标准英雄数值!Z78*C77*($L$2*$P$2+$L$3*$P$3+$L$4*$P$4+$L$5*$P$5+$L$6*$P$6) -> 53522.7 | I77: =标准英雄数值!E78*($L$2*$M$2+$L$3*$M$3+$L$4*$M$4+$L$5*$M$5+$L$6*$M$6)-G77+H77 -> 55149.23023
A78: 77 | B78: 胜利 | C78: 27.24 | D78: =ROUND(标准怪物数值!C79*($U$2*$V$2+$U$3*$V$3)/(($L$2*$N$2+$L$3*$N$3+$L$4*$N$4+$L$5*$N$5*IF(SUM($U$2:$U$5)<$O$5,SUM($U$2:$U$5),$O$5)+$L$6*$N$6)*标准英雄数值!K79),2) -> 0 | E78: =IFERROR(ROUND(标准怪物数值!C79*($U$4*$V$4)/((L$2*N$2+L$3*N$3+L$4*N$4+L$5*N$5*IF(SUM($U$4:$U$5)<$O$5,SUM($U$4:$U$5),$O$5)+L$6*N$6)*标准英雄数值!K79),2),0) -> 0 | F78: =IFERROR(ROUND(标准怪物数值!C79*($U$5*$V$5)/((L$2*N$2+L$3*N$3+L$4*N$4+L$5*N$5*IF(SUM($U$5:$U$5)<$O$5,SUM($U$5:$U$5),$O$5)+L$6*N$6)*标准英雄数值!K79),2),0) -> 27.24 | G78: =标准怪物数值!L79*(($Y$2+$Y$3)*D78+$Y$4*(E78+D78)+$Y$5*(F78+E78+D78)) -> 104449.015 | H78: =标准英雄数值!Z79*C78*($L$2*$P$2+$L$3*$P$3+$L$4*$P$4+$L$5*$P$5+$L$6*$P$6) -> 56795.4 | I78: =标准英雄数值!E79*($L$2*$M$2+$L$3*$M$3+$L$4*$M$4+$L$5*$M$5+$L$6*$M$6)-G78+H78 -> 58421.18496
A79: 78 | B79: 胜利 | C79: 27.54 | D79: =ROUND(标准怪物数值!C80*($U$2*$V$2+$U$3*$V$3)/(($L$2*$N$2+$L$3*$N$3+$L$4*$N$4+$L$5*$N$5*IF(SUM($U$2:$U$5)<$O$5,SUM($U$2:$U$5),$O$5)+$L$6*$N$6)*标准英雄数值!K80),2) -> 0 | E79: =IFERROR(ROUND(标准怪物数值!C80*($U$4*$V$4)/((L$2*N$2+L$3*N$3+L$4*N$4+L$5*N$5*IF(SUM($U$4:$U$5)<$O$5,SUM($U$4:$U$5),$O$5)+L$6*N$6)*标准英雄数值!K80),2),0) -> 0 | F79: =IFERROR(ROUND(标准怪物数值!C80*($U$5*$V$5)/((L$2*N$2+L$3*N$3+L$4*N$4+L$5*N$5*IF(SUM($U$5:$U$5)<$O$5,SUM($U$5:$U$5),$O$5)+L$6*N$6)*标准英雄数值!K80),2),0) -> 27.54 | G79: =标准怪物数值!L80*(($Y$2+$Y$3)*D79+$Y$4*(E79+D79)+$Y$5*(F79+E79+D79)) -> 109796.0465 | H79: =标准英雄数值!Z80*C79*($L$2*$P$2+$L$3*$P$3+$L$4*$P$4+$L$5*$P$5+$L$6*$P$6) -> 60285.06 | I79: =标准英雄数值!E80*($L$2*$M$2+$L$3*$M$3+$L$4*$M$4+$L$5*$M$5+$L$6*$M$6)-G79+H79 -> 61867.81347
A80: 79 | B80: 胜利 | C80: 27.84 | D80: =ROUND(标准怪物数值!C81*($U$2*$V$2+$U$3*$V$3)/(($L$2*$N$2+$L$3*$N$3+$L$4*$N$4+$L$5*$N$5*IF(SUM($U$2:$U$5)<$O$5,SUM($U$2:$U$5),$O$5)+$L$6*$N$6)*标准英雄数值!K81),2) -> 0 | E80: =IFERROR(ROUND(标准怪物数值!C81*($U$4*$V$4)/((L$2*N$2+L$3*N$3+L$4*N$4+L$5*N$5*IF(SUM($U$4:$U$5)<$O$5,SUM($U$4:$U$5),$O$5)+L$6*N$6)*标准英雄数值!K81),2),0) -> 0 | F80: =IFERROR(ROUND(标准怪物数值!C81*($U$5*$V$5)/((L$2*N$2+L$3*N$3+L$4*N$4+L$5*N$5*IF(SUM($U$5:$U$5)<$O$5,SUM($U$5:$U$5),$O$5)+L$6*N$6)*标准英雄数值!K81),2),0) -> 27.84 | G80: =标准怪物数值!L81*(($Y$2+$Y$3)*D80+$Y$4*(E80+D80)+$Y$5*(F80+E80+D80)) -> 115414.1198 | H80: =标准英雄数值!Z81*C80*($L$2*$P$2+$L$3*$P$3+$L$4*$P$4+$L$5*$P$5+$L$6*$P$6) -> 63976.32 | I80: =标准英雄数值!E81*($L$2*$M$2+$L$3*$M$3+$L$4*$M$4+$L$5*$M$5+$L$6*$M$6)-G80+H80 -> 65510.20018
A81: 80 | B81: 胜利 | C81: 28.15 | D81: =ROUND(标准怪物数值!C82*($U$2*$V$2+$U$3*$V$3)/(($L$2*$N$2+$L$3*$N$3+$L$4*$N$4+$L$5*$N$5*IF(SUM($U$2:$U$5)<$O$5,SUM($U$2:$U$5),$O$5)+$L$6*$N$6)*标准英雄数值!K82),2) -> 0 | E81: =IFERROR(ROUND(标准怪物数值!C82*($U$4*$V$4)/((L$2*N$2+L$3*N$3+L$4*N$4+L$5*N$5*IF(SUM($U$4:$U$5)<$O$5,SUM($U$4:$U$5),$O$5)+L$6*N$6)*标准英雄数值!K82),2),0) -> 0 | F81: =IFERROR(ROUND(标准怪物数值!C82*($U$5*$V$5)/((L$2*N$2+L$3*N$3+L$4*N$4+L$5*N$5*IF(SUM($U$5:$U$5)<$O$5,SUM($U$5:$U$5),$O$5)+L$6*N$6)*标准英雄数值!K82),2),0) -> 28.15 | G81: =标准怪物数值!L82*(($Y$2+$Y$3)*D81+$Y$4*(E81+D81)+$Y$5*(F81+E81+D81)) -> 121306.9799 | H81: =标准英雄数值!Z82*C81*($L$2*$P$2+$L$3*$P$3+$L$4*$P$4+$L$5*$P$5+$L$6*$P$6) -> 67925.95 | I81: =标准英雄数值!E82*($L$2*$M$2+$L$3*$M$3+$L$4*$M$4+$L$5*$M$5+$L$6*$M$6)-G81+H81 -> 69416.97007
A82: 81 | B82: 胜利 | C82: 28.46 | D82: =ROUND(标准怪物数值!C83*($U$2*$V$2+$U$3*$V$3)/(($L$2*$N$2+$L$3*$N$3+$L$4*$N$4+$L$5*$N$5*IF(SUM($U$2:$U$5)<$O$5,SUM($U$2:$U$5),$O$5)+$L$6*$N$6)*标准英雄数值!K83),2) -> 0 | E82: =IFERROR(ROUND(标准怪物数值!C83*($U$4*$V$4)/((L$2*N$2+L$3*N$3+L$4*N$4+L$5*N$5*IF(SUM($U$4:$U$5)<$O$5,SUM($U$4:$U$5),$O$5)+L$6*N$6)*标准英雄数值!K83),2),0) -> 0 | F82: =IFERROR(ROUND(标准怪物数值!C83*($U$5*$V$5)/((L$2*N$2+L$3*N$3+L$4*N$4+L$5*N$5*IF(SUM($U$5:$U$5)<$O$5,SUM($U$5:$U$5),$O$5)+L$6*N$6)*标准英雄数值!K83),2),0) -> 28.46 | G82: =标准怪物数值!L83*(($Y$2+$Y$3)*D82+$Y$4*(E82+D82)+$Y$5*(F82+E82+D82)) -> 127496.6865 | H82: =标准英雄数值!Z83*C82*($L$2*$P$2+$L$3*$P$3+$L$4*$P$4+$L$5*$P$5+$L$6*$P$6) -> 72117.64 | I82: =标准英雄数值!E83*($L$2*$M$2+$L$3*$M$3+$L$4*$M$4+$L$5*$M$5+$L$6*$M$6)-G82+H82 -> 73560.15346
A83: 82 | B83: 胜利 | C83: 28.77 | D83: =ROUND(标准怪物数值!C84*($U$2*$V$2+$U$3*$V$3)/(($L$2*$N$2+$L$3*$N$3+$L$4*$N$4+$L$5*$N$5*IF(SUM($U$2:$U$5)<$O$5,SUM($U$2:$U$5),$O$5)+$L$6*$N$6)*标准英雄数值!K84),2) -> 0 | E83: =IFERROR(ROUND(标准怪物数值!C84*($U$4*$V$4)/((L$2*N$2+L$3*N$3+L$4*N$4+L$5*N$5*IF(SUM($U$4:$U$5)<$O$5,SUM($U$4:$U$5),$O$5)+L$6*N$6)*标准英雄数值!K84),2),0) -> 0 | F83: =IFERROR(ROUND(标准怪物数值!C84*($U$5*$V$5)/((L$2*N$2+L$3*N$3+L$4*N$4+L$5*N$5*IF(SUM($U$5:$U$5)<$O$5,SUM($U$5:$U$5),$O$5)+L$6*N$6)*标准英雄数值!K84),2),0) -> 28.77 | G83: =标准怪物数值!L84*(($Y$2+$Y$3)*D83+$Y$4*(E83+D83)+$Y$5*(F83+E83+D83)) -> 133999.2343 | H83: =标准英雄数值!Z84*C83*($L$2*$P$2+$L$3*$P$3+$L$4*$P$4+$L$5*$P$5+$L$6*$P$6) -> 76556.97 | I83: =标准英雄数值!E84*($L$2*$M$2+$L$3*$M$3+$L$4*$M$4+$L$5*$M$5+$L$6*$M$6)-G83+H83 -> 77944.93565
A84: 83 | B84: 胜利 | C84: 29.08 | D84: =ROUND(标准怪物数值!C85*($U$2*$V$2+$U$3*$V$3)/(($L$2*$N$2+$L$3*$N$3+$L$4*$N$4+$L$5*$N$5*IF(SUM($U$2:$U$5)<$O$5,SUM($U$2:$U$5),$O$5)+$L$6*$N$6)*标准英雄数值!K85),2) -> 0 | E84: =IFERROR(ROUND(标准怪物数值!C85*($U$4*$V$4)/((L$2*N$2+L$3*N$3+L$4*N$4+L$5*N$5*IF(SUM($U$4:$U$5)<$O$5,SUM($U$4:$U$5),$O$5)+L$6*N$6)*标准英雄数值!K85),2),0) -> 0 | F84: =IFERROR(ROUND(标准怪物数值!C85*($U$5*$V$5)/((L$2*N$2+L$3*N$3+L$4*N$4+L$5*N$5*IF(SUM($U$5:$U$5)<$O$5,SUM($U$5:$U$5),$O$5)+L$6*N$6)*标准英雄数值!K85),2),0) -> 29.08 | G84: =标准怪物数值!L85*(($Y$2+$Y$3)*D84+$Y$4*(E84+D84)+$Y$5*(F84+E84+D84)) -> 140830.6537 | H84: =标准英雄数值!Z85*C84*($L$2*$P$2+$L$3*$P$3+$L$4*$P$4+$L$5*$P$5+$L$6*$P$6) -> 81249.52 | I84: =标准英雄数值!E85*($L$2*$M$2+$L$3*$M$3+$L$4*$M$4+$L$5*$M$5+$L$6*$M$6)-G84+H84 -> 82576.46632
A85: 84 | B85: 胜利 | C85: 29.41 | D85: =ROUND(标准怪物数值!C86*($U$2*$V$2+$U$3*$V$3)/(($L$2*$N$2+$L$3*$N$3+$L$4*$N$4+$L$5*$N$5*IF(SUM($U$2:$U$5)<$O$5,SUM($U$2:$U$5),$O$5)+$L$6*$N$6)*标准英雄数值!K86),2) -> 0 | E85: =IFERROR(ROUND(标准怪物数值!C86*($U$4*$V$4)/((L$2*N$2+L$3*N$3+L$4*N$4+L$5*N$5*IF(SUM($U$4:$U$5)<$O$5,SUM($U$4:$U$5),$O$5)+L$6*N$6)*标准英雄数值!K86),2),0) -> 0 | F85: =IFERROR(ROUND(标准怪物数值!C86*($U$5*$V$5)/((L$2*N$2+L$3*N$3+L$4*N$4+L$5*N$5*IF(SUM($U$5:$U$5)<$O$5,SUM($U$5:$U$5),$O$5)+L$6*N$6)*标准英雄数值!K86),2),0) -> 29.41 | G85: =标准怪物数值!L86*(($Y$2+$Y$3)*D85+$Y$4*(E85+D85)+$Y$5*(F85+E85+D85)) -> 148042.797 | H85: =标准英雄数值!Z86*C85*($L$2*$P$2+$L$3*$P$3+$L$4*$P$4+$L$5*$P$5+$L$6*$P$6) -> 86288.94 | I85: =标准英雄数值!E86*($L$2*$M$2+$L$3*$M$3+$L$4*$M$4+$L$5*$M$5+$L$6*$M$6)-G85+H85 -> 87512.14298
A86: 85 | B86: 胜利 | C86: 29.73 | D86: =ROUND(标准怪物数值!C87*($U$2*$V$2+$U$3*$V$3)/(($L$2*$N$2+$L$3*$N$3+$L$4*$N$4+$L$5*$N$5*IF(SUM($U$2:$U$5)<$O$5,SUM($U$2:$U$5),$O$5)+$L$6*$N$6)*标准英雄数值!K87),2) -> 0 | E86: =IFERROR(ROUND(标准怪物数值!C87*($U$4*$V$4)/((L$2*N$2+L$3*N$3+L$4*N$4+L$5*N$5*IF(SUM($U$4:$U$5)<$O$5,SUM($U$4:$U$5),$O$5)+L$6*N$6)*标准英雄数值!K87),2),0) -> 0 | F86: =IFERROR(ROUND(标准怪物数值!C87*($U$5*$V$5)/((L$2*N$2+L$3*N$3+L$4*N$4+L$5*N$5*IF(SUM($U$5:$U$5)<$O$5,SUM($U$5:$U$5),$O$5)+L$6*N$6)*标准英雄数值!K87),2),0) -> 29.73 | G86: =标准怪物数值!L87*(($Y$2+$Y$3)*D86+$Y$4*(E86+D86)+$Y$5*(F86+E86+D86)) -> 155566.3542 | H86: =标准英雄数值!Z87*C86*($L$2*$P$2+$L$3*$P$3+$L$4*$P$4+$L$5*$P$5+$L$6*$P$6) -> 91598.13 | I86: =标准英雄数值!E87*($L$2*$M$2+$L$3*$M$3+$L$4*$M$4+$L$5*$M$5+$L$6*$M$6)-G86+H86 -> 92759.77583
A87: 86 | B87: 胜利 | C87: 30.06 | D87: =ROUND(标准怪物数值!C88*($U$2*$V$2+$U$3*$V$3)/(($L$2*$N$2+$L$3*$N$3+$L$4*$N$4+$L$5*$N$5*IF(SUM($U$2:$U$5)<$O$5,SUM($U$2:$U$5),$O$5)+$L$6*$N$6)*标准英雄数值!K88),2) -> 0 | E87: =IFERROR(ROUND(标准怪物数值!C88*($U$4*$V$4)/((L$2*N$2+L$3*N$3+L$4*N$4+L$5*N$5*IF(SUM($U$4:$U$5)<$O$5,SUM($U$4:$U$5),$O$5)+L$6*N$6)*标准英雄数值!K88),2),0) -> 0 | F87: =IFERROR(ROUND(标准怪物数值!C88*($U$5*$V$5)/((L$2*N$2+L$3*N$3+L$4*N$4+L$5*N$5*IF(SUM($U$5:$U$5)<$O$5,SUM($U$5:$U$5),$O$5)+L$6*N$6)*标准英雄数值!K88),2),0) -> 30.06 | G87: =标准怪物数值!L88*(($Y$2+$Y$3)*D87+$Y$4*(E87+D87)+$Y$5*(F87+E87+D87)) -> 163525.3666 | H87: =标准英雄数值!Z88*C87*($L$2*$P$2+$L$3*$P$3+$L$4*$P$4+$L$5*$P$5+$L$6*$P$6) -> 97244.1 | I87: =标准英雄数值!E88*($L$2*$M$2+$L$3*$M$3+$L$4*$M$4+$L$5*$M$5+$L$6*$M$6)-G87+H87 -> 98283.13343
A88: 87 | B88: 胜利 | C88: 30.38 | D88: =ROUND(标准怪物数值!C89*($U$2*$V$2+$U$3*$V$3)/(($L$2*$N$2+$L$3*$N$3+$L$4*$N$4+$L$5*$N$5*IF(SUM($U$2:$U$5)<$O$5,SUM($U$2:$U$5),$O$5)+$L$6*$N$6)*标准英雄数值!K89),2) -> 0 | E88: =IFERROR(ROUND(标准怪物数值!C89*($U$4*$V$4)/((L$2*N$2+L$3*N$3+L$4*N$4+L$5*N$5*IF(SUM($U$4:$U$5)<$O$5,SUM($U$4:$U$5),$O$5)+L$6*N$6)*标准英雄数值!K89),2),0) -> 0 | F88: =IFERROR(ROUND(标准怪物数值!C89*($U$5*$V$5)/((L$2*N$2+L$3*N$3+L$4*N$4+L$5*N$5*IF(SUM($U$5:$U$5)<$O$5,SUM($U$5:$U$5),$O$5)+L$6*N$6)*标准英雄数值!K89),2),0) -> 30.38 | G88: =标准怪物数值!L89*(($Y$2+$Y$3)*D88+$Y$4*(E88+D88)+$Y$5*(F88+E88+D88)) -> 171829.28 | H88: =标准英雄数值!Z89*C88*($L$2*$P$2+$L$3*$P$3+$L$4*$P$4+$L$5*$P$5+$L$6*$P$6) -> 103200.86 | I88: =标准英雄数值!E89*($L$2*$M$2+$L$3*$M$3+$L$4*$M$4+$L$5*$M$5+$L$6*$M$6)-G88+H88 -> 104162.38
A89: 88 | B89: 胜利 | C89: 30.72 | D89: =ROUND(标准怪物数值!C90*($U$2*$V$2+$U$3*$V$3)/(($L$2*$N$2+$L$3*$N$3+$L$4*$N$4+$L$5*$N$5*IF(SUM($U$2:$U$5)<$O$5,SUM($U$2:$U$5),$O$5)+$L$6*$N$6)*标准英雄数值!K90),2) -> 0 | E89: =IFERROR(ROUND(标准怪物数值!C90*($U$4*$V$4)/((L$2*N$2+L$3*N$3+L$4*N$4+L$5*N$5*IF(SUM($U$4:$U$5)<$O$5,SUM($U$4:$U$5),$O$5)+L$6*N$6)*标准英雄数值!K90),2),0) -> 0 | F89: =IFERROR(ROUND(标准怪物数值!C90*($U$5*$V$5)/((L$2*N$2+L$3*N$3+L$4*N$4+L$5*N$5*IF(SUM($U$5:$U$5)<$O$5,SUM($U$5:$U$5),$O$5)+L$6*N$6)*标准英雄数值!K90),2),0) -> 30.72 | G89: =标准怪物数值!L90*(($Y$2+$Y$3)*D89+$Y$4*(E89+D89)+$Y$5*(F89+E89+D89)) -> 180593.2266 | H89: =标准英雄数值!Z90*C89*($L$2*$P$2+$L$3*$P$3+$L$4*$P$4+$L$5*$P$5+$L$6*$P$6) -> 109578.24 | I89: =标准英雄数值!E90*($L$2*$M$2+$L$3*$M$3+$L$4*$M$4+$L$5*$M$5+$L$6*$M$6)-G89+H89 -> 110413.0134
A90: 89 | B90: 胜利 | C90: 31.06 | D90: =ROUND(标准怪物数值!C91*($U$2*$V$2+$U$3*$V$3)/(($L$2*$N$2+$L$3*$N$3+$L$4*$N$4+$L$5*$N$5*IF(SUM($U$2:$U$5)<$O$5,SUM($U$2:$U$5),$O$5)+$L$6*$N$6)*标准英雄数值!K91),2) -> 0 | E90: =IFERROR(ROUND(标准怪物数值!C91*($U$4*$V$4)/((L$2*N$2+L$3*N$3+L$4*N$4+L$5*N$5*IF(SUM($U$4:$U$5)<$O$5,SUM($U$4:$U$5),$O$5)+L$6*N$6)*标准英雄数值!K91),2),0) -> 0 | F90: =IFERROR(ROUND(标准怪物数值!C91*($U$5*$V$5)/((L$2*N$2+L$3*N$3+L$4*N$4+L$5*N$5*IF(SUM($U$5:$U$5)<$O$5,SUM($U$5:$U$5),$O$5)+L$6*N$6)*标准英雄数值!K91),2),0) -> 31.06 | G90: =标准怪物数值!L91*(($Y$2+$Y$3)*D90+$Y$4*(E90+D90)+$Y$5*(F90+E90+D90)) -> 189805.3545 | H90: =标准英雄数值!Z91*C90*($L$2*$P$2+$L$3*$P$3+$L$4*$P$4+$L$5*$P$5+$L$6*$P$6) -> 116319.7 | I90: =标准英雄数值!E91*($L$2*$M$2+$L$3*$M$3+$L$4*$M$4+$L$5*$M$5+$L$6*$M$6)-G90+H90 -> 117016.3455
A91: 90 | B91: 胜利 | C91: 31.4 | D91: =ROUND(标准怪物数值!C92*($U$2*$V$2+$U$3*$V$3)/(($L$2*$N$2+$L$3*$N$3+$L$4*$N$4+$L$5*$N$5*IF(SUM($U$2:$U$5)<$O$5,SUM($U$2:$U$5),$O$5)+$L$6*$N$6)*标准英雄数值!K92),2) -> 0 | E91: =IFERROR(ROUND(标准怪物数值!C92*($U$4*$V$4)/((L$2*N$2+L$3*N$3+L$4*N$4+L$5*N$5*IF(SUM($U$4:$U$5)<$O$5,SUM($U$4:$U$5),$O$5)+L$6*N$6)*标准英雄数值!K92),2),0) -> 0 | F91: =IFERROR(ROUND(标准怪物数值!C92*($U$5*$V$5)/((L$2*N$2+L$3*N$3+L$4*N$4+L$5*N$5*IF(SUM($U$5:$U$5)<$O$5,SUM($U$5:$U$5),$O$5)+L$6*N$6)*标准英雄数值!K92),2),0) -> 31.4 | G91: =标准怪物数值!L92*(($Y$2+$Y$3)*D91+$Y$4*(E91+D91)+$Y$5*(F91+E91+D91)) -> 199482.0479 | H91: =标准英雄数值!Z92*C91*($L$2*$P$2+$L$3*$P$3+$L$4*$P$4+$L$5*$P$5+$L$6*$P$6) -> 123464.8 | I91: =标准英雄数值!E92*($L$2*$M$2+$L$3*$M$3+$L$4*$M$4+$L$5*$M$5+$L$6*$M$6)-G91+H91 -> 124011.1521
A92: 91 | B92: 胜利 | C92: 31.74 | D92: =ROUND(标准怪物数值!C93*($U$2*$V$2+$U$3*$V$3)/(($L$2*$N$2+$L$3*$N$3+$L$4*$N$4+$L$5*$N$5*IF(SUM($U$2:$U$5)<$O$5,SUM($U$2:$U$5),$O$5)+$L$6*$N$6)*标准英雄数值!K93),2) -> 0 | E92: =IFERROR(ROUND(标准怪物数值!C93*($U$4*$V$4)/((L$2*N$2+L$3*N$3+L$4*N$4+L$5*N$5*IF(SUM($U$4:$U$5)<$O$5,SUM($U$4:$U$5),$O$5)+L$6*N$6)*标准英雄数值!K93),2),0) -> 0 | F92: =IFERROR(ROUND(标准怪物数值!C93*($U$5*$V$5)/((L$2*N$2+L$3*N$3+L$4*N$4+L$5*N$5*IF(SUM($U$5:$U$5)<$O$5,SUM($U$5:$U$5),$O$5)+L$6*N$6)*标准英雄数值!K93),2),0) -> 31.74 | G92: =标准怪物数值!L93*(($Y$2+$Y$3)*D92+$Y$4*(E92+D92)+$Y$5*(F92+E92+D92)) -> 209644.906 | H92: =标准英雄数值!Z93*C92*($L$2*$P$2+$L$3*$P$3+$L$4*$P$4+$L$5*$P$5+$L$6*$P$6) -> 131054.46 | I92: =标准英雄数值!E93*($L$2*$M$2+$L$3*$M$3+$L$4*$M$4+$L$5*$M$5+$L$6*$M$6)-G92+H92 -> 131437.554
A93: 92 | B93: 胜利 | C93: 32.08 | D93: =ROUND(标准怪物数值!C94*($U$2*$V$2+$U$3*$V$3)/(($L$2*$N$2+$L$3*$N$3+$L$4*$N$4+$L$5*$N$5*IF(SUM($U$2:$U$5)<$O$5,SUM($U$2:$U$5),$O$5)+$L$6*$N$6)*标准英雄数值!K94),2) -> 0 | E93: =IFERROR(ROUND(标准怪物数值!C94*($U$4*$V$4)/((L$2*N$2+L$3*N$3+L$4*N$4+L$5*N$5*IF(SUM($U$4:$U$5)<$O$5,SUM($U$4:$U$5),$O$5)+L$6*N$6)*标准英雄数值!K94),2),0) -> 0 | F93: =IFERROR(ROUND(标准怪物数值!C94*($U$5*$V$5)/((L$2*N$2+L$3*N$3+L$4*N$4+L$5*N$5*IF(SUM($U$5:$U$5)<$O$5,SUM($U$5:$U$5),$O$5)+L$6*N$6)*标准英雄数值!K94),2),0) -> 32.08 | G93: =标准怪物数值!L94*(($Y$2+$Y$3)*D93+$Y$4*(E93+D93)+$Y$5*(F93+E93+D93)) -> 220325.9595 | H93: =标准英雄数值!Z94*C93*($L$2*$P$2+$L$3*$P$3+$L$4*$P$4+$L$5*$P$5+$L$6*$P$6) -> 139066.8 | I93: =标准英雄数值!E94*($L$2*$M$2+$L$3*$M$3+$L$4*$M$4+$L$5*$M$5+$L$6*$M$6)-G93+H93 -> 139272.8405
A94: 93 | B94: 胜利 | C94: 32.43 | D94: =ROUND(标准怪物数值!C95*($U$2*$V$2+$U$3*$V$3)/(($L$2*$N$2+$L$3*$N$3+$L$4*$N$4+$L$5*$N$5*IF(SUM($U$2:$U$5)<$O$5,SUM($U$2:$U$5),$O$5)+$L$6*$N$6)*标准英雄数值!K95),2) -> 0 | E94: =IFERROR(ROUND(标准怪物数值!C95*($U$4*$V$4)/((L$2*N$2+L$3*N$3+L$4*N$4+L$5*N$5*IF(SUM($U$4:$U$5)<$O$5,SUM($U$4:$U$5),$O$5)+L$6*N$6)*标准英雄数值!K95),2),0) -> 0 | F94: =IFERROR(ROUND(标准怪物数值!C95*($U$5*$V$5)/((L$2*N$2+L$3*N$3+L$4*N$4+L$5*N$5*IF(SUM($U$5:$U$5)<$O$5,SUM($U$5:$U$5),$O$5)+L$6*N$6)*标准英雄数值!K95),2),0) -> 32.43 | G94: =标准怪物数值!L95*(($Y$2+$Y$3)*D94+$Y$4*(E94+D94)+$Y$5*(F94+E94+D94)) -> 231525.5038 | H94: =标准英雄数值!Z95*C94*($L$2*$P$2+$L$3*$P$3+$L$4*$P$4+$L$5*$P$5+$L$6*$P$6) -> 147621.36 | I94: =标准英雄数值!E95*($L$2*$M$2+$L$3*$M$3+$L$4*$M$4+$L$5*$M$5+$L$6*$M$6)-G94+H94 -> 147657.0562
A95: 94 | B95: 胜利 | C95: 32.78 | D95: =ROUND(标准怪物数值!C96*($U$2*$V$2+$U$3*$V$3)/(($L$2*$N$2+$L$3*$N$3+$L$4*$N$4+$L$5*$N$5*IF(SUM($U$2:$U$5)<$O$5,SUM($U$2:$U$5),$O$5)+$L$6*$N$6)*标准英雄数值!K96),2) -> 0 | E95: =IFERROR(ROUND(标准怪物数值!C96*($U$4*$V$4)/((L$2*N$2+L$3*N$3+L$4*N$4+L$5*N$5*IF(SUM($U$4:$U$5)<$O$5,SUM($U$4:$U$5),$O$5)+L$6*N$6)*标准英雄数值!K96),2),0) -> 0 | F95: =IFERROR(ROUND(标准怪物数值!C96*($U$5*$V$5)/((L$2*N$2+L$3*N$3+L$4*N$4+L$5*N$5*IF(SUM($U$5:$U$5)<$O$5,SUM($U$5:$U$5),$O$5)+L$6*N$6)*标准英雄数值!K96),2),0) -> 32.78 | G95: =标准怪物数值!L96*(($Y$2+$Y$3)*D95+$Y$4*(E95+D95)+$Y$5*(F95+E95+D95)) -> 243290.0381 | H95: =标准英雄数值!Z96*C95*($L$2*$P$2+$L$3*$P$3+$L$4*$P$4+$L$5*$P$5+$L$6*$P$6) -> 156688.4 | I95: =标准英雄数值!E96*($L$2*$M$2+$L$3*$M$3+$L$4*$M$4+$L$5*$M$5+$L$6*$M$6)-G95+H95 -> 156539.9619
A96: 95 | B96: 胜利 | C96: 33.14 | D96: =ROUND(标准怪物数值!C97*($U$2*$V$2+$U$3*$V$3)/(($L$2*$N$2+$L$3*$N$3+$L$4*$N$4+$L$5*$N$5*IF(SUM($U$2:$U$5)<$O$5,SUM($U$2:$U$5),$O$5)+$L$6*$N$6)*标准英雄数值!K97),2) -> 0 | E96: =IFERROR(ROUND(标准怪物数值!C97*($U$4*$V$4)/((L$2*N$2+L$3*N$3+L$4*N$4+L$5*N$5*IF(SUM($U$4:$U$5)<$O$5,SUM($U$4:$U$5),$O$5)+L$6*N$6)*标准英雄数值!K97),2),0) -> 0 | F96: =IFERROR(ROUND(标准怪物数值!C97*($U$5*$V$5)/((L$2*N$2+L$3*N$3+L$4*N$4+L$5*N$5*IF(SUM($U$5:$U$5)<$O$5,SUM($U$5:$U$5),$O$5)+L$6*N$6)*标准英雄数值!K97),2),0) -> 33.14 | G96: =标准怪物数值!L97*(($Y$2+$Y$3)*D96+$Y$4*(E96+D96)+$Y$5*(F96+E96+D96)) -> 255723.6055 | H96: =标准英雄数值!Z97*C96*($L$2*$P$2+$L$3*$P$3+$L$4*$P$4+$L$5*$P$5+$L$6*$P$6) -> 166329.66 | I96: =标准英雄数值!E97*($L$2*$M$2+$L$3*$M$3+$L$4*$M$4+$L$5*$M$5+$L$6*$M$6)-G96+H96 -> 165905.2545
A97: 96 | B97: 胜利 | C97: 33.49 | D97: =ROUND(标准怪物数值!C98*($U$2*$V$2+$U$3*$V$3)/(($L$2*$N$2+$L$3*$N$3+$L$4*$N$4+$L$5*$N$5*IF(SUM($U$2:$U$5)<$O$5,SUM($U$2:$U$5),$O$5)+$L$6*$N$6)*标准英雄数值!K98),2) -> 0 | E97: =IFERROR(ROUND(标准怪物数值!C98*($U$4*$V$4)/((L$2*N$2+L$3*N$3+L$4*N$4+L$5*N$5*IF(SUM($U$4:$U$5)<$O$5,SUM($U$4:$U$5),$O$5)+L$6*N$6)*标准英雄数值!K98),2),0) -> 0 | F97: =IFERROR(ROUND(标准怪物数值!C98*($U$5*$V$5)/((L$2*N$2+L$3*N$3+L$4*N$4+L$5*N$5*IF(SUM($U$5:$U$5)<$O$5,SUM($U$5:$U$5),$O$5)+L$6*N$6)*标准英雄数值!K98),2),0) -> 33.49 | G97: =标准怪物数值!L98*(($Y$2+$Y$3)*D97+$Y$4*(E97+D97)+$Y$5*(F97+E97+D97)) -> 268707.0802 | H97: =标准英雄数值!Z98*C97*($L$2*$P$2+$L$3*$P$3+$L$4*$P$4+$L$5*$P$5+$L$6*$P$6) -> 176492.3 | I97: =标准英雄数值!E98*($L$2*$M$2+$L$3*$M$3+$L$4*$M$4+$L$5*$M$5+$L$6*$M$6)-G97+H97 -> 175850.4198
A98: 97 | B98: 胜利 | C98: 33.86 | D98: =ROUND(标准怪物数值!C99*($U$2*$V$2+$U$3*$V$3)/(($L$2*$N$2+$L$3*$N$3+$L$4*$N$4+$L$5*$N$5*IF(SUM($U$2:$U$5)<$O$5,SUM($U$2:$U$5),$O$5)+$L$6*$N$6)*标准英雄数值!K99),2) -> 0 | E98: =IFERROR(ROUND(标准怪物数值!C99*($U$4*$V$4)/((L$2*N$2+L$3*N$3+L$4*N$4+L$5*N$5*IF(SUM($U$4:$U$5)<$O$5,SUM($U$4:$U$5),$O$5)+L$6*N$6)*标准英雄数值!K99),2),0) -> 0 | F98: =IFERROR(ROUND(标准怪物数值!C99*($U$5*$V$5)/((L$2*N$2+L$3*N$3+L$4*N$4+L$5*N$5*IF(SUM($U$5:$U$5)<$O$5,SUM($U$5:$U$5),$O$5)+L$6*N$6)*标准英雄数值!K99),2),0) -> 33.86 | G98: =标准怪物数值!L99*(($Y$2+$Y$3)*D98+$Y$4*(E98+D98)+$Y$5*(F98+E98+D98)) -> 282404.9214 | H98: =标准英雄数值!Z99*C98*($L$2*$P$2+$L$3*$P$3+$L$4*$P$4+$L$5*$P$5+$L$6*$P$6) -> 187381.24 | I98: =标准英雄数值!E99*($L$2*$M$2+$L$3*$M$3+$L$4*$M$4+$L$5*$M$5+$L$6*$M$6)-G98+H98 -> 186447.1186
A99: 98 | B99: 胜利 | C99: 34.22 | D99: =ROUND(标准怪物数值!C100*($U$2*$V$2+$U$3*$V$3)/(($L$2*$N$2+$L$3*$N$3+$L$4*$N$4+$L$5*$N$5*IF(SUM($U$2:$U$5)<$O$5,SUM($U$2:$U$5),$O$5)+$L$6*$N$6)*标准英雄数值!K100),2) -> 0 | E99: =IFERROR(ROUND(标准怪物数值!C100*($U$4*$V$4)/((L$2*N$2+L$3*N$3+L$4*N$4+L$5*N$5*IF(SUM($U$4:$U$5)<$O$5,SUM($U$4:$U$5),$O$5)+L$6*N$6)*标准英雄数值!K100),2),0) -> 0 | F99: =IFERROR(ROUND(标准怪物数值!C100*($U$5*$V$5)/((L$2*N$2+L$3*N$3+L$4*N$4+L$5*N$5*IF(SUM($U$5:$U$5)<$O$5,SUM($U$5:$U$5),$O$5)+L$6*N$6)*标准英雄数值!K100),2),0) -> 34.22 | G99: =标准怪物数值!L100*(($Y$2+$Y$3)*D99+$Y$4*(E99+D99)+$Y$5*(F99+E99+D99)) -> 296703.8444 | H99: =标准英雄数值!Z100*C99*($L$2*$P$2+$L$3*$P$3+$L$4*$P$4+$L$5*$P$5+$L$6*$P$6) -> 198852.42 | I99: =标准英雄数值!E100*($L$2*$M$2+$L$3*$M$3+$L$4*$M$4+$L$5*$M$5+$L$6*$M$6)-G99+H99 -> 197690.5756
A100: 99 | B100: 胜利 | C100: 34.59 | D100: =ROUND(标准怪物数值!C101*($U$2*$V$2+$U$3*$V$3)/(($L$2*$N$2+$L$3*$N$3+$L$4*$N$4+$L$5*$N$5*IF(SUM($U$2:$U$5)<$O$5,SUM($U$2:$U$5),$O$5)+$L$6*$N$6)*标准英雄数值!K101),2) -> 0 | E100: =IFERROR(ROUND(标准怪物数值!C101*($U$4*$V$4)/((L$2*N$2+L$3*N$3+L$4*N$4+L$5*N$5*IF(SUM($U$4:$U$5)<$O$5,SUM($U$4:$U$5),$O$5)+L$6*N$6)*标准英雄数值!K101),2),0) -> 0 | F100: =IFERROR(ROUND(标准怪物数值!C101*($U$5*$V$5)/((L$2*N$2+L$3*N$3+L$4*N$4+L$5*N$5*IF(SUM($U$5:$U$5)<$O$5,SUM($U$5:$U$5),$O$5)+L$6*N$6)*标准英雄数值!K101),2),0) -> 34.59 | G100: =标准怪物数值!L101*(($Y$2+$Y$3)*D100+$Y$4*(E100+D100)+$Y$5*(F100+E100+D100)) -> 311816.8323 | H100: =标准英雄数值!Z101*C100*($L$2*$P$2+$L$3*$P$3+$L$4*$P$4+$L$5*$P$5+$L$6*$P$6) -> 211068.18 | I100: =标准英雄数值!E101*($L$2*$M$2+$L$3*$M$3+$L$4*$M$4+$L$5*$M$5+$L$6*$M$6)-G100+H100 -> 209571.7477
A101: 100 | B101: 胜利 | C101: 34.96 | D101: =ROUND(标准怪物数值!C102*($U$2*$V$2+$U$3*$V$3)/(($L$2*$N$2+$L$3*$N$3+$L$4*$N$4+$L$5*$N$5*IF(SUM($U$2:$U$5)<$O$5,SUM($U$2:$U$5),$O$5)+$L$6*$N$6)*标准英雄数值!K102),2) -> 0 | E101: =IFERROR(ROUND(标准怪物数值!C102*($U$4*$V$4)/((L$2*N$2+L$3*N$3+L$4*N$4+L$5*N$5*IF(SUM($U$4:$U$5)<$O$5,SUM($U$4:$U$5),$O$5)+L$6*N$6)*标准英雄数值!K102),2),0) -> 0 | F101: =IFERROR(ROUND(标准怪物数值!C102*($U$5*$V$5)/((L$2*N$2+L$3*N$3+L$4*N$4+L$5*N$5*IF(SUM($U$5:$U$5)<$O$5,SUM($U$5:$U$5),$O$5)+L$6*N$6)*标准英雄数值!K102),2),0) -> 34.96 | G101: =标准怪物数值!L102*(($Y$2+$Y$3)*D101+$Y$4*(E101+D101)+$Y$5*(F101+E101+D101)) -> 327693.1279 | H101: =标准英雄数值!Z102*C101*($L$2*$P$2+$L$3*$P$3+$L$4*$P$4+$L$5*$P$5+$L$6*$P$6) -> 223988.72 | I101: =标准英雄数值!E102*($L$2*$M$2+$L$3*$M$3+$L$4*$M$4+$L$5*$M$5+$L$6*$M$6)-G101+H101 -> 222132.7921
A102: 101 | B102: =IF(I102>0,"胜利","失败") -> 胜利 | C102: =D102+E102+F102 -> 35.34 | D102: =ROUND(标准怪物数值!C103*($U$2*$V$2+$U$3*$V$3)/(($L$2*$N$2+$L$3*$N$3+$L$4*$N$4+$L$5*$N$5*IF(SUM($U$2:$U$5)<$O$5,SUM($U$2:$U$5),$O$5)+$L$6*$N$6)*标准英雄数值!K103),2) -> 0 | E102: =IFERROR(ROUND(标准怪物数值!C103*($U$4*$V$4)/((L$2*N$2+L$3*N$3+L$4*N$4+L$5*N$5*IF(SUM($U$4:$U$5)<$O$5,SUM($U$4:$U$5),$O$5)+L$6*N$6)*标准英雄数值!K103),2),0) -> 0 | F102: =IFERROR(ROUND(标准怪物数值!C103*($U$5*$V$5)/((L$2*N$2+L$3*N$3+L$4*N$4+L$5*N$5*IF(SUM($U$5:$U$5)<$O$5,SUM($U$5:$U$5),$O$5)+L$6*N$6)*标准英雄数值!K103),2),0) -> 35.34 | G102: =标准怪物数值!L103*(($Y$2+$Y$3)*D102+$Y$4*(E102+D102)+$Y$5*(F102+E102+D102)) -> 344340.6087 | H102: =标准英雄数值!Z103*C102*($L$2*$P$2+$L$3*$P$3+$L$4*$P$4+$L$5*$P$5+$L$6*$P$6) -> 237732.18 | I102: =标准英雄数值!E103*($L$2*$M$2+$L$3*$M$3+$L$4*$M$4+$L$5*$M$5+$L$6*$M$6)-G102+H102 -> 235520.3713
A103: 102 | B103: 胜利 | C103: 35.72 | D103: =ROUND(标准怪物数值!C104*($U$2*$V$2+$U$3*$V$3)/(($L$2*$N$2+$L$3*$N$3+$L$4*$N$4+$L$5*$N$5*IF(SUM($U$2:$U$5)<$O$5,SUM($U$2:$U$5),$O$5)+$L$6*$N$6)*标准英雄数值!K104),2) -> 0 | E103: =IFERROR(ROUND(标准怪物数值!C104*($U$4*$V$4)/((L$2*N$2+L$3*N$3+L$4*N$4+L$5*N$5*IF(SUM($U$4:$U$5)<$O$5,SUM($U$4:$U$5),$O$5)+L$6*N$6)*标准英雄数值!K104),2),0) -> 0 | F103: =IFERROR(ROUND(标准怪物数值!C104*($U$5*$V$5)/((L$2*N$2+L$3*N$3+L$4*N$4+L$5*N$5*IF(SUM($U$5:$U$5)<$O$5,SUM($U$5:$U$5),$O$5)+L$6*N$6)*标准英雄数值!K104),2),0) -> 35.72 | G103: =标准怪物数值!L104*(($Y$2+$Y$3)*D103+$Y$4*(E103+D103)+$Y$5*(F103+E103+D103)) -> 361829.9824 | H103: =标准英雄数值!Z104*C103*($L$2*$P$2+$L$3*$P$3+$L$4*$P$4+$L$5*$P$5+$L$6*$P$6) -> 252290.36 | I103: =标准英雄数值!E104*($L$2*$M$2+$L$3*$M$3+$L$4*$M$4+$L$5*$M$5+$L$6*$M$6)-G103+H103 -> 249697.1776
A104: 103 | B104: 胜利 | C104: 36.1 | D104: =ROUND(标准怪物数值!C105*($U$2*$V$2+$U$3*$V$3)/(($L$2*$N$2+$L$3*$N$3+$L$4*$N$4+$L$5*$N$5*IF(SUM($U$2:$U$5)<$O$5,SUM($U$2:$U$5),$O$5)+$L$6*$N$6)*标准英雄数值!K105),2) -> 0 | E104: =IFERROR(ROUND(标准怪物数值!C105*($U$4*$V$4)/((L$2*N$2+L$3*N$3+L$4*N$4+L$5*N$5*IF(SUM($U$4:$U$5)<$O$5,SUM($U$4:$U$5),$O$5)+L$6*N$6)*标准英雄数值!K105),2),0) -> 0 | F104: =IFERROR(ROUND(标准怪物数值!C105*($U$5*$V$5)/((L$2*N$2+L$3*N$3+L$4*N$4+L$5*N$5*IF(SUM($U$5:$U$5)<$O$5,SUM($U$5:$U$5),$O$5)+L$6*N$6)*标准英雄数值!K105),2),0) -> 36.1 | G104: =标准怪物数值!L105*(($Y$2+$Y$3)*D104+$Y$4*(E104+D104)+$Y$5*(F104+E104+D104)) -> 380199.1724 | H104: =标准英雄数值!Z105*C104*($L$2*$P$2+$L$3*$P$3+$L$4*$P$4+$L$5*$P$5+$L$6*$P$6) -> 267717.6 | I104: =标准英雄数值!E105*($L$2*$M$2+$L$3*$M$3+$L$4*$M$4+$L$5*$M$5+$L$6*$M$6)-G104+H104 -> 264716.0276
A105: 104 | B105: 胜利 | C105: 36.5 | D105: =ROUND(标准怪物数值!C106*($U$2*$V$2+$U$3*$V$3)/(($L$2*$N$2+$L$3*$N$3+$L$4*$N$4+$L$5*$N$5*IF(SUM($U$2:$U$5)<$O$5,SUM($U$2:$U$5),$O$5)+$L$6*$N$6)*标准英雄数值!K106),2) -> 0 | E105: =IFERROR(ROUND(标准怪物数值!C106*($U$4*$V$4)/((L$2*N$2+L$3*N$3+L$4*N$4+L$5*N$5*IF(SUM($U$4:$U$5)<$O$5,SUM($U$4:$U$5),$O$5)+L$6*N$6)*标准英雄数值!K106),2),0) -> 0 | F105: =IFERROR(ROUND(标准怪物数值!C106*($U$5*$V$5)/((L$2*N$2+L$3*N$3+L$4*N$4+L$5*N$5*IF(SUM($U$5:$U$5)<$O$5,SUM($U$5:$U$5),$O$5)+L$6*N$6)*标准英雄数值!K106),2),0) -> 36.5 | G105: =标准怪物数值!L106*(($Y$2+$Y$3)*D105+$Y$4*(E105+D105)+$Y$5*(F105+E105+D105)) -> 399572.0446 | H105: =标准英雄数值!Z106*C105*($L$2*$P$2+$L$3*$P$3+$L$4*$P$4+$L$5*$P$5+$L$6*$P$6) -> 284225.5 | I105: =标准英雄数值!E106*($L$2*$M$2+$L$3*$M$3+$L$4*$M$4+$L$5*$M$5+$L$6*$M$6)-G105+H105 -> 280711.4554
A106: 105 | B106: 胜利 | C106: 36.89 | D106: =ROUND(标准怪物数值!C107*($U$2*$V$2+$U$3*$V$3)/(($L$2*$N$2+$L$3*$N$3+$L$4*$N$4+$L$5*$N$5*IF(SUM($U$2:$U$5)<$O$5,SUM($U$2:$U$5),$O$5)+$L$6*$N$6)*标准英雄数值!K107),2) -> 0 | E106: =IFERROR(ROUND(标准怪物数值!C107*($U$4*$V$4)/((L$2*N$2+L$3*N$3+L$4*N$4+L$5*N$5*IF(SUM($U$4:$U$5)<$O$5,SUM($U$4:$U$5),$O$5)+L$6*N$6)*标准英雄数值!K107),2),0) -> 0 | F106: =IFERROR(ROUND(标准怪物数值!C107*($U$5*$V$5)/((L$2*N$2+L$3*N$3+L$4*N$4+L$5*N$5*IF(SUM($U$5:$U$5)<$O$5,SUM($U$5:$U$5),$O$5)+L$6*N$6)*标准英雄数值!K107),2),0) -> 36.89 | G106: =标准怪物数值!L107*(($Y$2+$Y$3)*D106+$Y$4*(E106+D106)+$Y$5*(F106+E106+D106)) -> 419808.4625 | H106: =标准英雄数值!Z107*C106*($L$2*$P$2+$L$3*$P$3+$L$4*$P$4+$L$5*$P$5+$L$6*$P$6) -> 301612.64 | I106: =标准英雄数值!E107*($L$2*$M$2+$L$3*$M$3+$L$4*$M$4+$L$5*$M$5+$L$6*$M$6)-G106+H106 -> 297663.7775
A107: 106 | B107: 胜利 | C107: 37.29 | D107: =ROUND(标准怪物数值!C108*($U$2*$V$2+$U$3*$V$3)/(($L$2*$N$2+$L$3*$N$3+$L$4*$N$4+$L$5*$N$5*IF(SUM($U$2:$U$5)<$O$5,SUM($U$2:$U$5),$O$5)+$L$6*$N$6)*标准英雄数值!K108),2) -> 0 | E107: =IFERROR(ROUND(标准怪物数值!C108*($U$4*$V$4)/((L$2*N$2+L$3*N$3+L$4*N$4+L$5*N$5*IF(SUM($U$4:$U$5)<$O$5,SUM($U$4:$U$5),$O$5)+L$6*N$6)*标准英雄数值!K108),2),0) -> 0 | F107: =IFERROR(ROUND(标准怪物数值!C108*($U$5*$V$5)/((L$2*N$2+L$3*N$3+L$4*N$4+L$5*N$5*IF(SUM($U$5:$U$5)<$O$5,SUM($U$5:$U$5),$O$5)+L$6*N$6)*标准英雄数值!K108),2),0) -> 37.29 | G107: =标准怪物数值!L108*(($Y$2+$Y$3)*D107+$Y$4*(E107+D107)+$Y$5*(F107+E107+D107)) -> 441185.7527 | H107: =标准英雄数值!Z108*C107*($L$2*$P$2+$L$3*$P$3+$L$4*$P$4+$L$5*$P$5+$L$6*$P$6) -> 320134.65 | I107: =标准英雄数值!E108*($L$2*$M$2+$L$3*$M$3+$L$4*$M$4+$L$5*$M$5+$L$6*$M$6)-G107+H107 -> 315603.2973

Sheet 标准英雄数值
E1: 1 | G1: 1 | L1: 1 | N1: 1 | P1: 1 | R1: 1 | T1: 0.5 | V1: 0.4 | AB1: 1 | AE1: 1
A2: 等级 | B2: 英雄生存时长（秒） | D2: 受到秒伤 | E2: 生命 | G2: 防御 | K2: 每秒伤害 | L2: 攻击力 | N2: 攻击速度 | P2: 暴击几率 | R2: 暴击伤害 | T2: 技能伤害 | V2: 技能cd | Z2: 每秒治疗 | AB2: 治疗力 | AC2: 技能系数 | AE2: 技能cd
A3: 1 | B3: 10 | D3: =E3/B3 -> 50 | E3: =F3*E1 -> 500 | F3: 500 | G3: =H3*G1 -> 0 | H3: 0 | K3: =(L3-标准怪物数值!E3)*N3*(1+P3*R3)+L3*T3/V3 -> 95.41666667 | L3: =M3*L1 -> 50 | M3: 50 | N3: 1 | O3: 1 | P3: 0.05 | Q3: 0.05 | R3: =S3*R1 -> 1.5 | S3: 1.5 | T3: =U3*T1 -> 5 | U3: 10 | V3: =W3*V1 -> 6 | W3: 15 | Z3: =E3*AA3 -> 50 | AA3: 0.1 | AB3: =L3*$AB$1 -> 50 | AC3: =AD3 -> 10 | AD3: 10 | AE3: =AF3*AE1 -> 10 | AF3: =AB3*AC3/Z3 -> 10
A4: 2 | B4: =ROUND(B3*(1+C4),2) -> 10.1 | C4: 0.01 | D4: =E4/B4 -> 51.98019802 | E4: =ROUND(E3*(1+F4),0) -> 525 | F4: 0.05 | G4: =ROUND(G3*(1+H4),2) -> 0 | H4: 0.05 | K4: =(L4-标准怪物数值!E4)*N4*(1+P4*R4)+L4*T4/V4 -> 101.1416667 | L4: =ROUND(L3*(1+M4),0) -> 53 | M4: 0.05 | N4: =ROUND(N3*(1+O4),0) -> 1 | O4: 0 | P4: =ROUND(P3*(1+Q4),2) -> 0.05 | Q4: 0 | R4: =ROUND(R3*(1+S4),2) -> 1.5 | S4: 0 | T4: =ROUND(T3*(1+U4),2) -> 5 | U4: 0 | V4: =ROUND(V3*(1+W4),0) -> 6 | W4: 0 | Z4: =ROUND(Z3*(1+AA4),0) -> 53 | AA4: 0.05 | AB4: =L4*$AB$1 -> 53 | AC4: =ROUND(AC3*(1+AD4),0) -> 10 | AD4: 0 | AE4: =ROUND(AE3*(1+AF4),1) -> 10 | AF4: 0
A5: 3 | B5: =ROUND(B4*(1+C5),2) -> 10.2 | C5: 0.01 | D5: 54.01960784 | E5: 551 | F5: 0.05 | G5: =ROUND(G4*(1+H5),2) -> 0 | H5: 0.05 | K5: =(L5-标准怪物数值!E5)*N5*(1+P5*R5)+L5*T5/V5 -> 106.8666667 | L5: 56 | M5: 0.05 | N5: 1 | O5: 0 | P5: 0.05 | Q5: 0 | R5: 1.5 | S5: 0 | T5: 5 | U5: 0 | V5: 6 | W5: 0 | Z5: =ROUND(Z4*(1+AA5),0) -> 56 | AA5: 0.05 | AB5: 56 | AC5: 10 | AD5: 0 | AE5: =ROUND(AE4*(1+AF5),1) -> 10 | AF5: 0
A6: 4 | B6: 10.3 | C6: 0.01 | D6: 56.21359223 | E6: 579 | F6: 0.05 | G6: 0 | H6: 0.05 | K6: =(L6-标准怪物数值!E6)*N6*(1+P6*R6)+L6*T6/V6 -> 112.5916667 | L6: 59 | M6: 0.05 | N6: 1 | O6: 0 | P6: 0.05 | Q6: 0 | R6: 1.5 | S6: 0 | T6: 5 | U6: 0 | V6: 6 | W6: 0 | Z6: 59 | AA6: 0.05 | AB6: 59 | AC6: 10 | AD6: 0 | AE6: 10 | AF6: 0
A7: 5 | B7: 10.4 | C7: 0.01 | D7: 58.46153846 | E7: 608 | F7: 0.05 | G7: 0 | H7: 0.05 | K7: =(L7-标准怪物数值!E7)*N7*(1+P7*R7)+L7*T7/V7 -> 118.3166667 | L7: 62 | M7: 0.05 | N7: 1 | O7: 0 | P7: 0.05 | Q7: 0 | R7: 1.5 | S7: 0 | T7: 5 | U7: 0 | V7: 6 | W7: 0 | Z7: 62 | AA7: 0.05 | AB7: 62 | AC7: 10 | AD7: 0 | AE7: 10 | AF7: 0
A8: 6 | B8: 10.5 | C8: 0.01 | D8: 60.76190476 | E8: 638 | F8: 0.05 | G8: 0 | H8: 0.05 | K8: =(L8-标准怪物数值!E8)*N8*(1+P8*R8)+L8*T8/V8 -> 124.0416667 | L8: 65 | M8: 0.05 | N8: 1 | O8: 0 | P8: 0.05 | Q8: 0 | R8: 1.5 | S8: 0 | T8: 5 | U8: 0 | V8: 6 | W8: 0 | Z8: 65 | AA8: 0.05 | AB8: 65 | AC8: 10 | AD8: 0 | AE8: 10 | AF8: 0
A9: 7 | B9: 10.61 | C9: 0.01 | D9: 63.14797361 | E9: 670 | F9: 0.05 | G9: 0 | H9: 0.05 | K9: =(L9-标准怪物数值!E9)*N9*(1+P9*R9)+L9*T9/V9 -> 129.7666667 | L9: 68 | M9: 0.05 | N9: 1 | O9: 0 | P9: 0.05 | Q9: 0 | R9: 1.5 | S9: 0 | T9: 5 | U9: 0 | V9: 6 | W9: 0 | Z9: 68 | AA9: 0.05 | AB9: 68 | AC9: 10 | AD9: 0 | AE9: 10 | AF9: 0
A10: 8 | B10: 10.72 | C10: 0.01 | D10: 65.67164179 | E10: 704 | F10: 0.05 | G10: 0 | H10: 0.05 | K10: =(L10-标准怪物数值!E10)*N10*(1+P10*R10)+L10*T10/V10 -> 135.4916667 | L10: 71 | M10: 0.05 | N10: 1 | O10: 0 | P10: 0.05 | Q10: 0 | R10: 1.5 | S10: 0 | T10: 5 | U10: 0 | V10: 6 | W10: 0 | Z10: 71 | AA10: 0.05 | AB10: 71 | AC10: 10 | AD10: 0 | AE10: 10 | AF10: 0
A11: 9 | B11: 10.83 | C11: 0.01 | D11: 68.23638042 | E11: 739 | F11: 0.05 | G11: 0 | H11: 0.05 | K11: =(L11-标准怪物数值!E11)*N11*(1+P11*R11)+L11*T11/V11 -> 143.125 | L11: 75 | M11: 0.05 | N11: 1 | O11: 0 | P11: 0.05 | Q11: 0 | R11: 1.5 | S11: 0 | T11: 5 | U11: 0 | V11: 6 | W11: 0 | Z11: 75 | AA11: 0.05 | AB11: 75 | AC11: 10 | AD11: 0 | AE11: 10 | AF11: 0
A12: 10 | B12: 10.94 | C12: 0.01 | D12: 70.93235832 | E12: 776 | F12: 0.05 | G12: 0 | H12: 0.05 | K12: =(L12-标准怪物数值!E12)*N12*(1+P12*R12)+L12*T12/V12 -> 150.7583333 | L12: 79 | M12: 0.05 | N12: 1 | O12: 0 | P12: 0.05 | Q12: 0 | R12: 1.5 | S12: 0 | T12: 5 | U12: 0 | V12: 6 | W12: 0 | Z12: 79 | AA12: 0.05 | AB12: 79 | AC12: 10 | AD12: 0 | AE12: 10 | AF12: 0
A13: 11 | B13: 11.05 | C13: 0.01 | D13: 73.75565611 | E13: 815 | F13: 0.05 | G13: 0 | H13: 0.05 | K13: =(L13-标准怪物数值!E13)*N13*(1+P13*R13)+L13*T13/V13 -> 158.3916667 | L13: 83 | M13: 0.05 | N13: 1 | O13: 0 | P13: 0.05 | Q13: 0 | R13: 1.5 | S13: 0 | T13: 5 | U13: 0 | V13: 6 | W13: 0 | Z13: 83 | AA13: 0.05 | AB13: 83 | AC13: 10 | AD13: 0 | AE13: 10 | AF13: 0
A14: 12 | B14: 11.16 | C14: 0.01 | D14: 76.70250896 | E14: 856 | F14: 0.05 | G14: 0 | H14: 0.05 | K14: =(L14-标准怪物数值!E14)*N14*(1+P14*R14)+L14*T14/V14 -> 166.025 | L14: 87 | M14: 0.05 | N14: 1 | O14: 0 | P14: 0.05 | Q14: 0 | R14: 1.5 | S14: 0 | T14: 5 | U14: 0 | V14: 6 | W14: 0 | Z14: 87 | AA14: 0.05 | AB14: 87 | AC14: 10 | AD14: 0 | AE14: 10 | AF14: 0
A15: 13 | B15: 11.27 | C15: 0.01 | D15: 79.76929902 | E15: 899 | F15: 0.05 | G15: 0 | H15: 0.05 | K15: =(L15-标准怪物数值!E15)*N15*(1+P15*R15)+L15*T15/V15 -> 173.6583333 | L15: 91 | M15: 0.05 | N15: 1 | O15: 0 | P15: 0.05 | Q15: 0 | R15: 1.5 | S15: 0 | T15: 5 | U15: 0 | V15: 6 | W15: 0 | Z15: 91 | AA15: 0.05 | AB15: 91 | AC15: 10 | AD15: 0 | AE15: 10 | AF15: 0
A16: 14 | B16: 11.38 | C16: 0.01 | D16: 82.95254833 | E16: 944 | F16: 0.05 | G16: 0 | H16: 0.05 | K16: =(L16-标准怪物数值!E16)*N16*(1+P16*R16)+L16*T16/V16 -> 183.2 | L16: 96 | M16: 0.05 | N16: 1 | O16: 0 | P16: 0.05 | Q16: 0 | R16: 1.5 | S16: 0 | T16: 5 | U16: 0 | V16: 6 | W16: 0 | Z16: 96 | AA16: 0.05 | AB16: 96 | AC16: 10 | AD16: 0 | AE16: 10 | AF16: 0
A17: 15 | B17: 11.49 | C17: 0.01 | D17: 86.2489121 | E17: 991 | F17: 0.05 | G17: 0 | H17: 0.05 | K17: =(L17-标准怪物数值!E17)*N17*(1+P17*R17)+L17*T17/V17 -> 192.7416667 | L17: 101 | M17: 0.05 | N17: 1 | O17: 0 | P17: 0.05 | Q17: 0 | R17: 1.5 | S17: 0 | T17: 5 | U17: 0 | V17: 6 | W17: 0 | Z17: 101 | AA17: 0.05 | AB17: 101 | AC17: 10 | AD17: 0 | AE17: 10 | AF17: 0
A18: 16 | B18: 11.6 | C18: 0.01 | D18: 89.74137931 | E18: 1041 | F18: 0.05 | G18: 0 | H18: 0.05 | K18: =(L18-标准怪物数值!E18)*N18*(1+P18*R18)+L18*T18/V18 -> 202.2833333 | L18: 106 | M18: 0.05 | N18: 1 | O18: 0 | P18: 0.05 | Q18: 0 | R18: 1.5 | S18: 0 | T18: 5 | U18: 0 | V18: 6 | W18: 0 | Z18: 106 | AA18: 0.05 | AB18: 106 | AC18: 10 | AD18: 0 | AE18: 10 | AF18: 0
A19: 17 | B19: 11.72 | C19: 0.01 | D19: 93.25938567 | E19: 1093 | F19: 0.05 | G19: 0 | H19: 0.05 | K19: =(L19-标准怪物数值!E19)*N19*(1+P19*R19)+L19*T19/V19 -> 211.825 | L19: 111 | M19: 0.05 | N19: 1 | O19: 0 | P19: 0.05 | Q19: 0 | R19: 1.5 | S19: 0 | T19: 5 | U19: 0 | V19: 6 | W19: 0 | Z19: 111 | AA19: 0.05 | AB19: 111 | AC19: 10 | AD19: 0 | AE19: 10 | AF19: 0
A20: 18 | B20: 11.84 | C20: 0.01 | D20: 96.95945946 | E20: 1148 | F20: 0.05 | G20: 0 | H20: 0.05 | K20: =(L20-标准怪物数值!E20)*N20*(1+P20*R20)+L20*T20/V20 -> 223.275 | L20: 117 | M20: 0.05 | N20: 1 | O20: 0 | P20: 0.05 | Q20: 0 | R20: 1.5 | S20: 0 | T20: 5 | U20: 0 | V20: 6 | W20: 0 | Z20: 117 | AA20: 0.05 | AB20: 117 | AC20: 10 | AD20: 0 | AE20: 10 | AF20: 0
A21: 19 | B21: 11.96 | C21: 0.01 | D21: 100.7525084 | E21: 1205 | F21: 0.05 | G21: 0 | H21: 0.05 | K21: =(L21-标准怪物数值!E21)*N21*(1+P21*R21)+L21*T21/V21 -> 234.725 | L21: 123 | M21: 0.05 | N21: 1 | O21: 0 | P21: 0.05 | Q21: 0 | R21: 1.5 | S21: 0 | T21: 5 | U21: 0 | V21: 6 | W21: 0 | Z21: 123 | AA21: 0.05 | AB21: 123 | AC21: 10 | AD21: 0 | AE21: 10 | AF21: 0
A22: 20 | B22: 12.08 | C22: 0.01 | D22: 104.718543 | E22: 1265 | F22: 0.05 | G22: 0 | H22: 0.05 | K22: =(L22-标准怪物数值!E22)*N22*(1+P22*R22)+L22*T22/V22 -> 246.175 | L22: 129 | M22: 0.05 | N22: 1 | O22: 0 | P22: 0.05 | Q22: 0 | R22: 1.5 | S22: 0 | T22: 5 | U22: 0 | V22: 6 | W22: 0 | Z22: 129 | AA22: 0.05 | AB22: 129 | AC22: 10 | AD22: 0 | AE22: 10 | AF22: 0
A23: 21 | B23: 12.2 | C23: 0.01 | D23: 108.852459 | E23: 1328 | F23: 0.05 | G23: 0 | H23: 0.05 | K23: =(L23-标准怪物数值!E23)*N23*(1+P23*R23)+L23*T23/V23 -> 257.625 | L23: 135 | M23: 0.05 | N23: 1 | O23: 0 | P23: 0.05 | Q23: 0 | R23: 1.5 | S23: 0 | T23: 5 | U23: 0 | V23: 6 | W23: 0 | Z23: 135 | AA23: 0.05 | AB23: 135 | AC23: 10 | AD23: 0 | AE23: 10 | AF23: 0
A24: 22 | B24: 12.32 | C24: 0.01 | D24: 113.1493506 | E24: 1394 | F24: 0.05 | G24: 0 | H24: 0.05 | K24: =(L24-标准怪物数值!E24)*N24*(1+P24*R24)+L24*T24/V24 -> 270.9833333 | L24: 142 | M24: 0.05 | N24: 1 | O24: 0 | P24: 0.05 | Q24: 0 | R24: 1.5 | S24: 0 | T24: 5 | U24: 0 | V24: 6 | W24: 0 | Z24: 142 | AA24: 0.05 | AB24: 142 | AC24: 10 | AD24: 0 | AE24: 10 | AF24: 0
A25: 23 | B25: 12.44 | C25: 0.01 | D25: 117.6848875 | E25: 1464 | F25: 0.05 | G25: 0 | H25: 0.05 | K25: =(L25-标准怪物数值!E25)*N25*(1+P25*R25)+L25*T25/V25 -> 284.3416667 | L25: 149 | M25: 0.05 | N25: 1 | O25: 0 | P25: 0.05 | Q25: 0 | R25: 1.5 | S25: 0 | T25: 5 | U25: 0 | V25: 6 | W25: 0 | Z25: 149 | AA25: 0.05 | AB25: 149 | AC25: 10 | AD25: 0 | AE25: 10 | AF25: 0
A26: 24 | B26: 12.56 | C26: 0.01 | D26: 122.3726115 | E26: 1537 | F26: 0.05 | G26: 0 | H26: 0.05 | K26: =(L26-标准怪物数值!E26)*N26*(1+P26*R26)+L26*T26/V26 -> 297.7 | L26: 156 | M26: 0.05 | N26: 1 | O26: 0 | P26: 0.05 | Q26: 0 | R26: 1.5 | S26: 0 | T26: 5 | U26: 0 | V26: 6 | W26: 0 | Z26: 156 | AA26: 0.05 | AB26: 156 | AC26: 10 | AD26: 0 | AE26: 10 | AF26: 0
A27: 25 | B27: 12.69 | C27: 0.01 | D27: 127.1867612 | E27: 1614 | F27: 0.05 | G27: 0 | H27: 0.05 | K27: =(L27-标准怪物数值!E27)*N27*(1+P27*R27)+L27*T27/V27 -> 312.9666667 | L27: 164 | M27: 0.05 | N27: 1 | O27: 0 | P27: 0.05 | Q27: 0 | R27: 1.5 | S27: 0 | T27: 5 | U27: 0 | V27: 6 | W27: 0 | Z27: 164 | AA27: 0.05 | AB27: 164 | AC27: 10 | AD27: 0 | AE27: 10 | AF27: 0
A28: 26 | B28: 12.82 | C28: 0.01 | D28: 132.2152886 | E28: 1695 | F28: 0.05 | G28: 0 | H28: 0.05 | K28: =(L28-标准怪物数值!E28)*N28*(1+P28*R28)+L28*T28/V28 -> 328.2333333 | L28: 172 | M28: 0.05 | N28: 1 | O28: 0 | P28: 0.05 | Q28: 0 | R28: 1.5 | S28: 0 | T28: 5 | U28: 0 | V28: 6 | W28: 0 | Z28: 172 | AA28: 0.05 | AB28: 172 | AC28: 10 | AD28: 0 | AE28: 10 | AF28: 0
A29: 27 | B29: 12.95 | C29: 0.01 | D29: 137.4517375 | E29: 1780 | F29: 0.05 | G29: 0 | H29: 0.05 | K29: =(L29-标准怪物数值!E29)*N29*(1+P29*R29)+L29*T29/V29 -> 345.4083333 | L29: 181 | M29: 0.05 | N29: 1 | O29: 0 | P29: 0.05 | Q29: 0 | R29: 1.5 | S29: 0 | T29: 5 | U29: 0 | V29: 6 | W29: 0 | Z29: 181 | AA29: 0.05 | AB29: 181 | AC29: 10 | AD29: 0 | AE29: 10 | AF29: 0
A30: 28 | B30: 13.08 | C30: 0.01 | D30: 142.8899083 | E30: 1869 | F30: 0.05 | G30: 0 | H30: 0.05 | K30: =(L30-标准怪物数值!E30)*N30*(1+P30*R30)+L30*T30/V30 -> 362.5833333 | L30: 190 | M30: 0.05 | N30: 1 | O30: 0 | P30: 0.05 | Q30: 0 | R30: 1.5 | S30: 0 | T30: 5 | U30: 0 | V30: 6 | W30: 0 | Z30: 190 | AA30: 0.05 | AB30: 190 | AC30: 10 | AD30: 0 | AE30: 10 | AF30: 0
A31: 29 | B31: 13.21 | C31: 0.01 | D31: 148.5238456 | E31: 1962 | F31: 0.05 | G31: 0 | H31: 0.05 | K31: =(L31-标准怪物数值!E31)*N31*(1+P31*R31)+L31*T31/V31 -> 381.6666667 | L31: 200 | M31: 0.05 | N31: 1 | O31: 0 | P31: 0.05 | Q31: 0 | R31: 1.5 | S31: 0 | T31: 5 | U31: 0 | V31: 6 | W31: 0 | Z31: 200 | AA31: 0.05 | AB31: 200 | AC31: 10 | AD31: 0 | AE31: 10 | AF31: 0
A32: 30 | B32: 13.34 | C32: 0.01 | D32: 154.4227886 | E32: 2060 | F32: 0.05 | G32: 0 | H32: 0.05 | K32: =(L32-标准怪物数值!E32)*N32*(1+P32*R32)+L32*T32/V32 -> 400.75 | L32: 210 | M32: 0.05 | N32: 1 | O32: 0 | P32: 0.05 | Q32: 0 | R32: 1.5 | S32: 0 | T32: 5 | U32: 0 | V32: 6 | W32: 0 | Z32: 210 | AA32: 0.05 | AB32: 210 | AC32: 10 | AD32: 0 | AE32: 10 | AF32: 0
A33: 31 | B33: 13.47 | C33: 0.01 | D33: 160.5790646 | E33: 2163 | F33: 0.05 | G33: 0 | H33: 0.05 | K33: =(L33-标准怪物数值!E33)*N33*(1+P33*R33)+L33*T33/V33 -> 421.7416667 | L33: 221 | M33: 0.05 | N33: 1 | O33: 0 | P33: 0.05 | Q33: 0 | R33: 1.5 | S33: 0 | T33: 5 | U33: 0 | V33: 6 | W33: 0 | Z33: 221 | AA33: 0.05 | AB33: 221 | AC33: 10 | AD33: 0 | AE33: 10 | AF33: 0
A34: 32 | B34: 13.6 | C34: 0.01 | D34: 166.9852941 | E34: 2271 | F34: 0.05 | G34: 0 | H34: 0.05 | K34: =(L34-标准怪物数值!E34)*N34*(1+P34*R34)+L34*T34/V34 -> 442.7333333 | L34: 232 | M34: 0.05 | N34: 1 | O34: 0 | P34: 0.05 | Q34: 0 | R34: 1.5 | S34: 0 | T34: 5 | U34: 0 | V34: 6 | W34: 0 | Z34: 232 | AA34: 0.05 | AB34: 232 | AC34: 10 | AD34: 0 | AE34: 10 | AF34: 0
A35: 33 | B35: 13.74 | C35: 0.01 | D35: 173.580786 | E35: 2385 | F35: 0.05 | G35: 0 | H35: 0.05 | K35: =(L35-标准怪物数值!E35)*N35*(1+P35*R35)+L35*T35/V35 -> 465.6333333 | L35: 244 | M35: 0.05 | N35: 1 | O35: 0 | P35: 0.05 | Q35: 0 | R35: 1.5 | S35: 0 | T35: 5 | U35: 0 | V35: 6 | W35: 0 | Z35: 244 | AA35: 0.05 | AB35: 244 | AC35: 10 | AD35: 0 | AE35: 10 | AF35: 0
A36: 34 | B36: 13.88 | C36: 0.01 | D36: =E36/B36 -> 180.4034582 | E36: 2504 | F36: 0.05 | G36: 0 | H36: 0.05 | K36: =(L36-标准怪物数值!E36)*N36*(1+P36*R36)+L36*T36/V36 -> 488.5333333 | L36: 256 | M36: 0.05 | N36: 1 | O36: 0 | P36: 0.05 | Q36: 0 | R36: 1.5 | S36: 0 | T36: 5 | U36: 0 | V36: 6 | W36: 0 | Z36: 256 | AA36: 0.05 | AB36: =L36*$AB$1 -> 256 | AC36: 10 | AD36: 0 | AE36: 10 | AF36: 0
A37: 35 | B37: =ROUND(B36*(1+C37),2) -> 14.02 | C37: 0.01 | D37: 187.5178317 | E37: 2629 | F37: 0.05 | G37: =ROUND(G36*(1+H37),2) -> 0 | H37: 0.05 | K37: =(L37-标准怪物数值!E37)*N37*(1+P37*R37)+L37*T37/V37 -> 513.3416667 | L37: 269 | M37: 0.05 | N37: 1 | O37: 0 | P37: 0.05 | Q37: 0 | R37: 1.5 | S37: 0 | T37: 5 | U37: 0 | V37: 6 | W37: 0 | Z37: =ROUND(Z36*(1+AA37),0) -> 269 | AA37: 0.05 | AB37: 269 | AC37: 10 | AD37: 0 | AE37: =ROUND(AE36*(1+AF37),1) -> 10 | AF37: 0
A38: 36 | B38: 14.16 | C38: 0.01 | D38: 194.9152542 | E38: 2760 | F38: 0.05 | G38: 0 | H38: 0.05 | K38: =(L38-标准怪物数值!E38)*N38*(1+P38*R38)+L38*T38/V38 -> 538.15 | L38: 282 | M38: 0.05 | N38: 1 | O38: 0 | P38: 0.05 | Q38: 0 | R38: 1.5 | S38: 0 | T38: 5 | U38: 0 | V38: 6 | W38: 0 | Z38: 282 | AA38: 0.05 | AB38: 282 | AC38: 10 | AD38: 0 | AE38: 10 | AF38: 0
A39: 37 | B39: 14.3 | C39: 0.01 | D39: 202.6573427 | E39: 2898 | F39: 0.05 | G39: 0 | H39: 0.05 | K39: =(L39-标准怪物数值!E39)*N39*(1+P39*R39)+L39*T39/V39 -> 564.8666667 | L39: 296 | M39: 0.05 | N39: 1 | O39: 0 | P39: 0.05 | Q39: 0 | R39: 1.5 | S39: 0 | T39: 5 | U39: 0 | V39: 6 | W39: 0 | Z39: 296 | AA39: 0.05 | AB39: 296 | AC39: 10 | AD39: 0 | AE39: 10 | AF39: 0
A40: 38 | B40: 14.44 | C40: 0.01 | D40: 210.734072 | E40: 3043 | F40: 0.05 | G40: 0 | H40: 0.05 | K40: =(L40-标准怪物数值!E40)*N40*(1+P40*R40)+L40*T40/V40 -> 593.4916667 | L40: 311 | M40: 0.05 | N40: 1 | O40: 0 | P40: 0.05 | Q40: 0 | R40: 1.5 | S40: 0 | T40: 5 | U40: 0 | V40: 6 | W40: 0 | Z40: 311 | AA40: 0.05 | AB40: 311 | AC40: 10 | AD40: 0 | AE40: 10 | AF40: 0
A41: 39 | B41: 14.58 | C41: 0.01 | D41: 219.1358025 | E41: 3195 | F41: 0.05 | G41: 0 | H41: 0.05 | K41: =(L41-标准怪物数值!E41)*N41*(1+P41*R41)+L41*T41/V41 -> 624.025 | L41: 327 | M41: 0.05 | N41: 1 | O41: 0 | P41: 0.05 | Q41: 0 | R41: 1.5 | S41: 0 | T41: 5 | U41: 0 | V41: 6 | W41: 0 | Z41: 327 | AA41: 0.05 | AB41: 327 | AC41: 10 | AD41: 0 | AE41: 10 | AF41: 0
A42: 40 | B42: 14.73 | C42: 0.01 | D42: 227.766463 | E42: 3355 | F42: 0.05 | G42: 0 | H42: 0.05 | K42: =(L42-标准怪物数值!E42)*N42*(1+P42*R42)+L42*T42/V42 -> 654.5583333 | L42: 343 | M42: 0.05 | N42: 1 | O42: 0 | P42: 0.05 | Q42: 0 | R42: 1.5 | S42: 0 | T42: 5 | U42: 0 | V42: 6 | W42: 0 | Z42: 343 | AA42: 0.05 | AB42: 343 | AC42: 10 | AD42: 0 | AE42: 10 | AF42: 0
A43: 41 | B43: 14.88 | C43: 0.01 | D43: 236.7607527 | E43: 3523 | F43: 0.05 | G43: 0 | H43: 0.05 | K43: =(L43-标准怪物数值!E43)*N43*(1+P43*R43)+L43*T43/V43 -> 687 | L43: 360 | M43: 0.05 | N43: 1 | O43: 0 | P43: 0.05 | Q43: 0 | R43: 1.5 | S43: 0 | T43: 5 | U43: 0 | V43: 6 | W43: 0 | Z43: 360 | AA43: 0.05 | AB43: 360 | AC43: 10 | AD43: 0 | AE43: 10 | AF43: 0
A44: 42 | B44: 15.03 | C44: 0.01 | D44: 246.1077844 | E44: 3699 | F44: 0.05 | G44: 0 | H44: 0.05 | K44: =(L44-标准怪物数值!E44)*N44*(1+P44*R44)+L44*T44/V44 -> 721.35 | L44: 378 | M44: 0.05 | N44: 1 | O44: 0 | P44: 0.05 | Q44: 0 | R44: 1.5 | S44: 0 | T44: 5 | U44: 0 | V44: 6 | W44: 0 | Z44: 378 | AA44: 0.05 | AB44: 378 | AC44: 10 | AD44: 0 | AE44: 10 | AF44: 0
A45: 43 | B45: 15.18 | C45: 0.01 | D45: 255.8629776 | E45: 3884 | F45: 0.05 | G45: 0 | H45: 0.05 | K45: =(L45-标准怪物数值!E45)*N45*(1+P45*R45)+L45*T45/V45 -> 757.6083333 | L45: 397 | M45: 0.05 | N45: 1 | O45: 0 | P45: 0.05 | Q45: 0 | R45: 1.5 | S45: 0 | T45: 5 | U45: 0 | V45: 6 | W45: 0 | Z45: 397 | AA45: 0.05 | AB45: 397 | AC45: 10 | AD45: 0 | AE45: 10 | AF45: 0
A46: 44 | B46: 15.33 | C46: 0.01 | D46: 266.0143509 | E46: 4078 | F46: 0.05 | G46: 0 | H46: 0.05 | K46: =(L46-标准怪物数值!E46)*N46*(1+P46*R46)+L46*T46/V46 -> 795.775 | L46: 417 | M46: 0.05 | N46: 1 | O46: 0 | P46: 0.05 | Q46: 0 | R46: 1.5 | S46: 0 | T46: 5 | U46: 0 | V46: 6 | W46: 0 | Z46: 417 | AA46: 0.05 | AB46: 417 | AC46: 10 | AD46: 0 | AE46: 10 | AF46: 0
A47: 45 | B47: 15.48 | C47: 0.01 | D47: 276.6149871 | E47: 4282 | F47: 0.05 | G47: 0 | H47: 0.05 | K47: =(L47-标准怪物数值!E47)*N47*(1+P47*R47)+L47*T47/V47 -> 835.85 | L47: 438 | M47: 0.05 | N47: 1 | O47: 0 | P47: 0.05 | Q47: 0 | R47: 1.5 | S47: 0 | T47: 5 | U47: 0 | V47: 6 | W47: 0 | Z47: 438 | AA47: 0.05 | AB47: 438 | AC47: 10 | AD47: 0 | AE47: 10 | AF47: 0
A48: 46 | B48: 15.63 | C48: 0.01 | D48: 287.6519514 | E48: 4496 | F48: 0.05 | G48: 0 | H48: 0.05 | K48: =(L48-标准怪物数值!E48)*N48*(1+P48*R48)+L48*T48/V48 -> 877.8333333 | L48: 460 | M48: 0.05 | N48: 1 | O48: 0 | P48: 0.05 | Q48: 0 | R48: 1.5 | S48: 0 | T48: 5 | U48: 0 | V48: 6 | W48: 0 | Z48: 460 | AA48: 0.05 | AB48: 460 | AC48: 10 | AD48: 0 | AE48: 10 | AF48: 0
A49: 47 | B49: 15.79 | C49: 0.01 | D49: 298.9867004 | E49: 4721 | F49: 0.05 | G49: 0 | H49: 0.05 | K49: =(L49-标准怪物数值!E49)*N49*(1+P49*R49)+L49*T49/V49 -> 921.725 | L49: 483 | M49: 0.05 | N49: 1 | O49: 0 | P49: 0.05 | Q49: 0 | R49: 1.5 | S49: 0 | T49: 5 | U49: 0 | V49: 6 | W49: 0 | Z49: 483 | AA49: 0.05 | AB49: 483 | AC49: 10 | AD49: 0 | AE49: 10 | AF49: 0
A50: 48 | B50: 15.95 | C50: 0.01 | D50: 310.7836991 | E50: 4957 | F50: 0.05 | G50: 0 | H50: 0.05 | K50: =(L50-标准怪物数值!E50)*N50*(1+P50*R50)+L50*T50/V50 -> 967.525 | L50: 507 | M50: 0.05 | N50: 1 | O50: 0 | P50: 0.05 | Q50: 0 | R50: 1.5 | S50: 0 | T50: 5 | U50: 0 | V50: 6 | W50: 0 | Z50: 507 | AA50: 0.05 | AB50: 507 | AC50: 10 | AD50: 0 | AE50: 10 | AF50: 0
A51: 49 | B51: 16.11 | C51: 0.01 | D51: 323.0912477 | E51: 5205 | F51: 0.05 | G51: 0 | H51: 0.05 | K51: =(L51-标准怪物数值!E51)*N51*(1+P51*R51)+L51*T51/V51 -> 1015.233333 | L51: 532 | M51: 0.05 | N51: 1 | O51: 0 | P51: 0.05 | Q51: 0 | R51: 1.5 | S51: 0 | T51: 5 | U51: 0 | V51: 6 | W51: 0 | Z51: 532 | AA51: 0.05 | AB51: 532 | AC51: 10 | AD51: 0 | AE51: 10 | AF51: 0
A52: 50 | B52: 16.27 | C52: 0.01 | D52: 335.894284 | E52: 5465 | F52: 0.05 | G52: 0 | H52: 0.05 | K52: =(L52-标准怪物数值!E52)*N52*(1+P52*R52)+L52*T52/V52 -> 1066.758333 | L52: 559 | M52: 0.05 | N52: 1 | O52: 0 | P52: 0.05 | Q52: 0 | R52: 1.5 | S52: 0 | T52: 5 | U52: 0 | V52: 6 | W52: 0 | Z52: 559 | AA52: 0.05 | AB52: 559 | AC52: 10 | AD52: 0 | AE52: 10 | AF52: 0
A53: 51 | B53: 16.43 | C53: 0.01 | D53: 349.2391966 | E53: 5738 | F53: 0.05 | G53: 0 | H53: 0.05 | K53: =(L53-标准怪物数值!E53)*N53*(1+P53*R53)+L53*T53/V53 -> 1120.191667 | L53: 587 | M53: 0.05 | N53: 1 | O53: 0 | P53: 0.05 | Q53: 0 | R53: 1.5 | S53: 0 | T53: 5 | U53: 0 | V53: 6 | W53: 0 | Z53: 587 | AA53: 0.05 | AB53: 587 | AC53: 10 | AD53: 0 | AE53: 10 | AF53: 0
A54: 52 | B54: 16.59 | C54: 0.01 | D54: 363.1705847 | E54: 6025 | F54: 0.05 | G54: 0 | H54: 0.05 | K54: =(L54-标准怪物数值!E54)*N54*(1+P54*R54)+L54*T54/V54 -> 1175.533333 | L54: 616 | M54: 0.05 | N54: 1 | O54: 0 | P54: 0.05 | Q54: 0 | R54: 1.5 | S54: 0 | T54: 5 | U54: 0 | V54: 6 | W54: 0 | Z54: 616 | AA54: 0.05 | AB54: 616 | AC54: 10 | AD54: 0 | AE54: 10 | AF54: 0
A55: 53 | B55: 16.76 | C55: 0.01 | D55: 377.4463007 | E55: 6326 | F55: 0.05 | G55: 0 | H55: 0.05 | K55: =(L55-标准怪物数值!E55)*N55*(1+P55*R55)+L55*T55/V55 -> 1234.691667 | L55: 647 | M55: 0.05 | N55: 1 | O55: 0 | P55: 0.05 | Q55: 0 | R55: 1.5 | S55: 0 | T55: 5 | U55: 0 | V55: 6 | W55: 0 | Z55: 647 | AA55: 0.05 | AB55: 647 | AC55: 10 | AD55: 0 | AE55: 10 | AF55: 0
A56: 54 | B56: 16.93 | C56: 0.01 | D56: 392.3213231 | E56: 6642 | F56: 0.05 | G56: 0 | H56: 0.05 | K56: =(L56-标准怪物数值!E56)*N56*(1+P56*R56)+L56*T56/V56 -> 1295.758333 | L56: 679 | M56: 0.05 | N56: 1 | O56: 0 | P56: 0.05 | Q56: 0 | R56: 1.5 | S56: 0 | T56: 5 | U56: 0 | V56: 6 | W56: 0 | Z56: 679 | AA56: 0.05 | AB56: 679 | AC56: 10 | AD56: 0 | AE56: 10 | AF56: 0
A57: 55 | B57: 17.1 | C57: 0.01 | D57: 407.8362573 | E57: 6974 | F57: 0.05 | G57: 0 | H57: 0.05 | K57: =(L57-标准怪物数值!E57)*N57*(1+P57*R57)+L57*T57/V57 -> 1360.641667 | L57: 713 | M57: 0.05 | N57: 1 | O57: 0 | P57: 0.05 | Q57: 0 | R57: 1.5 | S57: 0 | T57: 5 | U57: 0 | V57: 6 | W57: 0 | Z57: 713 | AA57: 0.05 | AB57: 713 | AC57: 10 | AD57: 0 | AE57: 10 | AF57: 0
A58: 56 | B58: 17.27 | C58: 0.01 | D58: 424.03011 | E58: 7323 | F58: 0.05 | G58: 0 | H58: 0.05 | K58: =(L58-标准怪物数值!E58)*N58*(1+P58*R58)+L58*T58/V58 -> 1429.341667 | L58: 749 | M58: 0.05 | N58: 1 | O58: 0 | P58: 0.05 | Q58: 0 | R58: 1.5 | S58: 0 | T58: 5 | U58: 0 | V58: 6 | W58: 0 | Z58: 749 | AA58: 0.05 | AB58: 749 | AC58: 10 | AD58: 0 | AE58: 10 | AF58: 0
A59: 57 | B59: 17.44 | C59: 0.01 | D59: 440.8830275 | E59: 7689 | F59: 0.05 | G59: 0 | H59: 0.05 | K59: =(L59-标准怪物数值!E59)*N59*(1+P59*R59)+L59*T59/V59 -> 1499.95 | L59: 786 | M59: 0.05 | N59: 1 | O59: 0 | P59: 0.05 | Q59: 0 | R59: 1.5 | S59: 0 | T59: 5 | U59: 0 | V59: 6 | W59: 0 | Z59: 786 | AA59: 0.05 | AB59: 786 | AC59: 10 | AD59: 0 | AE59: 10 | AF59: 0
A60: 58 | B60: 17.61 | C60: 0.01 | D60: 458.4327087 | E60: 8073 | F60: 0.05 | G60: 0 | H60: 0.05 | K60: =(L60-标准怪物数值!E60)*N60*(1+P60*R60)+L60*T60/V60 -> 1574.375 | L60: 825 | M60: 0.05 | N60: 1 | O60: 0 | P60: 0.05 | Q60: 0 | R60: 1.5 | S60: 0 | T60: 5 | U60: 0 | V60: 6 | W60: 0 | Z60: 825 | AA60: 0.05 | AB60: 825 | AC60: 10 | AD60: 0 | AE60: 10 | AF60: 0
A61: 59 | B61: 17.79 | C61: 0.01 | D61: 476.5036537 | E61: 8477 | F61: 0.05 | G61: 0 | H61: 0.05 | K61: =(L61-标准怪物数值!E61)*N61*(1+P61*R61)+L61*T61/V61 -> 1652.616667 | L61: 866 | M61: 0.05 | N61: 1 | O61: 0 | P61: 0.05 | Q61: 0 | R61: 1.5 | S61: 0 | T61: 5 | U61: 0 | V61: 6 | W61: 0 | Z61: 866 | AA61: 0.05 | AB61: 866 | AC61: 10 | AD61: 0 | AE61: 10 | AF61: 0
A62: 60 | B62: 17.97 | C62: 0.01 | D62: 495.3255426 | E62: 8901 | F62: 0.05 | G62: 0 | H62: 0.05 | K62: =(L62-标准怪物数值!E62)*N62*(1+P62*R62)+L62*T62/V62 -> 1734.675 | L62: 909 | M62: 0.05 | N62: 1 | O62: 0 | P62: 0.05 | Q62: 0 | R62: 1.5 | S62: 0 | T62: 5 | U62: 0 | V62: 6 | W62: 0 | Z62: 909 | AA62: 0.05 | AB62: 909 | AC62: 10 | AD62: 0 | AE62: 10 | AF62: 0
A63: 61 | B63: 18.15 | C63: 0.01 | D63: 514.9311295 | E63: 9346 | F63: 0.05 | G63: 0 | H63: 0.05 | K63: =(L63-标准怪物数值!E63)*N63*(1+P63*R63)+L63*T63/V63 -> 1820.55 | L63: 954 | M63: 0.05 | N63: 1 | O63: 0 | P63: 0.05 | Q63: 0 | R63: 1.5 | S63: 0 | T63: 5 | U63: 0 | V63: 6 | W63: 0 | Z63: 954 | AA63: 0.05 | AB63: 954 | AC63: 10 | AD63: 0 | AE63: 10 | AF63: 0
A64: 62 | B64: 18.33 | C64: 0.01 | D64: 535.3518822 | E64: 9813 | F64: 0.05 | G64: 0 | H64: 0.05 | K64: =(L64-标准怪物数值!E64)*N64*(1+P64*R64)+L64*T64/V64 -> 1912.15 | L64: 1002 | M64: 0.05 | N64: 1 | O64: 0 | P64: 0.05 | Q64: 0 | R64: 1.5 | S64: 0 | T64: 5 | U64: 0 | V64: 6 | W64: 0 | Z64: 1002 | AA64: 0.05 | AB64: 1002 | AC64: 10 | AD64: 0 | AE64: 10 | AF64: 0
A65: 63 | B65: 18.51 | C65: 0.01 | D65: 556.6720692 | E65: 10304 | F65: 0.05 | G65: 0 | H65: 0.05 | K65: =(L65-标准怪物数值!E65)*N65*(1+P65*R65)+L65*T65/V65 -> 2007.566667 | L65: 1052 | M65: 0.05 | N65: 1 | O65: 0 | P65: 0.05 | Q65: 0 | R65: 1.5 | S65: 0 | T65: 5 | U65: 0 | V65: 6 | W65: 0 | Z65: 1052 | AA65: 0.05 | AB65: 1052 | AC65: 10 | AD65: 0 | AE65: 10 | AF65: 0
A66: 64 | B66: 18.7 | C66: 0.01 | D66: 578.5561497 | E66: 10819 | F66: 0.05 | G66: 0 | H66: 0.05 | K66: =(L66-标准怪物数值!E66)*N66*(1+P66*R66)+L66*T66/V66 -> 2108.708333 | L66: 1105 | M66: 0.05 | N66: 1 | O66: 0 | P66: 0.05 | Q66: 0 | R66: 1.5 | S66: 0 | T66: 5 | U66: 0 | V66: 6 | W66: 0 | Z66: 1105 | AA66: 0.05 | AB66: 1105 | AC66: 10 | AD66: 0 | AE66: 10 | AF66: 0
A67: 65 | B67: 18.89 | C67: 0.01 | D67: 601.3763896 | E67: 11360 | F67: 0.05 | G67: 0 | H67: 0.05 | K67: =(L67-标准怪物数值!E67)*N67*(1+P67*R67)+L67*T67/V67 -> 2213.666667 | L67: 1160 | M67: 0.05 | N67: 1 | O67: 0 | P67: 0.05 | Q67: 0 | R67: 1.5 | S67: 0 | T67: 5 | U67: 0 | V67: 6 | W67: 0 | Z67: 1160 | AA67: 0.05 | AB67: 1160 | AC67: 10 | AD67: 0 | AE67: 10 | AF67: 0
A68: 66 | B68: 19.08 | C68: 0.01 | D68: =E68/B68 -> 625.1572327 | E68: =ROUND(E67*(1+F68),0) -> 11928 | F68: 0.05 | G68: 0 | H68: 0.05 | K68: =(L68-标准怪物数值!E68)*N68*(1+P68*R68)+L68*T68/V68 -> 2324.35 | L68: =ROUND(L67*(1+M68),0) -> 1218 | M68: 0.05 | N68: =ROUND(N67*(1+O68),0) -> 1 | O68: 0 | P68: =ROUND(P67*(1+Q68),2) -> 0.05 | Q68: 0 | R68: =ROUND(R67*(1+S68),2) -> 1.5 | S68: 0 | T68: =ROUND(T67*(1+U68),2) -> 5 | U68: 0 | V68: =ROUND(V67*(1+W68),0) -> 6 | W68: 0 | Z68: 1218 | AA68: 0.05 | AB68: =L68*$AB$1 -> 1218 | AC68: =ROUND(AC67*(1+AD68),0) -> 10 | AD68: 0 | AE68: 10 | AF68: 0
A69: 67 | B69: =ROUND(B68*(1+C69),2) -> 19.27 | C69: 0.01 | D69: 649.9221588 | E69: 12524 | F69: 0.05 | G69: =ROUND(G68*(1+H69),2) -> 0 | H69: 0.05 | K69: =(L69-标准怪物数值!E69)*N69*(1+P69*R69)+L69*T69/V69 -> 2440.758333 | L69: 1279 | M69: 0.05 | N69: 1 | O69: 0 | P69: 0.05 | Q69: 0 | R69: 1.5 | S69: 0 | T69: 5 | U69: 0 | V69: 6 | W69: 0 | Z69: =ROUND(Z68*(1+AA69),0) -> 1279 | AA69: 0.05 | AB69: 1279 | AC69: 10 | AD69: 0 | AE69: =ROUND(AE68*(1+AF69),1) -> 10 | AF69: 0
A70: 68 | B70: 19.46 | C70: 0.01 | D70: 675.7451182 | E70: 13150 | F70: 0.05 | G70: 0 | H70: 0.05 | K70: =(L70-标准怪物数值!E70)*N70*(1+P70*R70)+L70*T70/V70 -> 2562.891667 | L70: 1343 | M70: 0.05 | N70: 1 | O70: 0 | P70: 0.05 | Q70: 0 | R70: 1.5 | S70: 0 | T70: 5 | U70: 0 | V70: 6 | W70: 0 | Z70: 1343 | AA70: 0.05 | AB70: 1343 | AC70: 10 | AD70: 0 | AE70: 10 | AF70: 0
A71: 69 | B71: 19.65 | C71: 0.01 | D71: 702.697201 | E71: 13808 | F71: 0.05 | G71: 0 | H71: 0.05 | K71: =(L71-标准怪物数值!E71)*N71*(1+P71*R71)+L71*T71/V71 -> 2690.75 | L71: 1410 | M71: 0.05 | N71: 1 | O71: 0 | P71: 0.05 | Q71: 0 | R71: 1.5 | S71: 0 | T71: 5 | U71: 0 | V71: 6 | W71: 0 | Z71: 1410 | AA71: 0.05 | AB71: 1410 | AC71: 10 | AD71: 0 | AE71: 10 | AF71: 0
A72: 70 | B72: 19.85 | C72: 0.01 | D72: 730.3778338 | E72: 14498 | F72: 0.05 | G72: 0 | H72: 0.05 | K72: =(L72-标准怪物数值!E72)*N72*(1+P72*R72)+L72*T72/V72 -> 2826.241667 | L72: 1481 | M72: 0.05 | N72: 1 | O72: 0 | P72: 0.05 | Q72: 0 | R72: 1.5 | S72: 0 | T72: 5 | U72: 0 | V72: 6 | W72: 0 | Z72: 1481 | AA72: 0.05 | AB72: 1481 | AC72: 10 | AD72: 0 | AE72: 10 | AF72: 0
A73: 71 | B73: 20.05 | C73: 0.01 | D73: 759.2518703 | E73: 15223 | F73: 0.05 | G73: 0 | H73: 0.05 | K73: =(L73-标准怪物数值!E73)*N73*(1+P73*R73)+L73*T73/V73 -> 2967.458333 | L73: 1555 | M73: 0.05 | N73: 1 | O73: 0 | P73: 0.05 | Q73: 0 | R73: 1.5 | S73: 0 | T73: 5 | U73: 0 | V73: 6 | W73: 0 | Z73: 1555 | AA73: 0.05 | AB73: 1555 | AC73: 10 | AD73: 0 | AE73: 10 | AF73: 0
A74: 72 | B74: 20.25 | C74: 0.01 | D74: 789.3333333 | E74: 15984 | F74: 0.05 | G74: 0 | H74: 0.05 | K74: =(L74-标准怪物数值!E74)*N74*(1+P74*R74)+L74*T74/V74 -> 3116.308333 | L74: 1633 | M74: 0.05 | N74: 1 | O74: 0 | P74: 0.05 | Q74: 0 | R74: 1.5 | S74: 0 | T74: 5 | U74: 0 | V74: 6 | W74: 0 | Z74: 1633 | AA74: 0.05 | AB74: 1633 | AC74: 10 | AD74: 0 | AE74: 10 | AF74: 0
A75: 73 | B75: 20.45 | C75: 0.01 | D75: 820.6845966 | E75: 16783 | F75: 0.05 | G75: 0 | H75: 0.05 | K75: =(L75-标准怪物数值!E75)*N75*(1+P75*R75)+L75*T75/V75 -> 3272.791667 | L75: 1715 | M75: 0.05 | N75: 1 | O75: 0 | P75: 0.05 | Q75: 0 | R75: 1.5 | S75: 0 | T75: 5 | U75: 0 | V75: 6 | W75: 0 | Z75: 1715 | AA75: 0.05 | AB75: 1715 | AC75: 10 | AD75: 0 | AE75: 10 | AF75: 0
A76: 74 | B76: 20.65 | C76: 0.01 | D76: 853.3656174 | E76: 17622 | F76: 0.05 | G76: 0 | H76: 0.05 | K76: =(L76-标准怪物数值!E76)*N76*(1+P76*R76)+L76*T76/V76 -> 3436.908333 | L76: 1801 | M76: 0.05 | N76: 1 | O76: 0 | P76: 0.05 | Q76: 0 | R76: 1.5 | S76: 0 | T76: 5 | U76: 0 | V76: 6 | W76: 0 | Z76: 1801 | AA76: 0.05 | AB76: 1801 | AC76: 10 | AD76: 0 | AE76: 10 | AF76: 0
A77: 75 | B77: 20.86 | C77: 0.01 | D77: 887.008629 | E77: 18503 | F77: 0.05 | G77: 0 | H77: 0.05 | K77: =(L77-标准怪物数值!E77)*N77*(1+P77*R77)+L77*T77/V77 -> 3608.658333 | L77: 1891 | M77: 0.05 | N77: 1 | O77: 0 | P77: 0.05 | Q77: 0 | R77: 1.5 | S77: 0 | T77: 5 | U77: 0 | V77: 6 | W77: 0 | Z77: 1891 | AA77: 0.05 | AB77: 1891 | AC77: 10 | AD77: 0 | AE77: 10 | AF77: 0
A78: 76 | B78: 21.07 | C78: 0.01 | D78: 922.0692928 | E78: 19428 | F78: 0.05 | G78: 0 | H78: 0.05 | K78: =(L78-标准怪物数值!E78)*N78*(1+P78*R78)+L78*T78/V78 -> 3789.95 | L78: 1986 | M78: 0.05 | N78: 1 | O78: 0 | P78: 0.05 | Q78: 0 | R78: 1.5 | S78: 0 | T78: 5 | U78: 0 | V78: 6 | W78: 0 | Z78: 1986 | AA78: 0.05 | AB78: 1986 | AC78: 10 | AD78: 0 | AE78: 10 | AF78: 0
A79: 77 | B79: 21.28 | C79: 0.01 | D79: 958.5996241 | E79: 20399 | F79: 0.05 | G79: 0 | H79: 0.05 | K79: =(L79-标准怪物数值!E79)*N79*(1+P79*R79)+L79*T79/V79 -> 3978.875 | L79: 2085 | M79: 0.05 | N79: 1 | O79: 0 | P79: 0.05 | Q79: 0 | R79: 1.5 | S79: 0 | T79: 5 | U79: 0 | V79: 6 | W79: 0 | Z79: 2085 | AA79: 0.05 | AB79: 2085 | AC79: 10 | AD79: 0 | AE79: 10 | AF79: 0
A80: 78 | B80: 21.49 | C80: 0.01 | D80: 996.6961377 | E80: 21419 | F80: 0.05 | G80: 0 | H80: 0.05 | K80: =(L80-标准怪物数值!E80)*N80*(1+P80*R80)+L80*T80/V80 -> 4177.341667 | L80: 2189 | M80: 0.05 | N80: 1 | O80: 0 | P80: 0.05 | Q80: 0 | R80: 1.5 | S80: 0 | T80: 5 | U80: 0 | V80: 6 | W80: 0 | Z80: 2189 | AA80: 0.05 | AB80: 2189 | AC80: 10 | AD80: 0 | AE80: 10 | AF80: 0
A81: 79 | B81: 21.7 | C81: 0.01 | D81: 1036.40553 | E81: 22490 | F81: 0.05 | G81: 0 | H81: 0.05 | K81: =(L81-标准怪物数值!E81)*N81*(1+P81*R81)+L81*T81/V81 -> 4385.35 | L81: 2298 | M81: 0.05 | N81: 1 | O81: 0 | P81: 0.05 | Q81: 0 | R81: 1.5 | S81: 0 | T81: 5 | U81: 0 | V81: 6 | W81: 0 | Z81: 2298 | AA81: 0.05 | AB81: 2298 | AC81: 10 | AD81: 0 | AE81: 10 | AF81: 0
A82: 80 | B82: 21.92 | C82: 0.01 | D82: 1077.326642 | E82: 23615 | F82: 0.05 | G82: 0 | H82: 0.05 | K82: =(L82-标准怪物数值!E82)*N82*(1+P82*R82)+L82*T82/V82 -> 4604.808333 | L82: 2413 | M82: 0.05 | N82: 1 | O82: 0 | P82: 0.05 | Q82: 0 | R82: 1.5 | S82: 0 | T82: 5 | U82: 0 | V82: 6 | W82: 0 | Z82: 2413 | AA82: 0.05 | AB82: 2413 | AC82: 10 | AD82: 0 | AE82: 10 | AF82: 0
A83: 81 | B83: 22.14 | C83: 0.01 | D83: 1119.963866 | E83: 24796 | F83: 0.05 | G83: 0 | H83: 0.05 | K83: =(L83-标准怪物数值!E83)*N83*(1+P83*R83)+L83*T83/V83 -> 4835.716667 | L83: 2534 | M83: 0.05 | N83: 1 | O83: 0 | P83: 0.05 | Q83: 0 | R83: 1.5 | S83: 0 | T83: 5 | U83: 0 | V83: 6 | W83: 0 | Z83: 2534 | AA83: 0.05 | AB83: 2534 | AC83: 10 | AD83: 0 | AE83: 10 | AF83: 0
A84: 82 | B84: 22.36 | C84: 0.01 | D84: 1164.400716 | E84: 26036 | F84: 0.05 | G84: 0 | H84: 0.05 | K84: =(L84-标准怪物数值!E84)*N84*(1+P84*R84)+L84*T84/V84 -> 5078.075 | L84: 2661 | M84: 0.05 | N84: 1 | O84: 0 | P84: 0.05 | Q84: 0 | R84: 1.5 | S84: 0 | T84: 5 | U84: 0 | V84: 6 | W84: 0 | Z84: 2661 | AA84: 0.05 | AB84: 2661 | AC84: 10 | AD84: 0 | AE84: 10 | AF84: 0
A85: 83 | B85: 22.58 | C85: 0.01 | D85: 1210.717449 | E85: 27338 | F85: 0.05 | G85: 0 | H85: 0.05 | K85: =(L85-标准怪物数值!E85)*N85*(1+P85*R85)+L85*T85/V85 -> 5331.883333 | L85: 2794 | M85: 0.05 | N85: 1 | O85: 0 | P85: 0.05 | Q85: 0 | R85: 1.5 | S85: 0 | T85: 5 | U85: 0 | V85: 6 | W85: 0 | Z85: 2794 | AA85: 0.05 | AB85: 2794 | AC85: 10 | AD85: 0 | AE85: 10 | AF85: 0
A86: 84 | B86: 22.81 | C86: 0.01 | D86: 1258.439281 | E86: 28705 | F86: 0.05 | G86: 0 | H86: 0.05 | K86: =(L86-标准怪物数值!E86)*N86*(1+P86*R86)+L86*T86/V86 -> 5599.05 | L86: 2934 | M86: 0.05 | N86: 1 | O86: 0 | P86: 0.05 | Q86: 0 | R86: 1.5 | S86: 0 | T86: 5 | U86: 0 | V86: 6 | W86: 0 | Z86: 2934 | AA86: 0.05 | AB86: 2934 | AC86: 10 | AD86: 0 | AE86: 10 | AF86: 0
A87: 85 | B87: 23.04 | C87: 0.01 | D87: 1308.159722 | E87: 30140 | F87: 0.05 | G87: 0 | H87: 0.05 | K87: =(L87-标准怪物数值!E87)*N87*(1+P87*R87)+L87*T87/V87 -> 5879.575 | L87: 3081 | M87: 0.05 | N87: 1 | O87: 0 | P87: 0.05 | Q87: 0 | R87: 1.5 | S87: 0 | T87: 5 | U87: 0 | V87: 6 | W87: 0 | Z87: 3081 | AA87: 0.05 | AB87: 3081 | AC87: 10 | AD87: 0 | AE87: 10 | AF87: 0
A88: 86 | B88: 23.27 | C88: 0.01 | D88: 1359.991405 | E88: 31647 | F88: 0.05 | G88: 0 | H88: 0.05 | K88: =(L88-标准怪物数值!E88)*N88*(1+P88*R88)+L88*T88/V88 -> 6173.458333 | L88: 3235 | M88: 0.05 | N88: 1 | O88: 0 | P88: 0.05 | Q88: 0 | R88: 1.5 | S88: 0 | T88: 5 | U88: 0 | V88: 6 | W88: 0 | Z88: 3235 | AA88: 0.05 | AB88: 3235 | AC88: 10 | AD88: 0 | AE88: 10 | AF88: 0
A89: 87 | B89: 23.5 | C89: 0.01 | D89: 1414 | E89: 33229 | F89: 0.05 | G89: 0 | H89: 0.05 | K89: =(L89-标准怪物数值!E89)*N89*(1+P89*R89)+L89*T89/V89 -> 6482.608333 | L89: 3397 | M89: 0.05 | N89: 1 | O89: 0 | P89: 0.05 | Q89: 0 | R89: 1.5 | S89: 0 | T89: 5 | U89: 0 | V89: 6 | W89: 0 | Z89: 3397 | AA89: 0.05 | AB89: 3397 | AC89: 10 | AD89: 0 | AE89: 10 | AF89: 0
A90: 88 | B90: 23.74 | C90: 0.01 | D90: 1469.671441 | E90: 34890 | F90: 0.05 | G90: 0 | H90: 0.05 | K90: =(L90-标准怪物数值!E90)*N90*(1+P90*R90)+L90*T90/V90 -> 6807.025 | L90: 3567 | M90: 0.05 | N90: 1 | O90: 0 | P90: 0.05 | Q90: 0 | R90: 1.5 | S90: 0 | T90: 5 | U90: 0 | V90: 6 | W90: 0 | Z90: 3567 | AA90: 0.05 | AB90: 3567 | AC90: 10 | AD90: 0 | AE90: 10 | AF90: 0
A91: 89 | B91: 23.98 | C91: 0.01 | D91: 1527.731443 | E91: 36635 | F91: 0.05 | G91: 0 | H91: 0.05 | K91: =(L91-标准怪物数值!E91)*N91*(1+P91*R91)+L91*T91/V91 -> 7146.708333 | L91: 3745 | M91: 0.05 | N91: 1 | O91: 0 | P91: 0.05 | Q91: 0 | R91: 1.5 | S91: 0 | T91: 5 | U91: 0 | V91: 6 | W91: 0 | Z91: 3745 | AA91: 0.05 | AB91: 3745 | AC91: 10 | AD91: 0 | AE91: 10 | AF91: 0
A92: 90 | B92: 24.22 | C92: 0.01 | D92: 1588.232865 | E92: 38467 | F92: 0.05 | G92: 0 | H92: 0.05 | K92: =(L92-标准怪物数值!E92)*N92*(1+P92*R92)+L92*T92/V92 -> 7503.566667 | L92: 3932 | M92: 0.05 | N92: 1 | O92: 0 | P92: 0.05 | Q92: 0 | R92: 1.5 | S92: 0 | T92: 5 | U92: 0 | V92: 6 | W92: 0 | Z92: 3932 | AA92: 0.05 | AB92: 3932 | AC92: 10 | AD92: 0 | AE92: 10 | AF92: 0
A93: 91 | B93: 24.46 | C93: 0.01 | D93: 1651.267375 | E93: 40390 | F93: 0.05 | G93: 0 | H93: 0.05 | K93: =(L93-标准怪物数值!E93)*N93*(1+P93*R93)+L93*T93/V93 -> 7879.508333 | L93: 4129 | M93: 0.05 | N93: 1 | O93: 0 | P93: 0.05 | Q93: 0 | R93: 1.5 | S93: 0 | T93: 5 | U93: 0 | V93: 6 | W93: 0 | Z93: 4129 | AA93: 0.05 | AB93: 4129 | AC93: 10 | AD93: 0 | AE93: 10 | AF93: 0
A94: 92 | B94: 24.7 | C94: 0.01 | D94: 1717.004049 | E94: 42410 | F94: 0.05 | G94: 0 | H94: 0.05 | K94: =(L94-标准怪物数值!E94)*N94*(1+P94*R94)+L94*T94/V94 -> 8272.625 | L94: 4335 | M94: 0.05 | N94: 1 | O94: 0 | P94: 0.05 | Q94: 0 | R94: 1.5 | S94: 0 | T94: 5 | U94: 0 | V94: 6 | W94: 0 | Z94: 4335 | AA94: 0.05 | AB94: 4335 | AC94: 10 | AD94: 0 | AE94: 10 | AF94: 0
A95: 93 | B95: 24.95 | C95: 0.01 | D95: 1784.809619 | E95: 44531 | F95: 0.05 | G95: 0 | H95: 0.05 | K95: =(L95-标准怪物数值!E95)*N95*(1+P95*R95)+L95*T95/V95 -> 8686.733333 | L95: 4552 | M95: 0.05 | N95: 1 | O95: 0 | P95: 0.05 | Q95: 0 | R95: 1.5 | S95: 0 | T95: 5 | U95: 0 | V95: 6 | W95: 0 | Z95: 4552 | AA95: 0.05 | AB95: 4552 | AC95: 10 | AD95: 0 | AE95: 10 | AF95: 0
A96: 94 | B96: 25.2 | C96: 0.01 | D96: 1855.47619 | E96: 46758 | F96: 0.05 | G96: 0 | H96: 0.05 | K96: =(L96-标准怪物数值!E96)*N96*(1+P96*R96)+L96*T96/V96 -> 9121.833333 | L96: 4780 | M96: 0.05 | N96: 1 | O96: 0 | P96: 0.05 | Q96: 0 | R96: 1.5 | S96: 0 | T96: 5 | U96: 0 | V96: 6 | W96: 0 | Z96: 4780 | AA96: 0.05 | AB96: 4780 | AC96: 10 | AD96: 0 | AE96: 10 | AF96: 0
A97: 95 | B97: 25.45 | C97: 0.01 | D97: 1929.115914 | E97: 49096 | F97: 0.05 | G97: 0 | H97: 0.05 | K97: =(L97-标准怪物数值!E97)*N97*(1+P97*R97)+L97*T97/V97 -> 9577.925 | L97: 5019 | M97: 0.05 | N97: 1 | O97: 0 | P97: 0.05 | Q97: 0 | R97: 1.5 | S97: 0 | T97: 5 | U97: 0 | V97: 6 | W97: 0 | Z97: 5019 | AA97: 0.05 | AB97: 5019 | AC97: 10 | AD97: 0 | AE97: 10 | AF97: 0
A98: 96 | B98: 25.7 | C98: 0.01 | D98: 2005.875486 | E98: 51551 | F98: 0.05 | G98: 0 | H98: 0.05 | K98: =(L98-标准怪物数值!E98)*N98*(1+P98*R98)+L98*T98/V98 -> 10056.91667 | L98: 5270 | M98: 0.05 | N98: 1 | O98: 0 | P98: 0.05 | Q98: 0 | R98: 1.5 | S98: 0 | T98: 5 | U98: 0 | V98: 6 | W98: 0 | Z98: 5270 | AA98: 0.05 | AB98: 5270 | AC98: 10 | AD98: 0 | AE98: 10 | AF98: 0
A99: 97 | B99: 25.96 | C99: 0.01 | D99: 2085.09245 | E99: 54129 | F99: 0.05 | G99: 0 | H99: 0.05 | K99: =(L99-标准怪物数值!E99)*N99*(1+P99*R99)+L99*T99/V99 -> 10560.71667 | L99: 5534 | M99: 0.05 | N99: 1 | O99: 0 | P99: 0.05 | Q99: 0 | R99: 1.5 | S99: 0 | T99: 5 | U99: 0 | V99: 6 | W99: 0 | Z99: 5534 | AA99: 0.05 | AB99: 5534 | AC99: 10 | AD99: 0 | AE99: 10 | AF99: 0
A100: 98 | B100: 26.22 | C100: 0.01 | D100: 2167.620137 | E100: 56835 | F100: 0.05 | G100: 0 | H100: 0.05 | K100: =(L100-标准怪物数值!E100)*N100*(1+P100*R100)+L100*T100/V100 -> 11089.325 | L100: 5811 | M100: 0.05 | N100: 1 | O100: 0 | P100: 0.05 | Q100: 0 | R100: 1.5 | S100: 0 | T100: 5 | U100: 0 | V100: 6 | W100: 0 | Z100: 5811 | AA100: 0.05 | AB100: =L100*$AB$1 -> 5811 | AC100: 10 | AD100: 0 | AE100: 10 | AF100: 0
A101: 99 | B101: 26.48 | C101: 0.01 | D101: 2253.663142 | E101: 59677 | F101: 0.05 | G101: 0 | H101: 0.05 | K101: =(L101-标准怪物数值!E101)*N101*(1+P101*R101)+L101*T101/V101 -> 11644.65 | L101: 6102 | M101: 0.05 | N101: 1 | O101: 0 | P101: 0.05 | Q101: 0 | R101: 1.5 | S101: 0 | T101: 5 | U101: 0 | V101: 6 | W101: 0 | Z101: 6102 | AA101: 0.05 | AB101: =L101*$AB$1 -> 6102 | AC101: 10 | AD101: 0 | AE101: 10 | AF101: 0
A102: 100 | B102: 26.74 | C102: 0.01 | D102: 2343.343306 | E102: 62661 | F102: 0.05 | G102: 0 | H102: 0.05 | K102: =(L102-标准怪物数值!E102)*N102*(1+P102*R102)+L102*T102/V102 -> 12226.69167 | L102: 6407 | M102: 0.05 | N102: 1 | O102: 0 | P102: 0.05 | Q102: 0 | R102: 1.5 | S102: 0 | T102: 5 | U102: 0 | V102: 6 | W102: 0 | Z102: 6407 | AA102: 0.05 | AB102: =L102*$AB$1 -> 6407 | AC102: 10 | AD102: 0 | AE102: 10 | AF102: 0
A103: 101 | B103: =ROUND(B102*(1+C103),2) -> 27.01 | C103: 0.01 | D103: =E103/B103 -> 2435.912625 | E103: =ROUND(E102*(1+F103),0) -> 65794 | F103: 0.05 | G103: =ROUND(G102*(1+H103),2) -> 0 | H103: 0.05 | K103: =(L103-标准怪物数值!E103)*N103*(1+P103*R103)+L103*T103/V103 -> 12837.35833 | L103: =ROUND(L102*(1+M103),0) -> 6727 | M103: 0.05 | N103: =ROUND(N102*(1+O103),0) -> 1 | O103: 0 | P103: =ROUND(P102*(1+Q103),2) -> 0.05 | Q103: 0 | R103: =ROUND(R102*(1+S103),2) -> 1.5 | S103: 0 | T103: 5 | U103: 0 | V103: 6 | W103: 0 | Z103: =ROUND(Z102*(1+AA103),0) -> 6727 | AA103: 0.05 | AB103: =L103*$AB$1 -> 6727 | AC103: =ROUND(AC102*(1+AD103),0) -> 10 | AD103: 0 | AE103: =ROUND(AE102*(1+AF103),1) -> 10 | AF103: 0
A104: 102 | B104: 27.28 | C104: 0.01 | D104: 2532.404692 | E104: 69084 | F104: 0.05 | G104: 0 | H104: 0.05 | K104: =(L104-标准怪物数值!E104)*N104*(1+P104*R104)+L104*T104/V104 -> 13478.55833 | L104: 7063 | M104: 0.05 | N104: 1 | O104: 0 | P104: 0.05 | Q104: 0 | R104: 1.5 | S104: 0 | T104: 5 | U104: 0 | V104: =ROUND(V103*(1+W104),0) -> 6 | W104: 0 | Z104: 7063 | AA104: 0.05 | AB104: 7063 | AC104: 10 | AD104: 0 | AE104: 10 | AF104: 0
A105: 103 | B105: 27.55 | C105: 0.01 | D105: 2632.958258 | E105: 72538 | F105: 0.05 | G105: 0 | H105: 0.05 | K105: =(L105-标准怪物数值!E105)*N105*(1+P105*R105)+L105*T105/V105 -> 14152.2 | L105: 7416 | M105: 0.05 | N105: 1 | O105: 0 | P105: 0.05 | Q105: 0 | R105: 1.5 | S105: 0 | T105: =ROUND(T104*(1+U105),2) -> 5 | U105: 0 | V105: 6 | W105: 0 | Z105: 7416 | AA105: 0.05 | AB105: 7416 | AC105: 10 | AD105: 0 | AE105: 10 | AF105: 0
A106: 104 | B106: 27.83 | C106: 0.01 | D106: 2736.794826 | E106: 76165 | F106: 0.05 | G106: 0 | H106: 0.05 | K106: =(L106-标准怪物数值!E106)*N106*(1+P106*R106)+L106*T106/V106 -> 14860.19167 | L106: 7787 | M106: 0.05 | N106: 1 | O106: 0 | P106: 0.05 | Q106: 0 | R106: 1.5 | S106: 0 | T106: 5 | U106: 0 | V106: 6 | W106: 0 | Z106: 7787 | AA106: 0.05 | AB106: 7787 | AC106: 10 | AD106: 0 | AE106: 10 | AF106: 0
A107: 105 | B107: 28.11 | C107: 0.01 | D107: 2845.001779 | E107: 79973 | F107: 0.05 | G107: 0 | H107: 0.05 | K107: =(L107-标准怪物数值!E107)*N107*(1+P107*R107)+L107*T107/V107 -> 15602.53333 | L107: 8176 | M107: 0.05 | N107: 1 | O107: 0 | P107: 0.05 | Q107: 0 | R107: 1.5 | S107: 0 | T107: 5 | U107: 0 | V107: 6 | W107: 0 | Z107: 8176 | AA107: 0.05 | AB107: 8176 | AC107: 10 | AD107: 0 | AE107: 10 | AF107: 0
A108: 106 | B108: 28.39 | C108: 0.01 | D108: 2957.802043 | E108: 83972 | F108: 0.05 | G108: 0 | H108: 0.05 | K108: =(L108-标准怪物数值!E108)*N108*(1+P108*R108)+L108*T108/V108 -> 16383.04167 | L108: 8585 | M108: 0.05 | N108: 1 | O108: 0 | P108: 0.05 | Q108: 0 | R108: 1.5 | S108: 0 | T108: 5 | U108: 0 | V108: 6 | W108: 0 | Z108: 8585 | AA108: 0.05 | AB108: 8585 | AC108: 10 | AD108: 0 | AE108: 10 | AF108: 0
A109: 107 | B109: =ROUND(B108*(1+C109),2) -> 28.67 | C109: 0.01 | D109: =E109/B109 -> 3075.374956 | E109: =ROUND(E108*(1+F109),0) -> 88171 | F109: 0.05 | G109: =ROUND(G108*(1+H109),2) -> 0 | H109: 0.05 | K109: =(L109-标准怪物数值!E109)*N109*(1+P109*R109)+L109*T109/V109 -> 17201.71667 | L109: =ROUND(L108*(1+M109),0) -> 9014 | M109: 0.05 | N109: =ROUND(N108*(1+O109),0) -> 1 | O109: 0 | P109: =ROUND(P108*(1+Q109),2) -> 0.05 | Q109: 0 | R109: =ROUND(R108*(1+S109),2) -> 1.5 | S109: 0 | T109: =ROUND(T108*(1+U109),2) -> 5 | U109: 0 | V109: =ROUND(V108*(1+W109),0) -> 6 | W109: 0 | Z109: =ROUND(Z108*(1+AA109),0) -> 9014 | AA109: 0.05 | AB109: =L109*$AB$1 -> 9014 | AC109: =ROUND(AC108*(1+AD109),0) -> 10 | AD109: 0 | AE109: =ROUND(AE108*(1+AF109),1) -> 10 | AF109: 0
A110: 108 | B110: 28.96 | C110: 0.01 | D110: 3196.823204 | E110: 92580 | F110: 0.05 | G110: 0 | H110: 0.05 | K110: =(L110-标准怪物数值!E110)*N110*(1+P110*R110)+L110*T110/V110 -> 18062.375 | L110: 9465 | M110: 0.05 | N110: 1 | O110: 0 | P110: 0.05 | Q110: 0 | R110: 1.5 | S110: 0 | T110: 5 | U110: 0 | V110: 6 | W110: 0 | Z110: 9465 | AA110: 0.05 | AB110: 9465 | AC110: 10 | AD110: 0 | AE110: 10 | AF110: 0
A111: 109 | B111: 29.25 | C111: 0.01 | D111: 3323.384615 | E111: 97209 | F111: 0.05 | G111: 0 | H111: 0.05 | K111: =(L111-标准怪物数值!E111)*N111*(1+P111*R111)+L111*T111/V111 -> 18965.01667 | L111: 9938 | M111: 0.05 | N111: 1 | O111: 0 | P111: 0.05 | Q111: 0 | R111: 1.5 | S111: 0 | T111: 5 | U111: 0 | V111: 6 | W111: 0 | Z111: 9938 | AA111: 0.05 | AB111: 9938 | AC111: 10 | AD111: 0 | AE111: 10 | AF111: 0
A112: 110 | B112: 29.54 | C112: 0.01 | D112: 3455.280975 | E112: 102069 | F112: 0.05 | G112: 0 | H112: 0.05 | K112: =(L112-标准怪物数值!E112)*N112*(1+P112*R112)+L112*T112/V112 -> 19913.45833 | L112: 10435 | M112: 0.05 | N112: 1 | O112: 0 | P112: 0.05 | Q112: 0 | R112: 1.5 | S112: 0 | T112: 5 | U112: 0 | V112: 6 | W112: 0 | Z112: 10435 | AA112: 0.05 | AB112: 10435 | AC112: 10 | AD112: 0 | AE112: 10 | AF112: 0
A113: 111 | B113: 29.84 | C113: 0.01 | D113: 3591.55496 | E113: 107172 | F113: 0.05 | G113: 0 | H113: 0.05 | K113: =(L113-标准怪物数值!E113)*N113*(1+P113*R113)+L113*T113/V113 -> 20909.60833 | L113: 10957 | M113: 0.05 | N113: 1 | O113: 0 | P113: 0.05 | Q113: 0 | R113: 1.5 | S113: 0 | T113: 5 | U113: 0 | V113: 6 | W113: 0 | Z113: 10957 | AA113: 0.05 | AB113: 10957 | AC113: 10 | AD113: 0 | AE113: 10 | AF113: 0
A114: 112 | B114: 30.14 | C114: 0.01 | D114: 3733.609821 | E114: 112531 | F114: 0.05 | G114: 0 | H114: 0.05 | K114: =(L114-标准怪物数值!E114)*N114*(1+P114*R114)+L114*T114/V114 -> 21955.375 | L114: 11505 | M114: 0.05 | N114: 1 | O114: 0 | P114: 0.05 | Q114: 0 | R114: 1.5 | S114: 0 | T114: 5 | U114: 0 | V114: 6 | W114: 0 | Z114: 11505 | AA114: 0.05 | AB114: 11505 | AC114: 10 | AD114: 0 | AE114: 10 | AF114: 0
A115: 113 | B115: 30.44 | C115: 0.01 | D115: 3881.668857 | E115: 118158 | F115: 0.05 | G115: 0 | H115: 0.05 | K115: =(L115-标准怪物数值!E115)*N115*(1+P115*R115)+L115*T115/V115 -> 23052.66667 | L115: 12080 | M115: 0.05 | N115: 1 | O115: 0 | P115: 0.05 | Q115: 0 | R115: 1.5 | S115: 0 | T115: 5 | U115: 0 | V115: 6 | W115: 0 | Z115: 12080 | AA115: 0.05 | AB115: 12080 | AC115: 10 | AD115: 0 | AE115: 10 | AF115: 0
A116: 114 | B116: 30.74 | C116: 0.01 | D116: 4035.97918 | E116: 124066 | F116: 0.05 | G116: 0 | H116: 0.05 | K116: =(L116-标准怪物数值!E116)*N116*(1+P116*R116)+L116*T116/V116 -> 24205.3 | L116: 12684 | M116: 0.05 | N116: 1 | O116: 0 | P116: 0.05 | Q116: 0 | R116: 1.5 | S116: 0 | T116: 5 | U116: 0 | V116: 6 | W116: 0 | Z116: 12684 | AA116: 0.05 | AB116: 12684 | AC116: 10 | AD116: 0 | AE116: 10 | AF116: 0
A117: 115 | B117: 31.05 | C117: 0.01 | D117: 4195.458937 | E117: 130269 | F117: 0.05 | G117: 0 | H117: 0.05 | K117: =(L117-标准怪物数值!E117)*N117*(1+P117*R117)+L117*T117/V117 -> 25415.18333 | L117: 13318 | M117: 0.05 | N117: 1 | O117: 0 | P117: 0.05 | Q117: 0 | R117: 1.5 | S117: 0 | T117: 5 | U117: 0 | V117: 6 | W117: 0 | Z117: 13318 | AA117: 0.05 | AB117: 13318 | AC117: 10 | AD117: 0 | AE117: 10 | AF117: 0
A118: 116 | B118: 31.36 | C118: 0.01 | D118: 4361.670918 | E118: 136782 | F118: 0.05 | G118: 0 | H118: 0.05 | K118: =(L118-标准怪物数值!E118)*N118*(1+P118*R118)+L118*T118/V118 -> 26686.13333 | L118: 13984 | M118: 0.05 | N118: 1 | O118: 0 | P118: 0.05 | Q118: 0 | R118: 1.5 | S118: 0 | T118: 5 | U118: 0 | V118: 6 | W118: 0 | Z118: 13984 | AA118: 0.05 | AB118: 13984 | AC118: 10 | AD118: 0 | AE118: 10 | AF118: 0
A119: 117 | B119: 31.67 | C119: 0.01 | D119: 4534.92264 | E119: 143621 | F119: 0.05 | G119: 0 | H119: 0.05 | K119: =(L119-标准怪物数值!E119)*N119*(1+P119*R119)+L119*T119/V119 -> 28020.05833 | L119: 14683 | M119: 0.05 | N119: 1 | O119: 0 | P119: 0.05 | Q119: 0 | R119: 1.5 | S119: 0 | T119: 5 | U119: 0 | V119: 6 | W119: 0 | Z119: 14683 | AA119: 0.05 | AB119: 14683 | AC119: 10 | AD119: 0 | AE119: 10 | AF119: 0
A120: 118 | B120: 31.99 | C120: 0.01 | D120: 4714.035636 | E120: 150802 | F120: 0.05 | G120: 0 | H120: 0.05 | K120: =(L120-标准怪物数值!E120)*N120*(1+P120*R120)+L120*T120/V120 -> 29420.775 | L120: 15417 | M120: 0.05 | N120: 1 | O120: 0 | P120: 0.05 | Q120: 0 | R120: 1.5 | S120: 0 | T120: 5 | U120: 0 | V120: 6 | W120: 0 | Z120: 15417 | AA120: 0.05 | AB120: 15417 | AC120: 10 | AD120: 0 | AE120: 10 | AF120: 0
A121: 119 | B121: 32.31 | C121: 0.01 | D121: 4900.711854 | E121: 158342 | F121: 0.05 | G121: 0 | H121: 0.05 | K121: =(L121-标准怪物数值!E121)*N121*(1+P121*R121)+L121*T121/V121 -> 30892.1 | L121: 16188 | M121: 0.05 | N121: 1 | O121: 0 | P121: 0.05 | Q121: 0 | R121: 1.5 | S121: 0 | T121: 5 | U121: 0 | V121: 6 | W121: 0 | Z121: 16188 | AA121: 0.05 | AB121: 16188 | AC121: 10 | AD121: 0 | AE121: 10 | AF121: 0
A122: 120 | B122: 32.63 | C122: 0.01 | D122: 5095.280417 | E122: 166259 | F122: 0.05 | G122: 0 | H122: 0.05 | K122: =(L122-标准怪物数值!E122)*N122*(1+P122*R122)+L122*T122/V122 -> 32435.94167 | L122: 16997 | M122: 0.05 | N122: 1 | O122: 0 | P122: 0.05 | Q122: 0 | R122: 1.5 | S122: 0 | T122: 5 | U122: 0 | V122: 6 | W122: 0 | Z122: 16997 | AA122: 0.05 | AB122: 16997 | AC122: 10 | AD122: 0 | AE122: 10 | AF122: 0
A123: 121 | B123: 32.96 | C123: 0.01 | D123: 5296.480583 | E123: 174572 | F123: 0.05 | G123: 0 | H123: 0.05 | K123: =(L123-标准怪物数值!E123)*N123*(1+P123*R123)+L123*T123/V123 -> 34058.025 | L123: 17847 | M123: 0.05 | N123: 1 | O123: 0 | P123: 0.05 | Q123: 0 | R123: 1.5 | S123: 0 | T123: 5 | U123: 0 | V123: 6 | W123: 0 | Z123: 17847 | AA123: 0.05 | AB123: 17847 | AC123: 10 | AD123: 0 | AE123: 10 | AF123: 0
A124: 122 | B124: 33.29 | C124: 0.01 | D124: 5506.188044 | E124: 183301 | F124: 0.05 | G124: 0 | H124: 0.05 | K124: =(L124-标准怪物数值!E124)*N124*(1+P124*R124)+L124*T124/V124 -> 35760.25833 | L124: 18739 | M124: 0.05 | N124: 1 | O124: 0 | P124: 0.05 | Q124: 0 | R124: 1.5 | S124: 0 | T124: 5 | U124: 0 | V124: 6 | W124: 0 | Z124: 18739 | AA124: 0.05 | AB124: 18739 | AC124: 10 | AD124: 0 | AE124: 10 | AF124: 0
A125: 123 | B125: 33.62 | C125: 0.01 | D125: 5724.747174 | E125: 192466 | F125: 0.05 | G125: 0 | H125: 0.05 | K125: =(L125-标准怪物数值!E125)*N125*(1+P125*R125)+L125*T125/V125 -> 37548.36667 | L125: 19676 | M125: 0.05 | N125: 1 | O125: 0 | P125: 0.05 | Q125: 0 | R125: 1.5 | S125: 0 | T125: 5 | U125: 0 | V125: 6 | W125: 0 | Z125: 19676 | AA125: 0.05 | AB125: 19676 | AC125: 10 | AD125: 0 | AE125: 10 | AF125: 0
A126: 124 | B126: 33.96 | C126: 0.01 | D126: 5950.795053 | E126: 202089 | F126: 0.05 | G126: 0 | H126: 0.05 | K126: =(L126-标准怪物数值!E126)*N126*(1+P126*R126)+L126*T126/V126 -> 39426.16667 | L126: 20660 | M126: 0.05 | N126: 1 | O126: 0 | P126: 0.05 | Q126: 0 | R126: 1.5 | S126: 0 | T126: 5 | U126: 0 | V126: 6 | W126: 0 | Z126: 20660 | AA126: 0.05 | AB126: 20660 | AC126: 10 | AD126: 0 | AE126: 10 | AF126: 0
A127: 125 | B127: 34.3 | C127: 0.01 | D127: 6186.38484 | E127: 212193 | F127: 0.05 | G127: 0 | H127: 0.05 | K127: =(L127-标准怪物数值!E127)*N127*(1+P127*R127)+L127*T127/V127 -> 41397.475 | L127: 21693 | M127: 0.05 | N127: 1 | O127: 0 | P127: 0.05 | Q127: 0 | R127: 1.5 | S127: 0 | T127: 5 | U127: 0 | V127: 6 | W127: 0 | Z127: 21693 | AA127: 0.05 | AB127: 21693 | AC127: 10 | AD127: 0 | AE127: 10 | AF127: 0
A128: 126 | B128: 34.64 | C128: 0.01 | D128: 6431.957275 | E128: 222803 | F128: 0.05 | G128: 0 | H128: 0.05 | K128: =(L128-标准怪物数值!E128)*N128*(1+P128*R128)+L128*T128/V128 -> 43468.01667 | L128: 22778 | M128: 0.05 | N128: 1 | O128: 0 | P128: 0.05 | Q128: 0 | R128: 1.5 | S128: 0 | T128: 5 | U128: 0 | V128: 6 | W128: 0 | Z128: 22778 | AA128: 0.05 | AB128: 22778 | AC128: 10 | AD128: 0 | AE128: 10 | AF128: 0
A129: 127 | B129: 34.99 | C129: 0.01 | D129: 6685.995999 | E129: 233943 | F129: 0.05 | G129: 0 | H129: 0.05 | K129: =(L129-标准怪物数值!E129)*N129*(1+P129*R129)+L129*T129/V129 -> 45641.60833 | L129: 23917 | M129: 0.05 | N129: 1 | O129: 0 | P129: 0.05 | Q129: 0 | R129: 1.5 | S129: 0 | T129: 5 | U129: 0 | V129: 6 | W129: 0 | Z129: 23917 | AA129: 0.05 | AB129: 23917 | AC129: 10 | AD129: 0 | AE129: 10 | AF129: 0
A130: 128 | B130: 35.34 | C130: 0.01 | D130: 6950.764007 | E130: 245640 | F130: 0.05 | G130: 0 | H130: 0.05 | K130: =(L130-标准怪物数值!E130)*N130*(1+P130*R130)+L130*T130/V130 -> 47923.975 | L130: 25113 | M130: 0.05 | N130: 1 | O130: 0 | P130: 0.05 | Q130: 0 | R130: 1.5 | S130: 0 | T130: 5 | U130: 0 | V130: 6 | W130: 0 | Z130: 25113 | AA130: 0.05 | AB130: 25113 | AC130: 10 | AD130: 0 | AE130: 10 | AF130: 0
A131: 129 | B131: 35.69 | C131: 0.01 | D131: 7226.730177 | E131: 257922 | F131: 0.05 | G131: 0 | H131: 0.05 | K131: =(L131-标准怪物数值!E131)*N131*(1+P131*R131)+L131*T131/V131 -> 50320.84167 | L131: 26369 | M131: 0.05 | N131: 1 | O131: 0 | P131: 0.05 | Q131: 0 | R131: 1.5 | S131: 0 | T131: 5 | U131: 0 | V131: 6 | W131: 0 | Z131: 26369 | AA131: 0.05 | AB131: 26369 | AC131: 10 | AD131: 0 | AE131: 10 | AF131: 0
A132: 130 | B132: 36.05 | C132: 0.01 | D132: 7512.288488 | E132: 270818 | F132: 0.05 | G132: 0 | H132: 0.05 | K132: =(L132-标准怪物数值!E132)*N132*(1+P132*R132)+L132*T132/V132 -> 52836.025 | L132: 27687 | M132: 0.05 | N132: 1 | O132: 0 | P132: 0.05 | Q132: 0 | R132: 1.5 | S132: 0 | T132: 5 | U132: 0 | V132: 6 | W132: 0 | Z132: 27687 | AA132: 0.05 | AB132: 27687 | AC132: 10 | AD132: 0 | AE132: 10 | AF132: 0
A133: 131 | B133: 36.41 | C133: 0.01 | D133: 7809.914859 | E133: 284359 | F133: 0.05 | G133: 0 | H133: 0.05 | K133: =(L133-标准怪物数值!E133)*N133*(1+P133*R133)+L133*T133/V133 -> 55477.15833 | L133: 29071 | M133: 0.05 | N133: 1 | O133: 0 | P133: 0.05 | Q133: 0 | R133: 1.5 | S133: 0 | T133: 5 | U133: 0 | V133: 6 | W133: 0 | Z133: 29071 | AA133: 0.05 | AB133: 29071 | AC133: 10 | AD133: 0 | AE133: 10 | AF133: 0
A134: 132 | B134: 36.77 | C134: 0.01 | D134: 8120.125102 | E134: 298577 | F134: 0.05 | G134: 0 | H134: 0.05 | K134: =(L134-标准怪物数值!E134)*N134*(1+P134*R134)+L134*T134/V134 -> 58251.875 | L134: 30525 | M134: 0.05 | N134: 1 | O134: 0 | P134: 0.05 | Q134: 0 | R134: 1.5 | S134: 0 | T134: 5 | U134: 0 | V134: 6 | W134: 0 | Z134: 30525 | AA134: 0.05 | AB134: 30525 | AC134: 10 | AD134: 0 | AE134: 10 | AF134: 0
A135: 133 | B135: 37.14 | C135: 0.01 | D135: 8441.195477 | E135: 313506 | F135: 0.05 | G135: 0 | H135: 0.05 | K135: =(L135-标准怪物数值!E135)*N135*(1+P135*R135)+L135*T135/V135 -> 61163.99167 | L135: 32051 | M135: 0.05 | N135: 1 | O135: 0 | P135: 0.05 | Q135: 0 | R135: 1.5 | S135: 0 | T135: 5 | U135: 0 | V135: 6 | W135: 0 | Z135: 32051 | AA135: 0.05 | AB135: 32051 | AC135: 10 | AD135: 0 | AE135: 10 | AF135: 0
A136: 134 | B136: 37.51 | C136: 0.01 | D136: 8775.819781 | E136: 329181 | F136: 0.05 | G136: 0 | H136: 0.05 | K136: =(L136-标准怪物数值!E136)*N136*(1+P136*R136)+L136*T136/V136 -> 64223.05 | L136: 33654 | M136: 0.05 | N136: 1 | O136: 0 | P136: 0.05 | Q136: 0 | R136: 1.5 | S136: 0 | T136: 5 | U136: 0 | V136: 6 | W136: 0 | Z136: 33654 | AA136: 0.05 | AB136: 33654 | AC136: 10 | AD136: 0 | AE136: 10 | AF136: 0
A137: 135 | B137: 37.89 | C137: 0.01 | D137: 9122.19583 | E137: 345640 | F137: 0.05 | G137: 0 | H137: 0.05 | K137: =(L137-标准怪物数值!E137)*N137*(1+P137*R137)+L137*T137/V137 -> 67434.775 | L137: 35337 | M137: 0.05 | N137: 1 | O137: 0 | P137: 0.05 | Q137: 0 | R137: 1.5 | S137: 0 | T137: 5 | U137: 0 | V137: 6 | W137: 0 | Z137: 35337 | AA137: 0.05 | AB137: 35337 | AC137: 10 | AD137: 0 | AE137: 10 | AF137: 0
A138: 136 | B138: 38.27 | C138: 0.01 | D138: 9483.198328 | E138: 362922 | F138: 0.05 | G138: 0 | H138: 0.05 | K138: =(L138-标准怪物数值!E138)*N138*(1+P138*R138)+L138*T138/V138 -> 70806.8 | L138: 37104 | M138: 0.05 | N138: 1 | O138: 0 | P138: 0.05 | Q138: 0 | R138: 1.5 | S138: 0 | T138: 5 | U138: 0 | V138: 6 | W138: 0 | Z138: 37104 | AA138: 0.05 | AB138: 37104 | AC138: 10 | AD138: 0 | AE138: 10 | AF138: 0
A139: 137 | B139: 38.65 | C139: 0.01 | D139: 9859.456662 | E139: 381068 | F139: 0.05 | G139: 0 | H139: 0.05 | K139: =(L139-标准怪物数值!E139)*N139*(1+P139*R139)+L139*T139/V139 -> 74346.75833 | L139: 38959 | M139: 0.05 | N139: 1 | O139: 0 | P139: 0.05 | Q139: 0 | R139: 1.5 | S139: 0 | T139: 5 | U139: 0 | V139: 6 | W139: 0 | Z139: 38959 | AA139: 0.05 | AB139: 38959 | AC139: 10 | AD139: 0 | AE139: 10 | AF139: 0
A140: 138 | B140: 39.04 | C140: 0.01 | D140: 10249.00102 | E140: 400121 | F140: 0.05 | G140: 0 | H140: 0.05 | K140: =(L140-标准怪物数值!E140)*N140*(1+P140*R140)+L140*T140/V140 -> 78064.19167 | L140: 40907 | M140: 0.05 | N140: 1 | O140: 0 | P140: 0.05 | Q140: 0 | R140: 1.5 | S140: 0 | T140: 5 | U140: 0 | V140: 6 | W140: 0 | Z140: 40907 | AA140: 0.05 | AB140: 40907 | AC140: 10 | AD140: 0 | AE140: 10 | AF140: 0
A141: 139 | B141: 39.43 | C141: 0.01 | D141: 10655.00888 | E141: 420127 | F141: 0.05 | G141: 0 | H141: 0.05 | K141: =(L141-标准怪物数值!E141)*N141*(1+P141*R141)+L141*T141/V141 -> 81966.73333 | L141: 42952 | M141: 0.05 | N141: 1 | O141: 0 | P141: 0.05 | Q141: 0 | R141: 1.5 | S141: 0 | T141: 5 | U141: 0 | V141: 6 | W141: 0 | Z141: 42952 | AA141: 0.05 | AB141: 42952 | AC141: 10 | AD141: 0 | AE141: 10 | AF141: 0
A142: 140 | B142: 39.82 | C142: 0.01 | D142: 11078.1768 | E142: 441133 | F142: 0.05 | G142: 0 | H142: 0.05 | K142: =(L142-标准怪物数值!E142)*N142*(1+P142*R142)+L142*T142/V142 -> 86065.83333 | L142: 45100 | M142: 0.05 | N142: 1 | O142: 0 | P142: 0.05 | Q142: 0 | R142: 1.5 | S142: 0 | T142: 5 | U142: 0 | V142: 6 | W142: 0 | Z142: 45100 | AA142: 0.05 | AB142: 45100 | AC142: 10 | AD142: 0 | AE142: 10 | AF142: 0
A143: 141 | B143: 40.22 | C143: 0.01 | D143: 11516.40975 | E143: 463190 | F143: 0.05 | G143: 0 | H143: 0.05 | K143: =(L143-标准怪物数值!E143)*N143*(1+P143*R143)+L143*T143/V143 -> 90369.125 | L143: 47355 | M143: 0.05 | N143: 1 | O143: 0 | P143: 0.05 | Q143: 0 | R143: 1.5 | S143: 0 | T143: 5 | U143: 0 | V143: 6 | W143: 0 | Z143: 47355 | AA143: 0.05 | AB143: 47355 | AC143: 10 | AD143: 0 | AE143: 10 | AF143: 0
A144: 142 | B144: 40.62 | C144: 0.01 | D144: 11973.16593 | E144: 486350 | F144: 0.05 | G144: 0 | H144: 0.05 | K144: =(L144-标准怪物数值!E144)*N144*(1+P144*R144)+L144*T144/V144 -> 94888.05833 | L144: 49723 | M144: 0.05 | N144: 1 | O144: 0 | P144: 0.05 | Q144: 0 | R144: 1.5 | S144: 0 | T144: 5 | U144: 0 | V144: 6 | W144: 0 | Z144: 49723 | AA144: 0.05 | AB144: 49723 | AC144: 10 | AD144: 0 | AE144: 10 | AF144: 0
A145: 143 | B145: 41.03 | C145: 0.01 | D145: 12446.21009 | E145: 510668 | F145: 0.05 | G145: 0 | H145: 0.05 | K145: =(L145-标准怪物数值!E145)*N145*(1+P145*R145)+L145*T145/V145 -> 99632.175 | L145: 52209 | M145: 0.05 | N145: 1 | O145: 0 | P145: 0.05 | Q145: 0 | R145: 1.5 | S145: 0 | T145: 5 | U145: 0 | V145: 6 | W145: 0 | Z145: 52209 | AA145: 0.05 | AB145: 52209 | AC145: 10 | AD145: 0 | AE145: 10 | AF145: 0
A146: 144 | B146: 41.44 | C146: 0.01 | D146: 12939.21332 | E146: 536201 | F146: 0.05 | G146: 0 | H146: 0.05 | K146: =(L146-标准怪物数值!E146)*N146*(1+P146*R146)+L146*T146/V146 -> 104612.925 | L146: 54819 | M146: 0.05 | N146: 1 | O146: 0 | P146: 0.05 | Q146: 0 | R146: 1.5 | S146: 0 | T146: 5 | U146: 0 | V146: 6 | W146: 0 | Z146: 54819 | AA146: 0.05 | AB146: 54819 | AC146: 10 | AD146: 0 | AE146: 10 | AF146: 0
A147: 145 | B147: 41.85 | C147: 0.01 | D147: 13453.07049 | E147: 563011 | F147: 0.05 | G147: 0 | H147: 0.05 | K147: =(L147-标准怪物数值!E147)*N147*(1+P147*R147)+L147*T147/V147 -> 109843.6667 | L147: 57560 | M147: 0.05 | N147: 1 | O147: 0 | P147: 0.05 | Q147: 0 | R147: 1.5 | S147: 0 | T147: 5 | U147: 0 | V147: 6 | W147: 0 | Z147: 57560 | AA147: 0.05 | AB147: 57560 | AC147: 10 | AD147: 0 | AE147: 10 | AF147: 0
A148: 146 | B148: 42.27 | C148: 0.01 | D148: 13985.3797 | E148: 591162 | F148: 0.05 | G148: 0 | H148: 0.05 | K148: =(L148-标准怪物数值!E148)*N148*(1+P148*R148)+L148*T148/V148 -> 115335.85 | L148: 60438 | M148: 0.05 | N148: 1 | O148: 0 | P148: 0.05 | Q148: 0 | R148: 1.5 | S148: 0 | T148: 5 | U148: 0 | V148: 6 | W148: 0 | Z148: 60438 | AA148: 0.05 | AB148: 60438 | AC148: 10 | AD148: 0 | AE148: 10 | AF148: 0
A149: 147 | B149: 42.69 | C149: 0.01 | D149: 14540.17334 | E149: 620720 | F149: 0.05 | G149: 0 | H149: 0.05 | K149: =(L149-标准怪物数值!E149)*N149*(1+P149*R149)+L149*T149/V149 -> 121102.8333 | L149: 63460 | M149: 0.05 | N149: 1 | O149: 0 | P149: 0.05 | Q149: 0 | R149: 1.5 | S149: 0 | T149: 5 | U149: 0 | V149: 6 | W149: 0 | Z149: 63460 | AA149: 0.05 | AB149: 63460 | AC149: 10 | AD149: 0 | AE149: 10 | AF149: 0
A150: 148 | B150: 43.12 | C150: 0.01 | D150: 15114.93506 | E150: 651756 | F150: 0.05 | G150: 0 | H150: 0.05 | K150: =(L150-标准怪物数值!E150)*N150*(1+P150*R150)+L150*T150/V150 -> 127157.975 | L150: 66633 | M150: 0.05 | N150: 1 | O150: 0 | P150: 0.05 | Q150: 0 | R150: 1.5 | S150: 0 | T150: 5 | U150: 0 | V150: 6 | W150: 0 | Z150: 66633 | AA150: 0.05 | AB150: 66633 | AC150: 10 | AD150: 0 | AE150: 10 | AF150: 0
A151: 149 | B151: 43.55 | C151: 0.01 | D151: 15713.98393 | E151: 684344 | F151: 0.05 | G151: 0 | H151: 0.05 | K151: =(L151-标准怪物数值!E151)*N151*(1+P151*R151)+L151*T151/V151 -> 133516.5417 | L151: 69965 | M151: 0.05 | N151: 1 | O151: 0 | P151: 0.05 | Q151: 0 | R151: 1.5 | S151: 0 | T151: 5 | U151: 0 | V151: 6 | W151: 0 | Z151: 69965 | AA151: 0.05 | AB151: 69965 | AC151: 10 | AD151: 0 | AE151: 10 | AF151: 0
A152: 150 | B152: 43.99 | C152: 0.01 | D152: 16334.64424 | E152: 718561 | F152: 0.05 | G152: 0 | H152: 0.05 | K152: =(L152-标准怪物数值!E152)*N152*(1+P152*R152)+L152*T152/V152 -> 140191.8917 | L152: 73463 | M152: 0.05 | N152: 1 | O152: 0 | P152: 0.05 | Q152: 0 | R152: 1.5 | S152: 0 | T152: 5 | U152: 0 | V152: 6 | W152: 0 | Z152: 73463 | AA152: 0.05 | AB152: 73463 | AC152: 10 | AD152: 0 | AE152: 10 | AF152: 0
A153: 151 | B153: 44.43 | C153: 0.01 | D153: 16981.52149 | E153: 754489 | F153: 0.05 | G153: 0 | H153: 0.05 | K153: =(L153-标准怪物数值!E153)*N153*(1+P153*R153)+L153*T153/V153 -> 147201.2 | L153: 77136 | M153: 0.05 | N153: 1 | O153: 0 | P153: 0.05 | Q153: 0 | R153: 1.5 | S153: 0 | T153: 5 | U153: 0 | V153: 6 | W153: 0 | Z153: 77136 | AA153: 0.05 | AB153: 77136 | AC153: 10 | AD153: 0 | AE153: 10 | AF153: 0
A154: 152 | B154: 44.87 | C154: 0.01 | D154: 17655.7388 | E154: 792213 | F154: 0.05 | G154: 0 | H154: 0.05 | K154: =(L154-标准怪物数值!E154)*N154*(1+P154*R154)+L154*T154/V154 -> 154561.6417 | L154: 80993 | M154: 0.05 | N154: 1 | O154: 0 | P154: 0.05 | Q154: 0 | R154: 1.5 | S154: 0 | T154: 5 | U154: 0 | V154: 6 | W154: 0 | Z154: 80993 | AA154: 0.05 | AB154: 80993 | AC154: 10 | AD154: 0 | AE154: 10 | AF154: 0
A155: 153 | B155: 45.32 | C155: 0.01 | D155: 18354.45719 | E155: 831824 | F155: 0.05 | G155: 0 | H155: 0.05 | K155: =(L155-标准怪物数值!E155)*N155*(1+P155*R155)+L155*T155/V155 -> 162290.3917 | L155: 85043 | M155: 0.05 | N155: 1 | O155: 0 | P155: 0.05 | Q155: 0 | R155: 1.5 | S155: 0 | T155: 5 | U155: 0 | V155: 6 | W155: 0 | Z155: 85043 | AA155: 0.05 | AB155: 85043 | AC155: 10 | AD155: 0 | AE155: 10 | AF155: 0
A156: 154 | B156: 45.77 | C156: 0.01 | D156: 19082.69609 | E156: 873415 | F156: 0.05 | G156: 0 | H156: 0.05 | K156: =(L156-标准怪物数值!E156)*N156*(1+P156*R156)+L156*T156/V156 -> 170404.625 | L156: 89295 | M156: 0.05 | N156: 1 | O156: 0 | P156: 0.05 | Q156: 0 | R156: 1.5 | S156: 0 | T156: 5 | U156: 0 | V156: 6 | W156: 0 | Z156: 89295 | AA156: 0.05 | AB156: 89295 | AC156: 10 | AD156: 0 | AE156: 10 | AF156: 0
A157: 155 | B157: 46.23 | C157: 0.01 | D157: 19837.46485 | E157: 917086 | F157: 0.05 | G157: 0 | H157: 0.05 | K157: =(L157-标准怪物数值!E157)*N157*(1+P157*R157)+L157*T157/V157 -> 178925.3333 | L157: 93760 | M157: 0.05 | N157: 1 | O157: 0 | P157: 0.05 | Q157: 0 | R157: 1.5 | S157: 0 | T157: 5 | U157: 0 | V157: 6 | W157: 0 | Z157: 93760 | AA157: 0.05 | AB157: 93760 | AC157: 10 | AD157: 0 | AE157: 10 | AF157: 0
A158: 156 | B158: 46.69 | C158: 0.01 | D158: 20624.11651 | E158: 962940 | F158: 0.05 | G158: 0 | H158: 0.05 | K158: =(L158-标准怪物数值!E158)*N158*(1+P158*R158)+L158*T158/V158 -> 187871.6 | L158: 98448 | M158: 0.05 | N158: 1 | O158: 0 | P158: 0.05 | Q158: 0 | R158: 1.5 | S158: 0 | T158: 5 | U158: 0 | V158: 6 | W158: 0 | Z158: 98448 | AA158: 0.05 | AB158: 98448 | AC158: 10 | AD158: 0 | AE158: 10 | AF158: 0
A159: 157 | B159: 47.16 | C159: 0.01 | D159: 21439.50382 | E159: 1011087 | F159: 0.05 | G159: 0 | H159: 0.05 | K159: =(L159-标准怪物数值!E159)*N159*(1+P159*R159)+L159*T159/V159 -> 197264.4167 | L159: 103370 | M159: 0.05 | N159: 1 | O159: 0 | P159: 0.05 | Q159: 0 | R159: 1.5 | S159: 0 | T159: 5 | U159: 0 | V159: 6 | W159: 0 | Z159: 103370 | AA159: 0.05 | AB159: 103370 | AC159: 10 | AD159: 0 | AE159: 10 | AF159: 0
A160: 158 | B160: 47.63 | C160: 0.01 | D160: 22289.33445 | E160: 1061641 | F160: 0.05 | G160: 0 | H160: 0.05 | K160: =(L160-标准怪物数值!E160)*N160*(1+P160*R160)+L160*T160/V160 -> 207128.5917 | L160: 108539 | M160: 0.05 | N160: 1 | O160: 0 | P160: 0.05 | Q160: 0 | R160: 1.5 | S160: 0 | T160: 5 | U160: 0 | V160: 6 | W160: 0 | Z160: 108539 | AA160: 0.05 | AB160: 108539 | AC160: 10 | AD160: 0 | AE160: 10 | AF160: 0
A161: 159 | B161: 48.11 | C161: 0.01 | D161: 23170.29724 | E161: 1114723 | F161: 0.05 | G161: 0 | H161: 0.05 | K161: =(L161-标准怪物数值!E161)*N161*(1+P161*R161)+L161*T161/V161 -> 217485.1167 | L161: 113966 | M161: 0.05 | N161: 1 | O161: 0 | P161: 0.05 | Q161: 0 | R161: 1.5 | S161: 0 | T161: 5 | U161: 0 | V161: 6 | W161: 0 | Z161: 113966 | AA161: 0.05 | AB161: 113966 | AC161: 10 | AD161: 0 | AE161: 10 | AF161: 0
A162: 160 | B162: 48.59 | C162: 0.01 | D162: 24088.47499 | E162: 1170459 | F162: 0.05 | G162: 0 | H162: 0.05 | K162: =(L162-标准怪物数值!E162)*N162*(1+P162*R162)+L162*T162/V162 -> 228358.8 | L162: 119664 | M162: 0.05 | N162: 1 | O162: 0 | P162: 0.05 | Q162: 0 | R162: 1.5 | S162: 0 | T162: 5 | U162: 0 | V162: 6 | W162: 0 | Z162: 119664 | AA162: 0.05 | AB162: 119664 | AC162: 10 | AD162: 0 | AE162: 10 | AF162: 0
A163: 161 | B163: 49.08 | C163: 0.01 | D163: 25040.38305 | E163: 1228982 | F163: 0.05 | G163: 0 | H163: 0.05 | K163: =(L163-标准怪物数值!E163)*N163*(1+P163*R163)+L163*T163/V163 -> 239776.3583 | L163: 125647 | M163: 0.05 | N163: 1 | O163: 0 | P163: 0.05 | Q163: 0 | R163: 1.5 | S163: 0 | T163: 5 | U163: 0 | V163: 6 | W163: 0 | Z163: 125647 | AA163: 0.05 | AB163: 125647 | AC163: 10 | AD163: 0 | AE163: 10 | AF163: 0
A164: 162 | B164: 49.57 | C164: 0.01 | D164: 26032.4995 | E164: 1290431 | F164: 0.05 | G164: 0 | H164: 0.05 | K164: =(L164-标准怪物数值!E164)*N164*(1+P164*R164)+L164*T164/V164 -> 251764.5083 | L164: 131929 | M164: 0.05 | N164: 1 | O164: 0 | P164: 0.05 | Q164: 0 | R164: 1.5 | S164: 0 | T164: 5 | U164: 0 | V164: 6 | W164: 0 | Z164: 131929 | AA164: 0.05 | AB164: 131929 | AC164: 10 | AD164: 0 | AE164: 10 | AF164: 0
A165: 163 | B165: 50.07 | C165: 0.01 | D165: 27061.17436 | E165: 1354953 | F165: 0.05 | G165: 0 | H165: 0.05 | K165: =(L165-标准怪物数值!E165)*N165*(1+P165*R165)+L165*T165/V165 -> 264351.875 | L165: 138525 | M165: 0.05 | N165: 1 | O165: 0 | P165: 0.05 | Q165: 0 | R165: 1.5 | S165: 0 | T165: 5 | U165: 0 | V165: 6 | W165: 0 | Z165: 138525 | AA165: 0.05 | AB165: 138525 | AC165: 10 | AD165: 0 | AE165: 10 | AF165: 0
A166: 164 | B166: 50.57 | C166: 0.01 | D166: 28133.30038 | E166: 1422701 | F166: 0.05 | G166: 0 | H166: 0.05 | K166: =(L166-标准怪物数值!E166)*N166*(1+P166*R166)+L166*T166/V166 -> 277568.9917 | L166: 145451 | M166: 0.05 | N166: 1 | O166: 0 | P166: 0.05 | Q166: 0 | R166: 1.5 | S166: 0 | T166: 5 | U166: 0 | V166: 6 | W166: 0 | Z166: 145451 | AA166: 0.05 | AB166: 145451 | AC166: 10 | AD166: 0 | AE166: 10 | AF166: 0
A167: 165 | B167: 51.08 | C167: 0.01 | D167: 29245.02741 | E167: 1493836 | F167: 0.05 | G167: 0 | H167: 0.05 | K167: =(L167-标准怪物数值!E167)*N167*(1+P167*R167)+L167*T167/V167 -> 291448.3 | L167: 152724 | M167: 0.05 | N167: 1 | O167: 0 | P167: 0.05 | Q167: 0 | R167: 1.5 | S167: 0 | T167: 5 | U167: 0 | V167: 6 | W167: 0 | Z167: 152724 | AA167: 0.05 | AB167: 152724 | AC167: 10 | AD167: 0 | AE167: 10 | AF167: 0
A168: 166 | B168: 51.59 | C168: 0.01 | D168: 30403.72165 | E168: 1568528 | F168: 0.05 | G168: 0 | H168: 0.05 | K168: =(L168-标准怪物数值!E168)*N168*(1+P168*R168)+L168*T168/V168 -> 306020.3333 | L168: 160360 | M168: 0.05 | N168: 1 | O168: 0 | P168: 0.05 | Q168: 0 | R168: 1.5 | S168: 0 | T168: 5 | U168: 0 | V168: 6 | W168: 0 | Z168: 160360 | AA168: 0.05 | AB168: 160360 | AC168: 10 | AD168: 0 | AE168: 10 | AF168: 0
A169: 167 | B169: 52.11 | C169: 0.01 | D169: 31605.33487 | E169: 1646954 | F169: 0.05 | G169: 0 | H169: 0.05 | K169: =(L169-标准怪物数值!E169)*N169*(1+P169*R169)+L169*T169/V169 -> 321321.35 | L169: 168378 | M169: 0.05 | N169: 1 | O169: 0 | P169: 0.05 | Q169: 0 | R169: 1.5 | S169: 0 | T169: 5 | U169: 0 | V169: 6 | W169: 0 | Z169: 168378 | AA169: 0.05 | AB169: 168378 | AC169: 10 | AD169: 0 | AE169: 10 | AF169: 0
A170: 168 | B170: 52.63 | C170: 0.01 | D170: 32857.72373 | E170: 1729302 | F170: 0.05 | G170: 0 | H170: 0.05 | K170: =(L170-标准怪物数值!E170)*N170*(1+P170*R170)+L170*T170/V170 -> 337387.6083 | L170: 176797 | M170: 0.05 | N170: 1 | O170: 0 | P170: 0.05 | Q170: 0 | R170: 1.5 | S170: 0 | T170: 5 | U170: 0 | V170: 6 | W170: 0 | Z170: 176797 | AA170: 0.05 | AB170: 176797 | AC170: 10 | AD170: 0 | AE170: 10 | AF170: 0
A171: 169 | B171: 53.16 | C171: 0.01 | D171: 34156.64033 | E171: 1815767 | F171: 0.05 | G171: 0 | H171: 0.05 | K171: =(L171-标准怪物数值!E171)*N171*(1+P171*R171)+L171*T171/V171 -> 354257.275 | L171: 185637 | M171: 0.05 | N171: 1 | O171: 0 | P171: 0.05 | Q171: 0 | R171: 1.5 | S171: 0 | T171: 5 | U171: 0 | V171: 6 | W171: 0 | Z171: 185637 | AA171: 0.05 | AB171: 185637 | AC171: 10 | AD171: 0 | AE171: 10 | AF171: 0
A172: 170 | B172: 53.69 | C172: 0.01 | D172: 35510.43025 | E172: 1906555 | F172: 0.05 | G172: 0 | H172: 0.05 | K172: =(L172-标准怪物数值!E172)*N172*(1+P172*R172)+L172*T172/V172 -> 371970.425 | L172: 194919 | M172: 0.05 | N172: 1 | O172: 0 | P172: 0.05 | Q172: 0 | R172: 1.5 | S172: 0 | T172: 5 | U172: 0 | V172: 6 | W172: 0 | Z172: 194919 | AA172: 0.05 | AB172: 194919 | AC172: 10 | AD172: 0 | AE172: 10 | AF172: 0
A173: 171 | B173: =ROUND(B172*(1+C173),2) -> 54.23 | C173: 0.01 | D173: =E173/B173 -> 36914.67822 | E173: =ROUND(E172*(1+F173),0) -> 2001883 | F173: 0.05 | G173: =ROUND(G172*(1+H173),2) -> 0 | H173: 0.05 | K173: =(L173-标准怪物数值!E173)*N173*(1+P173*R173)+L173*T173/V173 -> 390569.0417 | L173: =ROUND(L172*(1+M173),0) -> 204665 | M173: 0.05 | N173: =ROUND(N172*(1+O173),0) -> 1 | O173: 0 | P173: =ROUND(P172*(1+Q173),2) -> 0.05 | Q173: 0 | R173: =ROUND(R172*(1+S173),2) -> 1.5 | S173: 0 | T173: =ROUND(T172*(1+U173),2) -> 5 | U173: 0 | V173: =ROUND(V172*(1+W173),0) -> 6 | W173: 0 | Z173: =ROUND(Z172*(1+AA173),0) -> 204665 | AA173: 0.05 | AB173: =L173*$AB$1 -> 204665 | AC173: =ROUND(AC172*(1+AD173),0) -> 10 | AD173: 0 | AE173: =ROUND(AE172*(1+AF173),1) -> 10 | AF173: 0
A174: 172 | B174: 54.77 | C174: 0.01 | D174: 38378.25452 | E174: 2101977 | F174: 0.05 | G174: 0 | H174: 0.05 | K174: =(L174-标准怪物数值!E174)*N174*(1+P174*R174)+L174*T174/V174 -> 410097.0167 | L174: 214898 | M174: 0.05 | N174: 1 | O174: 0 | P174: 0.05 | Q174: 0 | R174: 1.5 | S174: 0 | T174: 5 | U174: 0 | V174: 6 | W174: 0 | Z174: 214898 | AA174: 0.05 | AB174: 214898 | AC174: 10 | AD174: 0 | AE174: 10 | AF174: 0
A175: 173 | B175: 55.32 | C175: 0.01 | D175: 39896.52928 | E175: 2207076 | F175: 0.05 | G175: 0 | H175: 0.05 | K175: =(L175-标准怪物数值!E175)*N175*(1+P175*R175)+L175*T175/V175 -> 430602.0583 | L175: 225643 | M175: 0.05 | N175: 1 | O175: 0 | P175: 0.05 | Q175: 0 | R175: 1.5 | S175: 0 | T175: 5 | U175: 0 | V175: 6 | W175: 0 | Z175: 225643 | AA175: 0.05 | AB175: 225643 | AC175: 10 | AD175: 0 | AE175: 10 | AF175: 0
A176: 174 | B176: 55.87 | C176: 0.01 | D176: 41478.96904 | E176: 2317430 | F176: 0.05 | G176: 0 | H176: 0.05 | K176: =(L176-标准怪物数值!E176)*N176*(1+P176*R176)+L176*T176/V176 -> 452131.875 | L176: 236925 | M176: 0.05 | N176: 1 | O176: 0 | P176: 0.05 | Q176: 0 | R176: 1.5 | S176: 0 | T176: 5 | U176: 0 | V176: 6 | W176: 0 | Z176: 236925 | AA176: 0.05 | AB176: 236925 | AC176: 10 | AD176: 0 | AE176: 10 | AF176: 0
A177: 175 | B177: 56.43 | C177: 0.01 | D177: 43120.71593 | E177: 2433302 | F177: 0.05 | G177: 0 | H177: 0.05 | K177: =(L177-标准怪物数值!E177)*N177*(1+P177*R177)+L177*T177/V177 -> 474737.9917 | L177: 248771 | M177: 0.05 | N177: 1 | O177: 0 | P177: 0.05 | Q177: 0 | R177: 1.5 | S177: 0 | T177: 5 | U177: 0 | V177: 6 | W177: 0 | Z177: 248771 | AA177: 0.05 | AB177: 248771 | AC177: 10 | AD177: 0 | AE177: 10 | AF177: 0
A178: 176 | B178: 56.99 | C178: 0.01 | D178: 44831.84769 | E178: 2554967 | F178: 0.05 | G178: 0 | H178: 0.05 | K178: =(L178-标准怪物数值!E178)*N178*(1+P178*R178)+L178*T178/V178 -> 498475.75 | L178: 261210 | M178: 0.05 | N178: 1 | O178: 0 | P178: 0.05 | Q178: 0 | R178: 1.5 | S178: 0 | T178: 5 | U178: 0 | V178: 6 | W178: 0 | Z178: 261210 | AA178: 0.05 | AB178: 261210 | AC178: 10 | AD178: 0 | AE178: 10 | AF178: 0
A179: 177 | B179: 57.56 | C179: 0.01 | D179: 46607.27936 | E179: 2682715 | F179: 0.05 | G179: 0 | H179: 0.05 | K179: =(L179-标准怪物数值!E179)*N179*(1+P179*R179)+L179*T179/V179 -> 523400.4917 | L179: 274271 | M179: 0.05 | N179: 1 | O179: 0 | P179: 0.05 | Q179: 0 | R179: 1.5 | S179: 0 | T179: 5 | U179: 0 | V179: 6 | W179: 0 | Z179: 274271 | AA179: 0.05 | AB179: 274271 | AC179: 10 | AD179: 0 | AE179: 10 | AF179: 0
A180: 178 | B180: 58.14 | C180: 0.01 | D180: 48449.4496 | E180: 2816851 | F180: 0.05 | G180: 0 | H180: 0.05 | K180: =(L180-标准怪物数值!E180)*N180*(1+P180*R180)+L180*T180/V180 -> 549571.375 | L180: 287985 | M180: 0.05 | N180: 1 | O180: 0 | P180: 0.05 | Q180: 0 | R180: 1.5 | S180: 0 | T180: 5 | U180: 0 | V180: 6 | W180: 0 | Z180: 287985 | AA180: 0.05 | AB180: 287985 | AC180: 10 | AD180: 0 | AE180: 10 | AF180: 0
A181: 179 | B181: 58.72 | C181: 0.01 | D181: 50369.44823 | E181: 2957694 | F181: 0.05 | G181: 0 | H181: 0.05 | K181: =(L181-标准怪物数值!E181)*N181*(1+P181*R181)+L181*T181/V181 -> 577049.4667 | L181: 302384 | M181: 0.05 | N181: 1 | O181: 0 | P181: 0.05 | Q181: 0 | R181: 1.5 | S181: 0 | T181: 5 | U181: 0 | V181: 6 | W181: 0 | Z181: 302384 | AA181: 0.05 | AB181: 302384 | AC181: 10 | AD181: 0 | AE181: 10 | AF181: 0
A182: 180 | B182: 59.31 | C182: 0.01 | D182: 52361.81082 | E182: 3105579 | F182: 0.05 | G182: 0 | H182: 0.05 | K182: =(L182-标准怪物数值!E182)*N182*(1+P182*R182)+L182*T182/V182 -> 605901.5583 | L182: 317503 | M182: 0.05 | N182: 1 | O182: 0 | P182: 0.05 | Q182: 0 | R182: 1.5 | S182: 0 | T182: 5 | U182: 0 | V182: 6 | W182: 0 | Z182: 317503 | AA182: 0.05 | AB182: 317503 | AC182: 10 | AD182: 0 | AE182: 10 | AF182: 0
A183: 181 | B183: 59.9 | C183: 0.01 | D183: 54438.36394 | E183: 3260858 | F183: 0.05 | G183: 0 | H183: 0.05 | K183: =(L183-标准怪物数值!E183)*N183*(1+P183*R183)+L183*T183/V183 -> 636196.35 | L183: 333378 | M183: 0.05 | N183: 1 | O183: 0 | P183: 0.05 | Q183: 0 | R183: 1.5 | S183: 0 | T183: 5 | U183: 0 | V183: 6 | W183: 0 | Z183: 333378 | AA183: 0.05 | AB183: 333378 | AC183: 10 | AD183: 0 | AE183: 10 | AF183: 0
A184: 182 | B184: 60.5 | C184: 0.01 | D184: 56593.40496 | E184: 3423901 | F184: 0.05 | G184: 0 | H184: 0.05 | K184: =(L184-标准怪物数值!E184)*N184*(1+P184*R184)+L184*T184/V184 -> 668006.3583 | L184: 350047 | M184: 0.05 | N184: 1 | O184: 0 | P184: 0.05 | Q184: 0 | R184: 1.5 | S184: 0 | T184: 5 | U184: 0 | V184: 6 | W184: 0 | Z184: 350047 | AA184: 0.05 | AB184: 350047 | AC184: 10 | AD184: 0 | AE184: 10 | AF184: 0
A185: 183 | B185: 61.11 | C185: 0.01 | D185: 58829.91327 | E185: 3595096 | F185: 0.05 | G185: 0 | H185: 0.05 | K185: =(L185-标准怪物数值!E185)*N185*(1+P185*R185)+L185*T185/V185 -> 701406.0083 | L185: 367549 | M185: 0.05 | N185: 1 | O185: 0 | P185: 0.05 | Q185: 0 | R185: 1.5 | S185: 0 | T185: 5 | U185: 0 | V185: 6 | W185: 0 | Z185: 367549 | AA185: 0.05 | AB185: 367549 | AC185: 10 | AD185: 0 | AE185: 10 | AF185: 0
A186: 184 | B186: 61.72 | C186: 0.01 | D186: 61160.90408 | E186: 3774851 | F186: 0.05 | G186: 0 | H186: 0.05 | K186: =(L186-标准怪物数值!E186)*N186*(1+P186*R186)+L186*T186/V186 -> 736475.45 | L186: 385926 | M186: 0.05 | N186: 1 | O186: 0 | P186: 0.05 | Q186: 0 | R186: 1.5 | S186: 0 | T186: 5 | U186: 0 | V186: 6 | W186: 0 | Z186: 385926 | AA186: 0.05 | AB186: 385926 | AC186: 10 | AD186: 0 | AE186: 10 | AF186: 0
A187: 185 | B187: 62.34 | C187: 0.01 | D187: 63580.26949 | E187: 3963594 | F187: 0.05 | G187: 0 | H187: 0.05 | K187: =(L187-标准怪物数值!E187)*N187*(1+P187*R187)+L187*T187/V187 -> 773298.65 | L187: 405222 | M187: 0.05 | N187: 1 | O187: 0 | P187: 0.05 | Q187: 0 | R187: 1.5 | S187: 0 | T187: 5 | U187: 0 | V187: 6 | W187: 0 | Z187: 405222 | AA187: 0.05 | AB187: 405222 | AC187: 10 | AD187: 0 | AE187: 10 | AF187: 0
A188: 186 | B188: 62.96 | C188: 0.01 | D188: 66101.87421 | E188: 4161774 | F188: 0.05 | G188: 0 | H188: 0.05 | K188: =(L188-标准怪物数值!E188)*N188*(1+P188*R188)+L188*T188/V188 -> 811963.3917 | L188: 425483 | M188: 0.05 | N188: 1 | O188: 0 | P188: 0.05 | Q188: 0 | R188: 1.5 | S188: 0 | T188: 5 | U188: 0 | V188: 6 | W188: 0 | Z188: 425483 | AA188: 0.05 | AB188: 425483 | AC188: 10 | AD188: 0 | AE188: 10 | AF188: 0
A189: 187 | B189: 63.59 | C189: 0.01 | D189: 68719.34266 | E189: 4369863 | F189: 0.05 | G189: 0 | H189: 0.05 | K189: =(L189-标准怪物数值!E189)*N189*(1+P189*R189)+L189*T189/V189 -> 852561.275 | L189: 446757 | M189: 0.05 | N189: 1 | O189: 0 | P189: 0.05 | Q189: 0 | R189: 1.5 | S189: 0 | T189: 5 | U189: 0 | V189: 6 | W189: 0 | Z189: 446757 | AA189: 0.05 | AB189: 446757 | AC189: 10 | AD189: 0 | AE189: 10 | AF189: 0
A190: 188 | B190: 64.23 | C190: 0.01 | D190: 71436.33816 | E190: 4588356 | F190: 0.05 | G190: 0 | H190: 0.05 | K190: =(L190-标准怪物数值!E190)*N190*(1+P190*R190)+L190*T190/V190 -> 895189.625 | L190: 469095 | M190: 0.05 | N190: 1 | O190: 0 | P190: 0.05 | Q190: 0 | R190: 1.5 | S190: 0 | T190: 5 | U190: 0 | V190: 6 | W190: 0 | Z190: 469095 | AA190: 0.05 | AB190: 469095 | AC190: 10 | AD190: 0 | AE190: 10 | AF190: 0
A191: 189 | B191: 64.87 | C191: 0.01 | D191: 74268.13627 | E191: 4817774 | F191: 0.05 | G191: 0 | H191: 0.05 | K191: =(L191-标准怪物数值!E191)*N191*(1+P191*R191)+L191*T191/V191 -> 939949.5833 | L191: 492550 | M191: 0.05 | N191: 1 | O191: 0 | P191: 0.05 | Q191: 0 | R191: 1.5 | S191: 0 | T191: 5 | U191: 0 | V191: 6 | W191: 0 | Z191: 492550 | AA191: 0.05 | AB191: 492550 | AC191: 10 | AD191: 0 | AE191: 10 | AF191: 0
A192: 190 | B192: 65.52 | C192: 0.01 | D192: 77207.92125 | E192: 5058663 | F192: 0.05 | G192: 0 | H192: 0.05 | K192: =(L192-标准怪物数值!E192)*N192*(1+P192*R192)+L192*T192/V192 -> 986948.0167 | L192: 517178 | M192: 0.05 | N192: 1 | O192: 0 | P192: 0.05 | Q192: 0 | R192: 1.5 | S192: 0 | T192: 5 | U192: 0 | V192: 6 | W192: 0 | Z192: 517178 | AA192: 0.05 | AB192: 517178 | AC192: 10 | AD192: 0 | AE192: 10 | AF192: 0
A193: 191 | B193: 66.18 | C193: 0.01 | D193: 80259.83681 | E193: 5311596 | F193: 0.05 | G193: 0 | H193: 0.05 | K193: =(L193-标准怪物数值!E193)*N193*(1+P193*R193)+L193*T193/V193 -> 1036295.608 | L193: 543037 | M193: 0.05 | N193: 1 | O193: 0 | P193: 0.05 | Q193: 0 | R193: 1.5 | S193: 0 | T193: 5 | U193: 0 | V193: 6 | W193: 0 | Z193: 543037 | AA193: 0.05 | AB193: 543037 | AC193: 10 | AD193: 0 | AE193: 10 | AF193: 0
A194: 192 | B194: 66.84 | C194: 0.01 | D194: 83440.6942 | E194: 5577176 | F194: 0.05 | G194: 0 | H194: 0.05 | K194: =(L194-标准怪物数值!E194)*N194*(1+P194*R194)+L194*T194/V194 -> 1088110.675 | L194: 570189 | M194: 0.05 | N194: 1 | O194: 0 | P194: 0.05 | Q194: 0 | R194: 1.5 | S194: 0 | T194: 5 | U194: 0 | V194: 6 | W194: 0 | Z194: 570189 | AA194: 0.05 | AB194: 570189 | AC194: 10 | AD194: 0 | AE194: 10 | AF194: 0
A195: 193 | B195: 67.51 | C195: 0.01 | D195: 86743.22323 | E195: 5856035 | F195: 0.05 | G195: 0 | H195: 0.05 | K195: =(L195-标准怪物数值!E195)*N195*(1+P195*R195)+L195*T195/V195 -> 1142515.35 | L195: 598698 | M195: 0.05 | N195: 1 | O195: 0 | P195: 0.05 | Q195: 0 | R195: 1.5 | S195: 0 | T195: 5 | U195: 0 | V195: 6 | W195: 0 | Z195: 598698 | AA195: 0.05 | AB195: 598698 | AC195: 10 | AD195: 0 | AE195: 10 | AF195: 0
A196: 194 | B196: 68.19 | C196: 0.01 | D196: 90172.12201 | E196: 6148837 | F196: 0.05 | G196: 0 | H196: 0.05 | K196: =(L196-标准怪物数值!E196)*N196*(1+P196*R196)+L196*T196/V196 -> 1199641.308 | L196: 628633 | M196: 0.05 | N196: 1 | O196: 0 | P196: 0.05 | Q196: 0 | R196: 1.5 | S196: 0 | T196: 5 | U196: 0 | V196: 6 | W196: 0 | Z196: 628633 | AA196: 0.05 | AB196: 628633 | AC196: 10 | AD196: 0 | AE196: 10 | AF196: 0
A197: 195 | B197: 68.87 | C197: 0.01 | D197: 93745.88355 | E197: 6456279 | F197: 0.05 | G197: 0 | H197: 0.05 | K197: =(L197-标准怪物数值!E197)*N197*(1+P197*R197)+L197*T197/V197 -> 1259624.042 | L197: 660065 | M197: 0.05 | N197: 1 | O197: 0 | P197: 0.05 | Q197: 0 | R197: 1.5 | S197: 0 | T197: 5 | U197: 0 | V197: 6 | W197: 0 | Z197: 660065 | AA197: 0.05 | AB197: 660065 | AC197: 10 | AD197: 0 | AE197: 10 | AF197: 0
A198: 196 | B198: 69.56 | C198: 0.01 | D198: 97456.77113 | E198: 6779093 | F198: 0.05 | G198: 0 | H198: 0.05 | K198: =(L198-标准怪物数值!E198)*N198*(1+P198*R198)+L198*T198/V198 -> 1322604.767 | L198: 693068 | M198: 0.05 | N198: 1 | O198: 0 | P198: 0.05 | Q198: 0 | R198: 1.5 | S198: 0 | T198: 5 | U198: 0 | V198: 6 | W198: 0 | Z198: 693068 | AA198: 0.05 | AB198: 693068 | AC198: 10 | AD198: 0 | AE198: 10 | AF198: 0
A199: 197 | B199: 70.26 | C199: 0.01 | D199: 101310.1053 | E199: 7118048 | F199: 0.05 | G199: 0 | H199: 0.05 | K199: =(L199-标准怪物数值!E199)*N199*(1+P199*R199)+L199*T199/V199 -> 1388734.242 | L199: 727721 | M199: 0.05 | N199: 1 | O199: 0 | P199: 0.05 | Q199: 0 | R199: 1.5 | S199: 0 | T199: 5 | U199: 0 | V199: 6 | W199: 0 | Z199: 727721 | AA199: 0.05 | AB199: 727721 | AC199: 10 | AD199: 0 | AE199: 10 | AF199: 0
A200: 198 | B200: 70.96 | C200: 0.01 | D200: 105326.2401 | E200: 7473950 | F200: 0.05 | G200: 0 | H200: 0.05 | K200: =(L200-标准怪物数值!E200)*N200*(1+P200*R200)+L200*T200/V200 -> 1458170.858 | L200: 764107 | M200: 0.05 | N200: 1 | O200: 0 | P200: 0.05 | Q200: 0 | R200: 1.5 | S200: 0 | T200: 5 | U200: 0 | V200: 6 | W200: 0 | Z200: 764107 | AA200: 0.05 | AB200: 764107 | AC200: 10 | AD200: 0 | AE200: 10 | AF200: 0
... 135 more rows

Sheet 标准怪物数值
A2: 等级 | B2: 怪物生存时长（秒） | C2: 生命 | E2: 防御 | L2: 每秒伤害 | M2: 攻击力 | O2: 攻击速度 | Q2: 暴击几率 | S2: 暴击伤害
A3: 1 | B3: =标准英雄数值!B3-O3 -> 8 | C3: =ROUND(B3*标准英雄数值!K3,2) -> 763.33 | E3: 0 | L3: =标准英雄数值!D3 -> 50 | M3: =ROUND(L3/(1+Q3*S3)+标准英雄数值!G3,2)/$O$3 -> 23.255 | O3: 2 | Q3: 0.05 | S3: 1.5
A4: 2 | B4: =标准英雄数值!B4-O4 -> 8.1 | C4: =ROUND(B4*标准英雄数值!K4,2) -> 819.25 | D4: 0.05 | E4: =ROUND(E3*(1+F4),2) -> 0 | F4: 0.05 | L4: =标准英雄数值!D4 -> 51.98019802 | M4: =ROUND(L4/(1+Q4*S4)+标准英雄数值!G4,2)/O4 -> 24.175 | N4: 0.05 | O4: =ROUND(O3*(1+P4),0) -> 2 | P4: 0 | Q4: =ROUND(Q3*(1+R4),2) -> 0.05 | R4: 0 | S4: =ROUND(S3*(1+T4),2) -> 1.5 | T4: 0
A5: 3 | B5: =标准英雄数值!B5-O5 -> 8.2 | C5: =ROUND(B5*标准英雄数值!K5,2) -> 876.31 | D5: 0.05 | E5: =ROUND(E4*(1+F5),2) -> 0 | F5: 0.05 | L5: =标准英雄数值!D5 -> 54.01960784 | M5: =ROUND(L5/(1+Q5*S5)+标准英雄数值!G5,2)/O5 -> 25.125 | N5: 0.05 | O5: =ROUND(O4*(1+P5),0) -> 2 | P5: 0 | Q5: =ROUND(Q4*(1+R5),2) -> 0.05 | R5: 0 | S5: =ROUND(S4*(1+T5),2) -> 1.5 | T5: 0
A6: 4 | B6: =标准英雄数值!B6-O6 -> 8.3 | C6: =ROUND(B6*标准英雄数值!K6,2) -> 934.51 | D6: 0.05 | E6: 0 | F6: 0.05 | L6: =标准英雄数值!D6 -> 56.21359223 | M6: =ROUND(L6/(1+Q6*S6)+标准英雄数值!G6,2)/O6 -> 26.145 | N6: 0.05 | O6: 2 | P6: 0 | Q6: 0.05 | R6: 0 | S6: 1.5 | T6: 0
A7: 5 | B7: =标准英雄数值!B7-O7 -> 8.4 | C7: =ROUND(B7*标准英雄数值!K7,2) -> 993.86 | D7: 0.05 | E7: 0 | F7: 0.05 | L7: =标准英雄数值!D7 -> 58.46153846 | M7: =ROUND(L7/(1+Q7*S7)+标准英雄数值!G7,2)/O7 -> 27.19 | N7: 0.05 | O7: 2 | P7: 0 | Q7: 0.05 | R7: 0 | S7: 1.5 | T7: 0
A8: 6 | B8: =标准英雄数值!B8-O8 -> 8.5 | C8: =ROUND(B8*标准英雄数值!K8,2) -> 1054.35 | D8: 0.05 | E8: 0 | F8: 0.05 | L8: =标准英雄数值!D8 -> 60.76190476 | M8: =ROUND(L8/(1+Q8*S8)+标准英雄数值!G8,2)/O8 -> 28.26 | N8: 0.05 | O8: 2 | P8: 0 | Q8: 0.05 | R8: 0 | S8: 1.5 | T8: 0
A9: 7 | B9: =标准英雄数值!B9-O9 -> 8.61 | C9: =ROUND(B9*标准英雄数值!K9,2) -> 1117.29 | D9: 0.05 | E9: 0 | F9: 0.05 | L9: =标准英雄数值!D9 -> 63.14797361 | M9: =ROUND(L9/(1+Q9*S9)+标准英雄数值!G9,2)/O9 -> 29.37 | N9: 0.05 | O9: 2 | P9: 0 | Q9: 0.05 | R9: 0 | S9: 1.5 | T9: 0
A10: 8 | B10: =标准英雄数值!B10-O10 -> 8.72 | C10: =ROUND(B10*标准英雄数值!K10,2) -> 1181.49 | D10: 0.05 | E10: 0 | F10: 0.05 | L10: =标准英雄数值!D10 -> 65.67164179 | M10: =ROUND(L10/(1+Q10*S10)+标准英雄数值!G10,2)/O10 -> 30.545 | N10: 0.05 | O10: 2 | P10: 0 | Q10: 0.05 | R10: 0 | S10: 1.5 | T10: 0
A11: 9 | B11: =标准英雄数值!B11-O11 -> 8.83 | C11: =ROUND(B11*标准英雄数值!K11,2) -> 1263.79 | D11: 0.05 | E11: 0 | F11: 0.05 | L11: =标准英雄数值!D11 -> 68.23638042 | M11: =ROUND(L11/(1+Q11*S11)+标准英雄数值!G11,2)/O11 -> 31.74 | N11: 0.05 | O11: 2 | P11: 0 | Q11: 0.05 | R11: 0 | S11: 1.5 | T11: 0
A12: 10 | B12: =标准英雄数值!B12-O12 -> 8.94 | C12: =ROUND(B12*标准英雄数值!K12,2) -> 1347.78 | D12: 0.05 | E12: 0 | F12: 0.05 | L12: =标准英雄数值!D12 -> 70.93235832 | M12: =ROUND(L12/(1+Q12*S12)+标准英雄数值!G12,2)/O12 -> 32.99 | N12: 0.05 | O12: 2 | P12: 0 | Q12: 0.05 | R12: 0 | S12: 1.5 | T12: 0
A13: 11 | B13: =标准英雄数值!B13-O13 -> 9.05 | C13: =ROUND(B13*标准英雄数值!K13,2) -> 1433.44 | D13: 0.05 | E13: 0 | F13: 0.05 | L13: =标准英雄数值!D13 -> 73.75565611 | M13: =ROUND(L13/(1+Q13*S13)+标准英雄数值!G13,2)/O13 -> 34.305 | N13: 0.05 | O13: 2 | P13: 0 | Q13: 0.05 | R13: 0 | S13: 1.5 | T13: 0
A14: 12 | B14: =标准英雄数值!B14-O14 -> 9.16 | C14: =ROUND(B14*标准英雄数值!K14,2) -> 1520.79 | D14: 0.05 | E14: 0 | F14: 0.05 | L14: =标准英雄数值!D14 -> 76.70250896 | M14: =ROUND(L14/(1+Q14*S14)+标准英雄数值!G14,2)/O14 -> 35.675 | N14: 0.05 | O14: 2 | P14: 0 | Q14: 0.05 | R14: 0 | S14: 1.5 | T14: 0
A15: 13 | B15: =标准英雄数值!B15-O15 -> 9.27 | C15: =ROUND(B15*标准英雄数值!K15,2) -> 1609.81 | D15: 0.05 | E15: 0 | F15: 0.05 | L15: =标准英雄数值!D15 -> 79.76929902 | M15: =ROUND(L15/(1+Q15*S15)+标准英雄数值!G15,2)/O15 -> 37.1 | N15: 0.05 | O15: 2 | P15: 0 | Q15: 0.05 | R15: 0 | S15: 1.5 | T15: 0
A16: 14 | B16: =标准英雄数值!B16-O16 -> 9.38 | C16: =ROUND(B16*标准英雄数值!K16,2) -> 1718.42 | D16: 0.05 | E16: 0 | F16: 0.05 | L16: =标准英雄数值!D16 -> 82.95254833 | M16: =ROUND(L16/(1+Q16*S16)+标准英雄数值!G16,2)/O16 -> 38.585 | N16: 0.05 | O16: 2 | P16: 0 | Q16: 0.05 | R16: 0 | S16: 1.5 | T16: 0
A17: 15 | B17: =标准英雄数值!B17-O17 -> 9.49 | C17: =ROUND(B17*标准英雄数值!K17,2) -> 1829.12 | D17: 0.05 | E17: 0 | F17: 0.05 | L17: =标准英雄数值!D17 -> 86.2489121 | M17: =ROUND(L17/(1+Q17*S17)+标准英雄数值!G17,2)/O17 -> 40.115 | N17: 0.05 | O17: 2 | P17: 0 | Q17: 0.05 | R17: 0 | S17: 1.5 | T17: 0
A18: 16 | B18: =标准英雄数值!B18-O18 -> 9.6 | C18: =ROUND(B18*标准英雄数值!K18,2) -> 1941.92 | D18: 0.05 | E18: 0 | F18: 0.05 | L18: =标准英雄数值!D18 -> 89.74137931 | M18: =ROUND(L18/(1+Q18*S18)+标准英雄数值!G18,2)/O18 -> 41.74 | N18: 0.05 | O18: 2 | P18: 0 | Q18: 0.05 | R18: 0 | S18: 1.5 | T18: 0
A19: 17 | B19: =标准英雄数值!B19-O19 -> 9.72 | C19: =ROUND(B19*标准英雄数值!K19,2) -> 2058.94 | D19: 0.05 | E19: 0 | F19: 0.05 | L19: =标准英雄数值!D19 -> 93.25938567 | M19: =ROUND(L19/(1+Q19*S19)+标准英雄数值!G19,2)/O19 -> 43.375 | N19: 0.05 | O19: 2 | P19: 0 | Q19: 0.05 | R19: 0 | S19: 1.5 | T19: 0
A20: 18 | B20: =标准英雄数值!B20-O20 -> 9.84 | C20: =ROUND(B20*标准英雄数值!K20,2) -> 2197.03 | D20: 0.05 | E20: 0 | F20: 0.05 | L20: =标准英雄数值!D20 -> 96.95945946 | M20: =ROUND(L20/(1+Q20*S20)+标准英雄数值!G20,2)/O20 -> 45.095 | N20: 0.05 | O20: 2 | P20: 0 | Q20: 0.05 | R20: 0 | S20: 1.5 | T20: 0
A21: 19 | B21: =标准英雄数值!B21-O21 -> 9.96 | C21: =ROUND(B21*标准英雄数值!K21,2) -> 2337.86 | D21: 0.05 | E21: 0 | F21: 0.05 | L21: =标准英雄数值!D21 -> 100.7525084 | M21: =ROUND(L21/(1+Q21*S21)+标准英雄数值!G21,2)/O21 -> 46.86 | N21: 0.05 | O21: 2 | P21: 0 | Q21: 0.05 | R21: 0 | S21: 1.5 | T21: 0
A22: 20 | B22: =标准英雄数值!B22-O22 -> 10.08 | C22: =ROUND(B22*标准英雄数值!K22,2) -> 2481.44 | D22: 0.05 | E22: 0 | F22: 0.05 | L22: =标准英雄数值!D22 -> 104.718543 | M22: =ROUND(L22/(1+Q22*S22)+标准英雄数值!G22,2)/O22 -> 48.705 | N22: 0.05 | O22: 2 | P22: 0 | Q22: 0.05 | R22: 0 | S22: 1.5 | T22: 0
A23: 21 | B23: =标准英雄数值!B23-O23 -> 10.2 | C23: =ROUND(B23*标准英雄数值!K23,2) -> 2627.78 | D23: 0.05 | E23: 0 | F23: 0.05 | L23: =标准英雄数值!D23 -> 108.852459 | M23: =ROUND(L23/(1+Q23*S23)+标准英雄数值!G23,2)/O23 -> 50.63 | N23: 0.05 | O23: 2 | P23: 0 | Q23: 0.05 | R23: 0 | S23: 1.5 | T23: 0
A24: 22 | B24: =标准英雄数值!B24-O24 -> 10.32 | C24: =ROUND(B24*标准英雄数值!K24,2) -> 2796.55 | D24: 0.05 | E24: 0 | F24: 0.05 | L24: =标准英雄数值!D24 -> 113.1493506 | M24: =ROUND(L24/(1+Q24*S24)+标准英雄数值!G24,2)/O24 -> 52.63 | N24: 0.05 | O24: 2 | P24: 0 | Q24: 0.05 | R24: 0 | S24: 1.5 | T24: 0
A25: 23 | B25: =标准英雄数值!B25-O25 -> 10.44 | C25: =ROUND(B25*标准英雄数值!K25,2) -> 2968.53 | D25: 0.05 | E25: 0 | F25: 0.05 | L25: =标准英雄数值!D25 -> 117.6848875 | M25: =ROUND(L25/(1+Q25*S25)+标准英雄数值!G25,2)/O25 -> 54.735 | N25: 0.05 | O25: 2 | P25: 0 | Q25: 0.05 | R25: 0 | S25: 1.5 | T25: 0
A26: 24 | B26: =标准英雄数值!B26-O26 -> 10.56 | C26: =ROUND(B26*标准英雄数值!K26,2) -> 3143.71 | D26: 0.05 | E26: 0 | F26: 0.05 | L26: =标准英雄数值!D26 -> 122.3726115 | M26: =ROUND(L26/(1+Q26*S26)+标准英雄数值!G26,2)/O26 -> 56.915 | N26: 0.05 | O26: 2 | P26: 0 | Q26: 0.05 | R26: 0 | S26: 1.5 | T26: 0
A27: 25 | B27: =标准英雄数值!B27-O27 -> 10.69 | C27: =ROUND(B27*标准英雄数值!K27,2) -> 3345.61 | D27: 0.05 | E27: 0 | F27: 0.05 | L27: =标准英雄数值!D27 -> 127.1867612 | M27: =ROUND(L27/(1+Q27*S27)+标准英雄数值!G27,2)/O27 -> 59.155 | N27: 0.05 | O27: 2 | P27: 0 | Q27: 0.05 | R27: 0 | S27: 1.5 | T27: 0
A28: 26 | B28: =标准英雄数值!B28-O28 -> 10.82 | C28: =ROUND(B28*标准英雄数值!K28,2) -> 3551.48 | D28: 0.05 | E28: 0 | F28: 0.05 | L28: =标准英雄数值!D28 -> 132.2152886 | M28: =ROUND(L28/(1+Q28*S28)+标准英雄数值!G28,2)/O28 -> 61.495 | N28: 0.05 | O28: 2 | P28: 0 | Q28: 0.05 | R28: 0 | S28: 1.5 | T28: 0
A29: 27 | B29: =标准英雄数值!B29-O29 -> 10.95 | C29: =ROUND(B29*标准英雄数值!K29,2) -> 3782.22 | D29: 0.05 | E29: 0 | F29: 0.05 | L29: =标准英雄数值!D29 -> 137.4517375 | M29: =ROUND(L29/(1+Q29*S29)+标准英雄数值!G29,2)/O29 -> 63.93 | N29: 0.05 | O29: 2 | P29: 0 | Q29: 0.05 | R29: 0 | S29: 1.5 | T29: 0
A30: 28 | B30: =标准英雄数值!B30-O30 -> 11.08 | C30: =ROUND(B30*标准英雄数值!K30,2) -> 4017.42 | D30: 0.05 | E30: 0 | F30: 0.05 | L30: =标准英雄数值!D30 -> 142.8899083 | M30: =ROUND(L30/(1+Q30*S30)+标准英雄数值!G30,2)/O30 -> 66.46 | N30: 0.05 | O30: 2 | P30: 0 | Q30: 0.05 | R30: 0 | S30: 1.5 | T30: 0
A31: 29 | B31: =标准英雄数值!B31-O31 -> 11.21 | C31: =ROUND(B31*标准英雄数值!K31,2) -> 4278.48 | D31: 0.05 | E31: 0 | F31: 0.05 | L31: =标准英雄数值!D31 -> 148.5238456 | M31: =ROUND(L31/(1+Q31*S31)+标准英雄数值!G31,2)/O31 -> 69.08 | N31: 0.05 | O31: 2 | P31: 0 | Q31: 0.05 | R31: 0 | S31: 1.5 | T31: 0
A32: 30 | B32: =标准英雄数值!B32-O32 -> 11.34 | C32: =ROUND(B32*标准英雄数值!K32,2) -> 4544.51 | D32: 0.05 | E32: 0 | F32: 0.05 | L32: =标准英雄数值!D32 -> 154.4227886 | M32: =ROUND(L32/(1+Q32*S32)+标准英雄数值!G32,2)/O32 -> 71.825 | N32: 0.05 | O32: 2 | P32: 0 | Q32: 0.05 | R32: 0 | S32: 1.5 | T32: 0
A33: 31 | B33: =标准英雄数值!B33-O33 -> 11.47 | C33: =ROUND(B33*标准英雄数值!K33,2) -> 4837.38 | D33: 0.05 | E33: 0 | F33: 0.05 | L33: =标准英雄数值!D33 -> 160.5790646 | M33: =ROUND(L33/(1+Q33*S33)+标准英雄数值!G33,2)/O33 -> 74.69 | N33: 0.05 | O33: 2 | P33: 0 | Q33: 0.05 | R33: 0 | S33: 1.5 | T33: 0
A34: 32 | B34: =标准英雄数值!B34-O34 -> 11.6 | C34: =ROUND(B34*标准英雄数值!K34,2) -> 5135.71 | D34: 0.05 | E34: 0 | F34: 0.05 | L34: =标准英雄数值!D34 -> 166.9852941 | M34: =ROUND(L34/(1+Q34*S34)+标准英雄数值!G34,2)/O34 -> 77.67 | N34: 0.05 | O34: 2 | P34: 0 | Q34: 0.05 | R34: 0 | S34: 1.5 | T34: 0
A35: 33 | B35: =标准英雄数值!B35-O35 -> 11.74 | C35: =ROUND(B35*标准英雄数值!K35,2) -> 5466.54 | D35: 0.05 | E35: 0 | F35: 0.05 | L35: =标准英雄数值!D35 -> 173.580786 | M35: =ROUND(L35/(1+Q35*S35)+标准英雄数值!G35,2)/O35 -> 80.735 | N35: 0.05 | O35: 2 | P35: 0 | Q35: 0.05 | R35: 0 | S35: 1.5 | T35: 0
A36: 34 | B36: =标准英雄数值!B36-O36 -> 11.88 | C36: =ROUND(B36*标准英雄数值!K36,2) -> 5803.78 | D36: 0.05 | E36: 0 | F36: 0.05 | L36: =标准英雄数值!D36 -> 180.4034582 | M36: =ROUND(L36/(1+Q36*S36)+标准英雄数值!G36,2)/O36 -> 83.91 | N36: 0.05 | O36: 2 | P36: 0 | Q36: 0.05 | R36: 0 | S36: 1.5 | T36: 0
A37: 35 | B37: =标准英雄数值!B37-O37 -> 12.02 | C37: =ROUND(B37*标准英雄数值!K37,2) -> 6170.37 | D37: 0.05 | E37: =ROUND(E36*(1+F37),2) -> 0 | F37: 0.05 | L37: =标准英雄数值!D37 -> 187.5178317 | M37: =ROUND(L37/(1+Q37*S37)+标准英雄数值!G37,2)/O37 -> 87.22 | N37: 0.05 | O37: =ROUND(O36*(1+P37),0) -> 2 | P37: 0 | Q37: =ROUND(Q36*(1+R37),2) -> 0.05 | R37: 0 | S37: =ROUND(S36*(1+T37),2) -> 1.5 | T37: 0
A38: 36 | B38: =标准英雄数值!B38-O38 -> 12.16 | C38: =ROUND(B38*标准英雄数值!K38,2) -> 6543.9 | D38: 0.05 | E38: 0 | F38: 0.05 | L38: =标准英雄数值!D38 -> 194.9152542 | M38: =ROUND(L38/(1+Q38*S38)+标准英雄数值!G38,2)/O38 -> 90.66 | N38: 0.05 | O38: 2 | P38: 0 | Q38: 0.05 | R38: 0 | S38: 1.5 | T38: 0
A39: 37 | B39: =标准英雄数值!B39-O39 -> 12.3 | C39: =ROUND(B39*标准英雄数值!K39,2) -> 6947.86 | D39: 0.05 | E39: 0 | F39: 0.05 | L39: =标准英雄数值!D39 -> 202.6573427 | M39: =ROUND(L39/(1+Q39*S39)+标准英雄数值!G39,2)/O39 -> 94.26 | N39: 0.05 | O39: 2 | P39: 0 | Q39: 0.05 | R39: 0 | S39: 1.5 | T39: 0
A40: 38 | B40: =标准英雄数值!B40-O40 -> 12.44 | C40: =ROUND(B40*标准英雄数值!K40,2) -> 7383.04 | D40: 0.05 | E40: 0 | F40: 0.05 | L40: =标准英雄数值!D40 -> 210.734072 | M40: =ROUND(L40/(1+Q40*S40)+标准英雄数值!G40,2)/O40 -> 98.015 | N40: 0.05 | O40: 2 | P40: 0 | Q40: 0.05 | R40: 0 | S40: 1.5 | T40: 0
A41: 39 | B41: =标准英雄数值!B41-O41 -> 12.58 | C41: =ROUND(B41*标准英雄数值!K41,2) -> 7850.23 | D41: 0.05 | E41: 0 | F41: 0.05 | L41: =标准英雄数值!D41 -> 219.1358025 | M41: =ROUND(L41/(1+Q41*S41)+标准英雄数值!G41,2)/O41 -> 101.925 | N41: 0.05 | O41: 2 | P41: 0 | Q41: 0.05 | R41: 0 | S41: 1.5 | T41: 0
A42: 40 | B42: =标准英雄数值!B42-O42 -> 12.73 | C42: =ROUND(B42*标准英雄数值!K42,2) -> 8332.53 | D42: 0.05 | E42: 0 | F42: 0.05 | L42: =标准英雄数值!D42 -> 227.766463 | M42: =ROUND(L42/(1+Q42*S42)+标准英雄数值!G42,2)/O42 -> 105.94 | N42: 0.05 | O42: 2 | P42: 0 | Q42: 0.05 | R42: 0 | S42: 1.5 | T42: 0
A43: 41 | B43: =标准英雄数值!B43-O43 -> 12.88 | C43: =ROUND(B43*标准英雄数值!K43,2) -> 8848.56 | D43: 0.05 | E43: 0 | F43: 0.05 | L43: =标准英雄数值!D43 -> 236.7607527 | M43: =ROUND(L43/(1+Q43*S43)+标准英雄数值!G43,2)/O43 -> 110.12 | N43: 0.05 | O43: 2 | P43: 0 | Q43: 0.05 | R43: 0 | S43: 1.5 | T43: 0
A44: 42 | B44: =标准英雄数值!B44-O44 -> 13.03 | C44: =ROUND(B44*标准英雄数值!K44,2) -> 9399.19 | D44: 0.05 | E44: 0 | F44: 0.05 | L44: =标准英雄数值!D44 -> 246.1077844 | M44: =ROUND(L44/(1+Q44*S44)+标准英雄数值!G44,2)/O44 -> 114.47 | N44: 0.05 | O44: 2 | P44: 0 | Q44: 0.05 | R44: 0 | S44: 1.5 | T44: 0
A45: 43 | B45: =标准英雄数值!B45-O45 -> 13.18 | C45: =ROUND(B45*标准英雄数值!K45,2) -> 9985.28 | D45: 0.05 | E45: 0 | F45: 0.05 | L45: =标准英雄数值!D45 -> 255.8629776 | M45: =ROUND(L45/(1+Q45*S45)+标准英雄数值!G45,2)/O45 -> 119.005 | N45: 0.05 | O45: 2 | P45: 0 | Q45: 0.05 | R45: 0 | S45: 1.5 | T45: 0
A46: 44 | B46: =标准英雄数值!B46-O46 -> 13.33 | C46: =ROUND(B46*标准英雄数值!K46,2) -> 10607.68 | D46: 0.05 | E46: 0 | F46: 0.05 | L46: =标准英雄数值!D46 -> 266.0143509 | M46: =ROUND(L46/(1+Q46*S46)+标准英雄数值!G46,2)/O46 -> 123.73 | N46: 0.05 | O46: 2 | P46: 0 | Q46: 0.05 | R46: 0 | S46: 1.5 | T46: 0
A47: 45 | B47: =标准英雄数值!B47-O47 -> 13.48 | C47: =ROUND(B47*标准英雄数值!K47,2) -> 11267.26 | D47: 0.05 | E47: 0 | F47: 0.05 | L47: =标准英雄数值!D47 -> 276.6149871 | M47: =ROUND(L47/(1+Q47*S47)+标准英雄数值!G47,2)/O47 -> 128.66 | N47: 0.05 | O47: 2 | P47: 0 | Q47: 0.05 | R47: 0 | S47: 1.5 | T47: 0
A48: 46 | B48: =标准英雄数值!B48-O48 -> 13.63 | C48: =ROUND(B48*标准英雄数值!K48,2) -> 11964.87 | D48: 0.05 | E48: 0 | F48: 0.05 | L48: =标准英雄数值!D48 -> 287.6519514 | M48: =ROUND(L48/(1+Q48*S48)+标准英雄数值!G48,2)/O48 -> 133.79 | N48: 0.05 | O48: 2 | P48: 0 | Q48: 0.05 | R48: 0 | S48: 1.5 | T48: 0
A49: 47 | B49: =标准英雄数值!B49-O49 -> 13.79 | C49: =ROUND(B49*标准英雄数值!K49,2) -> 12710.59 | D49: 0.05 | E49: 0 | F49: 0.05 | L49: =标准英雄数值!D49 -> 298.9867004 | M49: =ROUND(L49/(1+Q49*S49)+标准英雄数值!G49,2)/O49 -> 139.065 | N49: 0.05 | O49: 2 | P49: 0 | Q49: 0.05 | R49: 0 | S49: 1.5 | T49: 0
A50: 48 | B50: =标准英雄数值!B50-O50 -> 13.95 | C50: =ROUND(B50*标准英雄数值!K50,2) -> 13496.97 | D50: 0.05 | E50: 0 | F50: 0.05 | L50: =标准英雄数值!D50 -> 310.7836991 | M50: =ROUND(L50/(1+Q50*S50)+标准英雄数值!G50,2)/O50 -> 144.55 | N50: 0.05 | O50: 2 | P50: 0 | Q50: 0.05 | R50: 0 | S50: 1.5 | T50: 0
A51: 49 | B51: =标准英雄数值!B51-O51 -> 14.11 | C51: =ROUND(B51*标准英雄数值!K51,2) -> 14324.94 | D51: 0.05 | E51: 0 | F51: 0.05 | L51: =标准英雄数值!D51 -> 323.0912477 | M51: =ROUND(L51/(1+Q51*S51)+标准英雄数值!G51,2)/O51 -> 150.275 | N51: 0.05 | O51: 2 | P51: 0 | Q51: 0.05 | R51: 0 | S51: 1.5 | T51: 0
A52: 50 | B52: =标准英雄数值!B52-O52 -> 14.27 | C52: =ROUND(B52*标准英雄数值!K52,2) -> 15222.64 | D52: 0.05 | E52: 0 | F52: 0.05 | L52: =标准英雄数值!D52 -> 335.894284 | M52: =ROUND(L52/(1+Q52*S52)+标准英雄数值!G52,2)/O52 -> 156.23 | N52: 0.05 | O52: 2 | P52: 0 | Q52: 0.05 | R52: 0 | S52: 1.5 | T52: 0
A53: 51 | B53: =标准英雄数值!B53-O53 -> 14.43 | C53: =ROUND(B53*标准英雄数值!K53,2) -> 16164.37 | D53: 0.05 | E53: 0 | F53: 0.05 | L53: =标准英雄数值!D53 -> 349.2391966 | M53: =ROUND(L53/(1+Q53*S53)+标准英雄数值!G53,2)/O53 -> 162.435 | N53: 0.05 | O53: 2 | P53: 0 | Q53: 0.05 | R53: 0 | S53: 1.5 | T53: 0
A54: 52 | B54: =标准英雄数值!B54-O54 -> 14.59 | C54: =ROUND(B54*标准英雄数值!K54,2) -> 17151.03 | D54: 0.05 | E54: 0 | F54: 0.05 | L54: =标准英雄数值!D54 -> 363.1705847 | M54: =ROUND(L54/(1+Q54*S54)+标准英雄数值!G54,2)/O54 -> 168.915 | N54: 0.05 | O54: 2 | P54: 0 | Q54: 0.05 | R54: 0 | S54: 1.5 | T54: 0
A55: 53 | B55: =标准英雄数值!B55-O55 -> 14.76 | C55: =ROUND(B55*标准英雄数值!K55,2) -> 18224.05 | D55: 0.05 | E55: 0 | F55: 0.05 | L55: =标准英雄数值!D55 -> 377.4463007 | M55: =ROUND(L55/(1+Q55*S55)+标准英雄数值!G55,2)/O55 -> 175.555 | N55: 0.05 | O55: 2 | P55: 0 | Q55: 0.05 | R55: 0 | S55: 1.5 | T55: 0
A56: 54 | B56: =标准英雄数值!B56-O56 -> 14.93 | C56: =ROUND(B56*标准英雄数值!K56,2) -> 19345.67 | D56: 0.05 | E56: 0 | F56: 0.05 | L56: =标准英雄数值!D56 -> 392.3213231 | M56: =ROUND(L56/(1+Q56*S56)+标准英雄数值!G56,2)/O56 -> 182.475 | N56: 0.05 | O56: 2 | P56: 0 | Q56: 0.05 | R56: 0 | S56: 1.5 | T56: 0
A57: 55 | B57: =标准英雄数值!B57-O57 -> 15.1 | C57: =ROUND(B57*标准英雄数值!K57,2) -> 20545.69 | D57: 0.05 | E57: 0 | F57: 0.05 | L57: =标准英雄数值!D57 -> 407.8362573 | M57: =ROUND(L57/(1+Q57*S57)+标准英雄数值!G57,2)/O57 -> 189.69 | N57: 0.05 | O57: 2 | P57: 0 | Q57: 0.05 | R57: 0 | S57: 1.5 | T57: 0
A58: 56 | B58: =标准英雄数值!B58-O58 -> 15.27 | C58: =ROUND(B58*标准英雄数值!K58,2) -> 21826.05 | D58: 0.05 | E58: 0 | F58: 0.05 | L58: =标准英雄数值!D58 -> 424.03011 | M58: =ROUND(L58/(1+Q58*S58)+标准英雄数值!G58,2)/O58 -> 197.225 | N58: 0.05 | O58: 2 | P58: 0 | Q58: 0.05 | R58: 0 | S58: 1.5 | T58: 0
A59: 57 | B59: =标准英雄数值!B59-O59 -> 15.44 | C59: =ROUND(B59*标准英雄数值!K59,2) -> 23159.23 | D59: 0.05 | E59: 0 | F59: 0.05 | L59: =标准英雄数值!D59 -> 440.8830275 | M59: =ROUND(L59/(1+Q59*S59)+标准英雄数值!G59,2)/O59 -> 205.06 | N59: 0.05 | O59: 2 | P59: 0 | Q59: 0.05 | R59: 0 | S59: 1.5 | T59: 0
A60: 58 | B60: =标准英雄数值!B60-O60 -> 15.61 | C60: =ROUND(B60*标准英雄数值!K60,2) -> 24575.99 | D60: 0.05 | E60: 0 | F60: 0.05 | L60: =标准英雄数值!D60 -> 458.4327087 | M60: =ROUND(L60/(1+Q60*S60)+标准英雄数值!G60,2)/O60 -> 213.225 | N60: 0.05 | O60: 2 | P60: 0 | Q60: 0.05 | R60: 0 | S60: 1.5 | T60: 0
A61: 59 | B61: =标准英雄数值!B61-O61 -> 15.79 | C61: =ROUND(B61*标准英雄数值!K61,2) -> 26094.82 | D61: 0.05 | E61: 0 | F61: 0.05 | L61: =标准英雄数值!D61 -> 476.5036537 | M61: =ROUND(L61/(1+Q61*S61)+标准英雄数值!G61,2)/O61 -> 221.63 | N61: 0.05 | O61: 2 | P61: 0 | Q61: 0.05 | R61: 0 | S61: 1.5 | T61: 0
A62: 60 | B62: =标准英雄数值!B62-O62 -> 15.97 | C62: =ROUND(B62*标准英雄数值!K62,2) -> 27702.76 | D62: 0.05 | E62: 0 | F62: 0.05 | L62: =标准英雄数值!D62 -> 495.3255426 | M62: =ROUND(L62/(1+Q62*S62)+标准英雄数值!G62,2)/O62 -> 230.385 | N62: 0.05 | O62: 2 | P62: 0 | Q62: 0.05 | R62: 0 | S62: 1.5 | T62: 0
A63: 61 | B63: =标准英雄数值!B63-O63 -> 16.15 | C63: =ROUND(B63*标准英雄数值!K63,2) -> 29401.88 | D63: 0.05 | E63: 0 | F63: 0.05 | L63: =标准英雄数值!D63 -> 514.9311295 | M63: =ROUND(L63/(1+Q63*S63)+标准英雄数值!G63,2)/O63 -> 239.505 | N63: 0.05 | O63: 2 | P63: 0 | Q63: 0.05 | R63: 0 | S63: 1.5 | T63: 0
A64: 62 | B64: =标准英雄数值!B64-O64 -> 16.33 | C64: =ROUND(B64*标准英雄数值!K64,2) -> 31225.41 | D64: 0.05 | E64: 0 | F64: 0.05 | L64: =标准英雄数值!D64 -> 535.3518822 | M64: =ROUND(L64/(1+Q64*S64)+标准英雄数值!G64,2)/O64 -> 249 | N64: 0.05 | O64: 2 | P64: 0 | Q64: 0.05 | R64: 0 | S64: 1.5 | T64: 0
A65: 63 | B65: =标准英雄数值!B65-O65 -> 16.51 | C65: =ROUND(B65*标准英雄数值!K65,2) -> 33144.93 | D65: 0.05 | E65: 0 | F65: 0.05 | L65: =标准英雄数值!D65 -> 556.6720692 | M65: =ROUND(L65/(1+Q65*S65)+标准英雄数值!G65,2)/O65 -> 258.915 | N65: 0.05 | O65: 2 | P65: 0 | Q65: 0.05 | R65: 0 | S65: 1.5 | T65: 0
A66: 64 | B66: =标准英雄数值!B66-O66 -> 16.7 | C66: =ROUND(B66*标准英雄数值!K66,2) -> 35215.43 | D66: 0.05 | E66: 0 | F66: 0.05 | L66: =标准英雄数值!D66 -> 578.5561497 | M66: =ROUND(L66/(1+Q66*S66)+标准英雄数值!G66,2)/O66 -> 269.095 | N66: 0.05 | O66: 2 | P66: 0 | Q66: 0.05 | R66: 0 | S66: 1.5 | T66: 0
A67: 65 | B67: =标准英雄数值!B67-O67 -> 16.89 | C67: =ROUND(B67*标准英雄数值!K67,2) -> 37388.83 | D67: 0.05 | E67: 0 | F67: 0.05 | L67: =标准英雄数值!D67 -> 601.3763896 | M67: =ROUND(L67/(1+Q67*S67)+标准英雄数值!G67,2)/O67 -> 279.71 | N67: 0.05 | O67: 2 | P67: 0 | Q67: 0.05 | R67: 0 | S67: 1.5 | T67: 0
A68: 66 | B68: =标准英雄数值!B68-O68 -> 17.08 | C68: =ROUND(B68*标准英雄数值!K68,2) -> 39699.9 | D68: 0.05 | E68: 0 | F68: 0.05 | L68: =标准英雄数值!D68 -> 625.1572327 | M68: =ROUND(L68/(1+Q68*S68)+标准英雄数值!G68,2)/O68 -> 290.77 | N68: 0.05 | O68: 2 | P68: 0 | Q68: 0.05 | R68: 0 | S68: 1.5 | T68: 0
A69: 67 | B69: =标准英雄数值!B69-O69 -> 17.27 | C69: =ROUND(B69*标准英雄数值!K69,2) -> 42151.9 | D69: 0.05 | E69: =ROUND(E68*(1+F69),2) -> 0 | F69: 0.05 | L69: =标准英雄数值!D69 -> 649.9221588 | M69: =ROUND(L69/(1+Q69*S69)+标准英雄数值!G69,2)/O69 -> 302.29 | N69: 0.05 | O69: =ROUND(O68*(1+P69),0) -> 2 | P69: 0 | Q69: =ROUND(Q68*(1+R69),2) -> 0.05 | R69: 0 | S69: =ROUND(S68*(1+T69),2) -> 1.5 | T69: 0
A70: 68 | B70: =标准英雄数值!B70-O70 -> 17.46 | C70: =ROUND(B70*标准英雄数值!K70,2) -> 44748.09 | D70: 0.05 | E70: 0 | F70: 0.05 | L70: =标准英雄数值!D70 -> 675.7451182 | M70: =ROUND(L70/(1+Q70*S70)+标准英雄数值!G70,2)/O70 -> 314.3 | N70: 0.05 | O70: 2 | P70: 0 | Q70: 0.05 | R70: 0 | S70: 1.5 | T70: 0
A71: 69 | B71: =标准英雄数值!B71-O71 -> 17.65 | C71: =ROUND(B71*标准英雄数值!K71,2) -> 47491.74 | D71: 0.05 | E71: 0 | F71: 0.05 | L71: =标准英雄数值!D71 -> 702.697201 | M71: =ROUND(L71/(1+Q71*S71)+标准英雄数值!G71,2)/O71 -> 326.835 | N71: 0.05 | O71: 2 | P71: 0 | Q71: 0.05 | R71: 0 | S71: 1.5 | T71: 0
A72: 70 | B72: =标准英雄数值!B72-O72 -> 17.85 | C72: =ROUND(B72*标准英雄数值!K72,2) -> 50448.41 | D72: 0.05 | E72: 0 | F72: 0.05 | L72: =标准英雄数值!D72 -> 730.3778338 | M72: =ROUND(L72/(1+Q72*S72)+标准英雄数值!G72,2)/O72 -> 339.71 | N72: 0.05 | O72: 2 | P72: 0 | Q72: 0.05 | R72: 0 | S72: 1.5 | T72: 0
A73: 71 | B73: =标准英雄数值!B73-O73 -> 18.05 | C73: =ROUND(B73*标准英雄数值!K73,2) -> 53562.62 | D73: 0.05 | E73: 0 | F73: 0.05 | L73: =标准英雄数值!D73 -> 759.2518703 | M73: =ROUND(L73/(1+Q73*S73)+标准英雄数值!G73,2)/O73 -> 353.14 | N73: 0.05 | O73: 2 | P73: 0 | Q73: 0.05 | R73: 0 | S73: 1.5 | T73: 0
A74: 72 | B74: =标准英雄数值!B74-O74 -> 18.25 | C74: =ROUND(B74*标准英雄数值!K74,2) -> 56872.63 | D74: 0.05 | E74: 0 | F74: 0.05 | L74: =标准英雄数值!D74 -> 789.3333333 | M74: =ROUND(L74/(1+Q74*S74)+标准英雄数值!G74,2)/O74 -> 367.13 | N74: 0.05 | O74: 2 | P74: 0 | Q74: 0.05 | R74: 0 | S74: 1.5 | T74: 0
A75: 73 | B75: =标准英雄数值!B75-O75 -> 18.45 | C75: =ROUND(B75*标准英雄数值!K75,2) -> 60383.01 | D75: 0.05 | E75: 0 | F75: 0.05 | L75: =标准英雄数值!D75 -> 820.6845966 | M75: =ROUND(L75/(1+Q75*S75)+标准英雄数值!G75,2)/O75 -> 381.715 | N75: 0.05 | O75: 2 | P75: 0 | Q75: 0.05 | R75: 0 | S75: 1.5 | T75: 0
A76: 74 | B76: =标准英雄数值!B76-O76 -> 18.65 | C76: =ROUND(B76*标准英雄数值!K76,2) -> 64098.34 | D76: 0.05 | E76: 0 | F76: 0.05 | L76: =标准英雄数值!D76 -> 853.3656174 | M76: =ROUND(L76/(1+Q76*S76)+标准英雄数值!G76,2)/O76 -> 396.915 | N76: 0.05 | O76: 2 | P76: 0 | Q76: 0.05 | R76: 0 | S76: 1.5 | T76: 0
A77: 75 | B77: =标准英雄数值!B77-O77 -> 18.86 | C77: =ROUND(B77*标准英雄数值!K77,2) -> 68059.3 | D77: 0.05 | E77: 0 | F77: 0.05 | L77: =标准英雄数值!D77 -> 887.008629 | M77: =ROUND(L77/(1+Q77*S77)+标准英雄数值!G77,2)/O77 -> 412.56 | N77: 0.05 | O77: 2 | P77: 0 | Q77: 0.05 | R77: 0 | S77: 1.5 | T77: 0
A78: 76 | B78: =标准英雄数值!B78-O78 -> 19.07 | C78: =ROUND(B78*标准英雄数值!K78,2) -> 72274.35 | D78: 0.05 | E78: 0 | F78: 0.05 | L78: =标准英雄数值!D78 -> 922.0692928 | M78: =ROUND(L78/(1+Q78*S78)+标准英雄数值!G78,2)/O78 -> 428.87 | N78: 0.05 | O78: 2 | P78: 0 | Q78: 0.05 | R78: 0 | S78: 1.5 | T78: 0
A79: 77 | B79: =标准英雄数值!B79-O79 -> 19.28 | C79: =ROUND(B79*标准英雄数值!K79,2) -> 76712.71 | D79: 0.05 | E79: 0 | F79: 0.05 | L79: =标准英雄数值!D79 -> 958.5996241 | M79: =ROUND(L79/(1+Q79*S79)+标准英雄数值!G79,2)/O79 -> 445.86 | N79: 0.05 | O79: 2 | P79: 0 | Q79: 0.05 | R79: 0 | S79: 1.5 | T79: 0
A80: 78 | B80: =标准英雄数值!B80-O80 -> 19.49 | C80: =ROUND(B80*标准英雄数值!K80,2) -> 81416.39 | D80: 0.05 | E80: 0 | F80: 0.05 | L80: =标准英雄数值!D80 -> 996.6961377 | M80: =ROUND(L80/(1+Q80*S80)+标准英雄数值!G80,2)/O80 -> 463.58 | N80: 0.05 | O80: 2 | P80: 0 | Q80: 0.05 | R80: 0 | S80: 1.5 | T80: 0
A81: 79 | B81: =标准英雄数值!B81-O81 -> 19.7 | C81: =ROUND(B81*标准英雄数值!K81,2) -> 86391.4 | D81: 0.05 | E81: 0 | F81: 0.05 | L81: =标准英雄数值!D81 -> 1036.40553 | M81: =ROUND(L81/(1+Q81*S81)+标准英雄数值!G81,2)/O81 -> 482.05 | N81: 0.05 | O81: 2 | P81: 0 | Q81: 0.05 | R81: 0 | S81: 1.5 | T81: 0
A82: 80 | B82: =标准英雄数值!B82-O82 -> 19.92 | C82: =ROUND(B82*标准英雄数值!K82,2) -> 91727.78 | D82: 0.05 | E82: 0 | F82: 0.05 | L82: =标准英雄数值!D82 -> 1077.326642 | M82: =ROUND(L82/(1+Q82*S82)+标准英雄数值!G82,2)/O82 -> 501.08 | N82: 0.05 | O82: 2 | P82: 0 | Q82: 0.05 | R82: 0 | S82: 1.5 | T82: 0
A83: 81 | B83: =标准英雄数值!B83-O83 -> 20.14 | C83: =ROUND(B83*标准英雄数值!K83,2) -> 97391.33 | D83: 0.05 | E83: 0 | F83: 0.05 | L83: =标准英雄数值!D83 -> 1119.963866 | M83: =ROUND(L83/(1+Q83*S83)+标准英雄数值!G83,2)/O83 -> 520.915 | N83: 0.05 | O83: 2 | P83: 0 | Q83: 0.05 | R83: 0 | S83: 1.5 | T83: 0
A84: 82 | B84: =标准英雄数值!B84-O84 -> 20.36 | C84: =ROUND(B84*标准英雄数值!K84,2) -> 103389.61 | D84: 0.05 | E84: 0 | F84: 0.05 | L84: =标准英雄数值!D84 -> 1164.400716 | M84: =ROUND(L84/(1+Q84*S84)+标准英雄数值!G84,2)/O84 -> 541.58 | N84: 0.05 | O84: 2 | P84: 0 | Q84: 0.05 | R84: 0 | S84: 1.5 | T84: 0
A85: 83 | B85: =标准英雄数值!B85-O85 -> 20.58 | C85: =ROUND(B85*标准英雄数值!K85,2) -> 109730.16 | D85: 0.05 | E85: 0 | F85: 0.05 | L85: =标准英雄数值!D85 -> 1210.717449 | M85: =ROUND(L85/(1+Q85*S85)+标准英雄数值!G85,2)/O85 -> 563.125 | N85: 0.05 | O85: 2 | P85: 0 | Q85: 0.05 | R85: 0 | S85: 1.5 | T85: 0
A86: 84 | B86: =标准英雄数值!B86-O86 -> 20.81 | C86: =ROUND(B86*标准英雄数值!K86,2) -> 116516.23 | D86: 0.05 | E86: 0 | F86: 0.05 | L86: =标准英雄数值!D86 -> 1258.439281 | M86: =ROUND(L86/(1+Q86*S86)+标准英雄数值!G86,2)/O86 -> 585.32 | N86: 0.05 | O86: 2 | P86: 0 | Q86: 0.05 | R86: 0 | S86: 1.5 | T86: 0
A87: 85 | B87: =标准英雄数值!B87-O87 -> 21.04 | C87: =ROUND(B87*标准英雄数值!K87,2) -> 123706.26 | D87: 0.05 | E87: 0 | F87: 0.05 | L87: =标准英雄数值!D87 -> 1308.159722 | M87: =ROUND(L87/(1+Q87*S87)+标准英雄数值!G87,2)/O87 -> 608.445 | N87: 0.05 | O87: 2 | P87: 0 | Q87: 0.05 | R87: 0 | S87: 1.5 | T87: 0
A88: 86 | B88: =标准英雄数值!B88-O88 -> 21.27 | C88: =ROUND(B88*标准英雄数值!K88,2) -> 131309.46 | D88: 0.05 | E88: 0 | F88: 0.05 | L88: =标准英雄数值!D88 -> 1359.991405 | M88: =ROUND(L88/(1+Q88*S88)+标准英雄数值!G88,2)/O88 -> 632.555 | N88: 0.05 | O88: 2 | P88: 0 | Q88: 0.05 | R88: 0 | S88: 1.5 | T88: 0
A89: 87 | B89: =标准英雄数值!B89-O89 -> 21.5 | C89: =ROUND(B89*标准英雄数值!K89,2) -> 139376.08 | D89: 0.05 | E89: 0 | F89: 0.05 | L89: =标准英雄数值!D89 -> 1414 | M89: =ROUND(L89/(1+Q89*S89)+标准英雄数值!G89,2)/O89 -> 657.675 | N89: 0.05 | O89: 2 | P89: 0 | Q89: 0.05 | R89: 0 | S89: 1.5 | T89: 0
A90: 88 | B90: =标准英雄数值!B90-O90 -> 21.74 | C90: =ROUND(B90*标准英雄数值!K90,2) -> 147984.72 | D90: 0.05 | E90: 0 | F90: 0.05 | L90: =标准英雄数值!D90 -> 1469.671441 | M90: =ROUND(L90/(1+Q90*S90)+标准英雄数值!G90,2)/O90 -> 683.57 | N90: 0.05 | O90: 2 | P90: 0 | Q90: 0.05 | R90: 0 | S90: 1.5 | T90: 0
A91: 89 | B91: =标准英雄数值!B91-O91 -> 21.98 | C91: =ROUND(B91*标准英雄数值!K91,2) -> 157084.65 | D91: 0.05 | E91: 0 | F91: 0.05 | L91: =标准英雄数值!D91 -> 1527.731443 | M91: =ROUND(L91/(1+Q91*S91)+标准英雄数值!G91,2)/O91 -> 710.575 | N91: 0.05 | O91: 2 | P91: 0 | Q91: 0.05 | R91: 0 | S91: 1.5 | T91: 0
A92: 90 | B92: =标准英雄数值!B92-O92 -> 22.22 | C92: =ROUND(B92*标准英雄数值!K92,2) -> 166729.25 | D92: 0.05 | E92: 0 | F92: 0.05 | L92: =标准英雄数值!D92 -> 1588.232865 | M92: =ROUND(L92/(1+Q92*S92)+标准英雄数值!G92,2)/O92 -> 738.715 | N92: 0.05 | O92: 2 | P92: 0 | Q92: 0.05 | R92: 0 | S92: 1.5 | T92: 0
A93: 91 | B93: =标准英雄数值!B93-O93 -> 22.46 | C93: =ROUND(B93*标准英雄数值!K93,2) -> 176973.76 | D93: 0.05 | E93: 0 | F93: 0.05 | L93: =标准英雄数值!D93 -> 1651.267375 | M93: =ROUND(L93/(1+Q93*S93)+标准英雄数值!G93,2)/O93 -> 768.03 | N93: 0.05 | O93: 2 | P93: 0 | Q93: 0.05 | R93: 0 | S93: 1.5 | T93: 0
A94: 92 | B94: =标准英雄数值!B94-O94 -> 22.7 | C94: =ROUND(B94*标准英雄数值!K94,2) -> 187788.59 | D94: 0.05 | E94: 0 | F94: 0.05 | L94: =标准英雄数值!D94 -> 1717.004049 | M94: =ROUND(L94/(1+Q94*S94)+标准英雄数值!G94,2)/O94 -> 798.605 | N94: 0.05 | O94: 2 | P94: 0 | Q94: 0.05 | R94: 0 | S94: 1.5 | T94: 0
A95: 93 | B95: =标准英雄数值!B95-O95 -> 22.95 | C95: =ROUND(B95*标准英雄数值!K95,2) -> 199360.53 | D95: 0.05 | E95: 0 | F95: 0.05 | L95: =标准英雄数值!D95 -> 1784.809619 | M95: =ROUND(L95/(1+Q95*S95)+标准英雄数值!G95,2)/O95 -> 830.145 | N95: 0.05 | O95: 2 | P95: 0 | Q95: 0.05 | R95: 0 | S95: 1.5 | T95: 0
A96: 94 | B96: =标准英雄数值!B96-O96 -> 23.2 | C96: =ROUND(B96*标准英雄数值!K96,2) -> 211626.53 | D96: 0.05 | E96: 0 | F96: 0.05 | L96: =标准英雄数值!D96 -> 1855.47619 | M96: =ROUND(L96/(1+Q96*S96)+标准英雄数值!G96,2)/O96 -> 863.01 | N96: 0.05 | O96: 2 | P96: 0 | Q96: 0.05 | R96: 0 | S96: 1.5 | T96: 0
A97: 95 | B97: =标准英雄数值!B97-O97 -> 23.45 | C97: =ROUND(B97*标准英雄数值!K97,2) -> 224602.34 | D97: 0.05 | E97: 0 | F97: 0.05 | L97: =标准英雄数值!D97 -> 1929.115914 | M97: =ROUND(L97/(1+Q97*S97)+标准英雄数值!G97,2)/O97 -> 897.265 | N97: 0.05 | O97: 2 | P97: 0 | Q97: 0.05 | R97: 0 | S97: 1.5 | T97: 0
A98: 96 | B98: =标准英雄数值!B98-O98 -> 23.7 | C98: =ROUND(B98*标准英雄数值!K98,2) -> 238348.93 | D98: 0.05 | E98: 0 | F98: 0.05 | L98: =标准英雄数值!D98 -> 2005.875486 | M98: =ROUND(L98/(1+Q98*S98)+标准英雄数值!G98,2)/O98 -> 932.965 | N98: 0.05 | O98: 2 | P98: 0 | Q98: 0.05 | R98: 0 | S98: 1.5 | T98: 0
A99: 97 | B99: =标准英雄数值!B99-O99 -> 23.96 | C99: =ROUND(B99*标准英雄数值!K99,2) -> 253034.77 | D99: 0.05 | E99: 0 | F99: 0.05 | L99: =标准英雄数值!D99 -> 2085.09245 | M99: =ROUND(L99/(1+Q99*S99)+标准英雄数值!G99,2)/O99 -> 969.81 | N99: 0.05 | O99: 2 | P99: 0 | Q99: 0.05 | R99: 0 | S99: 1.5 | T99: 0
A100: 98 | B100: =标准英雄数值!B100-O100 -> 24.22 | C100: =ROUND(B100*标准英雄数值!K100,2) -> 268583.45 | D100: 0.05 | E100: 0 | F100: 0.05 | L100: =标准英雄数值!D100 -> 2167.620137 | M100: =ROUND(L100/(1+Q100*S100)+标准英雄数值!G100,2)/O100 -> 1008.195 | N100: 0.05 | O100: 2 | P100: 0 | Q100: 0.05 | R100: 0 | S100: 1.5 | T100: 0
A101: 99 | B101: =标准英雄数值!B101-O101 -> 24.48 | C101: =ROUND(B101*标准英雄数值!K101,2) -> 285061.03 | D101: 0.05 | E101: 0 | F101: 0.05 | L101: =标准英雄数值!D101 -> 2253.663142 | M101: =ROUND(L101/(1+Q101*S101)+标准英雄数值!G101,2)/O101 -> 1048.215 | N101: 0.05 | O101: 2 | P101: 0 | Q101: 0.05 | R101: 0 | S101: 1.5 | T101: 0
A102: 100 | B102: =标准英雄数值!B102-O102 -> 24.74 | C102: =ROUND(B102*标准英雄数值!K102,2) -> 302488.35 | D102: 0.05 | E102: 0 | F102: 0.05 | L102: =标准英雄数值!D102 -> 2343.343306 | M102: =ROUND(L102/(1+Q102*S102)+标准英雄数值!G102,2)/O102 -> 1089.925 | N102: 0.05 | O102: 2 | P102: 0 | Q102: 0.05 | R102: 0 | S102: 1.5 | T102: 0
A103: 101 | B103: =标准英雄数值!B103-O103 -> 25.01 | C103: =ROUND(B103*标准英雄数值!K103,2) -> 321062.33 | D103: 0.05 | E103: =ROUND(E102*(1+F103),2) -> 0 | F103: 0.05 | L103: =标准英雄数值!D103 -> 2435.912625 | M103: =ROUND(L103/(1+Q103*S103)+标准英雄数值!G103,2)/O103 -> 1132.985 | N103: 0.05 | O103: =ROUND(O102*(1+P103),0) -> 2 | P103: 0 | Q103: =ROUND(Q102*(1+R103),2) -> 0.05 | R103: 0 | S103: =ROUND(S102*(1+T103),2) -> 1.5 | T103: 0
A104: 102 | B104: =标准英雄数值!B104-O104 -> 25.28 | C104: =ROUND(B104*标准英雄数值!K104,2) -> 340737.95 | D104: 0.05 | E104: 0 | F104: 0.05 | L104: =标准英雄数值!D104 -> 2532.404692 | M104: =ROUND(L104/(1+Q104*S104)+标准英雄数值!G104,2)/O104 -> 1177.865 | N104: 0.05 | O104: 2 | P104: 0 | Q104: 0.05 | R104: 0 | S104: 1.5 | T104: 0
A105: 103 | B105: =标准英雄数值!B105-O105 -> 25.55 | C105: =ROUND(B105*标准英雄数值!K105,2) -> 361588.71 | D105: 0.05 | E105: 0 | F105: 0.05 | L105: =标准英雄数值!D105 -> 2632.958258 | M105: =ROUND(L105/(1+Q105*S105)+标准英雄数值!G105,2)/O105 -> 1224.63 | N105: 0.05 | O105: 2 | P105: 0 | Q105: 0.05 | R105: 0 | S105: 1.5 | T105: 0
A106: 104 | B106: =标准英雄数值!B106-O106 -> 25.83 | C106: =ROUND(B106*标准英雄数值!K106,2) -> 383838.75 | D106: 0.05 | E106: 0 | F106: 0.05 | L106: =标准英雄数值!D106 -> 2736.794826 | M106: =ROUND(L106/(1+Q106*S106)+标准英雄数值!G106,2)/O106 -> 1272.93 | N106: 0.05 | O106: 2 | P106: 0 | Q106: 0.05 | R106: 0 | S106: 1.5 | T106: 0
A107: 105 | B107: =标准英雄数值!B107-O107 -> 26.11 | C107: =ROUND(B107*标准英雄数值!K107,2) -> 407382.15 | D107: 0.05 | E107: 0 | F107: 0.05 | L107: =标准英雄数值!D107 -> 2845.001779 | M107: =ROUND(L107/(1+Q107*S107)+标准英雄数值!G107,2)/O107 -> 1323.255 | N107: 0.05 | O107: 2 | P107: 0 | Q107: 0.05 | R107: 0 | S107: 1.5 | T107: 0
A108: 106 | B108: =标准英雄数值!B108-O108 -> 26.39 | C108: =ROUND(B108*标准英雄数值!K108,2) -> 432348.47 | D108: 0.05 | E108: 0 | F108: 0.05 | L108: =标准英雄数值!D108 -> 2957.802043 | M108: =ROUND(L108/(1+Q108*S108)+标准英雄数值!G108,2)/O108 -> 1375.72 | N108: 0.05 | O108: 2 | P108: 0 | Q108: 0.05 | R108: 0 | S108: 1.5 | T108: 0
A109: 107 | B109: =标准英雄数值!B109-O109 -> 26.67 | C109: =ROUND(B109*标准英雄数值!K109,2) -> 458769.78 | D109: 0.05 | E109: =ROUND(E108*(1+F109),2) -> 0 | F109: 0.05 | L109: =标准英雄数值!D109 -> 3075.374956 | M109: =ROUND(L109/(1+Q109*S109)+标准英雄数值!G109,2)/O109 -> 1430.405 | N109: 0.05 | O109: =ROUND(O108*(1+P109),0) -> 2 | P109: 0 | Q109: =ROUND(Q108*(1+R109),2) -> 0.05 | R109: 0 | S109: =ROUND(S108*(1+T109),2) -> 1.5 | T109: 0
A110: 108 | B110: =标准英雄数值!B110-O110 -> 26.96 | C110: =ROUND(B110*标准英雄数值!K110,2) -> 486961.63 | D110: 0.05 | E110: 0 | F110: 0.05 | L110: =标准英雄数值!D110 -> 3196.823204 | M110: =ROUND(L110/(1+Q110*S110)+标准英雄数值!G110,2)/O110 -> 1486.895 | N110: 0.05 | O110: 2 | P110: 0 | Q110: 0.05 | R110: 0 | S110: 1.5 | T110: 0
A111: 109 | B111: =标准英雄数值!B111-O111 -> 27.25 | C111: =ROUND(B111*标准英雄数值!K111,2) -> 516796.7 | D111: 0.05 | E111: 0 | F111: 0.05 | L111: =标准英雄数值!D111 -> 3323.384615 | M111: =ROUND(L111/(1+Q111*S111)+标准英雄数值!G111,2)/O111 -> 1545.76 | N111: 0.05 | O111: 2 | P111: 0 | Q111: 0.05 | R111: 0 | S111: 1.5 | T111: 0
A112: 110 | B112: =标准英雄数值!B112-O112 -> 27.54 | C112: =ROUND(B112*标准英雄数值!K112,2) -> 548416.64 | D112: 0.05 | E112: 0 | F112: 0.05 | L112: =标准英雄数值!D112 -> 3455.280975 | M112: =ROUND(L112/(1+Q112*S112)+标准英雄数值!G112,2)/O112 -> 1607.105 | N112: 0.05 | O112: 2 | P112: 0 | Q112: 0.05 | R112: 0 | S112: 1.5 | T112: 0
A113: 111 | B113: =标准英雄数值!B113-O113 -> 27.84 | C113: =ROUND(B113*标准英雄数值!K113,2) -> 582123.5 | D113: 0.05 | E113: 0 | F113: 0.05 | L113: =标准英雄数值!D113 -> 3591.55496 | M113: =ROUND(L113/(1+Q113*S113)+标准英雄数值!G113,2)/O113 -> 1670.49 | N113: 0.05 | O113: 2 | P113: 0 | Q113: 0.05 | R113: 0 | S113: 1.5 | T113: 0
A114: 112 | B114: =标准英雄数值!B114-O114 -> 28.14 | C114: =ROUND(B114*标准英雄数值!K114,2) -> 617824.25 | D114: 0.05 | E114: 0 | F114: 0.05 | L114: =标准英雄数值!D114 -> 3733.609821 | M114: =ROUND(L114/(1+Q114*S114)+标准英雄数值!G114,2)/O114 -> 1736.565 | N114: 0.05 | O114: 2 | P114: 0 | Q114: 0.05 | R114: 0 | S114: 1.5 | T114: 0
A115: 113 | B115: =标准英雄数值!B115-O115 -> 28.44 | C115: =ROUND(B115*标准英雄数值!K115,2) -> 655617.84 | D115: 0.05 | E115: 0 | F115: 0.05 | L115: =标准英雄数值!D115 -> 3881.668857 | M115: =ROUND(L115/(1+Q115*S115)+标准英雄数值!G115,2)/O115 -> 1805.425 | N115: 0.05 | O115: 2 | P115: 0 | Q115: 0.05 | R115: 0 | S115: 1.5 | T115: 0
A116: 114 | B116: =标准英雄数值!B116-O116 -> 28.74 | C116: =ROUND(B116*标准英雄数值!K116,2) -> 695660.32 | D116: 0.05 | E116: 0 | F116: 0.05 | L116: =标准英雄数值!D116 -> 4035.97918 | M116: =ROUND(L116/(1+Q116*S116)+标准英雄数值!G116,2)/O116 -> 1877.2 | N116: 0.05 | O116: 2 | P116: 0 | Q116: 0.05 | R116: 0 | S116: 1.5 | T116: 0
A117: 115 | B117: =标准英雄数值!B117-O117 -> 29.05 | C117: =ROUND(B117*标准英雄数值!K117,2) -> 738311.08 | D117: 0.05 | E117: 0 | F117: 0.05 | L117: =标准英雄数值!D117 -> 4195.458937 | M117: =ROUND(L117/(1+Q117*S117)+标准英雄数值!G117,2)/O117 -> 1951.375 | N117: 0.05 | O117: 2 | P117: 0 | Q117: 0.05 | R117: 0 | S117: 1.5 | T117: 0
A118: 116 | B118: =标准英雄数值!B118-O118 -> 29.36 | C118: =ROUND(B118*标准英雄数值!K118,2) -> 783504.87 | D118: 0.05 | E118: 0 | F118: 0.05 | L118: =标准英雄数值!D118 -> 4361.670918 | M118: =ROUND(L118/(1+Q118*S118)+标准英雄数值!G118,2)/O118 -> 2028.685 | N118: 0.05 | O118: 2 | P118: 0 | Q118: 0.05 | R118: 0 | S118: 1.5 | T118: 0
A119: 117 | B119: =标准英雄数值!B119-O119 -> 29.67 | C119: =ROUND(B119*标准英雄数值!K119,2) -> 831355.13 | D119: 0.05 | E119: 0 | F119: 0.05 | L119: =标准英雄数值!D119 -> 4534.92264 | M119: =ROUND(L119/(1+Q119*S119)+标准英雄数值!G119,2)/O119 -> 2109.265 | N119: 0.05 | O119: 2 | P119: 0 | Q119: 0.05 | R119: 0 | S119: 1.5 | T119: 0
A120: 118 | B120: =标准英雄数值!B120-O120 -> 29.99 | C120: =ROUND(B120*标准英雄数值!K120,2) -> 882329.04 | D120: 0.05 | E120: 0 | F120: 0.05 | L120: =标准英雄数值!D120 -> 4714.035636 | M120: =ROUND(L120/(1+Q120*S120)+标准英雄数值!G120,2)/O120 -> 2192.575 | N120: 0.05 | O120: 2 | P120: 0 | Q120: 0.05 | R120: 0 | S120: 1.5 | T120: 0
A121: 119 | B121: =标准英雄数值!B121-O121 -> 30.31 | C121: =ROUND(B121*标准英雄数值!K121,2) -> 936339.55 | D121: 0.05 | E121: 0 | F121: 0.05 | L121: =标准英雄数值!D121 -> 4900.711854 | M121: =ROUND(L121/(1+Q121*S121)+标准英雄数值!G121,2)/O121 -> 2279.4 | N121: 0.05 | O121: 2 | P121: 0 | Q121: 0.05 | R121: 0 | S121: 1.5 | T121: 0
A122: 120 | B122: =标准英雄数值!B122-O122 -> 30.63 | C122: =ROUND(B122*标准英雄数值!K122,2) -> 993512.89 | D122: 0.05 | E122: 0 | F122: 0.05 | L122: =标准英雄数值!D122 -> 5095.280417 | M122: =ROUND(L122/(1+Q122*S122)+标准英雄数值!G122,2)/O122 -> 2369.9 | N122: 0.05 | O122: 2 | P122: 0 | Q122: 0.05 | R122: 0 | S122: 1.5 | T122: 0
A123: 121 | B123: =标准英雄数值!B123-O123 -> 30.96 | C123: =ROUND(B123*标准英雄数值!K123,2) -> 1054436.45 | D123: 0.05 | E123: 0 | F123: 0.05 | L123: =标准英雄数值!D123 -> 5296.480583 | M123: =ROUND(L123/(1+Q123*S123)+标准英雄数值!G123,2)/O123 -> 2463.48 | N123: 0.05 | O123: 2 | P123: 0 | Q123: 0.05 | R123: 0 | S123: 1.5 | T123: 0
A124: 122 | B124: =标准英雄数值!B124-O124 -> 31.29 | C124: =ROUND(B124*标准英雄数值!K124,2) -> 1118938.48 | D124: 0.05 | E124: 0 | F124: 0.05 | L124: =标准英雄数值!D124 -> 5506.188044 | M124: =ROUND(L124/(1+Q124*S124)+标准英雄数值!G124,2)/O124 -> 2561.02 | N124: 0.05 | O124: 2 | P124: 0 | Q124: 0.05 | R124: 0 | S124: 1.5 | T124: 0
A125: 123 | B125: =标准英雄数值!B125-O125 -> 31.62 | C125: =ROUND(B125*标准英雄数值!K125,2) -> 1187279.35 | D125: 0.05 | E125: 0 | F125: 0.05 | L125: =标准英雄数值!D125 -> 5724.747174 | M125: =ROUND(L125/(1+Q125*S125)+标准英雄数值!G125,2)/O125 -> 2662.675 | N125: 0.05 | O125: 2 | P125: 0 | Q125: 0.05 | R125: 0 | S125: 1.5 | T125: 0
A126: 124 | B126: =标准英雄数值!B126-O126 -> 31.96 | C126: =ROUND(B126*标准英雄数值!K126,2) -> 1260060.29 | D126: 0.05 | E126: 0 | F126: 0.05 | L126: =标准英雄数值!D126 -> 5950.795053 | M126: =ROUND(L126/(1+Q126*S126)+标准英雄数值!G126,2)/O126 -> 2767.81 | N126: 0.05 | O126: 2 | P126: 0 | Q126: 0.05 | R126: 0 | S126: 1.5 | T126: 0
A127: 125 | B127: =标准英雄数值!B127-O127 -> 32.3 | C127: =ROUND(B127*标准英雄数值!K127,2) -> 1337138.44 | D127: 0.05 | E127: 0 | F127: 0.05 | L127: =标准英雄数值!D127 -> 6186.38484 | M127: =ROUND(L127/(1+Q127*S127)+标准英雄数值!G127,2)/O127 -> 2877.39 | N127: 0.05 | O127: 2 | P127: 0 | Q127: 0.05 | R127: 0 | S127: 1.5 | T127: 0
A128: 126 | B128: =标准英雄数值!B128-O128 -> 32.64 | C128: =ROUND(B128*标准英雄数值!K128,2) -> 1418796.06 | D128: 0.05 | E128: 0 | F128: 0.05 | L128: =标准英雄数值!D128 -> 6431.957275 | M128: =ROUND(L128/(1+Q128*S128)+标准英雄数值!G128,2)/O128 -> 2991.61 | N128: 0.05 | O128: 2 | P128: 0 | Q128: 0.05 | R128: 0 | S128: 1.5 | T128: 0
A129: 127 | B129: =标准英雄数值!B129-O129 -> 32.99 | C129: =ROUND(B129*标准英雄数值!K129,2) -> 1505716.66 | D129: 0.05 | E129: 0 | F129: 0.05 | L129: =标准英雄数值!D129 -> 6685.995999 | M129: =ROUND(L129/(1+Q129*S129)+标准英雄数值!G129,2)/O129 -> 3109.765 | N129: 0.05 | O129: 2 | P129: 0 | Q129: 0.05 | R129: 0 | S129: 1.5 | T129: 0
A130: 128 | B130: =标准英雄数值!B130-O130 -> 33.34 | C130: =ROUND(B130*标准英雄数值!K130,2) -> 1597785.33 | D130: 0.05 | E130: 0 | F130: 0.05 | L130: =标准英雄数值!D130 -> 6950.764007 | M130: =ROUND(L130/(1+Q130*S130)+标准英雄数值!G130,2)/O130 -> 3232.915 | N130: 0.05 | O130: 2 | P130: 0 | Q130: 0.05 | R130: 0 | S130: 1.5 | T130: 0
A131: 129 | B131: =标准英雄数值!B131-O131 -> 33.69 | C131: =ROUND(B131*标准英雄数值!K131,2) -> 1695309.16 | D131: 0.05 | E131: 0 | F131: 0.05 | L131: =标准英雄数值!D131 -> 7226.730177 | M131: =ROUND(L131/(1+Q131*S131)+标准英雄数值!G131,2)/O131 -> 3361.27 | N131: 0.05 | O131: 2 | P131: 0 | Q131: 0.05 | R131: 0 | S131: 1.5 | T131: 0
A132: 130 | B132: =标准英雄数值!B132-O132 -> 34.05 | C132: =ROUND(B132*标准英雄数值!K132,2) -> 1799066.65 | D132: 0.05 | E132: 0 | F132: 0.05 | L132: =标准英雄数值!D132 -> 7512.288488 | M132: =ROUND(L132/(1+Q132*S132)+标准英雄数值!G132,2)/O132 -> 3494.09 | N132: 0.05 | O132: 2 | P132: 0 | Q132: 0.05 | R132: 0 | S132: 1.5 | T132: 0
A133: 131 | B133: =标准英雄数值!B133-O133 -> 34.41 | C133: =ROUND(B133*标准英雄数值!K133,2) -> 1908969.02 | D133: 0.05 | E133: 0 | F133: 0.05 | L133: =标准英雄数值!D133 -> 7809.914859 | M133: =ROUND(L133/(1+Q133*S133)+标准英雄数值!G133,2)/O133 -> 3632.52 | N133: 0.05 | O133: 2 | P133: 0 | Q133: 0.05 | R133: 0 | S133: 1.5 | T133: 0
A134: 132 | B134: =标准英雄数值!B134-O134 -> 34.77 | C134: =ROUND(B134*标准英雄数值!K134,2) -> 2025417.69 | D134: 0.05 | E134: 0 | F134: 0.05 | L134: =标准英雄数值!D134 -> 8120.125102 | M134: =ROUND(L134/(1+Q134*S134)+标准英雄数值!G134,2)/O134 -> 3776.8 | N134: 0.05 | O134: 2 | P134: 0 | Q134: 0.05 | R134: 0 | S134: 1.5 | T134: 0
A135: 133 | B135: =标准英雄数值!B135-O135 -> 35.14 | C135: =ROUND(B135*标准英雄数值!K135,2) -> 2149302.67 | D135: 0.05 | E135: 0 | F135: 0.05 | L135: =标准英雄数值!D135 -> 8441.195477 | M135: =ROUND(L135/(1+Q135*S135)+标准英雄数值!G135,2)/O135 -> 3926.135 | N135: 0.05 | O135: 2 | P135: 0 | Q135: 0.05 | R135: 0 | S135: 1.5 | T135: 0
A136: 134 | B136: =标准英雄数值!B136-O136 -> 35.51 | C136: =ROUND(B136*标准英雄数值!K136,2) -> 2280560.51 | D136: 0.05 | E136: 0 | F136: 0.05 | L136: =标准英雄数值!D136 -> 8775.819781 | M136: =ROUND(L136/(1+Q136*S136)+标准英雄数值!G136,2)/O136 -> 4081.775 | N136: 0.05 | O136: 2 | P136: 0 | Q136: 0.05 | R136: 0 | S136: 1.5 | T136: 0
A137: 135 | B137: =标准英雄数值!B137-O137 -> 35.89 | C137: =ROUND(B137*标准英雄数值!K137,2) -> 2420234.07 | D137: 0.05 | E137: 0 | F137: 0.05 | L137: =标准英雄数值!D137 -> 9122.19583 | M137: =ROUND(L137/(1+Q137*S137)+标准英雄数值!G137,2)/O137 -> 4242.88 | N137: 0.05 | O137: 2 | P137: 0 | Q137: 0.05 | R137: 0 | S137: 1.5 | T137: 0
A138: 136 | B138: =标准英雄数值!B138-O138 -> 36.27 | C138: =ROUND(B138*标准英雄数值!K138,2) -> 2568162.64 | D138: 0.05 | E138: 0 | F138: 0.05 | L138: =标准英雄数值!D138 -> 9483.198328 | M138: =ROUND(L138/(1+Q138*S138)+标准英雄数值!G138,2)/O138 -> 4410.79 | N138: 0.05 | O138: 2 | P138: 0 | Q138: 0.05 | R138: 0 | S138: 1.5 | T138: 0
A139: 137 | B139: =标准英雄数值!B139-O139 -> 36.65 | C139: =ROUND(B139*标准英雄数值!K139,2) -> 2724808.69 | D139: 0.05 | E139: 0 | F139: 0.05 | L139: =标准英雄数值!D139 -> 9859.456662 | M139: =ROUND(L139/(1+Q139*S139)+标准英雄数值!G139,2)/O139 -> 4585.795 | N139: 0.05 | O139: 2 | P139: 0 | Q139: 0.05 | R139: 0 | S139: 1.5 | T139: 0
A140: 138 | B140: =标准英雄数值!B140-O140 -> 37.04 | C140: =ROUND(B140*标准英雄数值!K140,2) -> 2891497.66 | D140: 0.05 | E140: 0 | F140: 0.05 | L140: =标准英雄数值!D140 -> 10249.00102 | M140: =ROUND(L140/(1+Q140*S140)+标准英雄数值!G140,2)/O140 -> 4766.975 | N140: 0.05 | O140: 2 | P140: 0 | Q140: 0.05 | R140: 0 | S140: 1.5 | T140: 0
A141: 139 | B141: =标准英雄数值!B141-O141 -> 37.43 | C141: =ROUND(B141*标准英雄数值!K141,2) -> 3068014.83 | D141: 0.05 | E141: 0 | F141: 0.05 | L141: =标准英雄数值!D141 -> 10655.00888 | M141: =ROUND(L141/(1+Q141*S141)+标准英雄数值!G141,2)/O141 -> 4955.82 | N141: 0.05 | O141: 2 | P141: 0 | Q141: 0.05 | R141: 0 | S141: 1.5 | T141: 0
A142: 140 | B142: =标准英雄数值!B142-O142 -> 37.82 | C142: =ROUND(B142*标准英雄数值!K142,2) -> 3255009.82 | D142: 0.05 | E142: 0 | F142: 0.05 | L142: =标准英雄数值!D142 -> 11078.1768 | M142: =ROUND(L142/(1+Q142*S142)+标准英雄数值!G142,2)/O142 -> 5152.64 | N142: 0.05 | O142: 2 | P142: 0 | Q142: 0.05 | R142: 0 | S142: 1.5 | T142: 0
A143: 141 | B143: =标准英雄数值!B143-O143 -> 38.22 | C143: =ROUND(B143*标准英雄数值!K143,2) -> 3453907.96 | D143: 0.05 | E143: 0 | F143: 0.05 | L143: =标准英雄数值!D143 -> 11516.40975 | M143: =ROUND(L143/(1+Q143*S143)+标准英雄数值!G143,2)/O143 -> 5356.47 | N143: 0.05 | O143: 2 | P143: 0 | Q143: 0.05 | R143: 0 | S143: 1.5 | T143: 0
A144: 142 | B144: =标准英雄数值!B144-O144 -> 38.62 | C144: =ROUND(B144*标准英雄数值!K144,2) -> 3664576.81 | D144: 0.05 | E144: 0 | F144: 0.05 | L144: =标准英雄数值!D144 -> 11973.16593 | M144: =ROUND(L144/(1+Q144*S144)+标准英雄数值!G144,2)/O144 -> 5568.915 | N144: 0.05 | O144: 2 | P144: 0 | Q144: 0.05 | R144: 0 | S144: 1.5 | T144: 0
A145: 143 | B145: =标准英雄数值!B145-O145 -> 39.03 | C145: =ROUND(B145*标准英雄数值!K145,2) -> 3888643.79 | D145: 0.05 | E145: 0 | F145: 0.05 | L145: =标准英雄数值!D145 -> 12446.21009 | M145: =ROUND(L145/(1+Q145*S145)+标准英雄数值!G145,2)/O145 -> 5788.935 | N145: 0.05 | O145: 2 | P145: 0 | Q145: 0.05 | R145: 0 | S145: 1.5 | T145: 0
A146: 144 | B146: =标准英雄数值!B146-O146 -> 39.44 | C146: =ROUND(B146*标准英雄数值!K146,2) -> 4125933.76 | D146: 0.05 | E146: 0 | F146: 0.05 | L146: =标准英雄数值!D146 -> 12939.21332 | M146: =ROUND(L146/(1+Q146*S146)+标准英雄数值!G146,2)/O146 -> 6018.24 | N146: 0.05 | O146: 2 | P146: 0 | Q146: 0.05 | R146: 0 | S146: 1.5 | T146: 0
A147: 145 | B147: =标准英雄数值!B147-O147 -> 39.85 | C147: =ROUND(B147*标准英雄数值!K147,2) -> 4377270.12 | D147: 0.05 | E147: 0 | F147: 0.05 | L147: =标准英雄数值!D147 -> 13453.07049 | M147: =ROUND(L147/(1+Q147*S147)+标准英雄数值!G147,2)/O147 -> 6257.24 | N147: 0.05 | O147: 2 | P147: 0 | Q147: 0.05 | R147: 0 | S147: 1.5 | T147: 0
A148: 146 | B148: =标准英雄数值!B148-O148 -> 40.27 | C148: =ROUND(B148*标准英雄数值!K148,2) -> 4644574.68 | D148: 0.05 | E148: 0 | F148: 0.05 | L148: =标准英雄数值!D148 -> 13985.3797 | M148: =ROUND(L148/(1+Q148*S148)+标准英雄数值!G148,2)/O148 -> 6504.83 | N148: 0.05 | O148: 2 | P148: 0 | Q148: 0.05 | R148: 0 | S148: 1.5 | T148: 0
A149: 147 | B149: =标准英雄数值!B149-O149 -> 40.69 | C149: =ROUND(B149*标准英雄数值!K149,2) -> 4927674.29 | D149: 0.05 | E149: 0 | F149: 0.05 | L149: =标准英雄数值!D149 -> 14540.17334 | M149: =ROUND(L149/(1+Q149*S149)+标准英雄数值!G149,2)/O149 -> 6762.87 | N149: 0.05 | O149: 2 | P149: 0 | Q149: 0.05 | R149: 0 | S149: 1.5 | T149: 0
A150: 148 | B150: =标准英雄数值!B150-O150 -> 41.12 | C150: =ROUND(B150*标准英雄数值!K150,2) -> 5228735.93 | D150: 0.05 | E150: 0 | F150: 0.05 | L150: =标准英雄数值!D150 -> 15114.93506 | M150: =ROUND(L150/(1+Q150*S150)+标准英雄数值!G150,2)/O150 -> 7030.2 | N150: 0.05 | O150: 2 | P150: 0 | Q150: 0.05 | R150: 0 | S150: 1.5 | T150: 0
A151: 149 | B151: =标准英雄数值!B151-O151 -> 41.55 | C151: =ROUND(B151*标准英雄数值!K151,2) -> 5547612.31 | D151: 0.05 | E151: 0 | F151: 0.05 | L151: =标准英雄数值!D151 -> 15713.98393 | M151: =ROUND(L151/(1+Q151*S151)+标准英雄数值!G151,2)/O151 -> 7308.83 | N151: 0.05 | O151: 2 | P151: 0 | Q151: 0.05 | R151: 0 | S151: 1.5 | T151: 0
A152: 150 | B152: =标准英雄数值!B152-O152 -> 41.99 | C152: =ROUND(B152*标准英雄数值!K152,2) -> 5886657.53 | D152: 0.05 | E152: 0 | F152: 0.05 | L152: =标准英雄数值!D152 -> 16334.64424 | M152: =ROUND(L152/(1+Q152*S152)+标准英雄数值!G152,2)/O152 -> 7597.51 | N152: 0.05 | O152: 2 | P152: 0 | Q152: 0.05 | R152: 0 | S152: 1.5 | T152: 0
A153: 151 | B153: =标准英雄数值!B153-O153 -> 42.43 | C153: =ROUND(B153*标准英雄数值!K153,2) -> 6245746.92 | D153: 0.05 | E153: 0 | F153: 0.05 | L153: =标准英雄数值!D153 -> 16981.52149 | M153: =ROUND(L153/(1+Q153*S153)+标准英雄数值!G153,2)/O153 -> 7898.38 | N153: 0.05 | O153: 2 | P153: 0 | Q153: 0.05 | R153: 0 | S153: 1.5 | T153: 0
A154: 152 | B154: =标准英雄数值!B154-O154 -> 42.87 | C154: =ROUND(B154*标准英雄数值!K154,2) -> 6626057.58 | D154: 0.05 | E154: 0 | F154: 0.05 | L154: =标准英雄数值!D154 -> 17655.7388 | M154: =ROUND(L154/(1+Q154*S154)+标准英雄数值!G154,2)/O154 -> 8211.97 | N154: 0.05 | O154: 2 | P154: 0 | Q154: 0.05 | R154: 0 | S154: 1.5 | T154: 0
A155: 153 | B155: =标准英雄数值!B155-O155 -> 43.32 | C155: =ROUND(B155*标准英雄数值!K155,2) -> 7030419.77 | D155: 0.05 | E155: 0 | F155: 0.05 | L155: =标准英雄数值!D155 -> 18354.45719 | M155: =ROUND(L155/(1+Q155*S155)+标准英雄数值!G155,2)/O155 -> 8536.955 | N155: 0.05 | O155: 2 | P155: 0 | Q155: 0.05 | R155: 0 | S155: 1.5 | T155: 0
A156: 154 | B156: =标准英雄数值!B156-O156 -> 43.77 | C156: =ROUND(B156*标准英雄数值!K156,2) -> 7458610.44 | D156: 0.05 | E156: 0 | F156: 0.05 | L156: =标准英雄数值!D156 -> 19082.69609 | M156: =ROUND(L156/(1+Q156*S156)+标准英雄数值!G156,2)/O156 -> 8875.675 | N156: 0.05 | O156: 2 | P156: 0 | Q156: 0.05 | R156: 0 | S156: 1.5 | T156: 0
A157: 155 | B157: =标准英雄数值!B157-O157 -> 44.23 | C157: =ROUND(B157*标准英雄数值!K157,2) -> 7913867.49 | D157: 0.05 | E157: 0 | F157: 0.05 | L157: =标准英雄数值!D157 -> 19837.46485 | M157: =ROUND(L157/(1+Q157*S157)+标准英雄数值!G157,2)/O157 -> 9226.73 | N157: 0.05 | O157: 2 | P157: 0 | Q157: 0.05 | R157: 0 | S157: 1.5 | T157: 0
A158: 156 | B158: =标准英雄数值!B158-O158 -> 44.69 | C158: =ROUND(B158*标准英雄数值!K158,2) -> 8395981.8 | D158: 0.05 | E158: 0 | F158: 0.05 | L158: =标准英雄数值!D158 -> 20624.11651 | M158: =ROUND(L158/(1+Q158*S158)+标准英雄数值!G158,2)/O158 -> 9592.61 | N158: 0.05 | O158: 2 | P158: 0 | Q158: 0.05 | R158: 0 | S158: 1.5 | T158: 0
A159: 157 | B159: =标准英雄数值!B159-O159 -> 45.16 | C159: =ROUND(B159*标准英雄数值!K159,2) -> 8908461.06 | D159: 0.05 | E159: 0 | F159: 0.05 | L159: =标准英雄数值!D159 -> 21439.50382 | M159: =ROUND(L159/(1+Q159*S159)+标准英雄数值!G159,2)/O159 -> 9971.86 | N159: 0.05 | O159: 2 | P159: 0 | Q159: 0.05 | R159: 0 | S159: 1.5 | T159: 0
A160: 158 | B160: =标准英雄数值!B160-O160 -> 45.63 | C160: =ROUND(B160*标准英雄数值!K160,2) -> 9451277.64 | D160: 0.05 | E160: 0 | F160: 0.05 | L160: =标准英雄数值!D160 -> 22289.33445 | M160: =ROUND(L160/(1+Q160*S160)+标准英雄数值!G160,2)/O160 -> 10367.13 | N160: 0.05 | O160: 2 | P160: 0 | Q160: 0.05 | R160: 0 | S160: 1.5 | T160: 0
A161: 159 | B161: =标准英雄数值!B161-O161 -> 46.11 | C161: =ROUND(B161*标准英雄数值!K161,2) -> 10028238.73 | D161: 0.05 | E161: 0 | F161: 0.05 | L161: =标准英雄数值!D161 -> 23170.29724 | M161: =ROUND(L161/(1+Q161*S161)+标准英雄数值!G161,2)/O161 -> 10776.88 | N161: 0.05 | O161: 2 | P161: 0 | Q161: 0.05 | R161: 0 | S161: 1.5 | T161: 0
A162: 160 | B162: =标准英雄数值!B162-O162 -> 46.59 | C162: =ROUND(B162*标准英雄数值!K162,2) -> 10639236.49 | D162: 0.05 | E162: 0 | F162: 0.05 | L162: =标准英雄数值!D162 -> 24088.47499 | M162: =ROUND(L162/(1+Q162*S162)+标准英雄数值!G162,2)/O162 -> 11203.94 | N162: 0.05 | O162: 2 | P162: 0 | Q162: 0.05 | R162: 0 | S162: 1.5 | T162: 0
A163: 161 | B163: =标准英雄数值!B163-O163 -> 47.08 | C163: =ROUND(B163*标准英雄数值!K163,2) -> 11288670.95 | D163: 0.05 | E163: 0 | F163: 0.05 | L163: =标准英雄数值!D163 -> 25040.38305 | M163: =ROUND(L163/(1+Q163*S163)+标准英雄数值!G163,2)/O163 -> 11646.69 | N163: 0.05 | O163: 2 | P163: 0 | Q163: 0.05 | R163: 0 | S163: 1.5 | T163: 0
A164: 162 | B164: =标准英雄数值!B164-O164 -> 47.57 | C164: =ROUND(B164*标准英雄数值!K164,2) -> 11976437.66 | D164: 0.05 | E164: 0 | F164: 0.05 | L164: =标准英雄数值!D164 -> 26032.4995 | M164: =ROUND(L164/(1+Q164*S164)+标准英雄数值!G164,2)/O164 -> 12108.14 | N164: 0.05 | O164: 2 | P164: 0 | Q164: 0.05 | R164: 0 | S164: 1.5 | T164: 0
A165: 163 | B165: =标准英雄数值!B165-O165 -> 48.07 | C165: =ROUND(B165*标准英雄数值!K165,2) -> 12707394.63 | D165: 0.05 | E165: 0 | F165: 0.05 | L165: =标准英雄数值!D165 -> 27061.17436 | M165: =ROUND(L165/(1+Q165*S165)+标准英雄数值!G165,2)/O165 -> 12586.595 | N165: 0.05 | O165: 2 | P165: 0 | Q165: 0.05 | R165: 0 | S165: 1.5 | T165: 0
A166: 164 | B166: =标准英雄数值!B166-O166 -> 48.57 | C166: =ROUND(B166*标准英雄数值!K166,2) -> 13481525.93 | D166: 0.05 | E166: 0 | F166: 0.05 | L166: =标准英雄数值!D166 -> 28133.30038 | M166: =ROUND(L166/(1+Q166*S166)+标准英雄数值!G166,2)/O166 -> 13085.255 | N166: 0.05 | O166: 2 | P166: 0 | Q166: 0.05 | R166: 0 | S166: 1.5 | T166: 0
A167: 165 | B167: =标准英雄数值!B167-O167 -> 49.08 | C167: =ROUND(B167*标准英雄数值!K167,2) -> 14304282.56 | D167: 0.05 | E167: 0 | F167: 0.05 | L167: =标准英雄数值!D167 -> 29245.02741 | M167: =ROUND(L167/(1+Q167*S167)+标准英雄数值!G167,2)/O167 -> 13602.34 | N167: 0.05 | O167: 2 | P167: 0 | Q167: 0.05 | R167: 0 | S167: 1.5 | T167: 0
A168: 166 | B168: =标准英雄数值!B168-O168 -> 49.59 | C168: =ROUND(B168*标准英雄数值!K168,2) -> 15175548.33 | D168: 0.05 | E168: 0 | F168: 0.05 | L168: =标准英雄数值!D168 -> 30403.72165 | M168: =ROUND(L168/(1+Q168*S168)+标准英雄数值!G168,2)/O168 -> 14141.265 | N168: 0.05 | O168: 2 | P168: 0 | Q168: 0.05 | R168: 0 | S168: 1.5 | T168: 0
A169: 167 | B169: =标准英雄数值!B169-O169 -> 50.11 | C169: =ROUND(B169*标准英雄数值!K169,2) -> 16101412.85 | D169: 0.05 | E169: 0 | F169: 0.05 | L169: =标准英雄数值!D169 -> 31605.33487 | M169: =ROUND(L169/(1+Q169*S169)+标准英雄数值!G169,2)/O169 -> 14700.155 | N169: 0.05 | O169: 2 | P169: 0 | Q169: 0.05 | R169: 0 | S169: 1.5 | T169: 0
A170: 168 | B170: =标准英雄数值!B170-O170 -> 50.63 | C170: =ROUND(B170*标准英雄数值!K170,2) -> 17081934.61 | D170: 0.05 | E170: 0 | F170: 0.05 | L170: =标准英雄数值!D170 -> 32857.72373 | M170: =ROUND(L170/(1+Q170*S170)+标准英雄数值!G170,2)/O170 -> 15282.66 | N170: 0.05 | O170: 2 | P170: 0 | Q170: 0.05 | R170: 0 | S170: 1.5 | T170: 0
A171: 169 | B171: =标准英雄数值!B171-O171 -> 51.16 | C171: =ROUND(B171*标准英雄数值!K171,2) -> 18123802.19 | D171: 0.05 | E171: 0 | F171: 0.05 | L171: =标准英雄数值!D171 -> 34156.64033 | M171: =ROUND(L171/(1+Q171*S171)+标准英雄数值!G171,2)/O171 -> 15886.81 | N171: 0.05 | O171: 2 | P171: 0 | Q171: 0.05 | R171: 0 | S171: 1.5 | T171: 0
A172: 170 | B172: =标准英雄数值!B172-O172 -> 51.69 | C172: =ROUND(B172*标准英雄数值!K172,2) -> 19227151.27 | D172: 0.05 | E172: 0 | F172: 0.05 | L172: =标准英雄数值!D172 -> 35510.43025 | M172: =ROUND(L172/(1+Q172*S172)+标准英雄数值!G172,2)/O172 -> 16516.48 | N172: 0.05 | O172: 2 | P172: 0 | Q172: 0.05 | R172: 0 | S172: 1.5 | T172: 0
A173: 171 | B173: =标准英雄数值!B173-O173 -> 52.23 | C173: =ROUND(B173*标准英雄数值!K173,2) -> 20399421.05 | D173: 0.05 | E173: =ROUND(E172*(1+F173),2) -> 0 | F173: 0.05 | L173: =标准英雄数值!D173 -> 36914.67822 | M173: =ROUND(L173/(1+Q173*S173)+标准英雄数值!G173,2)/O173 -> 17169.62 | N173: 0.05 | O173: =ROUND(O172*(1+P173),0) -> 2 | P173: 0 | Q173: =ROUND(Q172*(1+R173),2) -> 0.05 | R173: 0 | S173: =ROUND(S172*(1+T173),2) -> 1.5 | T173: 0
A174: 172 | B174: =标准英雄数值!B174-O174 -> 52.77 | C174: =ROUND(B174*标准英雄数值!K174,2) -> 21640819.57 | D174: 0.05 | E174: 0 | F174: 0.05 | L174: =标准英雄数值!D174 -> 38378.25452 | M174: =ROUND(L174/(1+Q174*S174)+标准英雄数值!G174,2)/O174 -> 17850.35 | N174: 0.05 | O174: 2 | P174: 0 | Q174: 0.05 | R174: 0 | S174: 1.5 | T174: 0
A175: 173 | B175: =标准英雄数值!B175-O175 -> 53.32 | C175: =ROUND(B175*标准英雄数值!K175,2) -> 22959701.75 | D175: 0.05 | E175: 0 | F175: 0.05 | L175: =标准英雄数值!D175 -> 39896.52928 | M175: =ROUND(L175/(1+Q175*S175)+标准英雄数值!G175,2)/O175 -> 18556.525 | N175: 0.05 | O175: 2 | P175: 0 | Q175: 0.05 | R175: 0 | S175: 1.5 | T175: 0
A176: 174 | B176: =标准英雄数值!B176-O176 -> 53.87 | C176: =ROUND(B176*标准英雄数值!K176,2) -> 24356344.11 | D176: 0.05 | E176: 0 | F176: 0.05 | L176: =标准英雄数值!D176 -> 41478.96904 | M176: =ROUND(L176/(1+Q176*S176)+标准英雄数值!G176,2)/O176 -> 19292.545 | N176: 0.05 | O176: 2 | P176: 0 | Q176: 0.05 | R176: 0 | S176: 1.5 | T176: 0
A177: 175 | B177: =标准英雄数值!B177-O177 -> 54.43 | C177: =ROUND(B177*标准英雄数值!K177,2) -> 25839988.89 | D177: 0.05 | E177: 0 | F177: 0.05 | L177: =标准英雄数值!D177 -> 43120.71593 | M177: =ROUND(L177/(1+Q177*S177)+标准英雄数值!G177,2)/O177 -> 20056.145 | N177: 0.05 | O177: 2 | P177: 0 | Q177: 0.05 | R177: 0 | S177: 1.5 | T177: 0
A178: 176 | B178: =标准英雄数值!B178-O178 -> 54.99 | C178: =ROUND(B178*标准英雄数值!K178,2) -> 27411181.49 | D178: 0.05 | E178: 0 | F178: 0.05 | L178: =标准英雄数值!D178 -> 44831.84769 | M178: =ROUND(L178/(1+Q178*S178)+标准英雄数值!G178,2)/O178 -> 20852.02 | N178: 0.05 | O178: 2 | P178: 0 | Q178: 0.05 | R178: 0 | S178: 1.5 | T178: 0
A179: 177 | B179: =标准英雄数值!B179-O179 -> 55.56 | C179: =ROUND(B179*标准英雄数值!K179,2) -> 29080131.32 | D179: 0.05 | E179: 0 | F179: 0.05 | L179: =标准英雄数值!D179 -> 46607.27936 | M179: =ROUND(L179/(1+Q179*S179)+标准英雄数值!G179,2)/O179 -> 21677.805 | N179: 0.05 | O179: 2 | P179: 0 | Q179: 0.05 | R179: 0 | S179: 1.5 | T179: 0
A180: 178 | B180: =标准英雄数值!B180-O180 -> 56.14 | C180: =ROUND(B180*标准英雄数值!K180,2) -> 30852936.99 | D180: 0.05 | E180: 0 | F180: 0.05 | L180: =标准英雄数值!D180 -> 48449.4496 | M180: =ROUND(L180/(1+Q180*S180)+标准英雄数值!G180,2)/O180 -> 22534.63 | N180: 0.05 | O180: 2 | P180: 0 | Q180: 0.05 | R180: 0 | S180: 1.5 | T180: 0
A181: 179 | B181: =标准英雄数值!B181-O181 -> 56.72 | C181: =ROUND(B181*标准英雄数值!K181,2) -> 32730245.75 | D181: 0.05 | E181: 0 | F181: 0.05 | L181: =标准英雄数值!D181 -> 50369.44823 | M181: =ROUND(L181/(1+Q181*S181)+标准英雄数值!G181,2)/O181 -> 23427.65 | N181: 0.05 | O181: 2 | P181: 0 | Q181: 0.05 | R181: 0 | S181: 1.5 | T181: 0
A182: 180 | B182: =标准英雄数值!B182-O182 -> 57.31 | C182: =ROUND(B182*标准英雄数值!K182,2) -> 34724218.31 | D182: 0.05 | E182: 0 | F182: 0.05 | L182: =标准英雄数值!D182 -> 52361.81082 | M182: =ROUND(L182/(1+Q182*S182)+标准英雄数值!G182,2)/O182 -> 24354.33 | N182: 0.05 | O182: 2 | P182: 0 | Q182: 0.05 | R182: 0 | S182: 1.5 | T182: 0
A183: 181 | B183: =标准英雄数值!B183-O183 -> 57.9 | C183: =ROUND(B183*标准英雄数值!K183,2) -> 36835768.67 | D183: 0.05 | E183: 0 | F183: 0.05 | L183: =标准英雄数值!D183 -> 54438.36394 | M183: =ROUND(L183/(1+Q183*S183)+标准英雄数值!G183,2)/O183 -> 25320.17 | N183: 0.05 | O183: 2 | P183: 0 | Q183: 0.05 | R183: 0 | S183: 1.5 | T183: 0
A184: 182 | B184: =标准英雄数值!B184-O184 -> 58.5 | C184: =ROUND(B184*标准英雄数值!K184,2) -> 39078371.96 | D184: 0.05 | E184: 0 | F184: 0.05 | L184: =标准英雄数值!D184 -> 56593.40496 | M184: =ROUND(L184/(1+Q184*S184)+标准英雄数值!G184,2)/O184 -> 26322.515 | N184: 0.05 | O184: 2 | P184: 0 | Q184: 0.05 | R184: 0 | S184: 1.5 | T184: 0
A185: 183 | B185: =标准英雄数值!B185-O185 -> 59.11 | C185: =ROUND(B185*标准英雄数值!K185,2) -> 41460109.15 | D185: 0.05 | E185: 0 | F185: 0.05 | L185: =标准英雄数值!D185 -> 58829.91327 | M185: =ROUND(L185/(1+Q185*S185)+标准英雄数值!G185,2)/O185 -> 27362.75 | N185: 0.05 | O185: 2 | P185: 0 | Q185: 0.05 | R185: 0 | S185: 1.5 | T185: 0
A186: 184 | B186: =标准英雄数值!B186-O186 -> 59.72 | C186: =ROUND(B186*标准英雄数值!K186,2) -> 43982313.87 | D186: 0.05 | E186: 0 | F186: 0.05 | L186: =标准英雄数值!D186 -> 61160.90408 | M186: =ROUND(L186/(1+Q186*S186)+标准英雄数值!G186,2)/O186 -> 28446.93 | N186: 0.05 | O186: 2 | P186: 0 | Q186: 0.05 | R186: 0 | S186: 1.5 | T186: 0
A187: 185 | B187: =标准英雄数值!B187-O187 -> 60.34 | C187: =ROUND(B187*标准英雄数值!K187,2) -> 46660840.54 | D187: 0.05 | E187: 0 | F187: 0.05 | L187: =标准英雄数值!D187 -> 63580.26949 | M187: =ROUND(L187/(1+Q187*S187)+标准英雄数值!G187,2)/O187 -> 29572.22 | N187: 0.05 | O187: 2 | P187: 0 | Q187: 0.05 | R187: 0 | S187: 1.5 | T187: 0
A188: 186 | B188: =标准英雄数值!B188-O188 -> 60.96 | C188: =ROUND(B188*标准英雄数值!K188,2) -> 49497288.36 | D188: 0.05 | E188: 0 | F188: 0.05 | L188: =标准英雄数值!D188 -> 66101.87421 | M188: =ROUND(L188/(1+Q188*S188)+标准英雄数值!G188,2)/O188 -> 30745.06 | N188: 0.05 | O188: 2 | P188: 0 | Q188: 0.05 | R188: 0 | S188: 1.5 | T188: 0
A189: 187 | B189: =标准英雄数值!B189-O189 -> 61.59 | C189: =ROUND(B189*标准英雄数值!K189,2) -> 52509248.93 | D189: 0.05 | E189: 0 | F189: 0.05 | L189: =标准英雄数值!D189 -> 68719.34266 | M189: =ROUND(L189/(1+Q189*S189)+标准英雄数值!G189,2)/O189 -> 31962.485 | N189: 0.05 | O189: 2 | P189: 0 | Q189: 0.05 | R189: 0 | S189: 1.5 | T189: 0
A190: 188 | B190: =标准英雄数值!B190-O190 -> 62.23 | C190: =ROUND(B190*标准英雄数值!K190,2) -> 55707650.36 | D190: 0.05 | E190: 0 | F190: 0.05 | L190: =标准英雄数值!D190 -> 71436.33816 | M190: =ROUND(L190/(1+Q190*S190)+标准英雄数值!G190,2)/O190 -> 33226.205 | N190: 0.05 | O190: 2 | P190: 0 | Q190: 0.05 | R190: 0 | S190: 1.5 | T190: 0
A191: 189 | B191: =标准英雄数值!B191-O191 -> 62.87 | C191: =ROUND(B191*标准英雄数值!K191,2) -> 59094630.3 | D191: 0.05 | E191: 0 | F191: 0.05 | L191: =标准英雄数值!D191 -> 74268.13627 | M191: =ROUND(L191/(1+Q191*S191)+标准英雄数值!G191,2)/O191 -> 34543.32 | N191: 0.05 | O191: 2 | P191: 0 | Q191: 0.05 | R191: 0 | S191: 1.5 | T191: 0
A192: 190 | B192: =标准英雄数值!B192-O192 -> 63.52 | C192: =ROUND(B192*标准英雄数值!K192,2) -> 62690938.02 | D192: 0.05 | E192: 0 | F192: 0.05 | L192: =标准英雄数值!D192 -> 77207.92125 | M192: =ROUND(L192/(1+Q192*S192)+标准英雄数值!G192,2)/O192 -> 35910.66 | N192: 0.05 | O192: 2 | P192: 0 | Q192: 0.05 | R192: 0 | S192: 1.5 | T192: 0
A193: 191 | B193: =标准英雄数值!B193-O193 -> 64.18 | C193: =ROUND(B193*标准英雄数值!K193,2) -> 66509452.14 | D193: 0.05 | E193: 0 | F193: 0.05 | L193: =标准英雄数值!D193 -> 80259.83681 | M193: =ROUND(L193/(1+Q193*S193)+标准英雄数值!G193,2)/O193 -> 37330.155 | N193: 0.05 | O193: 2 | P193: 0 | Q193: 0.05 | R193: 0 | S193: 1.5 | T193: 0
A194: 192 | B194: =标准英雄数值!B194-O194 -> 64.84 | C194: =ROUND(B194*标准英雄数值!K194,2) -> 70553096.17 | D194: 0.05 | E194: 0 | F194: 0.05 | L194: =标准英雄数值!D194 -> 83440.6942 | M194: =ROUND(L194/(1+Q194*S194)+标准英雄数值!G194,2)/O194 -> 38809.625 | N194: 0.05 | O194: 2 | P194: 0 | Q194: 0.05 | R194: 0 | S194: 1.5 | T194: 0
A195: 193 | B195: =标准英雄数值!B195-O195 -> 65.51 | C195: =ROUND(B195*标准英雄数值!K195,2) -> 74846180.58 | D195: 0.05 | E195: 0 | F195: 0.05 | L195: =标准英雄数值!D195 -> 86743.22323 | M195: =ROUND(L195/(1+Q195*S195)+标准英雄数值!G195,2)/O195 -> 40345.685 | N195: 0.05 | O195: 2 | P195: 0 | Q195: 0.05 | R195: 0 | S195: 1.5 | T195: 0
A196: 194 | B196: =标准英雄数值!B196-O196 -> 66.19 | C196: =ROUND(B196*标准英雄数值!K196,2) -> 79404258.2 | D196: 0.05 | E196: 0 | F196: 0.05 | L196: =标准英雄数值!D196 -> 90172.12201 | M196: =ROUND(L196/(1+Q196*S196)+标准英雄数值!G196,2)/O196 -> 41940.52 | N196: 0.05 | O196: 2 | P196: 0 | Q196: 0.05 | R196: 0 | S196: 1.5 | T196: 0
A197: 195 | B197: =标准英雄数值!B197-O197 -> 66.87 | C197: =ROUND(B197*标准英雄数值!K197,2) -> 84231059.67 | D197: 0.05 | E197: 0 | F197: 0.05 | L197: =标准英雄数值!D197 -> 93745.88355 | M197: =ROUND(L197/(1+Q197*S197)+标准英雄数值!G197,2)/O197 -> 43602.735 | N197: 0.05 | O197: 2 | P197: 0 | Q197: 0.05 | R197: 0 | S197: 1.5 | T197: 0
A198: 196 | B198: =标准英雄数值!B198-O198 -> 67.56 | C198: =ROUND(B198*标准英雄数值!K198,2) -> 89355178.04 | D198: 0.05 | E198: 0 | F198: 0.05 | L198: =标准英雄数值!D198 -> 97456.77113 | M198: =ROUND(L198/(1+Q198*S198)+标准英雄数值!G198,2)/O198 -> 45328.73 | N198: 0.05 | O198: 2 | P198: 0 | Q198: 0.05 | R198: 0 | S198: 1.5 | T198: 0
A199: 197 | B199: =标准英雄数值!B199-O199 -> 68.26 | C199: =ROUND(B199*标准英雄数值!K199,2) -> 94794999.34 | D199: 0.05 | E199: 0 | F199: 0.05 | L199: =标准英雄数值!D199 -> 101310.1053 | M199: =ROUND(L199/(1+Q199*S199)+标准英雄数值!G199,2)/O199 -> 47120.98 | N199: 0.05 | O199: 2 | P199: 0 | Q199: 0.05 | R199: 0 | S199: 1.5 | T199: 0
A200: 198 | B200: =标准英雄数值!B200-O200 -> 68.96 | C200: =ROUND(B200*标准英雄数值!K200,2) -> 100555462.4 | D200: 0.05 | E200: 0 | F200: 0.05 | L200: =标准英雄数值!D200 -> 105326.2401 | M200: =ROUND(L200/(1+Q200*S200)+标准英雄数值!G200,2)/O200 -> 48988.95 | N200: 0.05 | O200: 2 | P200: 0 | Q200: 0.05 | R200: 0 | S200: 1.5 | T200: 0
A201: 199 | B201: =标准英雄数值!B201-O201 -> 69.67 | C201: =ROUND(B201*标准英雄数值!K201,2) -> 106670255.3 | D201: 0.05 | E201: 0 | F201: 0.05 | L201: =标准英雄数值!D201 -> 109496.9722 | M201: =ROUND(L201/(1+Q201*S201)+标准英雄数值!G201,2)/O201 -> 50928.825 | N201: 0.05 | O201: 2 | P201: 0 | Q201: 0.05 | R201: 0 | S201: 1.5 | T201: 0
... 139 more rows

Sheet 英雄模板
E1: 英雄模板 | F1: =VLOOKUP(E2,战斗模拟!$K:$P,3,FALSE) -> 2 | G1: 1 | H1: =VLOOKUP(E2,战斗模拟!$K:$P,4,FALSE) -> 0.9 | I1: 1 | J1: 1 | K1: 1 | L1: 1 | M1: =L1 -> 1 | N1: =VLOOKUP(E2,战斗模拟!$K:$P,6,FALSE) -> 0 | O1: 1 | P1: =O1 -> 1 | R1: 英雄模板 | S1: =VLOOKUP(R2,战斗模拟!$K:$P,3,FALSE) -> 1 | T1: 1 | U1: =VLOOKUP(R2,战斗模拟!$K:$P,4,FALSE) -> 2 | V1: 1 | W1: 1 | X1: 1 | Y1: 1 | Z1: =Y1 -> 1 | AA1: =VLOOKUP(R2,战斗模拟!$K:$P,6,FALSE) -> 0 | AB1: 1 | AC1: =AB1 -> 1 | AE1: 英雄模板 | AF1: =VLOOKUP(AE2,战斗模拟!$K:$P,3,FALSE) -> 1 | AG1: 1 | AH1: =VLOOKUP(AE2,战斗模拟!$K:$P,4,FALSE) -> 1.5 | AI1: 1 | AJ1: 1 | AK1: 1 | AL1: 1 | AM1: =AL1 -> 1 | AN1: =VLOOKUP(AE2,战斗模拟!$K:$P,6,FALSE) -> 0 | AO1: 1 | AP1: =AO1 -> 1 | AR1: 英雄模板 | AS1: =VLOOKUP(AR2,战斗模拟!$K:$P,3,FALSE) -> 1.2 | AT1: 1 | AU1: =VLOOKUP(AR2,战斗模拟!$K:$P,4,FALSE) -> 0.7 | AV1: 1 | AW1: 1 | AX1: 1 | AY1: 1 | AZ1: =AY1 -> 1 | BA1: =VLOOKUP(AR2,战斗模拟!$K:$P,6,FALSE) -> 1 | BB1: 1 | BC1: =BB1 -> 1
A2: 等级 | B2: 生命成长系数 | C2: 攻击成长系数 | E2: 坦克 | F2: 生命 | G2: 防御 | H2: 攻击 | I2: 攻速 | J2: 暴击 | K2: 暴击伤害 | L2: 伤害技能 | M2: 技能CD | N2: 治疗力 | O2: 治疗技能 | P2: 技能CD | R2: 单体dps | S2: 生命 | T2: 防御 | U2: 攻击 | V2: 攻速 | W2: 暴击 | X2: 暴击伤害 | Y2: 伤害技能 | Z2: 技能CD | AA2: 治疗力 | AB2: 治疗技能 | AC2: 技能CD | AE2: 群体dps | AF2: 生命 | AG2: 防御 | AH2: 攻击 | AI2: 攻速 | AJ2: 暴击 | AK2: 暴击伤害 | AL2: 伤害技能 | AM2: 技能CD | AN2: 治疗力 | AO2: 治疗技能 | AP2: 技能CD | AR2: 奶妈 | AS2: 生命 | AT2: 防御 | AU2: 攻击 | AV2: 攻速 | AW2: 暴击 | AX2: 暴击伤害 | AY2: 伤害技能 | AZ2: 技能CD | BA2: 治疗力 | BB2: 治疗技能 | BC2: 技能CD
A3: 1 | B3: =F4/$F$3 -> 1.05 | C3: =U4/$U$3 -> 1.06 | F3: =ROUND(F$1*标准英雄数值!$E3,0) -> 1000 | G3: =ROUND(G$1*标准英雄数值!$G3,0) -> 0 | H3: =ROUND(H$1*标准英雄数值!$L3/I$1,0) -> 45 | I3: =I$1*标准英雄数值!$N3 -> 1 | J3: =J$1*标准英雄数值!$P3 -> 0.05 | K3: =K$1*标准英雄数值!$R3 -> 1.5 | L3: =L$1*标准英雄数值!$T3*I$1 -> 5 | M3: =ROUNDUP(M$1*标准英雄数值!$V3,0) -> 6 | N3: =N$1*标准英雄数值!$AB3 -> 0 | O3: =O$1*标准英雄数值!$AC3 -> 10 | P3: =P$1*标准英雄数值!$AE3 -> 10 | S3: =ROUND(S$1*标准英雄数值!$E3,0) -> 500 | T3: =ROUND(T$1*标准英雄数值!$G3,0) -> 0 | U3: =ROUND(U$1*标准英雄数值!$L3/V$1,0) -> 100 | V3: =V$1*标准英雄数值!$N3 -> 1 | W3: =W$1*标准英雄数值!$P3 -> 0.05 | X3: =X$1*标准英雄数值!$R3 -> 1.5 | Y3: =Y$1*标准英雄数值!$T3*V$1 -> 5 | Z3: =ROUNDUP(Z$1*标准英雄数值!$V3,0) -> 6 | AA3: =AA$1*标准英雄数值!$AB3 -> 0 | AB3: =AB$1*标准英雄数值!$AC3 -> 10 | AC3: =AC$1*标准英雄数值!$AE3 -> 10 | AF3: =ROUND(AF$1*标准英雄数值!$E3,0) -> 500 | AG3: =ROUND(AG$1*标准英雄数值!$G3,0) -> 0 | AH3: =ROUND(AH$1*标准英雄数值!$L3/AI$1,0) -> 75 | AI3: =AI$1*标准英雄数值!$N3 -> 1 | AJ3: =AJ$1*标准英雄数值!$P3 -> 0.05 | AK3: =AK$1*标准英雄数值!$R3 -> 1.5 | AL3: =AL$1*标准英雄数值!$T3*AI$1 -> 5 | AM3: =ROUNDUP(AM$1*标准英雄数值!$V3,0) -> 6 | AN3: =AN$1*标准英雄数值!$AB3 -> 0 | AO3: =AO$1*标准英雄数值!$AC3 -> 10 | AP3: =AP$1*标准英雄数值!$AE3 -> 10 | AS3: =ROUND(AS$1*标准英雄数值!$E3,0) -> 600 | AT3: =ROUND(AT$1*标准英雄数值!$G3,0) -> 0 | AU3: =ROUND(AU$1*标准英雄数值!$L3/AV$1,0) -> 35 | AV3: =AV$1*标准英雄数值!$N3 -> 1 | AW3: =AW$1*标准英雄数值!$P3 -> 0.05 | AX3: =AX$1*标准英雄数值!$R3 -> 1.5 | AY3: =AY$1*标准英雄数值!$T3*AV$1 -> 5 | AZ3: =ROUNDUP(AZ$1*标准英雄数值!$V3,0) -> 6 | BA3: =BA$1*标准英雄数值!$AB3 -> 50 | BB3: =BB$1*标准英雄数值!$AC3 -> 10 | BC3: =BC$1*标准英雄数值!$AE3 -> 10
A4: 2 | B4: =F5/$F$3 -> 1.102 | C4: =U5/$U$3 -> 1.12 | F4: =ROUND(F$1*标准英雄数值!$E4,0) -> 1050 | G4: =ROUND(G$1*标准英雄数值!$G4,0) -> 0 | H4: =ROUND(H$1*标准英雄数值!$L4/I$1,0) -> 48 | I4: =I$1*标准英雄数值!$N4 -> 1 | J4: =J$1*标准英雄数值!$P4 -> 0.05 | K4: =K$1*标准英雄数值!$R4 -> 1.5 | L4: =L$1*标准英雄数值!$T4*I$1 -> 5 | M4: =ROUNDUP(M$1*标准英雄数值!$V4,0) -> 6 | N4: =N$1*标准英雄数值!$AB4 -> 0 | O4: =O$1*标准英雄数值!$AC4 -> 10 | P4: =P$1*标准英雄数值!$AE4 -> 10 | S4: =ROUND(S$1*标准英雄数值!$E4,0) -> 525 | T4: =ROUND(T$1*标准英雄数值!$G4,0) -> 0 | U4: =ROUND(U$1*标准英雄数值!$L4/V$1,0) -> 106 | V4: =V$1*标准英雄数值!$N4 -> 1 | W4: =W$1*标准英雄数值!$P4 -> 0.05 | X4: =X$1*标准英雄数值!$R4 -> 1.5 | Y4: =Y$1*标准英雄数值!$T4*V$1 -> 5 | Z4: =ROUNDUP(Z$1*标准英雄数值!$V4,0) -> 6 | AA4: =AA$1*标准英雄数值!$AB4 -> 0 | AB4: =AB$1*标准英雄数值!$AC4 -> 10 | AC4: =AC$1*标准英雄数值!$AE4 -> 10 | AF4: =ROUND(AF$1*标准英雄数值!$E4,0) -> 525 | AG4: =ROUND(AG$1*标准英雄数值!$G4,0) -> 0 | AH4: =ROUND(AH$1*标准英雄数值!$L4/AI$1,0) -> 80 | AI4: =AI$1*标准英雄数值!$N4 -> 1 | AJ4: =AJ$1*标准英雄数值!$P4 -> 0.05 | AK4: =AK$1*标准英雄数值!$R4 -> 1.5 | AL4: =AL$1*标准英雄数值!$T4*AI$1 -> 5 | AM4: =ROUNDUP(AM$1*标准英雄数值!$V4,0) -> 6 | AN4: =AN$1*标准英雄数值!$AB4 -> 0 | AO4: =AO$1*标准英雄数值!$AC4 -> 10 | AP4: =AP$1*标准英雄数值!$AE4 -> 10 | AS4: =ROUND(AS$1*标准英雄数值!$E4,0) -> 630 | AT4: =ROUND(AT$1*标准英雄数值!$G4,0) -> 0 | AU4: =ROUND(AU$1*标准英雄数值!$L4/AV$1,0) -> 37 | AV4: =AV$1*标准英雄数值!$N4 -> 1 | AW4: =AW$1*标准英雄数值!$P4 -> 0.05 | AX4: =AX$1*标准英雄数值!$R4 -> 1.5 | AY4: =AY$1*标准英雄数值!$T4*AV$1 -> 5 | AZ4: =ROUNDUP(AZ$1*标准英雄数值!$V4,0) -> 6 | BA4: =BA$1*标准英雄数值!$AB4 -> 53 | BB4: =BB$1*标准英雄数值!$AC4 -> 10 | BC4: =BC$1*标准英雄数值!$AE4 -> 10
A5: 3 | B5: =F6/$F$3 -> 1.158 | C5: 1.18 | F5: =ROUND(F$1*标准英雄数值!$E5,0) -> 1102 | G5: =ROUND(G$1*标准英雄数值!$G5,0) -> 0 | H5: =ROUND(H$1*标准英雄数值!$L5/I$1,0) -> 50 | I5: =I$1*标准英雄数值!$N5 -> 1 | J5: =J$1*标准英雄数值!$P5 -> 0.05 | K5: =K$1*标准英雄数值!$R5 -> 1.5 | L5: =L$1*标准英雄数值!$T5*I$1 -> 5 | M5: =ROUNDUP(M$1*标准英雄数值!$V5,0) -> 6 | N5: =N$1*标准英雄数值!$AB5 -> 0 | O5: =O$1*标准英雄数值!$AC5 -> 10 | P5: =P$1*标准英雄数值!$AE5 -> 10 | S5: =ROUND(S$1*标准英雄数值!$E5,0) -> 551 | T5: =ROUND(T$1*标准英雄数值!$G5,0) -> 0 | U5: =ROUND(U$1*标准英雄数值!$L5/V$1,0) -> 112 | V5: =V$1*标准英雄数值!$N5 -> 1 | W5: =W$1*标准英雄数值!$P5 -> 0.05 | X5: =X$1*标准英雄数值!$R5 -> 1.5 | Y5: =Y$1*标准英雄数值!$T5*V$1 -> 5 | Z5: =ROUNDUP(Z$1*标准英雄数值!$V5,0) -> 6 | AA5: =AA$1*标准英雄数值!$AB5 -> 0 | AB5: =AB$1*标准英雄数值!$AC5 -> 10 | AC5: =AC$1*标准英雄数值!$AE5 -> 10 | AF5: =ROUND(AF$1*标准英雄数值!$E5,0) -> 551 | AG5: =ROUND(AG$1*标准英雄数值!$G5,0) -> 0 | AH5: =ROUND(AH$1*标准英雄数值!$L5/AI$1,0) -> 84 | AI5: =AI$1*标准英雄数值!$N5 -> 1 | AJ5: =AJ$1*标准英雄数值!$P5 -> 0.05 | AK5: =AK$1*标准英雄数值!$R5 -> 1.5 | AL5: =AL$1*标准英雄数值!$T5*AI$1 -> 5 | AM5: =ROUNDUP(AM$1*标准英雄数值!$V5,0) -> 6 | AN5: =AN$1*标准英雄数值!$AB5 -> 0 | AO5: =AO$1*标准英雄数值!$AC5 -> 10 | AP5: =AP$1*标准英雄数值!$AE5 -> 10 | AS5: =ROUND(AS$1*标准英雄数值!$E5,0) -> 661 | AT5: =ROUND(AT$1*标准英雄数值!$G5,0) -> 0 | AU5: =ROUND(AU$1*标准英雄数值!$L5/AV$1,0) -> 39 | AV5: =AV$1*标准英雄数值!$N5 -> 1 | AW5: =AW$1*标准英雄数值!$P5 -> 0.05 | AX5: =AX$1*标准英雄数值!$R5 -> 1.5 | AY5: =AY$1*标准英雄数值!$T5*AV$1 -> 5 | AZ5: =ROUNDUP(AZ$1*标准英雄数值!$V5,0) -> 6 | BA5: =BA$1*标准英雄数值!$AB5 -> 56 | BB5: =BB$1*标准英雄数值!$AC5 -> 10 | BC5: =BC$1*标准英雄数值!$AE5 -> 10
A6: 4 | B6: =F7/$F$3 -> 1.216 | C6: 1.24 | F6: =ROUND(F$1*标准英雄数值!$E6,0) -> 1158 | G6: =ROUND(G$1*标准英雄数值!$G6,0) -> 0 | H6: =ROUND(H$1*标准英雄数值!$L6/I$1,0) -> 53 | I6: =I$1*标准英雄数值!$N6 -> 1 | J6: =J$1*标准英雄数值!$P6 -> 0.05 | K6: =K$1*标准英雄数值!$R6 -> 1.5 | L6: =L$1*标准英雄数值!$T6*I$1 -> 5 | M6: =ROUNDUP(M$1*标准英雄数值!$V6,0) -> 6 | N6: =N$1*标准英雄数值!$AB6 -> 0 | O6: =O$1*标准英雄数值!$AC6 -> 10 | P6: =P$1*标准英雄数值!$AE6 -> 10 | S6: =ROUND(S$1*标准英雄数值!$E6,0) -> 579 | T6: =ROUND(T$1*标准英雄数值!$G6,0) -> 0 | U6: =ROUND(U$1*标准英雄数值!$L6/V$1,0) -> 118 | V6: =V$1*标准英雄数值!$N6 -> 1 | W6: =W$1*标准英雄数值!$P6 -> 0.05 | X6: =X$1*标准英雄数值!$R6 -> 1.5 | Y6: =Y$1*标准英雄数值!$T6*V$1 -> 5 | Z6: =ROUNDUP(Z$1*标准英雄数值!$V6,0) -> 6 | AA6: =AA$1*标准英雄数值!$AB6 -> 0 | AB6: =AB$1*标准英雄数值!$AC6 -> 10 | AC6: =AC$1*标准英雄数值!$AE6 -> 10 | AF6: =ROUND(AF$1*标准英雄数值!$E6,0) -> 579 | AG6: =ROUND(AG$1*标准英雄数值!$G6,0) -> 0 | AH6: =ROUND(AH$1*标准英雄数值!$L6/AI$1,0) -> 89 | AI6: =AI$1*标准英雄数值!$N6 -> 1 | AJ6: =AJ$1*标准英雄数值!$P6 -> 0.05 | AK6: =AK$1*标准英雄数值!$R6 -> 1.5 | AL6: =AL$1*标准英雄数值!$T6*AI$1 -> 5 | AM6: =ROUNDUP(AM$1*标准英雄数值!$V6,0) -> 6 | AN6: =AN$1*标准英雄数值!$AB6 -> 0 | AO6: =AO$1*标准英雄数值!$AC6 -> 10 | AP6: =AP$1*标准英雄数值!$AE6 -> 10 | AS6: =ROUND(AS$1*标准英雄数值!$E6,0) -> 695 | AT6: =ROUND(AT$1*标准英雄数值!$G6,0) -> 0 | AU6: =ROUND(AU$1*标准英雄数值!$L6/AV$1,0) -> 41 | AV6: =AV$1*标准英雄数值!$N6 -> 1 | AW6: =AW$1*标准英雄数值!$P6 -> 0.05 | AX6: =AX$1*标准英雄数值!$R6 -> 1.5 | AY6: =AY$1*标准英雄数值!$T6*AV$1 -> 5 | AZ6: =ROUNDUP(AZ$1*标准英雄数值!$V6,0) -> 6 | BA6: =BA$1*标准英雄数值!$AB6 -> 59 | BB6: =BB$1*标准英雄数值!$AC6 -> 10 | BC6: =BC$1*标准英雄数值!$AE6 -> 10
A7: 5 | B7: =F8/$F$3 -> 1.276 | C7: 1.3 | F7: =ROUND(F$1*标准英雄数值!$E7,0) -> 1216 | G7: =ROUND(G$1*标准英雄数值!$G7,0) -> 0 | H7: =ROUND(H$1*标准英雄数值!$L7/I$1,0) -> 56 | I7: =I$1*标准英雄数值!$N7 -> 1 | J7: =J$1*标准英雄数值!$P7 -> 0.05 | K7: =K$1*标准英雄数值!$R7 -> 1.5 | L7: =L$1*标准英雄数值!$T7*I$1 -> 5 | M7: =ROUNDUP(M$1*标准英雄数值!$V7,0) -> 6 | N7: =N$1*标准英雄数值!$AB7 -> 0 | O7: =O$1*标准英雄数值!$AC7 -> 10 | P7: =P$1*标准英雄数值!$AE7 -> 10 | S7: =ROUND(S$1*标准英雄数值!$E7,0) -> 608 | T7: =ROUND(T$1*标准英雄数值!$G7,0) -> 0 | U7: =ROUND(U$1*标准英雄数值!$L7/V$1,0) -> 124 | V7: =V$1*标准英雄数值!$N7 -> 1 | W7: =W$1*标准英雄数值!$P7 -> 0.05 | X7: =X$1*标准英雄数值!$R7 -> 1.5 | Y7: =Y$1*标准英雄数值!$T7*V$1 -> 5 | Z7: =ROUNDUP(Z$1*标准英雄数值!$V7,0) -> 6 | AA7: =AA$1*标准英雄数值!$AB7 -> 0 | AB7: =AB$1*标准英雄数值!$AC7 -> 10 | AC7: =AC$1*标准英雄数值!$AE7 -> 10 | AF7: =ROUND(AF$1*标准英雄数值!$E7,0) -> 608 | AG7: =ROUND(AG$1*标准英雄数值!$G7,0) -> 0 | AH7: =ROUND(AH$1*标准英雄数值!$L7/AI$1,0) -> 93 | AI7: =AI$1*标准英雄数值!$N7 -> 1 | AJ7: =AJ$1*标准英雄数值!$P7 -> 0.05 | AK7: =AK$1*标准英雄数值!$R7 -> 1.5 | AL7: =AL$1*标准英雄数值!$T7*AI$1 -> 5 | AM7: =ROUNDUP(AM$1*标准英雄数值!$V7,0) -> 6 | AN7: =AN$1*标准英雄数值!$AB7 -> 0 | AO7: =AO$1*标准英雄数值!$AC7 -> 10 | AP7: =AP$1*标准英雄数值!$AE7 -> 10 | AS7: =ROUND(AS$1*标准英雄数值!$E7,0) -> 730 | AT7: =ROUND(AT$1*标准英雄数值!$G7,0) -> 0 | AU7: =ROUND(AU$1*标准英雄数值!$L7/AV$1,0) -> 43 | AV7: =AV$1*标准英雄数值!$N7 -> 1 | AW7: =AW$1*标准英雄数值!$P7 -> 0.05 | AX7: =AX$1*标准英雄数值!$R7 -> 1.5 | AY7: =AY$1*标准英雄数值!$T7*AV$1 -> 5 | AZ7: =ROUNDUP(AZ$1*标准英雄数值!$V7,0) -> 6 | BA7: =BA$1*标准英雄数值!$AB7 -> 62 | BB7: =BB$1*标准英雄数值!$AC7 -> 10 | BC7: =BC$1*标准英雄数值!$AE7 -> 10
A8: 6 | B8: =F9/$F$3 -> 1.34 | C8: 1.36 | F8: =ROUND(F$1*标准英雄数值!$E8,0) -> 1276 | G8: =ROUND(G$1*标准英雄数值!$G8,0) -> 0 | H8: =ROUND(H$1*标准英雄数值!$L8/I$1,0) -> 59 | I8: =I$1*标准英雄数值!$N8 -> 1 | J8: =J$1*标准英雄数值!$P8 -> 0.05 | K8: =K$1*标准英雄数值!$R8 -> 1.5 | L8: =L$1*标准英雄数值!$T8*I$1 -> 5 | M8: =ROUNDUP(M$1*标准英雄数值!$V8,0) -> 6 | N8: =N$1*标准英雄数值!$AB8 -> 0 | O8: =O$1*标准英雄数值!$AC8 -> 10 | P8: =P$1*标准英雄数值!$AE8 -> 10 | S8: =ROUND(S$1*标准英雄数值!$E8,0) -> 638 | T8: =ROUND(T$1*标准英雄数值!$G8,0) -> 0 | U8: =ROUND(U$1*标准英雄数值!$L8/V$1,0) -> 130 | V8: =V$1*标准英雄数值!$N8 -> 1 | W8: =W$1*标准英雄数值!$P8 -> 0.05 | X8: =X$1*标准英雄数值!$R8 -> 1.5 | Y8: =Y$1*标准英雄数值!$T8*V$1 -> 5 | Z8: =ROUNDUP(Z$1*标准英雄数值!$V8,0) -> 6 | AA8: =AA$1*标准英雄数值!$AB8 -> 0 | AB8: =AB$1*标准英雄数值!$AC8 -> 10 | AC8: =AC$1*标准英雄数值!$AE8 -> 10 | AF8: =ROUND(AF$1*标准英雄数值!$E8,0) -> 638 | AG8: =ROUND(AG$1*标准英雄数值!$G8,0) -> 0 | AH8: =ROUND(AH$1*标准英雄数值!$L8/AI$1,0) -> 98 | AI8: =AI$1*标准英雄数值!$N8 -> 1 | AJ8: =AJ$1*标准英雄数值!$P8 -> 0.05 | AK8: =AK$1*标准英雄数值!$R8 -> 1.5 | AL8: =AL$1*标准英雄数值!$T8*AI$1 -> 5 | AM8: =ROUNDUP(AM$1*标准英雄数值!$V8,0) -> 6 | AN8: =AN$1*标准英雄数值!$AB8 -> 0 | AO8: =AO$1*标准英雄数值!$AC8 -> 10 | AP8: =AP$1*标准英雄数值!$AE8 -> 10 | AS8: =ROUND(AS$1*标准英雄数值!$E8,0) -> 766 | AT8: =ROUND(AT$1*标准英雄数值!$G8,0) -> 0 | AU8: =ROUND(AU$1*标准英雄数值!$L8/AV$1,0) -> 46 | AV8: =AV$1*标准英雄数值!$N8 -> 1 | AW8: =AW$1*标准英雄数值!$P8 -> 0.05 | AX8: =AX$1*标准英雄数值!$R8 -> 1.5 | AY8: =AY$1*标准英雄数值!$T8*AV$1 -> 5 | AZ8: =ROUNDUP(AZ$1*标准英雄数值!$V8,0) -> 6 | BA8: =BA$1*标准英雄数值!$AB8 -> 65 | BB8: =BB$1*标准英雄数值!$AC8 -> 10 | BC8: =BC$1*标准英雄数值!$AE8 -> 10
A9: 7 | B9: =F10/$F$3 -> 1.408 | C9: 1.42 | F9: =ROUND(F$1*标准英雄数值!$E9,0) -> 1340 | G9: =ROUND(G$1*标准英雄数值!$G9,0) -> 0 | H9: =ROUND(H$1*标准英雄数值!$L9/I$1,0) -> 61 | I9: =I$1*标准英雄数值!$N9 -> 1 | J9: =J$1*标准英雄数值!$P9 -> 0.05 | K9: =K$1*标准英雄数值!$R9 -> 1.5 | L9: =L$1*标准英雄数值!$T9*I$1 -> 5 | M9: =ROUNDUP(M$1*标准英雄数值!$V9,0) -> 6 | N9: =N$1*标准英雄数值!$AB9 -> 0 | O9: =O$1*标准英雄数值!$AC9 -> 10 | P9: =P$1*标准英雄数值!$AE9 -> 10 | S9: =ROUND(S$1*标准英雄数值!$E9,0) -> 670 | T9: =ROUND(T$1*标准英雄数值!$G9,0) -> 0 | U9: =ROUND(U$1*标准英雄数值!$L9/V$1,0) -> 136 | V9: =V$1*标准英雄数值!$N9 -> 1 | W9: =W$1*标准英雄数值!$P9 -> 0.05 | X9: =X$1*标准英雄数值!$R9 -> 1.5 | Y9: =Y$1*标准英雄数值!$T9*V$1 -> 5 | Z9: =ROUNDUP(Z$1*标准英雄数值!$V9,0) -> 6 | AA9: =AA$1*标准英雄数值!$AB9 -> 0 | AB9: =AB$1*标准英雄数值!$AC9 -> 10 | AC9: =AC$1*标准英雄数值!$AE9 -> 10 | AF9: =ROUND(AF$1*标准英雄数值!$E9,0) -> 670 | AG9: =ROUND(AG$1*标准英雄数值!$G9,0) -> 0 | AH9: =ROUND(AH$1*标准英雄数值!$L9/AI$1,0) -> 102 | AI9: =AI$1*标准英雄数值!$N9 -> 1 | AJ9: =AJ$1*标准英雄数值!$P9 -> 0.05 | AK9: =AK$1*标准英雄数值!$R9 -> 1.5 | AL9: =AL$1*标准英雄数值!$T9*AI$1 -> 5 | AM9: =ROUNDUP(AM$1*标准英雄数值!$V9,0) -> 6 | AN9: =AN$1*标准英雄数值!$AB9 -> 0 | AO9: =AO$1*标准英雄数值!$AC9 -> 10 | AP9: =AP$1*标准英雄数值!$AE9 -> 10 | AS9: =ROUND(AS$1*标准英雄数值!$E9,0) -> 804 | AT9: =ROUND(AT$1*标准英雄数值!$G9,0) -> 0 | AU9: =ROUND(AU$1*标准英雄数值!$L9/AV$1,0) -> 48 | AV9: =AV$1*标准英雄数值!$N9 -> 1 | AW9: =AW$1*标准英雄数值!$P9 -> 0.05 | AX9: =AX$1*标准英雄数值!$R9 -> 1.5 | AY9: =AY$1*标准英雄数值!$T9*AV$1 -> 5 | AZ9: =ROUNDUP(AZ$1*标准英雄数值!$V9,0) -> 6 | BA9: =BA$1*标准英雄数值!$AB9 -> 68 | BB9: =BB$1*标准英雄数值!$AC9 -> 10 | BC9: =BC$1*标准英雄数值!$AE9 -> 10
A10: 8 | B10: =F11/$F$3 -> 1.478 | C10: 1.5 | F10: =ROUND(F$1*标准英雄数值!$E10,0) -> 1408 | G10: =ROUND(G$1*标准英雄数值!$G10,0) -> 0 | H10: =ROUND(H$1*标准英雄数值!$L10/I$1,0) -> 64 | I10: =I$1*标准英雄数值!$N10 -> 1 | J10: =J$1*标准英雄数值!$P10 -> 0.05 | K10: =K$1*标准英雄数值!$R10 -> 1.5 | L10: =L$1*标准英雄数值!$T10*I$1 -> 5 | M10: =ROUNDUP(M$1*标准英雄数值!$V10,0) -> 6 | N10: =N$1*标准英雄数值!$AB10 -> 0 | O10: =O$1*标准英雄数值!$AC10 -> 10 | P10: =P$1*标准英雄数值!$AE10 -> 10 | S10: =ROUND(S$1*标准英雄数值!$E10,0) -> 704 | T10: =ROUND(T$1*标准英雄数值!$G10,0) -> 0 | U10: =ROUND(U$1*标准英雄数值!$L10/V$1,0) -> 142 | V10: =V$1*标准英雄数值!$N10 -> 1 | W10: =W$1*标准英雄数值!$P10 -> 0.05 | X10: =X$1*标准英雄数值!$R10 -> 1.5 | Y10: =Y$1*标准英雄数值!$T10*V$1 -> 5 | Z10: =ROUNDUP(Z$1*标准英雄数值!$V10,0) -> 6 | AA10: =AA$1*标准英雄数值!$AB10 -> 0 | AB10: =AB$1*标准英雄数值!$AC10 -> 10 | AC10: =AC$1*标准英雄数值!$AE10 -> 10 | AF10: =ROUND(AF$1*标准英雄数值!$E10,0) -> 704 | AG10: =ROUND(AG$1*标准英雄数值!$G10,0) -> 0 | AH10: =ROUND(AH$1*标准英雄数值!$L10/AI$1,0) -> 107 | AI10: =AI$1*标准英雄数值!$N10 -> 1 | AJ10: =AJ$1*标准英雄数值!$P10 -> 0.05 | AK10: =AK$1*标准英雄数值!$R10 -> 1.5 | AL10: =AL$1*标准英雄数值!$T10*AI$1 -> 5 | AM10: =ROUNDUP(AM$1*标准英雄数值!$V10,0) -> 6 | AN10: =AN$1*标准英雄数值!$AB10 -> 0 | AO10: =AO$1*标准英雄数值!$AC10 -> 10 | AP10: =AP$1*标准英雄数值!$AE10 -> 10 | AS10: =ROUND(AS$1*标准英雄数值!$E10,0) -> 845 | AT10: =ROUND(AT$1*标准英雄数值!$G10,0) -> 0 | AU10: =ROUND(AU$1*标准英雄数值!$L10/AV$1,0) -> 50 | AV10: =AV$1*标准英雄数值!$N10 -> 1 | AW10: =AW$1*标准英雄数值!$P10 -> 0.05 | AX10: =AX$1*标准英雄数值!$R10 -> 1.5 | AY10: =AY$1*标准英雄数值!$T10*AV$1 -> 5 | AZ10: =ROUNDUP(AZ$1*标准英雄数值!$V10,0) -> 6 | BA10: =BA$1*标准英雄数值!$AB10 -> 71 | BB10: =BB$1*标准英雄数值!$AC10 -> 10 | BC10: =BC$1*标准英雄数值!$AE10 -> 10
A11: 9 | B11: =F12/$F$3 -> 1.552 | C11: 1.58 | F11: =ROUND(F$1*标准英雄数值!$E11,0) -> 1478 | G11: =ROUND(G$1*标准英雄数值!$G11,0) -> 0 | H11: =ROUND(H$1*标准英雄数值!$L11/I$1,0) -> 68 | I11: =I$1*标准英雄数值!$N11 -> 1 | J11: =J$1*标准英雄数值!$P11 -> 0.05 | K11: =K$1*标准英雄数值!$R11 -> 1.5 | L11: =L$1*标准英雄数值!$T11*I$1 -> 5 | M11: =ROUNDUP(M$1*标准英雄数值!$V11,0) -> 6 | N11: =N$1*标准英雄数值!$AB11 -> 0 | O11: =O$1*标准英雄数值!$AC11 -> 10 | P11: =P$1*标准英雄数值!$AE11 -> 10 | S11: =ROUND(S$1*标准英雄数值!$E11,0) -> 739 | T11: =ROUND(T$1*标准英雄数值!$G11,0) -> 0 | U11: =ROUND(U$1*标准英雄数值!$L11/V$1,0) -> 150 | V11: =V$1*标准英雄数值!$N11 -> 1 | W11: =W$1*标准英雄数值!$P11 -> 0.05 | X11: =X$1*标准英雄数值!$R11 -> 1.5 | Y11: =Y$1*标准英雄数值!$T11*V$1 -> 5 | Z11: =ROUNDUP(Z$1*标准英雄数值!$V11,0) -> 6 | AA11: =AA$1*标准英雄数值!$AB11 -> 0 | AB11: =AB$1*标准英雄数值!$AC11 -> 10 | AC11: =AC$1*标准英雄数值!$AE11 -> 10 | AF11: =ROUND(AF$1*标准英雄数值!$E11,0) -> 739 | AG11: =ROUND(AG$1*标准英雄数值!$G11,0) -> 0 | AH11: =ROUND(AH$1*标准英雄数值!$L11/AI$1,0) -> 113 | AI11: =AI$1*标准英雄数值!$N11 -> 1 | AJ11: =AJ$1*标准英雄数值!$P11 -> 0.05 | AK11: =AK$1*标准英雄数值!$R11 -> 1.5 | AL11: =AL$1*标准英雄数值!$T11*AI$1 -> 5 | AM11: =ROUNDUP(AM$1*标准英雄数值!$V11,0) -> 6 | AN11: =AN$1*标准英雄数值!$AB11 -> 0 | AO11: =AO$1*标准英雄数值!$AC11 -> 10 | AP11: =AP$1*标准英雄数值!$AE11 -> 10 | AS11: =ROUND(AS$1*标准英雄数值!$E11,0) -> 887 | AT11: =ROUND(AT$1*标准英雄数值!$G11,0) -> 0 | AU11: =ROUND(AU$1*标准英雄数值!$L11/AV$1,0) -> 53 | AV11: =AV$1*标准英雄数值!$N11 -> 1 | AW11: =AW$1*标准英雄数值!$P11 -> 0.05 | AX11: =AX$1*标准英雄数值!$R11 -> 1.5 | AY11: =AY$1*标准英雄数值!$T11*AV$1 -> 5 | AZ11: =ROUNDUP(AZ$1*标准英雄数值!$V11,0) -> 6 | BA11: =BA$1*标准英雄数值!$AB11 -> 75 | BB11: =BB$1*标准英雄数值!$AC11 -> 10 | BC11: =BC$1*标准英雄数值!$AE11 -> 10
A12: 10 | B12: =F13/$F$3 -> 1.63 | C12: 1.66 | F12: =ROUND(F$1*标准英雄数值!$E12,0) -> 1552 | G12: =ROUND(G$1*标准英雄数值!$G12,0) -> 0 | H12: =ROUND(H$1*标准英雄数值!$L12/I$1,0) -> 71 | I12: =I$1*标准英雄数值!$N12 -> 1 | J12: =J$1*标准英雄数值!$P12 -> 0.05 | K12: =K$1*标准英雄数值!$R12 -> 1.5 | L12: =L$1*标准英雄数值!$T12*I$1 -> 5 | M12: =ROUNDUP(M$1*标准英雄数值!$V12,0) -> 6 | N12: =N$1*标准英雄数值!$AB12 -> 0 | O12: =O$1*标准英雄数值!$AC12 -> 10 | P12: =P$1*标准英雄数值!$AE12 -> 10 | S12: =ROUND(S$1*标准英雄数值!$E12,0) -> 776 | T12: =ROUND(T$1*标准英雄数值!$G12,0) -> 0 | U12: =ROUND(U$1*标准英雄数值!$L12/V$1,0) -> 158 | V12: =V$1*标准英雄数值!$N12 -> 1 | W12: =W$1*标准英雄数值!$P12 -> 0.05 | X12: =X$1*标准英雄数值!$R12 -> 1.5 | Y12: =Y$1*标准英雄数值!$T12*V$1 -> 5 | Z12: =ROUNDUP(Z$1*标准英雄数值!$V12,0) -> 6 | AA12: =AA$1*标准英雄数值!$AB12 -> 0 | AB12: =AB$1*标准英雄数值!$AC12 -> 10 | AC12: =AC$1*标准英雄数值!$AE12 -> 10 | AF12: =ROUND(AF$1*标准英雄数值!$E12,0) -> 776 | AG12: =ROUND(AG$1*标准英雄数值!$G12,0) -> 0 | AH12: =ROUND(AH$1*标准英雄数值!$L12/AI$1,0) -> 119 | AI12: =AI$1*标准英雄数值!$N12 -> 1 | AJ12: =AJ$1*标准英雄数值!$P12 -> 0.05 | AK12: =AK$1*标准英雄数值!$R12 -> 1.5 | AL12: =AL$1*标准英雄数值!$T12*AI$1 -> 5 | AM12: =ROUNDUP(AM$1*标准英雄数值!$V12,0) -> 6 | AN12: =AN$1*标准英雄数值!$AB12 -> 0 | AO12: =AO$1*标准英雄数值!$AC12 -> 10 | AP12: =AP$1*标准英雄数值!$AE12 -> 10 | AS12: =ROUND(AS$1*标准英雄数值!$E12,0) -> 931 | AT12: =ROUND(AT$1*标准英雄数值!$G12,0) -> 0 | AU12: =ROUND(AU$1*标准英雄数值!$L12/AV$1,0) -> 55 | AV12: =AV$1*标准英雄数值!$N12 -> 1 | AW12: =AW$1*标准英雄数值!$P12 -> 0.05 | AX12: =AX$1*标准英雄数值!$R12 -> 1.5 | AY12: =AY$1*标准英雄数值!$T12*AV$1 -> 5 | AZ12: =ROUNDUP(AZ$1*标准英雄数值!$V12,0) -> 6 | BA12: =BA$1*标准英雄数值!$AB12 -> 79 | BB12: =BB$1*标准英雄数值!$AC12 -> 10 | BC12: =BC$1*标准英雄数值!$AE12 -> 10
A13: 11 | B13: =F14/$F$3 -> 1.712 | C13: 1.74 | F13: =ROUND(F$1*标准英雄数值!$E13,0) -> 1630 | G13: =ROUND(G$1*标准英雄数值!$G13,0) -> 0 | H13: =ROUND(H$1*标准英雄数值!$L13/I$1,0) -> 75 | I13: =I$1*标准英雄数值!$N13 -> 1 | J13: =J$1*标准英雄数值!$P13 -> 0.05 | K13: =K$1*标准英雄数值!$R13 -> 1.5 | L13: =L$1*标准英雄数值!$T13*I$1 -> 5 | M13: =ROUNDUP(M$1*标准英雄数值!$V13,0) -> 6 | N13: =N$1*标准英雄数值!$AB13 -> 0 | O13: =O$1*标准英雄数值!$AC13 -> 10 | P13: =P$1*标准英雄数值!$AE13 -> 10 | S13: =ROUND(S$1*标准英雄数值!$E13,0) -> 815 | T13: =ROUND(T$1*标准英雄数值!$G13,0) -> 0 | U13: =ROUND(U$1*标准英雄数值!$L13/V$1,0) -> 166 | V13: =V$1*标准英雄数值!$N13 -> 1 | W13: =W$1*标准英雄数值!$P13 -> 0.05 | X13: =X$1*标准英雄数值!$R13 -> 1.5 | Y13: =Y$1*标准英雄数值!$T13*V$1 -> 5 | Z13: =ROUNDUP(Z$1*标准英雄数值!$V13,0) -> 6 | AA13: =AA$1*标准英雄数值!$AB13 -> 0 | AB13: =AB$1*标准英雄数值!$AC13 -> 10 | AC13: =AC$1*标准英雄数值!$AE13 -> 10 | AF13: =ROUND(AF$1*标准英雄数值!$E13,0) -> 815 | AG13: =ROUND(AG$1*标准英雄数值!$G13,0) -> 0 | AH13: =ROUND(AH$1*标准英雄数值!$L13/AI$1,0) -> 125 | AI13: =AI$1*标准英雄数值!$N13 -> 1 | AJ13: =AJ$1*标准英雄数值!$P13 -> 0.05 | AK13: =AK$1*标准英雄数值!$R13 -> 1.5 | AL13: =AL$1*标准英雄数值!$T13*AI$1 -> 5 | AM13: =ROUNDUP(AM$1*标准英雄数值!$V13,0) -> 6 | AN13: =AN$1*标准英雄数值!$AB13 -> 0 | AO13: =AO$1*标准英雄数值!$AC13 -> 10 | AP13: =AP$1*标准英雄数值!$AE13 -> 10 | AS13: =ROUND(AS$1*标准英雄数值!$E13,0) -> 978 | AT13: =ROUND(AT$1*标准英雄数值!$G13,0) -> 0 | AU13: =ROUND(AU$1*标准英雄数值!$L13/AV$1,0) -> 58 | AV13: =AV$1*标准英雄数值!$N13 -> 1 | AW13: =AW$1*标准英雄数值!$P13 -> 0.05 | AX13: =AX$1*标准英雄数值!$R13 -> 1.5 | AY13: =AY$1*标准英雄数值!$T13*AV$1 -> 5 | AZ13: =ROUNDUP(AZ$1*标准英雄数值!$V13,0) -> 6 | BA13: =BA$1*标准英雄数值!$AB13 -> 83 | BB13: =BB$1*标准英雄数值!$AC13 -> 10 | BC13: =BC$1*标准英雄数值!$AE13 -> 10
A14: 12 | B14: =F15/$F$3 -> 1.798 | C14: 1.82 | F14: =ROUND(F$1*标准英雄数值!$E14,0) -> 1712 | G14: =ROUND(G$1*标准英雄数值!$G14,0) -> 0 | H14: =ROUND(H$1*标准英雄数值!$L14/I$1,0) -> 78 | I14: =I$1*标准英雄数值!$N14 -> 1 | J14: =J$1*标准英雄数值!$P14 -> 0.05 | K14: =K$1*标准英雄数值!$R14 -> 1.5 | L14: =L$1*标准英雄数值!$T14*I$1 -> 5 | M14: =ROUNDUP(M$1*标准英雄数值!$V14,0) -> 6 | N14: =N$1*标准英雄数值!$AB14 -> 0 | O14: =O$1*标准英雄数值!$AC14 -> 10 | P14: =P$1*标准英雄数值!$AE14 -> 10 | S14: =ROUND(S$1*标准英雄数值!$E14,0) -> 856 | T14: =ROUND(T$1*标准英雄数值!$G14,0) -> 0 | U14: =ROUND(U$1*标准英雄数值!$L14/V$1,0) -> 174 | V14: =V$1*标准英雄数值!$N14 -> 1 | W14: =W$1*标准英雄数值!$P14 -> 0.05 | X14: =X$1*标准英雄数值!$R14 -> 1.5 | Y14: =Y$1*标准英雄数值!$T14*V$1 -> 5 | Z14: =ROUNDUP(Z$1*标准英雄数值!$V14,0) -> 6 | AA14: =AA$1*标准英雄数值!$AB14 -> 0 | AB14: =AB$1*标准英雄数值!$AC14 -> 10 | AC14: =AC$1*标准英雄数值!$AE14 -> 10 | AF14: =ROUND(AF$1*标准英雄数值!$E14,0) -> 856 | AG14: =ROUND(AG$1*标准英雄数值!$G14,0) -> 0 | AH14: =ROUND(AH$1*标准英雄数值!$L14/AI$1,0) -> 131 | AI14: =AI$1*标准英雄数值!$N14 -> 1 | AJ14: =AJ$1*标准英雄数值!$P14 -> 0.05 | AK14: =AK$1*标准英雄数值!$R14 -> 1.5 | AL14: =AL$1*标准英雄数值!$T14*AI$1 -> 5 | AM14: =ROUNDUP(AM$1*标准英雄数值!$V14,0) -> 6 | AN14: =AN$1*标准英雄数值!$AB14 -> 0 | AO14: =AO$1*标准英雄数值!$AC14 -> 10 | AP14: =AP$1*标准英雄数值!$AE14 -> 10 | AS14: =ROUND(AS$1*标准英雄数值!$E14,0) -> 1027 | AT14: =ROUND(AT$1*标准英雄数值!$G14,0) -> 0 | AU14: =ROUND(AU$1*标准英雄数值!$L14/AV$1,0) -> 61 | AV14: =AV$1*标准英雄数值!$N14 -> 1 | AW14: =AW$1*标准英雄数值!$P14 -> 0.05 | AX14: =AX$1*标准英雄数值!$R14 -> 1.5 | AY14: =AY$1*标准英雄数值!$T14*AV$1 -> 5 | AZ14: =ROUNDUP(AZ$1*标准英雄数值!$V14,0) -> 6 | BA14: =BA$1*标准英雄数值!$AB14 -> 87 | BB14: =BB$1*标准英雄数值!$AC14 -> 10 | BC14: =BC$1*标准英雄数值!$AE14 -> 10
A15: 13 | B15: =F16/$F$3 -> 1.888 | C15: 1.92 | F15: =ROUND(F$1*标准英雄数值!$E15,0) -> 1798 | G15: =ROUND(G$1*标准英雄数值!$G15,0) -> 0 | H15: =ROUND(H$1*标准英雄数值!$L15/I$1,0) -> 82 | I15: =I$1*标准英雄数值!$N15 -> 1 | J15: =J$1*标准英雄数值!$P15 -> 0.05 | K15: =K$1*标准英雄数值!$R15 -> 1.5 | L15: =L$1*标准英雄数值!$T15*I$1 -> 5 | M15: =ROUNDUP(M$1*标准英雄数值!$V15,0) -> 6 | N15: =N$1*标准英雄数值!$AB15 -> 0 | O15: =O$1*标准英雄数值!$AC15 -> 10 | P15: =P$1*标准英雄数值!$AE15 -> 10 | S15: =ROUND(S$1*标准英雄数值!$E15,0) -> 899 | T15: =ROUND(T$1*标准英雄数值!$G15,0) -> 0 | U15: =ROUND(U$1*标准英雄数值!$L15/V$1,0) -> 182 | V15: =V$1*标准英雄数值!$N15 -> 1 | W15: =W$1*标准英雄数值!$P15 -> 0.05 | X15: =X$1*标准英雄数值!$R15 -> 1.5 | Y15: =Y$1*标准英雄数值!$T15*V$1 -> 5 | Z15: =ROUNDUP(Z$1*标准英雄数值!$V15,0) -> 6 | AA15: =AA$1*标准英雄数值!$AB15 -> 0 | AB15: =AB$1*标准英雄数值!$AC15 -> 10 | AC15: =AC$1*标准英雄数值!$AE15 -> 10 | AF15: =ROUND(AF$1*标准英雄数值!$E15,0) -> 899 | AG15: =ROUND(AG$1*标准英雄数值!$G15,0) -> 0 | AH15: =ROUND(AH$1*标准英雄数值!$L15/AI$1,0) -> 137 | AI15: =AI$1*标准英雄数值!$N15 -> 1 | AJ15: =AJ$1*标准英雄数值!$P15 -> 0.05 | AK15: =AK$1*标准英雄数值!$R15 -> 1.5 | AL15: =AL$1*标准英雄数值!$T15*AI$1 -> 5 | AM15: =ROUNDUP(AM$1*标准英雄数值!$V15,0) -> 6 | AN15: =AN$1*标准英雄数值!$AB15 -> 0 | AO15: =AO$1*标准英雄数值!$AC15 -> 10 | AP15: =AP$1*标准英雄数值!$AE15 -> 10 | AS15: =ROUND(AS$1*标准英雄数值!$E15,0) -> 1079 | AT15: =ROUND(AT$1*标准英雄数值!$G15,0) -> 0 | AU15: =ROUND(AU$1*标准英雄数值!$L15/AV$1,0) -> 64 | AV15: =AV$1*标准英雄数值!$N15 -> 1 | AW15: =AW$1*标准英雄数值!$P15 -> 0.05 | AX15: =AX$1*标准英雄数值!$R15 -> 1.5 | AY15: =AY$1*标准英雄数值!$T15*AV$1 -> 5 | AZ15: =ROUNDUP(AZ$1*标准英雄数值!$V15,0) -> 6 | BA15: =BA$1*标准英雄数值!$AB15 -> 91 | BB15: =BB$1*标准英雄数值!$AC15 -> 10 | BC15: =BC$1*标准英雄数值!$AE15 -> 10
A16: 14 | B16: =F17/$F$3 -> 1.982 | C16: 2.02 | F16: =ROUND(F$1*标准英雄数值!$E16,0) -> 1888 | G16: =ROUND(G$1*标准英雄数值!$G16,0) -> 0 | H16: =ROUND(H$1*标准英雄数值!$L16/I$1,0) -> 86 | I16: =I$1*标准英雄数值!$N16 -> 1 | J16: =J$1*标准英雄数值!$P16 -> 0.05 | K16: =K$1*标准英雄数值!$R16 -> 1.5 | L16: =L$1*标准英雄数值!$T16*I$1 -> 5 | M16: =ROUNDUP(M$1*标准英雄数值!$V16,0) -> 6 | N16: =N$1*标准英雄数值!$AB16 -> 0 | O16: =O$1*标准英雄数值!$AC16 -> 10 | P16: =P$1*标准英雄数值!$AE16 -> 10 | S16: =ROUND(S$1*标准英雄数值!$E16,0) -> 944 | T16: =ROUND(T$1*标准英雄数值!$G16,0) -> 0 | U16: =ROUND(U$1*标准英雄数值!$L16/V$1,0) -> 192 | V16: =V$1*标准英雄数值!$N16 -> 1 | W16: =W$1*标准英雄数值!$P16 -> 0.05 | X16: =X$1*标准英雄数值!$R16 -> 1.5 | Y16: =Y$1*标准英雄数值!$T16*V$1 -> 5 | Z16: =ROUNDUP(Z$1*标准英雄数值!$V16,0) -> 6 | AA16: =AA$1*标准英雄数值!$AB16 -> 0 | AB16: =AB$1*标准英雄数值!$AC16 -> 10 | AC16: =AC$1*标准英雄数值!$AE16 -> 10 | AF16: =ROUND(AF$1*标准英雄数值!$E16,0) -> 944 | AG16: =ROUND(AG$1*标准英雄数值!$G16,0) -> 0 | AH16: =ROUND(AH$1*标准英雄数值!$L16/AI$1,0) -> 144 | AI16: =AI$1*标准英雄数值!$N16 -> 1 | AJ16: =AJ$1*标准英雄数值!$P16 -> 0.05 | AK16: =AK$1*标准英雄数值!$R16 -> 1.5 | AL16: =AL$1*标准英雄数值!$T16*AI$1 -> 5 | AM16: =ROUNDUP(AM$1*标准英雄数值!$V16,0) -> 6 | AN16: =AN$1*标准英雄数值!$AB16 -> 0 | AO16: =AO$1*标准英雄数值!$AC16 -> 10 | AP16: =AP$1*标准英雄数值!$AE16 -> 10 | AS16: =ROUND(AS$1*标准英雄数值!$E16,0) -> 1133 | AT16: =ROUND(AT$1*标准英雄数值!$G16,0) -> 0 | AU16: =ROUND(AU$1*标准英雄数值!$L16/AV$1,0) -> 67 | AV16: =AV$1*标准英雄数值!$N16 -> 1 | AW16: =AW$1*标准英雄数值!$P16 -> 0.05 | AX16: =AX$1*标准英雄数值!$R16 -> 1.5 | AY16: =AY$1*标准英雄数值!$T16*AV$1 -> 5 | AZ16: =ROUNDUP(AZ$1*标准英雄数值!$V16,0) -> 6 | BA16: =BA$1*标准英雄数值!$AB16 -> 96 | BB16: =BB$1*标准英雄数值!$AC16 -> 10 | BC16: =BC$1*标准英雄数值!$AE16 -> 10
A17: 15 | B17: =F18/$F$3 -> 2.082 | C17: 2.12 | F17: =ROUND(F$1*标准英雄数值!$E17,0) -> 1982 | G17: =ROUND(G$1*标准英雄数值!$G17,0) -> 0 | H17: =ROUND(H$1*标准英雄数值!$L17/I$1,0) -> 91 | I17: =I$1*标准英雄数值!$N17 -> 1 | J17: =J$1*标准英雄数值!$P17 -> 0.05 | K17: =K$1*标准英雄数值!$R17 -> 1.5 | L17: =L$1*标准英雄数值!$T17*I$1 -> 5 | M17: =ROUNDUP(M$1*标准英雄数值!$V17,0) -> 6 | N17: =N$1*标准英雄数值!$AB17 -> 0 | O17: =O$1*标准英雄数值!$AC17 -> 10 | P17: =P$1*标准英雄数值!$AE17 -> 10 | S17: =ROUND(S$1*标准英雄数值!$E17,0) -> 991 | T17: =ROUND(T$1*标准英雄数值!$G17,0) -> 0 | U17: =ROUND(U$1*标准英雄数值!$L17/V$1,0) -> 202 | V17: =V$1*标准英雄数值!$N17 -> 1 | W17: =W$1*标准英雄数值!$P17 -> 0.05 | X17: =X$1*标准英雄数值!$R17 -> 1.5 | Y17: =Y$1*标准英雄数值!$T17*V$1 -> 5 | Z17: =ROUNDUP(Z$1*标准英雄数值!$V17,0) -> 6 | AA17: =AA$1*标准英雄数值!$AB17 -> 0 | AB17: =AB$1*标准英雄数值!$AC17 -> 10 | AC17: =AC$1*标准英雄数值!$AE17 -> 10 | AF17: =ROUND(AF$1*标准英雄数值!$E17,0) -> 991 | AG17: =ROUND(AG$1*标准英雄数值!$G17,0) -> 0 | AH17: =ROUND(AH$1*标准英雄数值!$L17/AI$1,0) -> 152 | AI17: =AI$1*标准英雄数值!$N17 -> 1 | AJ17: =AJ$1*标准英雄数值!$P17 -> 0.05 | AK17: =AK$1*标准英雄数值!$R17 -> 1.5 | AL17: =AL$1*标准英雄数值!$T17*AI$1 -> 5 | AM17: =ROUNDUP(AM$1*标准英雄数值!$V17,0) -> 6 | AN17: =AN$1*标准英雄数值!$AB17 -> 0 | AO17: =AO$1*标准英雄数值!$AC17 -> 10 | AP17: =AP$1*标准英雄数值!$AE17 -> 10 | AS17: =ROUND(AS$1*标准英雄数值!$E17,0) -> 1189 | AT17: =ROUND(AT$1*标准英雄数值!$G17,0) -> 0 | AU17: =ROUND(AU$1*标准英雄数值!$L17/AV$1,0) -> 71 | AV17: =AV$1*标准英雄数值!$N17 -> 1 | AW17: =AW$1*标准英雄数值!$P17 -> 0.05 | AX17: =AX$1*标准英雄数值!$R17 -> 1.5 | AY17: =AY$1*标准英雄数值!$T17*AV$1 -> 5 | AZ17: =ROUNDUP(AZ$1*标准英雄数值!$V17,0) -> 6 | BA17: =BA$1*标准英雄数值!$AB17 -> 101 | BB17: =BB$1*标准英雄数值!$AC17 -> 10 | BC17: =BC$1*标准英雄数值!$AE17 -> 10
A18: 16 | B18: =F19/$F$3 -> 2.186 | C18: 2.22 | F18: =ROUND(F$1*标准英雄数值!$E18,0) -> 2082 | G18: =ROUND(G$1*标准英雄数值!$G18,0) -> 0 | H18: =ROUND(H$1*标准英雄数值!$L18/I$1,0) -> 95 | I18: =I$1*标准英雄数值!$N18 -> 1 | J18: =J$1*标准英雄数值!$P18 -> 0.05 | K18: =K$1*标准英雄数值!$R18 -> 1.5 | L18: =L$1*标准英雄数值!$T18*I$1 -> 5 | M18: =ROUNDUP(M$1*标准英雄数值!$V18,0) -> 6 | N18: =N$1*标准英雄数值!$AB18 -> 0 | O18: =O$1*标准英雄数值!$AC18 -> 10 | P18: =P$1*标准英雄数值!$AE18 -> 10 | S18: =ROUND(S$1*标准英雄数值!$E18,0) -> 1041 | T18: =ROUND(T$1*标准英雄数值!$G18,0) -> 0 | U18: =ROUND(U$1*标准英雄数值!$L18/V$1,0) -> 212 | V18: =V$1*标准英雄数值!$N18 -> 1 | W18: =W$1*标准英雄数值!$P18 -> 0.05 | X18: =X$1*标准英雄数值!$R18 -> 1.5 | Y18: =Y$1*标准英雄数值!$T18*V$1 -> 5 | Z18: =ROUNDUP(Z$1*标准英雄数值!$V18,0) -> 6 | AA18: =AA$1*标准英雄数值!$AB18 -> 0 | AB18: =AB$1*标准英雄数值!$AC18 -> 10 | AC18: =AC$1*标准英雄数值!$AE18 -> 10 | AF18: =ROUND(AF$1*标准英雄数值!$E18,0) -> 1041 | AG18: =ROUND(AG$1*标准英雄数值!$G18,0) -> 0 | AH18: =ROUND(AH$1*标准英雄数值!$L18/AI$1,0) -> 159 | AI18: =AI$1*标准英雄数值!$N18 -> 1 | AJ18: =AJ$1*标准英雄数值!$P18 -> 0.05 | AK18: =AK$1*标准英雄数值!$R18 -> 1.5 | AL18: =AL$1*标准英雄数值!$T18*AI$1 -> 5 | AM18: =ROUNDUP(AM$1*标准英雄数值!$V18,0) -> 6 | AN18: =AN$1*标准英雄数值!$AB18 -> 0 | AO18: =AO$1*标准英雄数值!$AC18 -> 10 | AP18: =AP$1*标准英雄数值!$AE18 -> 10 | AS18: =ROUND(AS$1*标准英雄数值!$E18,0) -> 1249 | AT18: =ROUND(AT$1*标准英雄数值!$G18,0) -> 0 | AU18: =ROUND(AU$1*标准英雄数值!$L18/AV$1,0) -> 74 | AV18: =AV$1*标准英雄数值!$N18 -> 1 | AW18: =AW$1*标准英雄数值!$P18 -> 0.05 | AX18: =AX$1*标准英雄数值!$R18 -> 1.5 | AY18: =AY$1*标准英雄数值!$T18*AV$1 -> 5 | AZ18: =ROUNDUP(AZ$1*标准英雄数值!$V18,0) -> 6 | BA18: =BA$1*标准英雄数值!$AB18 -> 106 | BB18: =BB$1*标准英雄数值!$AC18 -> 10 | BC18: =BC$1*标准英雄数值!$AE18 -> 10
A19: 17 | B19: =F20/$F$3 -> 2.296 | C19: 2.34 | F19: =ROUND(F$1*标准英雄数值!$E19,0) -> 2186 | G19: =ROUND(G$1*标准英雄数值!$G19,0) -> 0 | H19: =ROUND(H$1*标准英雄数值!$L19/I$1,0) -> 100 | I19: =I$1*标准英雄数值!$N19 -> 1 | J19: =J$1*标准英雄数值!$P19 -> 0.05 | K19: =K$1*标准英雄数值!$R19 -> 1.5 | L19: =L$1*标准英雄数值!$T19*I$1 -> 5 | M19: =ROUNDUP(M$1*标准英雄数值!$V19,0) -> 6 | N19: =N$1*标准英雄数值!$AB19 -> 0 | O19: =O$1*标准英雄数值!$AC19 -> 10 | P19: =P$1*标准英雄数值!$AE19 -> 10 | S19: =ROUND(S$1*标准英雄数值!$E19,0) -> 1093 | T19: =ROUND(T$1*标准英雄数值!$G19,0) -> 0 | U19: =ROUND(U$1*标准英雄数值!$L19/V$1,0) -> 222 | V19: =V$1*标准英雄数值!$N19 -> 1 | W19: =W$1*标准英雄数值!$P19 -> 0.05 | X19: =X$1*标准英雄数值!$R19 -> 1.5 | Y19: =Y$1*标准英雄数值!$T19*V$1 -> 5 | Z19: =ROUNDUP(Z$1*标准英雄数值!$V19,0) -> 6 | AA19: =AA$1*标准英雄数值!$AB19 -> 0 | AB19: =AB$1*标准英雄数值!$AC19 -> 10 | AC19: =AC$1*标准英雄数值!$AE19 -> 10 | AF19: =ROUND(AF$1*标准英雄数值!$E19,0) -> 1093 | AG19: =ROUND(AG$1*标准英雄数值!$G19,0) -> 0 | AH19: =ROUND(AH$1*标准英雄数值!$L19/AI$1,0) -> 167 | AI19: =AI$1*标准英雄数值!$N19 -> 1 | AJ19: =AJ$1*标准英雄数值!$P19 -> 0.05 | AK19: =AK$1*标准英雄数值!$R19 -> 1.5 | AL19: =AL$1*标准英雄数值!$T19*AI$1 -> 5 | AM19: =ROUNDUP(AM$1*标准英雄数值!$V19,0) -> 6 | AN19: =AN$1*标准英雄数值!$AB19 -> 0 | AO19: =AO$1*标准英雄数值!$AC19 -> 10 | AP19: =AP$1*标准英雄数值!$AE19 -> 10 | AS19: =ROUND(AS$1*标准英雄数值!$E19,0) -> 1312 | AT19: =ROUND(AT$1*标准英雄数值!$G19,0) -> 0 | AU19: =ROUND(AU$1*标准英雄数值!$L19/AV$1,0) -> 78 | AV19: =AV$1*标准英雄数值!$N19 -> 1 | AW19: =AW$1*标准英雄数值!$P19 -> 0.05 | AX19: =AX$1*标准英雄数值!$R19 -> 1.5 | AY19: =AY$1*标准英雄数值!$T19*AV$1 -> 5 | AZ19: =ROUNDUP(AZ$1*标准英雄数值!$V19,0) -> 6 | BA19: =BA$1*标准英雄数值!$AB19 -> 111 | BB19: =BB$1*标准英雄数值!$AC19 -> 10 | BC19: =BC$1*标准英雄数值!$AE19 -> 10
A20: 18 | B20: =F21/$F$3 -> 2.41 | C20: 2.46 | F20: =ROUND(F$1*标准英雄数值!$E20,0) -> 2296 | G20: =ROUND(G$1*标准英雄数值!$G20,0) -> 0 | H20: =ROUND(H$1*标准英雄数值!$L20/I$1,0) -> 105 | I20: =I$1*标准英雄数值!$N20 -> 1 | J20: =J$1*标准英雄数值!$P20 -> 0.05 | K20: =K$1*标准英雄数值!$R20 -> 1.5 | L20: =L$1*标准英雄数值!$T20*I$1 -> 5 | M20: =ROUNDUP(M$1*标准英雄数值!$V20,0) -> 6 | N20: =N$1*标准英雄数值!$AB20 -> 0 | O20: =O$1*标准英雄数值!$AC20 -> 10 | P20: =P$1*标准英雄数值!$AE20 -> 10 | S20: =ROUND(S$1*标准英雄数值!$E20,0) -> 1148 | T20: =ROUND(T$1*标准英雄数值!$G20,0) -> 0 | U20: =ROUND(U$1*标准英雄数值!$L20/V$1,0) -> 234 | V20: =V$1*标准英雄数值!$N20 -> 1 | W20: =W$1*标准英雄数值!$P20 -> 0.05 | X20: =X$1*标准英雄数值!$R20 -> 1.5 | Y20: =Y$1*标准英雄数值!$T20*V$1 -> 5 | Z20: =ROUNDUP(Z$1*标准英雄数值!$V20,0) -> 6 | AA20: =AA$1*标准英雄数值!$AB20 -> 0 | AB20: =AB$1*标准英雄数值!$AC20 -> 10 | AC20: =AC$1*标准英雄数值!$AE20 -> 10 | AF20: =ROUND(AF$1*标准英雄数值!$E20,0) -> 1148 | AG20: =ROUND(AG$1*标准英雄数值!$G20,0) -> 0 | AH20: =ROUND(AH$1*标准英雄数值!$L20/AI$1,0) -> 176 | AI20: =AI$1*标准英雄数值!$N20 -> 1 | AJ20: =AJ$1*标准英雄数值!$P20 -> 0.05 | AK20: =AK$1*标准英雄数值!$R20 -> 1.5 | AL20: =AL$1*标准英雄数值!$T20*AI$1 -> 5 | AM20: =ROUNDUP(AM$1*标准英雄数值!$V20,0) -> 6 | AN20: =AN$1*标准英雄数值!$AB20 -> 0 | AO20: =AO$1*标准英雄数值!$AC20 -> 10 | AP20: =AP$1*标准英雄数值!$AE20 -> 10 | AS20: =ROUND(AS$1*标准英雄数值!$E20,0) -> 1378 | AT20: =ROUND(AT$1*标准英雄数值!$G20,0) -> 0 | AU20: =ROUND(AU$1*标准英雄数值!$L20/AV$1,0) -> 82 | AV20: =AV$1*标准英雄数值!$N20 -> 1 | AW20: =AW$1*标准英雄数值!$P20 -> 0.05 | AX20: =AX$1*标准英雄数值!$R20 -> 1.5 | AY20: =AY$1*标准英雄数值!$T20*AV$1 -> 5 | AZ20: =ROUNDUP(AZ$1*标准英雄数值!$V20,0) -> 6 | BA20: =BA$1*标准英雄数值!$AB20 -> 117 | BB20: =BB$1*标准英雄数值!$AC20 -> 10 | BC20: =BC$1*标准英雄数值!$AE20 -> 10
A21: 19 | B21: =F22/$F$3 -> 2.53 | C21: 2.58 | F21: =ROUND(F$1*标准英雄数值!$E21,0) -> 2410 | G21: =ROUND(G$1*标准英雄数值!$G21,0) -> 0 | H21: =ROUND(H$1*标准英雄数值!$L21/I$1,0) -> 111 | I21: =I$1*标准英雄数值!$N21 -> 1 | J21: =J$1*标准英雄数值!$P21 -> 0.05 | K21: =K$1*标准英雄数值!$R21 -> 1.5 | L21: =L$1*标准英雄数值!$T21*I$1 -> 5 | M21: =ROUNDUP(M$1*标准英雄数值!$V21,0) -> 6 | N21: =N$1*标准英雄数值!$AB21 -> 0 | O21: =O$1*标准英雄数值!$AC21 -> 10 | P21: =P$1*标准英雄数值!$AE21 -> 10 | S21: =ROUND(S$1*标准英雄数值!$E21,0) -> 1205 | T21: =ROUND(T$1*标准英雄数值!$G21,0) -> 0 | U21: =ROUND(U$1*标准英雄数值!$L21/V$1,0) -> 246 | V21: =V$1*标准英雄数值!$N21 -> 1 | W21: =W$1*标准英雄数值!$P21 -> 0.05 | X21: =X$1*标准英雄数值!$R21 -> 1.5 | Y21: =Y$1*标准英雄数值!$T21*V$1 -> 5 | Z21: =ROUNDUP(Z$1*标准英雄数值!$V21,0) -> 6 | AA21: =AA$1*标准英雄数值!$AB21 -> 0 | AB21: =AB$1*标准英雄数值!$AC21 -> 10 | AC21: =AC$1*标准英雄数值!$AE21 -> 10 | AF21: =ROUND(AF$1*标准英雄数值!$E21,0) -> 1205 | AG21: =ROUND(AG$1*标准英雄数值!$G21,0) -> 0 | AH21: =ROUND(AH$1*标准英雄数值!$L21/AI$1,0) -> 185 | AI21: =AI$1*标准英雄数值!$N21 -> 1 | AJ21: =AJ$1*标准英雄数值!$P21 -> 0.05 | AK21: =AK$1*标准英雄数值!$R21 -> 1.5 | AL21: =AL$1*标准英雄数值!$T21*AI$1 -> 5 | AM21: =ROUNDUP(AM$1*标准英雄数值!$V21,0) -> 6 | AN21: =AN$1*标准英雄数值!$AB21 -> 0 | AO21: =AO$1*标准英雄数值!$AC21 -> 10 | AP21: =AP$1*标准英雄数值!$AE21 -> 10 | AS21: =ROUND(AS$1*标准英雄数值!$E21,0) -> 1446 | AT21: =ROUND(AT$1*标准英雄数值!$G21,0) -> 0 | AU21: =ROUND(AU$1*标准英雄数值!$L21/AV$1,0) -> 86 | AV21: =AV$1*标准英雄数值!$N21 -> 1 | AW21: =AW$1*标准英雄数值!$P21 -> 0.05 | AX21: =AX$1*标准英雄数值!$R21 -> 1.5 | AY21: =AY$1*标准英雄数值!$T21*AV$1 -> 5 | AZ21: =ROUNDUP(AZ$1*标准英雄数值!$V21,0) -> 6 | BA21: =BA$1*标准英雄数值!$AB21 -> 123 | BB21: =BB$1*标准英雄数值!$AC21 -> 10 | BC21: =BC$1*标准英雄数值!$AE21 -> 10
A22: 20 | B22: =F23/$F$3 -> 2.656 | C22: 2.7 | F22: =ROUND(F$1*标准英雄数值!$E22,0) -> 2530 | G22: =ROUND(G$1*标准英雄数值!$G22,0) -> 0 | H22: =ROUND(H$1*标准英雄数值!$L22/I$1,0) -> 116 | I22: =I$1*标准英雄数值!$N22 -> 1 | J22: =J$1*标准英雄数值!$P22 -> 0.05 | K22: =K$1*标准英雄数值!$R22 -> 1.5 | L22: =L$1*标准英雄数值!$T22*I$1 -> 5 | M22: =ROUNDUP(M$1*标准英雄数值!$V22,0) -> 6 | N22: =N$1*标准英雄数值!$AB22 -> 0 | O22: =O$1*标准英雄数值!$AC22 -> 10 | P22: =P$1*标准英雄数值!$AE22 -> 10 | S22: =ROUND(S$1*标准英雄数值!$E22,0) -> 1265 | T22: =ROUND(T$1*标准英雄数值!$G22,0) -> 0 | U22: =ROUND(U$1*标准英雄数值!$L22/V$1,0) -> 258 | V22: =V$1*标准英雄数值!$N22 -> 1 | W22: =W$1*标准英雄数值!$P22 -> 0.05 | X22: =X$1*标准英雄数值!$R22 -> 1.5 | Y22: =Y$1*标准英雄数值!$T22*V$1 -> 5 | Z22: =ROUNDUP(Z$1*标准英雄数值!$V22,0) -> 6 | AA22: =AA$1*标准英雄数值!$AB22 -> 0 | AB22: =AB$1*标准英雄数值!$AC22 -> 10 | AC22: =AC$1*标准英雄数值!$AE22 -> 10 | AF22: =ROUND(AF$1*标准英雄数值!$E22,0) -> 1265 | AG22: =ROUND(AG$1*标准英雄数值!$G22,0) -> 0 | AH22: =ROUND(AH$1*标准英雄数值!$L22/AI$1,0) -> 194 | AI22: =AI$1*标准英雄数值!$N22 -> 1 | AJ22: =AJ$1*标准英雄数值!$P22 -> 0.05 | AK22: =AK$1*标准英雄数值!$R22 -> 1.5 | AL22: =AL$1*标准英雄数值!$T22*AI$1 -> 5 | AM22: =ROUNDUP(AM$1*标准英雄数值!$V22,0) -> 6 | AN22: =AN$1*标准英雄数值!$AB22 -> 0 | AO22: =AO$1*标准英雄数值!$AC22 -> 10 | AP22: =AP$1*标准英雄数值!$AE22 -> 10 | AS22: =ROUND(AS$1*标准英雄数值!$E22,0) -> 1518 | AT22: =ROUND(AT$1*标准英雄数值!$G22,0) -> 0 | AU22: =ROUND(AU$1*标准英雄数值!$L22/AV$1,0) -> 90 | AV22: =AV$1*标准英雄数值!$N22 -> 1 | AW22: =AW$1*标准英雄数值!$P22 -> 0.05 | AX22: =AX$1*标准英雄数值!$R22 -> 1.5 | AY22: =AY$1*标准英雄数值!$T22*AV$1 -> 5 | AZ22: =ROUNDUP(AZ$1*标准英雄数值!$V22,0) -> 6 | BA22: =BA$1*标准英雄数值!$AB22 -> 129 | BB22: =BB$1*标准英雄数值!$AC22 -> 10 | BC22: =BC$1*标准英雄数值!$AE22 -> 10
A23: 21 | B23: =F24/$F$3 -> 2.788 | C23: 2.84 | F23: =ROUND(F$1*标准英雄数值!$E23,0) -> 2656 | G23: =ROUND(G$1*标准英雄数值!$G23,0) -> 0 | H23: =ROUND(H$1*标准英雄数值!$L23/I$1,0) -> 122 | I23: =I$1*标准英雄数值!$N23 -> 1 | J23: =J$1*标准英雄数值!$P23 -> 0.05 | K23: =K$1*标准英雄数值!$R23 -> 1.5 | L23: =L$1*标准英雄数值!$T23*I$1 -> 5 | M23: =ROUNDUP(M$1*标准英雄数值!$V23,0) -> 6 | N23: =N$1*标准英雄数值!$AB23 -> 0 | O23: =O$1*标准英雄数值!$AC23 -> 10 | P23: =P$1*标准英雄数值!$AE23 -> 10 | S23: =ROUND(S$1*标准英雄数值!$E23,0) -> 1328 | T23: =ROUND(T$1*标准英雄数值!$G23,0) -> 0 | U23: =ROUND(U$1*标准英雄数值!$L23/V$1,0) -> 270 | V23: =V$1*标准英雄数值!$N23 -> 1 | W23: =W$1*标准英雄数值!$P23 -> 0.05 | X23: =X$1*标准英雄数值!$R23 -> 1.5 | Y23: =Y$1*标准英雄数值!$T23*V$1 -> 5 | Z23: =ROUNDUP(Z$1*标准英雄数值!$V23,0) -> 6 | AA23: =AA$1*标准英雄数值!$AB23 -> 0 | AB23: =AB$1*标准英雄数值!$AC23 -> 10 | AC23: =AC$1*标准英雄数值!$AE23 -> 10 | AF23: =ROUND(AF$1*标准英雄数值!$E23,0) -> 1328 | AG23: =ROUND(AG$1*标准英雄数值!$G23,0) -> 0 | AH23: =ROUND(AH$1*标准英雄数值!$L23/AI$1,0) -> 203 | AI23: =AI$1*标准英雄数值!$N23 -> 1 | AJ23: =AJ$1*标准英雄数值!$P23 -> 0.05 | AK23: =AK$1*标准英雄数值!$R23 -> 1.5 | AL23: =AL$1*标准英雄数值!$T23*AI$1 -> 5 | AM23: =ROUNDUP(AM$1*标准英雄数值!$V23,0) -> 6 | AN23: =AN$1*标准英雄数值!$AB23 -> 0 | AO23: =AO$1*标准英雄数值!$AC23 -> 10 | AP23: =AP$1*标准英雄数值!$AE23 -> 10 | AS23: =ROUND(AS$1*标准英雄数值!$E23,0) -> 1594 | AT23: =ROUND(AT$1*标准英雄数值!$G23,0) -> 0 | AU23: =ROUND(AU$1*标准英雄数值!$L23/AV$1,0) -> 95 | AV23: =AV$1*标准英雄数值!$N23 -> 1 | AW23: =AW$1*标准英雄数值!$P23 -> 0.05 | AX23: =AX$1*标准英雄数值!$R23 -> 1.5 | AY23: =AY$1*标准英雄数值!$T23*AV$1 -> 5 | AZ23: =ROUNDUP(AZ$1*标准英雄数值!$V23,0) -> 6 | BA23: =BA$1*标准英雄数值!$AB23 -> 135 | BB23: =BB$1*标准英雄数值!$AC23 -> 10 | BC23: =BC$1*标准英雄数值!$AE23 -> 10
A24: 22 | B24: =F25/$F$3 -> 2.928 | C24: 2.98 | F24: =ROUND(F$1*标准英雄数值!$E24,0) -> 2788 | G24: =ROUND(G$1*标准英雄数值!$G24,0) -> 0 | H24: =ROUND(H$1*标准英雄数值!$L24/I$1,0) -> 128 | I24: =I$1*标准英雄数值!$N24 -> 1 | J24: =J$1*标准英雄数值!$P24 -> 0.05 | K24: =K$1*标准英雄数值!$R24 -> 1.5 | L24: =L$1*标准英雄数值!$T24*I$1 -> 5 | M24: =ROUNDUP(M$1*标准英雄数值!$V24,0) -> 6 | N24: =N$1*标准英雄数值!$AB24 -> 0 | O24: =O$1*标准英雄数值!$AC24 -> 10 | P24: =P$1*标准英雄数值!$AE24 -> 10 | S24: =ROUND(S$1*标准英雄数值!$E24,0) -> 1394 | T24: =ROUND(T$1*标准英雄数值!$G24,0) -> 0 | U24: =ROUND(U$1*标准英雄数值!$L24/V$1,0) -> 284 | V24: =V$1*标准英雄数值!$N24 -> 1 | W24: =W$1*标准英雄数值!$P24 -> 0.05 | X24: =X$1*标准英雄数值!$R24 -> 1.5 | Y24: =Y$1*标准英雄数值!$T24*V$1 -> 5 | Z24: =ROUNDUP(Z$1*标准英雄数值!$V24,0) -> 6 | AA24: =AA$1*标准英雄数值!$AB24 -> 0 | AB24: =AB$1*标准英雄数值!$AC24 -> 10 | AC24: =AC$1*标准英雄数值!$AE24 -> 10 | AF24: =ROUND(AF$1*标准英雄数值!$E24,0) -> 1394 | AG24: =ROUND(AG$1*标准英雄数值!$G24,0) -> 0 | AH24: =ROUND(AH$1*标准英雄数值!$L24/AI$1,0) -> 213 | AI24: =AI$1*标准英雄数值!$N24 -> 1 | AJ24: =AJ$1*标准英雄数值!$P24 -> 0.05 | AK24: =AK$1*标准英雄数值!$R24 -> 1.5 | AL24: =AL$1*标准英雄数值!$T24*AI$1 -> 5 | AM24: =ROUNDUP(AM$1*标准英雄数值!$V24,0) -> 6 | AN24: =AN$1*标准英雄数值!$AB24 -> 0 | AO24: =AO$1*标准英雄数值!$AC24 -> 10 | AP24: =AP$1*标准英雄数值!$AE24 -> 10 | AS24: =ROUND(AS$1*标准英雄数值!$E24,0) -> 1673 | AT24: =ROUND(AT$1*标准英雄数值!$G24,0) -> 0 | AU24: =ROUND(AU$1*标准英雄数值!$L24/AV$1,0) -> 99 | AV24: =AV$1*标准英雄数值!$N24 -> 1 | AW24: =AW$1*标准英雄数值!$P24 -> 0.05 | AX24: =AX$1*标准英雄数值!$R24 -> 1.5 | AY24: =AY$1*标准英雄数值!$T24*AV$1 -> 5 | AZ24: =ROUNDUP(AZ$1*标准英雄数值!$V24,0) -> 6 | BA24: =BA$1*标准英雄数值!$AB24 -> 142 | BB24: =BB$1*标准英雄数值!$AC24 -> 10 | BC24: =BC$1*标准英雄数值!$AE24 -> 10
A25: 23 | B25: =F26/$F$3 -> 3.074 | C25: 3.12 | F25: =ROUND(F$1*标准英雄数值!$E25,0) -> 2928 | G25: =ROUND(G$1*标准英雄数值!$G25,0) -> 0 | H25: =ROUND(H$1*标准英雄数值!$L25/I$1,0) -> 134 | I25: =I$1*标准英雄数值!$N25 -> 1 | J25: =J$1*标准英雄数值!$P25 -> 0.05 | K25: =K$1*标准英雄数值!$R25 -> 1.5 | L25: =L$1*标准英雄数值!$T25*I$1 -> 5 | M25: =ROUNDUP(M$1*标准英雄数值!$V25,0) -> 6 | N25: =N$1*标准英雄数值!$AB25 -> 0 | O25: =O$1*标准英雄数值!$AC25 -> 10 | P25: =P$1*标准英雄数值!$AE25 -> 10 | S25: =ROUND(S$1*标准英雄数值!$E25,0) -> 1464 | T25: =ROUND(T$1*标准英雄数值!$G25,0) -> 0 | U25: =ROUND(U$1*标准英雄数值!$L25/V$1,0) -> 298 | V25: =V$1*标准英雄数值!$N25 -> 1 | W25: =W$1*标准英雄数值!$P25 -> 0.05 | X25: =X$1*标准英雄数值!$R25 -> 1.5 | Y25: =Y$1*标准英雄数值!$T25*V$1 -> 5 | Z25: =ROUNDUP(Z$1*标准英雄数值!$V25,0) -> 6 | AA25: =AA$1*标准英雄数值!$AB25 -> 0 | AB25: =AB$1*标准英雄数值!$AC25 -> 10 | AC25: =AC$1*标准英雄数值!$AE25 -> 10 | AF25: =ROUND(AF$1*标准英雄数值!$E25,0) -> 1464 | AG25: =ROUND(AG$1*标准英雄数值!$G25,0) -> 0 | AH25: =ROUND(AH$1*标准英雄数值!$L25/AI$1,0) -> 224 | AI25: =AI$1*标准英雄数值!$N25 -> 1 | AJ25: =AJ$1*标准英雄数值!$P25 -> 0.05 | AK25: =AK$1*标准英雄数值!$R25 -> 1.5 | AL25: =AL$1*标准英雄数值!$T25*AI$1 -> 5 | AM25: =ROUNDUP(AM$1*标准英雄数值!$V25,0) -> 6 | AN25: =AN$1*标准英雄数值!$AB25 -> 0 | AO25: =AO$1*标准英雄数值!$AC25 -> 10 | AP25: =AP$1*标准英雄数值!$AE25 -> 10 | AS25: =ROUND(AS$1*标准英雄数值!$E25,0) -> 1757 | AT25: =ROUND(AT$1*标准英雄数值!$G25,0) -> 0 | AU25: =ROUND(AU$1*标准英雄数值!$L25/AV$1,0) -> 104 | AV25: =AV$1*标准英雄数值!$N25 -> 1 | AW25: =AW$1*标准英雄数值!$P25 -> 0.05 | AX25: =AX$1*标准英雄数值!$R25 -> 1.5 | AY25: =AY$1*标准英雄数值!$T25*AV$1 -> 5 | AZ25: =ROUNDUP(AZ$1*标准英雄数值!$V25,0) -> 6 | BA25: =BA$1*标准英雄数值!$AB25 -> 149 | BB25: =BB$1*标准英雄数值!$AC25 -> 10 | BC25: =BC$1*标准英雄数值!$AE25 -> 10
A26: 24 | B26: =F27/$F$3 -> 3.228 | C26: 3.28 | F26: =ROUND(F$1*标准英雄数值!$E26,0) -> 3074 | G26: =ROUND(G$1*标准英雄数值!$G26,0) -> 0 | H26: =ROUND(H$1*标准英雄数值!$L26/I$1,0) -> 140 | I26: =I$1*标准英雄数值!$N26 -> 1 | J26: =J$1*标准英雄数值!$P26 -> 0.05 | K26: =K$1*标准英雄数值!$R26 -> 1.5 | L26: =L$1*标准英雄数值!$T26*I$1 -> 5 | M26: =ROUNDUP(M$1*标准英雄数值!$V26,0) -> 6 | N26: =N$1*标准英雄数值!$AB26 -> 0 | O26: =O$1*标准英雄数值!$AC26 -> 10 | P26: =P$1*标准英雄数值!$AE26 -> 10 | S26: =ROUND(S$1*标准英雄数值!$E26,0) -> 1537 | T26: =ROUND(T$1*标准英雄数值!$G26,0) -> 0 | U26: =ROUND(U$1*标准英雄数值!$L26/V$1,0) -> 312 | V26: =V$1*标准英雄数值!$N26 -> 1 | W26: =W$1*标准英雄数值!$P26 -> 0.05 | X26: =X$1*标准英雄数值!$R26 -> 1.5 | Y26: =Y$1*标准英雄数值!$T26*V$1 -> 5 | Z26: =ROUNDUP(Z$1*标准英雄数值!$V26,0) -> 6 | AA26: =AA$1*标准英雄数值!$AB26 -> 0 | AB26: =AB$1*标准英雄数值!$AC26 -> 10 | AC26: =AC$1*标准英雄数值!$AE26 -> 10 | AF26: =ROUND(AF$1*标准英雄数值!$E26,0) -> 1537 | AG26: =ROUND(AG$1*标准英雄数值!$G26,0) -> 0 | AH26: =ROUND(AH$1*标准英雄数值!$L26/AI$1,0) -> 234 | AI26: =AI$1*标准英雄数值!$N26 -> 1 | AJ26: =AJ$1*标准英雄数值!$P26 -> 0.05 | AK26: =AK$1*标准英雄数值!$R26 -> 1.5 | AL26: =AL$1*标准英雄数值!$T26*AI$1 -> 5 | AM26: =ROUNDUP(AM$1*标准英雄数值!$V26,0) -> 6 | AN26: =AN$1*标准英雄数值!$AB26 -> 0 | AO26: =AO$1*标准英雄数值!$AC26 -> 10 | AP26: =AP$1*标准英雄数值!$AE26 -> 10 | AS26: =ROUND(AS$1*标准英雄数值!$E26,0) -> 1844 | AT26: =ROUND(AT$1*标准英雄数值!$G26,0) -> 0 | AU26: =ROUND(AU$1*标准英雄数值!$L26/AV$1,0) -> 109 | AV26: =AV$1*标准英雄数值!$N26 -> 1 | AW26: =AW$1*标准英雄数值!$P26 -> 0.05 | AX26: =AX$1*标准英雄数值!$R26 -> 1.5 | AY26: =AY$1*标准英雄数值!$T26*AV$1 -> 5 | AZ26: =ROUNDUP(AZ$1*标准英雄数值!$V26,0) -> 6 | BA26: =BA$1*标准英雄数值!$AB26 -> 156 | BB26: =BB$1*标准英雄数值!$AC26 -> 10 | BC26: =BC$1*标准英雄数值!$AE26 -> 10
A27: 25 | B27: =F28/$F$3 -> 3.39 | C27: 3.44 | F27: =ROUND(F$1*标准英雄数值!$E27,0) -> 3228 | G27: =ROUND(G$1*标准英雄数值!$G27,0) -> 0 | H27: =ROUND(H$1*标准英雄数值!$L27/I$1,0) -> 148 | I27: =I$1*标准英雄数值!$N27 -> 1 | J27: =J$1*标准英雄数值!$P27 -> 0.05 | K27: =K$1*标准英雄数值!$R27 -> 1.5 | L27: =L$1*标准英雄数值!$T27*I$1 -> 5 | M27: =ROUNDUP(M$1*标准英雄数值!$V27,0) -> 6 | N27: =N$1*标准英雄数值!$AB27 -> 0 | O27: =O$1*标准英雄数值!$AC27 -> 10 | P27: =P$1*标准英雄数值!$AE27 -> 10 | S27: =ROUND(S$1*标准英雄数值!$E27,0) -> 1614 | T27: =ROUND(T$1*标准英雄数值!$G27,0) -> 0 | U27: =ROUND(U$1*标准英雄数值!$L27/V$1,0) -> 328 | V27: =V$1*标准英雄数值!$N27 -> 1 | W27: =W$1*标准英雄数值!$P27 -> 0.05 | X27: =X$1*标准英雄数值!$R27 -> 1.5 | Y27: =Y$1*标准英雄数值!$T27*V$1 -> 5 | Z27: =ROUNDUP(Z$1*标准英雄数值!$V27,0) -> 6 | AA27: =AA$1*标准英雄数值!$AB27 -> 0 | AB27: =AB$1*标准英雄数值!$AC27 -> 10 | AC27: =AC$1*标准英雄数值!$AE27 -> 10 | AF27: =ROUND(AF$1*标准英雄数值!$E27,0) -> 1614 | AG27: =ROUND(AG$1*标准英雄数值!$G27,0) -> 0 | AH27: =ROUND(AH$1*标准英雄数值!$L27/AI$1,0) -> 246 | AI27: =AI$1*标准英雄数值!$N27 -> 1 | AJ27: =AJ$1*标准英雄数值!$P27 -> 0.05 | AK27: =AK$1*标准英雄数值!$R27 -> 1.5 | AL27: =AL$1*标准英雄数值!$T27*AI$1 -> 5 | AM27: =ROUNDUP(AM$1*标准英雄数值!$V27,0) -> 6 | AN27: =AN$1*标准英雄数值!$AB27 -> 0 | AO27: =AO$1*标准英雄数值!$AC27 -> 10 | AP27: =AP$1*标准英雄数值!$AE27 -> 10 | AS27: =ROUND(AS$1*标准英雄数值!$E27,0) -> 1937 | AT27: =ROUND(AT$1*标准英雄数值!$G27,0) -> 0 | AU27: =ROUND(AU$1*标准英雄数值!$L27/AV$1,0) -> 115 | AV27: =AV$1*标准英雄数值!$N27 -> 1 | AW27: =AW$1*标准英雄数值!$P27 -> 0.05 | AX27: =AX$1*标准英雄数值!$R27 -> 1.5 | AY27: =AY$1*标准英雄数值!$T27*AV$1 -> 5 | AZ27: =ROUNDUP(AZ$1*标准英雄数值!$V27,0) -> 6 | BA27: =BA$1*标准英雄数值!$AB27 -> 164 | BB27: =BB$1*标准英雄数值!$AC27 -> 10 | BC27: =BC$1*标准英雄数值!$AE27 -> 10
A28: 26 | B28: =F29/$F$3 -> 3.56 | C28: 3.62 | F28: =ROUND(F$1*标准英雄数值!$E28,0) -> 3390 | G28: =ROUND(G$1*标准英雄数值!$G28,0) -> 0 | H28: =ROUND(H$1*标准英雄数值!$L28/I$1,0) -> 155 | I28: =I$1*标准英雄数值!$N28 -> 1 | J28: =J$1*标准英雄数值!$P28 -> 0.05 | K28: =K$1*标准英雄数值!$R28 -> 1.5 | L28: =L$1*标准英雄数值!$T28*I$1 -> 5 | M28: =ROUNDUP(M$1*标准英雄数值!$V28,0) -> 6 | N28: =N$1*标准英雄数值!$AB28 -> 0 | O28: =O$1*标准英雄数值!$AC28 -> 10 | P28: =P$1*标准英雄数值!$AE28 -> 10 | S28: =ROUND(S$1*标准英雄数值!$E28,0) -> 1695 | T28: =ROUND(T$1*标准英雄数值!$G28,0) -> 0 | U28: =ROUND(U$1*标准英雄数值!$L28/V$1,0) -> 344 | V28: =V$1*标准英雄数值!$N28 -> 1 | W28: =W$1*标准英雄数值!$P28 -> 0.05 | X28: =X$1*标准英雄数值!$R28 -> 1.5 | Y28: =Y$1*标准英雄数值!$T28*V$1 -> 5 | Z28: =ROUNDUP(Z$1*标准英雄数值!$V28,0) -> 6 | AA28: =AA$1*标准英雄数值!$AB28 -> 0 | AB28: =AB$1*标准英雄数值!$AC28 -> 10 | AC28: =AC$1*标准英雄数值!$AE28 -> 10 | AF28: =ROUND(AF$1*标准英雄数值!$E28,0) -> 1695 | AG28: =ROUND(AG$1*标准英雄数值!$G28,0) -> 0 | AH28: =ROUND(AH$1*标准英雄数值!$L28/AI$1,0) -> 258 | AI28: =AI$1*标准英雄数值!$N28 -> 1 | AJ28: =AJ$1*标准英雄数值!$P28 -> 0.05 | AK28: =AK$1*标准英雄数值!$R28 -> 1.5 | AL28: =AL$1*标准英雄数值!$T28*AI$1 -> 5 | AM28: =ROUNDUP(AM$1*标准英雄数值!$V28,0) -> 6 | AN28: =AN$1*标准英雄数值!$AB28 -> 0 | AO28: =AO$1*标准英雄数值!$AC28 -> 10 | AP28: =AP$1*标准英雄数值!$AE28 -> 10 | AS28: =ROUND(AS$1*标准英雄数值!$E28,0) -> 2034 | AT28: =ROUND(AT$1*标准英雄数值!$G28,0) -> 0 | AU28: =ROUND(AU$1*标准英雄数值!$L28/AV$1,0) -> 120 | AV28: =AV$1*标准英雄数值!$N28 -> 1 | AW28: =AW$1*标准英雄数值!$P28 -> 0.05 | AX28: =AX$1*标准英雄数值!$R28 -> 1.5 | AY28: =AY$1*标准英雄数值!$T28*AV$1 -> 5 | AZ28: =ROUNDUP(AZ$1*标准英雄数值!$V28,0) -> 6 | BA28: =BA$1*标准英雄数值!$AB28 -> 172 | BB28: =BB$1*标准英雄数值!$AC28 -> 10 | BC28: =BC$1*标准英雄数值!$AE28 -> 10
A29: 27 | B29: =F30/$F$3 -> 3.738 | C29: 3.8 | F29: =ROUND(F$1*标准英雄数值!$E29,0) -> 3560 | G29: =ROUND(G$1*标准英雄数值!$G29,0) -> 0 | H29: =ROUND(H$1*标准英雄数值!$L29/I$1,0) -> 163 | I29: =I$1*标准英雄数值!$N29 -> 1 | J29: =J$1*标准英雄数值!$P29 -> 0.05 | K29: =K$1*标准英雄数值!$R29 -> 1.5 | L29: =L$1*标准英雄数值!$T29*I$1 -> 5 | M29: =ROUNDUP(M$1*标准英雄数值!$V29,0) -> 6 | N29: =N$1*标准英雄数值!$AB29 -> 0 | O29: =O$1*标准英雄数值!$AC29 -> 10 | P29: =P$1*标准英雄数值!$AE29 -> 10 | S29: =ROUND(S$1*标准英雄数值!$E29,0) -> 1780 | T29: =ROUND(T$1*标准英雄数值!$G29,0) -> 0 | U29: =ROUND(U$1*标准英雄数值!$L29/V$1,0) -> 362 | V29: =V$1*标准英雄数值!$N29 -> 1 | W29: =W$1*标准英雄数值!$P29 -> 0.05 | X29: =X$1*标准英雄数值!$R29 -> 1.5 | Y29: =Y$1*标准英雄数值!$T29*V$1 -> 5 | Z29: =ROUNDUP(Z$1*标准英雄数值!$V29,0) -> 6 | AA29: =AA$1*标准英雄数值!$AB29 -> 0 | AB29: =AB$1*标准英雄数值!$AC29 -> 10 | AC29: =AC$1*标准英雄数值!$AE29 -> 10 | AF29: =ROUND(AF$1*标准英雄数值!$E29,0) -> 1780 | AG29: =ROUND(AG$1*标准英雄数值!$G29,0) -> 0 | AH29: =ROUND(AH$1*标准英雄数值!$L29/AI$1,0) -> 272 | AI29: =AI$1*标准英雄数值!$N29 -> 1 | AJ29: =AJ$1*标准英雄数值!$P29 -> 0.05 | AK29: =AK$1*标准英雄数值!$R29 -> 1.5 | AL29: =AL$1*标准英雄数值!$T29*AI$1 -> 5 | AM29: =ROUNDUP(AM$1*标准英雄数值!$V29,0) -> 6 | AN29: =AN$1*标准英雄数值!$AB29 -> 0 | AO29: =AO$1*标准英雄数值!$AC29 -> 10 | AP29: =AP$1*标准英雄数值!$AE29 -> 10 | AS29: =ROUND(AS$1*标准英雄数值!$E29,0) -> 2136 | AT29: =ROUND(AT$1*标准英雄数值!$G29,0) -> 0 | AU29: =ROUND(AU$1*标准英雄数值!$L29/AV$1,0) -> 127 | AV29: =AV$1*标准英雄数值!$N29 -> 1 | AW29: =AW$1*标准英雄数值!$P29 -> 0.05 | AX29: =AX$1*标准英雄数值!$R29 -> 1.5 | AY29: =AY$1*标准英雄数值!$T29*AV$1 -> 5 | AZ29: =ROUNDUP(AZ$1*标准英雄数值!$V29,0) -> 6 | BA29: =BA$1*标准英雄数值!$AB29 -> 181 | BB29: =BB$1*标准英雄数值!$AC29 -> 10 | BC29: =BC$1*标准英雄数值!$AE29 -> 10
A30: 28 | B30: =F31/$F$3 -> 3.924 | C30: 4 | F30: =ROUND(F$1*标准英雄数值!$E30,0) -> 3738 | G30: =ROUND(G$1*标准英雄数值!$G30,0) -> 0 | H30: =ROUND(H$1*标准英雄数值!$L30/I$1,0) -> 171 | I30: =I$1*标准英雄数值!$N30 -> 1 | J30: =J$1*标准英雄数值!$P30 -> 0.05 | K30: =K$1*标准英雄数值!$R30 -> 1.5 | L30: =L$1*标准英雄数值!$T30*I$1 -> 5 | M30: =ROUNDUP(M$1*标准英雄数值!$V30,0) -> 6 | N30: =N$1*标准英雄数值!$AB30 -> 0 | O30: =O$1*标准英雄数值!$AC30 -> 10 | P30: =P$1*标准英雄数值!$AE30 -> 10 | S30: =ROUND(S$1*标准英雄数值!$E30,0) -> 1869 | T30: =ROUND(T$1*标准英雄数值!$G30,0) -> 0 | U30: =ROUND(U$1*标准英雄数值!$L30/V$1,0) -> 380 | V30: =V$1*标准英雄数值!$N30 -> 1 | W30: =W$1*标准英雄数值!$P30 -> 0.05 | X30: =X$1*标准英雄数值!$R30 -> 1.5 | Y30: =Y$1*标准英雄数值!$T30*V$1 -> 5 | Z30: =ROUNDUP(Z$1*标准英雄数值!$V30,0) -> 6 | AA30: =AA$1*标准英雄数值!$AB30 -> 0 | AB30: =AB$1*标准英雄数值!$AC30 -> 10 | AC30: =AC$1*标准英雄数值!$AE30 -> 10 | AF30: =ROUND(AF$1*标准英雄数值!$E30,0) -> 1869 | AG30: =ROUND(AG$1*标准英雄数值!$G30,0) -> 0 | AH30: =ROUND(AH$1*标准英雄数值!$L30/AI$1,0) -> 285 | AI30: =AI$1*标准英雄数值!$N30 -> 1 | AJ30: =AJ$1*标准英雄数值!$P30 -> 0.05 | AK30: =AK$1*标准英雄数值!$R30 -> 1.5 | AL30: =AL$1*标准英雄数值!$T30*AI$1 -> 5 | AM30: =ROUNDUP(AM$1*标准英雄数值!$V30,0) -> 6 | AN30: =AN$1*标准英雄数值!$AB30 -> 0 | AO30: =AO$1*标准英雄数值!$AC30 -> 10 | AP30: =AP$1*标准英雄数值!$AE30 -> 10 | AS30: =ROUND(AS$1*标准英雄数值!$E30,0) -> 2243 | AT30: =ROUND(AT$1*标准英雄数值!$G30,0) -> 0 | AU30: =ROUND(AU$1*标准英雄数值!$L30/AV$1,0) -> 133 | AV30: =AV$1*标准英雄数值!$N30 -> 1 | AW30: =AW$1*标准英雄数值!$P30 -> 0.05 | AX30: =AX$1*标准英雄数值!$R30 -> 1.5 | AY30: =AY$1*标准英雄数值!$T30*AV$1 -> 5 | AZ30: =ROUNDUP(AZ$1*标准英雄数值!$V30,0) -> 6 | BA30: =BA$1*标准英雄数值!$AB30 -> 190 | BB30: =BB$1*标准英雄数值!$AC30 -> 10 | BC30: =BC$1*标准英雄数值!$AE30 -> 10
A31: 29 | B31: =F32/$F$3 -> 4.12 | C31: 4.2 | F31: =ROUND(F$1*标准英雄数值!$E31,0) -> 3924 | G31: =ROUND(G$1*标准英雄数值!$G31,0) -> 0 | H31: =ROUND(H$1*标准英雄数值!$L31/I$1,0) -> 180 | I31: =I$1*标准英雄数值!$N31 -> 1 | J31: =J$1*标准英雄数值!$P31 -> 0.05 | K31: =K$1*标准英雄数值!$R31 -> 1.5 | L31: =L$1*标准英雄数值!$T31*I$1 -> 5 | M31: =ROUNDUP(M$1*标准英雄数值!$V31,0) -> 6 | N31: =N$1*标准英雄数值!$AB31 -> 0 | O31: =O$1*标准英雄数值!$AC31 -> 10 | P31: =P$1*标准英雄数值!$AE31 -> 10 | S31: =ROUND(S$1*标准英雄数值!$E31,0) -> 1962 | T31: =ROUND(T$1*标准英雄数值!$G31,0) -> 0 | U31: =ROUND(U$1*标准英雄数值!$L31/V$1,0) -> 400 | V31: =V$1*标准英雄数值!$N31 -> 1 | W31: =W$1*标准英雄数值!$P31 -> 0.05 | X31: =X$1*标准英雄数值!$R31 -> 1.5 | Y31: =Y$1*标准英雄数值!$T31*V$1 -> 5 | Z31: =ROUNDUP(Z$1*标准英雄数值!$V31,0) -> 6 | AA31: =AA$1*标准英雄数值!$AB31 -> 0 | AB31: =AB$1*标准英雄数值!$AC31 -> 10 | AC31: =AC$1*标准英雄数值!$AE31 -> 10 | AF31: =ROUND(AF$1*标准英雄数值!$E31,0) -> 1962 | AG31: =ROUND(AG$1*标准英雄数值!$G31,0) -> 0 | AH31: =ROUND(AH$1*标准英雄数值!$L31/AI$1,0) -> 300 | AI31: =AI$1*标准英雄数值!$N31 -> 1 | AJ31: =AJ$1*标准英雄数值!$P31 -> 0.05 | AK31: =AK$1*标准英雄数值!$R31 -> 1.5 | AL31: =AL$1*标准英雄数值!$T31*AI$1 -> 5 | AM31: =ROUNDUP(AM$1*标准英雄数值!$V31,0) -> 6 | AN31: =AN$1*标准英雄数值!$AB31 -> 0 | AO31: =AO$1*标准英雄数值!$AC31 -> 10 | AP31: =AP$1*标准英雄数值!$AE31 -> 10 | AS31: =ROUND(AS$1*标准英雄数值!$E31,0) -> 2354 | AT31: =ROUND(AT$1*标准英雄数值!$G31,0) -> 0 | AU31: =ROUND(AU$1*标准英雄数值!$L31/AV$1,0) -> 140 | AV31: =AV$1*标准英雄数值!$N31 -> 1 | AW31: =AW$1*标准英雄数值!$P31 -> 0.05 | AX31: =AX$1*标准英雄数值!$R31 -> 1.5 | AY31: =AY$1*标准英雄数值!$T31*AV$1 -> 5 | AZ31: =ROUNDUP(AZ$1*标准英雄数值!$V31,0) -> 6 | BA31: =BA$1*标准英雄数值!$AB31 -> 200 | BB31: =BB$1*标准英雄数值!$AC31 -> 10 | BC31: =BC$1*标准英雄数值!$AE31 -> 10
A32: 30 | B32: =F33/$F$3 -> 4.326 | C32: 4.42 | F32: =ROUND(F$1*标准英雄数值!$E32,0) -> 4120 | G32: =ROUND(G$1*标准英雄数值!$G32,0) -> 0 | H32: =ROUND(H$1*标准英雄数值!$L32/I$1,0) -> 189 | I32: =I$1*标准英雄数值!$N32 -> 1 | J32: =J$1*标准英雄数值!$P32 -> 0.05 | K32: =K$1*标准英雄数值!$R32 -> 1.5 | L32: =L$1*标准英雄数值!$T32*I$1 -> 5 | M32: =ROUNDUP(M$1*标准英雄数值!$V32,0) -> 6 | N32: =N$1*标准英雄数值!$AB32 -> 0 | O32: =O$1*标准英雄数值!$AC32 -> 10 | P32: =P$1*标准英雄数值!$AE32 -> 10 | S32: =ROUND(S$1*标准英雄数值!$E32,0) -> 2060 | T32: =ROUND(T$1*标准英雄数值!$G32,0) -> 0 | U32: =ROUND(U$1*标准英雄数值!$L32/V$1,0) -> 420 | V32: =V$1*标准英雄数值!$N32 -> 1 | W32: =W$1*标准英雄数值!$P32 -> 0.05 | X32: =X$1*标准英雄数值!$R32 -> 1.5 | Y32: =Y$1*标准英雄数值!$T32*V$1 -> 5 | Z32: =ROUNDUP(Z$1*标准英雄数值!$V32,0) -> 6 | AA32: =AA$1*标准英雄数值!$AB32 -> 0 | AB32: =AB$1*标准英雄数值!$AC32 -> 10 | AC32: =AC$1*标准英雄数值!$AE32 -> 10 | AF32: =ROUND(AF$1*标准英雄数值!$E32,0) -> 2060 | AG32: =ROUND(AG$1*标准英雄数值!$G32,0) -> 0 | AH32: =ROUND(AH$1*标准英雄数值!$L32/AI$1,0) -> 315 | AI32: =AI$1*标准英雄数值!$N32 -> 1 | AJ32: =AJ$1*标准英雄数值!$P32 -> 0.05 | AK32: =AK$1*标准英雄数值!$R32 -> 1.5 | AL32: =AL$1*标准英雄数值!$T32*AI$1 -> 5 | AM32: =ROUNDUP(AM$1*标准英雄数值!$V32,0) -> 6 | AN32: =AN$1*标准英雄数值!$AB32 -> 0 | AO32: =AO$1*标准英雄数值!$AC32 -> 10 | AP32: =AP$1*标准英雄数值!$AE32 -> 10 | AS32: =ROUND(AS$1*标准英雄数值!$E32,0) -> 2472 | AT32: =ROUND(AT$1*标准英雄数值!$G32,0) -> 0 | AU32: =ROUND(AU$1*标准英雄数值!$L32/AV$1,0) -> 147 | AV32: =AV$1*标准英雄数值!$N32 -> 1 | AW32: =AW$1*标准英雄数值!$P32 -> 0.05 | AX32: =AX$1*标准英雄数值!$R32 -> 1.5 | AY32: =AY$1*标准英雄数值!$T32*AV$1 -> 5 | AZ32: =ROUNDUP(AZ$1*标准英雄数值!$V32,0) -> 6 | BA32: =BA$1*标准英雄数值!$AB32 -> 210 | BB32: =BB$1*标准英雄数值!$AC32 -> 10 | BC32: =BC$1*标准英雄数值!$AE32 -> 10
A33: 31 | B33: =F34/$F$3 -> 4.542 | C33: 4.64 | F33: =ROUND(F$1*标准英雄数值!$E33,0) -> 4326 | G33: =ROUND(G$1*标准英雄数值!$G33,0) -> 0 | H33: =ROUND(H$1*标准英雄数值!$L33/I$1,0) -> 199 | I33: =I$1*标准英雄数值!$N33 -> 1 | J33: =J$1*标准英雄数值!$P33 -> 0.05 | K33: =K$1*标准英雄数值!$R33 -> 1.5 | L33: =L$1*标准英雄数值!$T33*I$1 -> 5 | M33: =ROUNDUP(M$1*标准英雄数值!$V33,0) -> 6 | N33: =N$1*标准英雄数值!$AB33 -> 0 | O33: =O$1*标准英雄数值!$AC33 -> 10 | P33: =P$1*标准英雄数值!$AE33 -> 10 | S33: =ROUND(S$1*标准英雄数值!$E33,0) -> 2163 | T33: =ROUND(T$1*标准英雄数值!$G33,0) -> 0 | U33: =ROUND(U$1*标准英雄数值!$L33/V$1,0) -> 442 | V33: =V$1*标准英雄数值!$N33 -> 1 | W33: =W$1*标准英雄数值!$P33 -> 0.05 | X33: =X$1*标准英雄数值!$R33 -> 1.5 | Y33: =Y$1*标准英雄数值!$T33*V$1 -> 5 | Z33: =ROUNDUP(Z$1*标准英雄数值!$V33,0) -> 6 | AA33: =AA$1*标准英雄数值!$AB33 -> 0 | AB33: =AB$1*标准英雄数值!$AC33 -> 10 | AC33: =AC$1*标准英雄数值!$AE33 -> 10 | AF33: =ROUND(AF$1*标准英雄数值!$E33,0) -> 2163 | AG33: =ROUND(AG$1*标准英雄数值!$G33,0) -> 0 | AH33: =ROUND(AH$1*标准英雄数值!$L33/AI$1,0) -> 332 | AI33: =AI$1*标准英雄数值!$N33 -> 1 | AJ33: =AJ$1*标准英雄数值!$P33 -> 0.05 | AK33: =AK$1*标准英雄数值!$R33 -> 1.5 | AL33: =AL$1*标准英雄数值!$T33*AI$1 -> 5 | AM33: =ROUNDUP(AM$1*标准英雄数值!$V33,0) -> 6 | AN33: =AN$1*标准英雄数值!$AB33 -> 0 | AO33: =AO$1*标准英雄数值!$AC33 -> 10 | AP33: =AP$1*标准英雄数值!$AE33 -> 10 | AS33: =ROUND(AS$1*标准英雄数值!$E33,0) -> 2596 | AT33: =ROUND(AT$1*标准英雄数值!$G33,0) -> 0 | AU33: =ROUND(AU$1*标准英雄数值!$L33/AV$1,0) -> 155 | AV33: =AV$1*标准英雄数值!$N33 -> 1 | AW33: =AW$1*标准英雄数值!$P33 -> 0.05 | AX33: =AX$1*标准英雄数值!$R33 -> 1.5 | AY33: =AY$1*标准英雄数值!$T33*AV$1 -> 5 | AZ33: =ROUNDUP(AZ$1*标准英雄数值!$V33,0) -> 6 | BA33: =BA$1*标准英雄数值!$AB33 -> 221 | BB33: =BB$1*标准英雄数值!$AC33 -> 10 | BC33: =BC$1*标准英雄数值!$AE33 -> 10
A34: 32 | B34: =F35/$F$3 -> 4.77 | C34: 4.88 | F34: =ROUND(F$1*标准英雄数值!$E34,0) -> 4542 | G34: =ROUND(G$1*标准英雄数值!$G34,0) -> 0 | H34: =ROUND(H$1*标准英雄数值!$L34/I$1,0) -> 209 | I34: =I$1*标准英雄数值!$N34 -> 1 | J34: =J$1*标准英雄数值!$P34 -> 0.05 | K34: =K$1*标准英雄数值!$R34 -> 1.5 | L34: =L$1*标准英雄数值!$T34*I$1 -> 5 | M34: =ROUNDUP(M$1*标准英雄数值!$V34,0) -> 6 | N34: =N$1*标准英雄数值!$AB34 -> 0 | O34: =O$1*标准英雄数值!$AC34 -> 10 | P34: =P$1*标准英雄数值!$AE34 -> 10 | S34: =ROUND(S$1*标准英雄数值!$E34,0) -> 2271 | T34: =ROUND(T$1*标准英雄数值!$G34,0) -> 0 | U34: =ROUND(U$1*标准英雄数值!$L34/V$1,0) -> 464 | V34: =V$1*标准英雄数值!$N34 -> 1 | W34: =W$1*标准英雄数值!$P34 -> 0.05 | X34: =X$1*标准英雄数值!$R34 -> 1.5 | Y34: =Y$1*标准英雄数值!$T34*V$1 -> 5 | Z34: =ROUNDUP(Z$1*标准英雄数值!$V34,0) -> 6 | AA34: =AA$1*标准英雄数值!$AB34 -> 0 | AB34: =AB$1*标准英雄数值!$AC34 -> 10 | AC34: =AC$1*标准英雄数值!$AE34 -> 10 | AF34: =ROUND(AF$1*标准英雄数值!$E34,0) -> 2271 | AG34: =ROUND(AG$1*标准英雄数值!$G34,0) -> 0 | AH34: =ROUND(AH$1*标准英雄数值!$L34/AI$1,0) -> 348 | AI34: =AI$1*标准英雄数值!$N34 -> 1 | AJ34: =AJ$1*标准英雄数值!$P34 -> 0.05 | AK34: =AK$1*标准英雄数值!$R34 -> 1.5 | AL34: =AL$1*标准英雄数值!$T34*AI$1 -> 5 | AM34: =ROUNDUP(AM$1*标准英雄数值!$V34,0) -> 6 | AN34: =AN$1*标准英雄数值!$AB34 -> 0 | AO34: =AO$1*标准英雄数值!$AC34 -> 10 | AP34: =AP$1*标准英雄数值!$AE34 -> 10 | AS34: =ROUND(AS$1*标准英雄数值!$E34,0) -> 2725 | AT34: =ROUND(AT$1*标准英雄数值!$G34,0) -> 0 | AU34: =ROUND(AU$1*标准英雄数值!$L34/AV$1,0) -> 162 | AV34: =AV$1*标准英雄数值!$N34 -> 1 | AW34: =AW$1*标准英雄数值!$P34 -> 0.05 | AX34: =AX$1*标准英雄数值!$R34 -> 1.5 | AY34: =AY$1*标准英雄数值!$T34*AV$1 -> 5 | AZ34: =ROUNDUP(AZ$1*标准英雄数值!$V34,0) -> 6 | BA34: =BA$1*标准英雄数值!$AB34 -> 232 | BB34: =BB$1*标准英雄数值!$AC34 -> 10 | BC34: =BC$1*标准英雄数值!$AE34 -> 10
A35: 33 | B35: =F36/$F$3 -> 5.008 | C35: 5.12 | F35: =ROUND(F$1*标准英雄数值!$E35,0) -> 4770 | G35: =ROUND(G$1*标准英雄数值!$G35,0) -> 0 | H35: =ROUND(H$1*标准英雄数值!$L35/I$1,0) -> 220 | I35: =I$1*标准英雄数值!$N35 -> 1 | J35: =J$1*标准英雄数值!$P35 -> 0.05 | K35: =K$1*标准英雄数值!$R35 -> 1.5 | L35: =L$1*标准英雄数值!$T35*I$1 -> 5 | M35: =ROUNDUP(M$1*标准英雄数值!$V35,0) -> 6 | N35: =N$1*标准英雄数值!$AB35 -> 0 | O35: =O$1*标准英雄数值!$AC35 -> 10 | P35: =P$1*标准英雄数值!$AE35 -> 10 | S35: =ROUND(S$1*标准英雄数值!$E35,0) -> 2385 | T35: =ROUND(T$1*标准英雄数值!$G35,0) -> 0 | U35: =ROUND(U$1*标准英雄数值!$L35/V$1,0) -> 488 | V35: =V$1*标准英雄数值!$N35 -> 1 | W35: =W$1*标准英雄数值!$P35 -> 0.05 | X35: =X$1*标准英雄数值!$R35 -> 1.5 | Y35: =Y$1*标准英雄数值!$T35*V$1 -> 5 | Z35: =ROUNDUP(Z$1*标准英雄数值!$V35,0) -> 6 | AA35: =AA$1*标准英雄数值!$AB35 -> 0 | AB35: =AB$1*标准英雄数值!$AC35 -> 10 | AC35: =AC$1*标准英雄数值!$AE35 -> 10 | AF35: =ROUND(AF$1*标准英雄数值!$E35,0) -> 2385 | AG35: =ROUND(AG$1*标准英雄数值!$G35,0) -> 0 | AH35: =ROUND(AH$1*标准英雄数值!$L35/AI$1,0) -> 366 | AI35: =AI$1*标准英雄数值!$N35 -> 1 | AJ35: =AJ$1*标准英雄数值!$P35 -> 0.05 | AK35: =AK$1*标准英雄数值!$R35 -> 1.5 | AL35: =AL$1*标准英雄数值!$T35*AI$1 -> 5 | AM35: =ROUNDUP(AM$1*标准英雄数值!$V35,0) -> 6 | AN35: =AN$1*标准英雄数值!$AB35 -> 0 | AO35: =AO$1*标准英雄数值!$AC35 -> 10 | AP35: =AP$1*标准英雄数值!$AE35 -> 10 | AS35: =ROUND(AS$1*标准英雄数值!$E35,0) -> 2862 | AT35: =ROUND(AT$1*标准英雄数值!$G35,0) -> 0 | AU35: =ROUND(AU$1*标准英雄数值!$L35/AV$1,0) -> 171 | AV35: =AV$1*标准英雄数值!$N35 -> 1 | AW35: =AW$1*标准英雄数值!$P35 -> 0.05 | AX35: =AX$1*标准英雄数值!$R35 -> 1.5 | AY35: =AY$1*标准英雄数值!$T35*AV$1 -> 5 | AZ35: =ROUNDUP(AZ$1*标准英雄数值!$V35,0) -> 6 | BA35: =BA$1*标准英雄数值!$AB35 -> 244 | BB35: =BB$1*标准英雄数值!$AC35 -> 10 | BC35: =BC$1*标准英雄数值!$AE35 -> 10
A36: 34 | B36: =F37/$F$3 -> 5.258 | C36: =U37/$U$3 -> 5.38 | F36: =ROUND(F$1*标准英雄数值!$E36,0) -> 5008 | G36: =ROUND(G$1*标准英雄数值!$G36,0) -> 0 | H36: =ROUND(H$1*标准英雄数值!$L36/I$1,0) -> 230 | I36: =I$1*标准英雄数值!$N36 -> 1 | J36: =J$1*标准英雄数值!$P36 -> 0.05 | K36: =K$1*标准英雄数值!$R36 -> 1.5 | L36: =L$1*标准英雄数值!$T36*I$1 -> 5 | M36: =ROUNDUP(M$1*标准英雄数值!$V36,0) -> 6 | N36: =N$1*标准英雄数值!$AB36 -> 0 | O36: =O$1*标准英雄数值!$AC36 -> 10 | P36: =P$1*标准英雄数值!$AE36 -> 10 | S36: =ROUND(S$1*标准英雄数值!$E36,0) -> 2504 | T36: =ROUND(T$1*标准英雄数值!$G36,0) -> 0 | U36: =ROUND(U$1*标准英雄数值!$L36/V$1,0) -> 512 | V36: =V$1*标准英雄数值!$N36 -> 1 | W36: =W$1*标准英雄数值!$P36 -> 0.05 | X36: =X$1*标准英雄数值!$R36 -> 1.5 | Y36: =Y$1*标准英雄数值!$T36*V$1 -> 5 | Z36: =ROUNDUP(Z$1*标准英雄数值!$V36,0) -> 6 | AA36: =AA$1*标准英雄数值!$AB36 -> 0 | AB36: =AB$1*标准英雄数值!$AC36 -> 10 | AC36: =AC$1*标准英雄数值!$AE36 -> 10 | AF36: =ROUND(AF$1*标准英雄数值!$E36,0) -> 2504 | AG36: =ROUND(AG$1*标准英雄数值!$G36,0) -> 0 | AH36: =ROUND(AH$1*标准英雄数值!$L36/AI$1,0) -> 384 | AI36: =AI$1*标准英雄数值!$N36 -> 1 | AJ36: =AJ$1*标准英雄数值!$P36 -> 0.05 | AK36: =AK$1*标准英雄数值!$R36 -> 1.5 | AL36: =AL$1*标准英雄数值!$T36*AI$1 -> 5 | AM36: =ROUNDUP(AM$1*标准英雄数值!$V36,0) -> 6 | AN36: =AN$1*标准英雄数值!$AB36 -> 0 | AO36: =AO$1*标准英雄数值!$AC36 -> 10 | AP36: =AP$1*标准英雄数值!$AE36 -> 10 | AS36: =ROUND(AS$1*标准英雄数值!$E36,0) -> 3005 | AT36: =ROUND(AT$1*标准英雄数值!$G36,0) -> 0 | AU36: =ROUND(AU$1*标准英雄数值!$L36/AV$1,0) -> 179 | AV36: =AV$1*标准英雄数值!$N36 -> 1 | AW36: =AW$1*标准英雄数值!$P36 -> 0.05 | AX36: =AX$1*标准英雄数值!$R36 -> 1.5 | AY36: =AY$1*标准英雄数值!$T36*AV$1 -> 5 | AZ36: =ROUNDUP(AZ$1*标准英雄数值!$V36,0) -> 6 | BA36: =BA$1*标准英雄数值!$AB36 -> 256 | BB36: =BB$1*标准英雄数值!$AC36 -> 10 | BC36: =BC$1*标准英雄数值!$AE36 -> 10
A37: 35 | B37: =F38/$F$3 -> 5.52 | C37: 5.64 | F37: =ROUND(F$1*标准英雄数值!$E37,0) -> 5258 | G37: =ROUND(G$1*标准英雄数值!$G37,0) -> 0 | H37: =ROUND(H$1*标准英雄数值!$L37/I$1,0) -> 242 | I37: =I$1*标准英雄数值!$N37 -> 1 | J37: =J$1*标准英雄数值!$P37 -> 0.05 | K37: =K$1*标准英雄数值!$R37 -> 1.5 | L37: =L$1*标准英雄数值!$T37*I$1 -> 5 | M37: =ROUNDUP(M$1*标准英雄数值!$V37,0) -> 6 | N37: =N$1*标准英雄数值!$AB37 -> 0 | O37: =O$1*标准英雄数值!$AC37 -> 10 | P37: =P$1*标准英雄数值!$AE37 -> 10 | S37: =ROUND(S$1*标准英雄数值!$E37,0) -> 2629 | T37: =ROUND(T$1*标准英雄数值!$G37,0) -> 0 | U37: =ROUND(U$1*标准英雄数值!$L37/V$1,0) -> 538 | V37: =V$1*标准英雄数值!$N37 -> 1 | W37: =W$1*标准英雄数值!$P37 -> 0.05 | X37: =X$1*标准英雄数值!$R37 -> 1.5 | Y37: =Y$1*标准英雄数值!$T37*V$1 -> 5 | Z37: =ROUNDUP(Z$1*标准英雄数值!$V37,0) -> 6 | AA37: =AA$1*标准英雄数值!$AB37 -> 0 | AB37: =AB$1*标准英雄数值!$AC37 -> 10 | AC37: =AC$1*标准英雄数值!$AE37 -> 10 | AF37: =ROUND(AF$1*标准英雄数值!$E37,0) -> 2629 | AG37: =ROUND(AG$1*标准英雄数值!$G37,0) -> 0 | AH37: =ROUND(AH$1*标准英雄数值!$L37/AI$1,0) -> 404 | AI37: =AI$1*标准英雄数值!$N37 -> 1 | AJ37: =AJ$1*标准英雄数值!$P37 -> 0.05 | AK37: =AK$1*标准英雄数值!$R37 -> 1.5 | AL37: =AL$1*标准英雄数值!$T37*AI$1 -> 5 | AM37: =ROUNDUP(AM$1*标准英雄数值!$V37,0) -> 6 | AN37: =AN$1*标准英雄数值!$AB37 -> 0 | AO37: =AO$1*标准英雄数值!$AC37 -> 10 | AP37: =AP$1*标准英雄数值!$AE37 -> 10 | AS37: =ROUND(AS$1*标准英雄数值!$E37,0) -> 3155 | AT37: =ROUND(AT$1*标准英雄数值!$G37,0) -> 0 | AU37: =ROUND(AU$1*标准英雄数值!$L37/AV$1,0) -> 188 | AV37: =AV$1*标准英雄数值!$N37 -> 1 | AW37: =AW$1*标准英雄数值!$P37 -> 0.05 | AX37: =AX$1*标准英雄数值!$R37 -> 1.5 | AY37: =AY$1*标准英雄数值!$T37*AV$1 -> 5 | AZ37: =ROUNDUP(AZ$1*标准英雄数值!$V37,0) -> 6 | BA37: =BA$1*标准英雄数值!$AB37 -> 269 | BB37: =BB$1*标准英雄数值!$AC37 -> 10 | BC37: =BC$1*标准英雄数值!$AE37 -> 10
A38: 36 | B38: =F39/$F$3 -> 5.796 | C38: 5.92 | F38: =ROUND(F$1*标准英雄数值!$E38,0) -> 5520 | G38: =ROUND(G$1*标准英雄数值!$G38,0) -> 0 | H38: =ROUND(H$1*标准英雄数值!$L38/I$1,0) -> 254 | I38: =I$1*标准英雄数值!$N38 -> 1 | J38: =J$1*标准英雄数值!$P38 -> 0.05 | K38: =K$1*标准英雄数值!$R38 -> 1.5 | L38: =L$1*标准英雄数值!$T38*I$1 -> 5 | M38: =ROUNDUP(M$1*标准英雄数值!$V38,0) -> 6 | N38: =N$1*标准英雄数值!$AB38 -> 0 | O38: =O$1*标准英雄数值!$AC38 -> 10 | P38: =P$1*标准英雄数值!$AE38 -> 10 | S38: =ROUND(S$1*标准英雄数值!$E38,0) -> 2760 | T38: =ROUND(T$1*标准英雄数值!$G38,0) -> 0 | U38: =ROUND(U$1*标准英雄数值!$L38/V$1,0) -> 564 | V38: =V$1*标准英雄数值!$N38 -> 1 | W38: =W$1*标准英雄数值!$P38 -> 0.05 | X38: =X$1*标准英雄数值!$R38 -> 1.5 | Y38: =Y$1*标准英雄数值!$T38*V$1 -> 5 | Z38: =ROUNDUP(Z$1*标准英雄数值!$V38,0) -> 6 | AA38: =AA$1*标准英雄数值!$AB38 -> 0 | AB38: =AB$1*标准英雄数值!$AC38 -> 10 | AC38: =AC$1*标准英雄数值!$AE38 -> 10 | AF38: =ROUND(AF$1*标准英雄数值!$E38,0) -> 2760 | AG38: =ROUND(AG$1*标准英雄数值!$G38,0) -> 0 | AH38: =ROUND(AH$1*标准英雄数值!$L38/AI$1,0) -> 423 | AI38: =AI$1*标准英雄数值!$N38 -> 1 | AJ38: =AJ$1*标准英雄数值!$P38 -> 0.05 | AK38: =AK$1*标准英雄数值!$R38 -> 1.5 | AL38: =AL$1*标准英雄数值!$T38*AI$1 -> 5 | AM38: =ROUNDUP(AM$1*标准英雄数值!$V38,0) -> 6 | AN38: =AN$1*标准英雄数值!$AB38 -> 0 | AO38: =AO$1*标准英雄数值!$AC38 -> 10 | AP38: =AP$1*标准英雄数值!$AE38 -> 10 | AS38: =ROUND(AS$1*标准英雄数值!$E38,0) -> 3312 | AT38: =ROUND(AT$1*标准英雄数值!$G38,0) -> 0 | AU38: =ROUND(AU$1*标准英雄数值!$L38/AV$1,0) -> 197 | AV38: =AV$1*标准英雄数值!$N38 -> 1 | AW38: =AW$1*标准英雄数值!$P38 -> 0.05 | AX38: =AX$1*标准英雄数值!$R38 -> 1.5 | AY38: =AY$1*标准英雄数值!$T38*AV$1 -> 5 | AZ38: =ROUNDUP(AZ$1*标准英雄数值!$V38,0) -> 6 | BA38: =BA$1*标准英雄数值!$AB38 -> 282 | BB38: =BB$1*标准英雄数值!$AC38 -> 10 | BC38: =BC$1*标准英雄数值!$AE38 -> 10
A39: 37 | B39: =F40/$F$3 -> 6.086 | C39: 6.22 | F39: =ROUND(F$1*标准英雄数值!$E39,0) -> 5796 | G39: =ROUND(G$1*标准英雄数值!$G39,0) -> 0 | H39: =ROUND(H$1*标准英雄数值!$L39/I$1,0) -> 266 | I39: =I$1*标准英雄数值!$N39 -> 1 | J39: =J$1*标准英雄数值!$P39 -> 0.05 | K39: =K$1*标准英雄数值!$R39 -> 1.5 | L39: =L$1*标准英雄数值!$T39*I$1 -> 5 | M39: =ROUNDUP(M$1*标准英雄数值!$V39,0) -> 6 | N39: =N$1*标准英雄数值!$AB39 -> 0 | O39: =O$1*标准英雄数值!$AC39 -> 10 | P39: =P$1*标准英雄数值!$AE39 -> 10 | S39: =ROUND(S$1*标准英雄数值!$E39,0) -> 2898 | T39: =ROUND(T$1*标准英雄数值!$G39,0) -> 0 | U39: =ROUND(U$1*标准英雄数值!$L39/V$1,0) -> 592 | V39: =V$1*标准英雄数值!$N39 -> 1 | W39: =W$1*标准英雄数值!$P39 -> 0.05 | X39: =X$1*标准英雄数值!$R39 -> 1.5 | Y39: =Y$1*标准英雄数值!$T39*V$1 -> 5 | Z39: =ROUNDUP(Z$1*标准英雄数值!$V39,0) -> 6 | AA39: =AA$1*标准英雄数值!$AB39 -> 0 | AB39: =AB$1*标准英雄数值!$AC39 -> 10 | AC39: =AC$1*标准英雄数值!$AE39 -> 10 | AF39: =ROUND(AF$1*标准英雄数值!$E39,0) -> 2898 | AG39: =ROUND(AG$1*标准英雄数值!$G39,0) -> 0 | AH39: =ROUND(AH$1*标准英雄数值!$L39/AI$1,0) -> 444 | AI39: =AI$1*标准英雄数值!$N39 -> 1 | AJ39: =AJ$1*标准英雄数值!$P39 -> 0.05 | AK39: =AK$1*标准英雄数值!$R39 -> 1.5 | AL39: =AL$1*标准英雄数值!$T39*AI$1 -> 5 | AM39: =ROUNDUP(AM$1*标准英雄数值!$V39,0) -> 6 | AN39: =AN$1*标准英雄数值!$AB39 -> 0 | AO39: =AO$1*标准英雄数值!$AC39 -> 10 | AP39: =AP$1*标准英雄数值!$AE39 -> 10 | AS39: =ROUND(AS$1*标准英雄数值!$E39,0) -> 3478 | AT39: =ROUND(AT$1*标准英雄数值!$G39,0) -> 0 | AU39: =ROUND(AU$1*标准英雄数值!$L39/AV$1,0) -> 207 | AV39: =AV$1*标准英雄数值!$N39 -> 1 | AW39: =AW$1*标准英雄数值!$P39 -> 0.05 | AX39: =AX$1*标准英雄数值!$R39 -> 1.5 | AY39: =AY$1*标准英雄数值!$T39*AV$1 -> 5 | AZ39: =ROUNDUP(AZ$1*标准英雄数值!$V39,0) -> 6 | BA39: =BA$1*标准英雄数值!$AB39 -> 296 | BB39: =BB$1*标准英雄数值!$AC39 -> 10 | BC39: =BC$1*标准英雄数值!$AE39 -> 10
A40: 38 | B40: =F41/$F$3 -> 6.39 | C40: 6.54 | F40: =ROUND(F$1*标准英雄数值!$E40,0) -> 6086 | G40: =ROUND(G$1*标准英雄数值!$G40,0) -> 0 | H40: =ROUND(H$1*标准英雄数值!$L40/I$1,0) -> 280 | I40: =I$1*标准英雄数值!$N40 -> 1 | J40: =J$1*标准英雄数值!$P40 -> 0.05 | K40: =K$1*标准英雄数值!$R40 -> 1.5 | L40: =L$1*标准英雄数值!$T40*I$1 -> 5 | M40: =ROUNDUP(M$1*标准英雄数值!$V40,0) -> 6 | N40: =N$1*标准英雄数值!$AB40 -> 0 | O40: =O$1*标准英雄数值!$AC40 -> 10 | P40: =P$1*标准英雄数值!$AE40 -> 10 | S40: =ROUND(S$1*标准英雄数值!$E40,0) -> 3043 | T40: =ROUND(T$1*标准英雄数值!$G40,0) -> 0 | U40: =ROUND(U$1*标准英雄数值!$L40/V$1,0) -> 622 | V40: =V$1*标准英雄数值!$N40 -> 1 | W40: =W$1*标准英雄数值!$P40 -> 0.05 | X40: =X$1*标准英雄数值!$R40 -> 1.5 | Y40: =Y$1*标准英雄数值!$T40*V$1 -> 5 | Z40: =ROUNDUP(Z$1*标准英雄数值!$V40,0) -> 6 | AA40: =AA$1*标准英雄数值!$AB40 -> 0 | AB40: =AB$1*标准英雄数值!$AC40 -> 10 | AC40: =AC$1*标准英雄数值!$AE40 -> 10 | AF40: =ROUND(AF$1*标准英雄数值!$E40,0) -> 3043 | AG40: =ROUND(AG$1*标准英雄数值!$G40,0) -> 0 | AH40: =ROUND(AH$1*标准英雄数值!$L40/AI$1,0) -> 467 | AI40: =AI$1*标准英雄数值!$N40 -> 1 | AJ40: =AJ$1*标准英雄数值!$P40 -> 0.05 | AK40: =AK$1*标准英雄数值!$R40 -> 1.5 | AL40: =AL$1*标准英雄数值!$T40*AI$1 -> 5 | AM40: =ROUNDUP(AM$1*标准英雄数值!$V40,0) -> 6 | AN40: =AN$1*标准英雄数值!$AB40 -> 0 | AO40: =AO$1*标准英雄数值!$AC40 -> 10 | AP40: =AP$1*标准英雄数值!$AE40 -> 10 | AS40: =ROUND(AS$1*标准英雄数值!$E40,0) -> 3652 | AT40: =ROUND(AT$1*标准英雄数值!$G40,0) -> 0 | AU40: =ROUND(AU$1*标准英雄数值!$L40/AV$1,0) -> 218 | AV40: =AV$1*标准英雄数值!$N40 -> 1 | AW40: =AW$1*标准英雄数值!$P40 -> 0.05 | AX40: =AX$1*标准英雄数值!$R40 -> 1.5 | AY40: =AY$1*标准英雄数值!$T40*AV$1 -> 5 | AZ40: =ROUNDUP(AZ$1*标准英雄数值!$V40,0) -> 6 | BA40: =BA$1*标准英雄数值!$AB40 -> 311 | BB40: =BB$1*标准英雄数值!$AC40 -> 10 | BC40: =BC$1*标准英雄数值!$AE40 -> 10
A41: 39 | B41: =F42/$F$3 -> 6.71 | C41: 6.86 | F41: =ROUND(F$1*标准英雄数值!$E41,0) -> 6390 | G41: =ROUND(G$1*标准英雄数值!$G41,0) -> 0 | H41: =ROUND(H$1*标准英雄数值!$L41/I$1,0) -> 294 | I41: =I$1*标准英雄数值!$N41 -> 1 | J41: =J$1*标准英雄数值!$P41 -> 0.05 | K41: =K$1*标准英雄数值!$R41 -> 1.5 | L41: =L$1*标准英雄数值!$T41*I$1 -> 5 | M41: =ROUNDUP(M$1*标准英雄数值!$V41,0) -> 6 | N41: =N$1*标准英雄数值!$AB41 -> 0 | O41: =O$1*标准英雄数值!$AC41 -> 10 | P41: =P$1*标准英雄数值!$AE41 -> 10 | S41: =ROUND(S$1*标准英雄数值!$E41,0) -> 3195 | T41: =ROUND(T$1*标准英雄数值!$G41,0) -> 0 | U41: =ROUND(U$1*标准英雄数值!$L41/V$1,0) -> 654 | V41: =V$1*标准英雄数值!$N41 -> 1 | W41: =W$1*标准英雄数值!$P41 -> 0.05 | X41: =X$1*标准英雄数值!$R41 -> 1.5 | Y41: =Y$1*标准英雄数值!$T41*V$1 -> 5 | Z41: =ROUNDUP(Z$1*标准英雄数值!$V41,0) -> 6 | AA41: =AA$1*标准英雄数值!$AB41 -> 0 | AB41: =AB$1*标准英雄数值!$AC41 -> 10 | AC41: =AC$1*标准英雄数值!$AE41 -> 10 | AF41: =ROUND(AF$1*标准英雄数值!$E41,0) -> 3195 | AG41: =ROUND(AG$1*标准英雄数值!$G41,0) -> 0 | AH41: =ROUND(AH$1*标准英雄数值!$L41/AI$1,0) -> 491 | AI41: =AI$1*标准英雄数值!$N41 -> 1 | AJ41: =AJ$1*标准英雄数值!$P41 -> 0.05 | AK41: =AK$1*标准英雄数值!$R41 -> 1.5 | AL41: =AL$1*标准英雄数值!$T41*AI$1 -> 5 | AM41: =ROUNDUP(AM$1*标准英雄数值!$V41,0) -> 6 | AN41: =AN$1*标准英雄数值!$AB41 -> 0 | AO41: =AO$1*标准英雄数值!$AC41 -> 10 | AP41: =AP$1*标准英雄数值!$AE41 -> 10 | AS41: =ROUND(AS$1*标准英雄数值!$E41,0) -> 3834 | AT41: =ROUND(AT$1*标准英雄数值!$G41,0) -> 0 | AU41: =ROUND(AU$1*标准英雄数值!$L41/AV$1,0) -> 229 | AV41: =AV$1*标准英雄数值!$N41 -> 1 | AW41: =AW$1*标准英雄数值!$P41 -> 0.05 | AX41: =AX$1*标准英雄数值!$R41 -> 1.5 | AY41: =AY$1*标准英雄数值!$T41*AV$1 -> 5 | AZ41: =ROUNDUP(AZ$1*标准英雄数值!$V41,0) -> 6 | BA41: =BA$1*标准英雄数值!$AB41 -> 327 | BB41: =BB$1*标准英雄数值!$AC41 -> 10 | BC41: =BC$1*标准英雄数值!$AE41 -> 10
A42: 40 | B42: =F43/$F$3 -> 7.046 | C42: 7.2 | F42: =ROUND(F$1*标准英雄数值!$E42,0) -> 6710 | G42: =ROUND(G$1*标准英雄数值!$G42,0) -> 0 | H42: =ROUND(H$1*标准英雄数值!$L42/I$1,0) -> 309 | I42: =I$1*标准英雄数值!$N42 -> 1 | J42: =J$1*标准英雄数值!$P42 -> 0.05 | K42: =K$1*标准英雄数值!$R42 -> 1.5 | L42: =L$1*标准英雄数值!$T42*I$1 -> 5 | M42: =ROUNDUP(M$1*标准英雄数值!$V42,0) -> 6 | N42: =N$1*标准英雄数值!$AB42 -> 0 | O42: =O$1*标准英雄数值!$AC42 -> 10 | P42: =P$1*标准英雄数值!$AE42 -> 10 | S42: =ROUND(S$1*标准英雄数值!$E42,0) -> 3355 | T42: =ROUND(T$1*标准英雄数值!$G42,0) -> 0 | U42: =ROUND(U$1*标准英雄数值!$L42/V$1,0) -> 686 | V42: =V$1*标准英雄数值!$N42 -> 1 | W42: =W$1*标准英雄数值!$P42 -> 0.05 | X42: =X$1*标准英雄数值!$R42 -> 1.5 | Y42: =Y$1*标准英雄数值!$T42*V$1 -> 5 | Z42: =ROUNDUP(Z$1*标准英雄数值!$V42,0) -> 6 | AA42: =AA$1*标准英雄数值!$AB42 -> 0 | AB42: =AB$1*标准英雄数值!$AC42 -> 10 | AC42: =AC$1*标准英雄数值!$AE42 -> 10 | AF42: =ROUND(AF$1*标准英雄数值!$E42,0) -> 3355 | AG42: =ROUND(AG$1*标准英雄数值!$G42,0) -> 0 | AH42: =ROUND(AH$1*标准英雄数值!$L42/AI$1,0) -> 515 | AI42: =AI$1*标准英雄数值!$N42 -> 1 | AJ42: =AJ$1*标准英雄数值!$P42 -> 0.05 | AK42: =AK$1*标准英雄数值!$R42 -> 1.5 | AL42: =AL$1*标准英雄数值!$T42*AI$1 -> 5 | AM42: =ROUNDUP(AM$1*标准英雄数值!$V42,0) -> 6 | AN42: =AN$1*标准英雄数值!$AB42 -> 0 | AO42: =AO$1*标准英雄数值!$AC42 -> 10 | AP42: =AP$1*标准英雄数值!$AE42 -> 10 | AS42: =ROUND(AS$1*标准英雄数值!$E42,0) -> 4026 | AT42: =ROUND(AT$1*标准英雄数值!$G42,0) -> 0 | AU42: =ROUND(AU$1*标准英雄数值!$L42/AV$1,0) -> 240 | AV42: =AV$1*标准英雄数值!$N42 -> 1 | AW42: =AW$1*标准英雄数值!$P42 -> 0.05 | AX42: =AX$1*标准英雄数值!$R42 -> 1.5 | AY42: =AY$1*标准英雄数值!$T42*AV$1 -> 5 | AZ42: =ROUNDUP(AZ$1*标准英雄数值!$V42,0) -> 6 | BA42: =BA$1*标准英雄数值!$AB42 -> 343 | BB42: =BB$1*标准英雄数值!$AC42 -> 10 | BC42: =BC$1*标准英雄数值!$AE42 -> 10
A43: 41 | B43: =F44/$F$3 -> 7.398 | C43: 7.56 | F43: =ROUND(F$1*标准英雄数值!$E43,0) -> 7046 | G43: =ROUND(G$1*标准英雄数值!$G43,0) -> 0 | H43: =ROUND(H$1*标准英雄数值!$L43/I$1,0) -> 324 | I43: =I$1*标准英雄数值!$N43 -> 1 | J43: =J$1*标准英雄数值!$P43 -> 0.05 | K43: =K$1*标准英雄数值!$R43 -> 1.5 | L43: =L$1*标准英雄数值!$T43*I$1 -> 5 | M43: =ROUNDUP(M$1*标准英雄数值!$V43,0) -> 6 | N43: =N$1*标准英雄数值!$AB43 -> 0 | O43: =O$1*标准英雄数值!$AC43 -> 10 | P43: =P$1*标准英雄数值!$AE43 -> 10 | S43: =ROUND(S$1*标准英雄数值!$E43,0) -> 3523 | T43: =ROUND(T$1*标准英雄数值!$G43,0) -> 0 | U43: =ROUND(U$1*标准英雄数值!$L43/V$1,0) -> 720 | V43: =V$1*标准英雄数值!$N43 -> 1 | W43: =W$1*标准英雄数值!$P43 -> 0.05 | X43: =X$1*标准英雄数值!$R43 -> 1.5 | Y43: =Y$1*标准英雄数值!$T43*V$1 -> 5 | Z43: =ROUNDUP(Z$1*标准英雄数值!$V43,0) -> 6 | AA43: =AA$1*标准英雄数值!$AB43 -> 0 | AB43: =AB$1*标准英雄数值!$AC43 -> 10 | AC43: =AC$1*标准英雄数值!$AE43 -> 10 | AF43: =ROUND(AF$1*标准英雄数值!$E43,0) -> 3523 | AG43: =ROUND(AG$1*标准英雄数值!$G43,0) -> 0 | AH43: =ROUND(AH$1*标准英雄数值!$L43/AI$1,0) -> 540 | AI43: =AI$1*标准英雄数值!$N43 -> 1 | AJ43: =AJ$1*标准英雄数值!$P43 -> 0.05 | AK43: =AK$1*标准英雄数值!$R43 -> 1.5 | AL43: =AL$1*标准英雄数值!$T43*AI$1 -> 5 | AM43: =ROUNDUP(AM$1*标准英雄数值!$V43,0) -> 6 | AN43: =AN$1*标准英雄数值!$AB43 -> 0 | AO43: =AO$1*标准英雄数值!$AC43 -> 10 | AP43: =AP$1*标准英雄数值!$AE43 -> 10 | AS43: =ROUND(AS$1*标准英雄数值!$E43,0) -> 4228 | AT43: =ROUND(AT$1*标准英雄数值!$G43,0) -> 0 | AU43: =ROUND(AU$1*标准英雄数值!$L43/AV$1,0) -> 252 | AV43: =AV$1*标准英雄数值!$N43 -> 1 | AW43: =AW$1*标准英雄数值!$P43 -> 0.05 | AX43: =AX$1*标准英雄数值!$R43 -> 1.5 | AY43: =AY$1*标准英雄数值!$T43*AV$1 -> 5 | AZ43: =ROUNDUP(AZ$1*标准英雄数值!$V43,0) -> 6 | BA43: =BA$1*标准英雄数值!$AB43 -> 360 | BB43: =BB$1*标准英雄数值!$AC43 -> 10 | BC43: =BC$1*标准英雄数值!$AE43 -> 10
A44: 42 | B44: =F45/$F$3 -> 7.768 | C44: 7.94 | F44: =ROUND(F$1*标准英雄数值!$E44,0) -> 7398 | G44: =ROUND(G$1*标准英雄数值!$G44,0) -> 0 | H44: =ROUND(H$1*标准英雄数值!$L44/I$1,0) -> 340 | I44: =I$1*标准英雄数值!$N44 -> 1 | J44: =J$1*标准英雄数值!$P44 -> 0.05 | K44: =K$1*标准英雄数值!$R44 -> 1.5 | L44: =L$1*标准英雄数值!$T44*I$1 -> 5 | M44: =ROUNDUP(M$1*标准英雄数值!$V44,0) -> 6 | N44: =N$1*标准英雄数值!$AB44 -> 0 | O44: =O$1*标准英雄数值!$AC44 -> 10 | P44: =P$1*标准英雄数值!$AE44 -> 10 | S44: =ROUND(S$1*标准英雄数值!$E44,0) -> 3699 | T44: =ROUND(T$1*标准英雄数值!$G44,0) -> 0 | U44: =ROUND(U$1*标准英雄数值!$L44/V$1,0) -> 756 | V44: =V$1*标准英雄数值!$N44 -> 1 | W44: =W$1*标准英雄数值!$P44 -> 0.05 | X44: =X$1*标准英雄数值!$R44 -> 1.5 | Y44: =Y$1*标准英雄数值!$T44*V$1 -> 5 | Z44: =ROUNDUP(Z$1*标准英雄数值!$V44,0) -> 6 | AA44: =AA$1*标准英雄数值!$AB44 -> 0 | AB44: =AB$1*标准英雄数值!$AC44 -> 10 | AC44: =AC$1*标准英雄数值!$AE44 -> 10 | AF44: =ROUND(AF$1*标准英雄数值!$E44,0) -> 3699 | AG44: =ROUND(AG$1*标准英雄数值!$G44,0) -> 0 | AH44: =ROUND(AH$1*标准英雄数值!$L44/AI$1,0) -> 567 | AI44: =AI$1*标准英雄数值!$N44 -> 1 | AJ44: =AJ$1*标准英雄数值!$P44 -> 0.05 | AK44: =AK$1*标准英雄数值!$R44 -> 1.5 | AL44: =AL$1*标准英雄数值!$T44*AI$1 -> 5 | AM44: =ROUNDUP(AM$1*标准英雄数值!$V44,0) -> 6 | AN44: =AN$1*标准英雄数值!$AB44 -> 0 | AO44: =AO$1*标准英雄数值!$AC44 -> 10 | AP44: =AP$1*标准英雄数值!$AE44 -> 10 | AS44: =ROUND(AS$1*标准英雄数值!$E44,0) -> 4439 | AT44: =ROUND(AT$1*标准英雄数值!$G44,0) -> 0 | AU44: =ROUND(AU$1*标准英雄数值!$L44/AV$1,0) -> 265 | AV44: =AV$1*标准英雄数值!$N44 -> 1 | AW44: =AW$1*标准英雄数值!$P44 -> 0.05 | AX44: =AX$1*标准英雄数值!$R44 -> 1.5 | AY44: =AY$1*标准英雄数值!$T44*AV$1 -> 5 | AZ44: =ROUNDUP(AZ$1*标准英雄数值!$V44,0) -> 6 | BA44: =BA$1*标准英雄数值!$AB44 -> 378 | BB44: =BB$1*标准英雄数值!$AC44 -> 10 | BC44: =BC$1*标准英雄数值!$AE44 -> 10
A45: 43 | B45: =F46/$F$3 -> 8.156 | C45: 8.34 | F45: =ROUND(F$1*标准英雄数值!$E45,0) -> 7768 | G45: =ROUND(G$1*标准英雄数值!$G45,0) -> 0 | H45: =ROUND(H$1*标准英雄数值!$L45/I$1,0) -> 357 | I45: =I$1*标准英雄数值!$N45 -> 1 | J45: =J$1*标准英雄数值!$P45 -> 0.05 | K45: =K$1*标准英雄数值!$R45 -> 1.5 | L45: =L$1*标准英雄数值!$T45*I$1 -> 5 | M45: =ROUNDUP(M$1*标准英雄数值!$V45,0) -> 6 | N45: =N$1*标准英雄数值!$AB45 -> 0 | O45: =O$1*标准英雄数值!$AC45 -> 10 | P45: =P$1*标准英雄数值!$AE45 -> 10 | S45: =ROUND(S$1*标准英雄数值!$E45,0) -> 3884 | T45: =ROUND(T$1*标准英雄数值!$G45,0) -> 0 | U45: =ROUND(U$1*标准英雄数值!$L45/V$1,0) -> 794 | V45: =V$1*标准英雄数值!$N45 -> 1 | W45: =W$1*标准英雄数值!$P45 -> 0.05 | X45: =X$1*标准英雄数值!$R45 -> 1.5 | Y45: =Y$1*标准英雄数值!$T45*V$1 -> 5 | Z45: =ROUNDUP(Z$1*标准英雄数值!$V45,0) -> 6 | AA45: =AA$1*标准英雄数值!$AB45 -> 0 | AB45: =AB$1*标准英雄数值!$AC45 -> 10 | AC45: =AC$1*标准英雄数值!$AE45 -> 10 | AF45: =ROUND(AF$1*标准英雄数值!$E45,0) -> 3884 | AG45: =ROUND(AG$1*标准英雄数值!$G45,0) -> 0 | AH45: =ROUND(AH$1*标准英雄数值!$L45/AI$1,0) -> 596 | AI45: =AI$1*标准英雄数值!$N45 -> 1 | AJ45: =AJ$1*标准英雄数值!$P45 -> 0.05 | AK45: =AK$1*标准英雄数值!$R45 -> 1.5 | AL45: =AL$1*标准英雄数值!$T45*AI$1 -> 5 | AM45: =ROUNDUP(AM$1*标准英雄数值!$V45,0) -> 6 | AN45: =AN$1*标准英雄数值!$AB45 -> 0 | AO45: =AO$1*标准英雄数值!$AC45 -> 10 | AP45: =AP$1*标准英雄数值!$AE45 -> 10 | AS45: =ROUND(AS$1*标准英雄数值!$E45,0) -> 4661 | AT45: =ROUND(AT$1*标准英雄数值!$G45,0) -> 0 | AU45: =ROUND(AU$1*标准英雄数值!$L45/AV$1,0) -> 278 | AV45: =AV$1*标准英雄数值!$N45 -> 1 | AW45: =AW$1*标准英雄数值!$P45 -> 0.05 | AX45: =AX$1*标准英雄数值!$R45 -> 1.5 | AY45: =AY$1*标准英雄数值!$T45*AV$1 -> 5 | AZ45: =ROUNDUP(AZ$1*标准英雄数值!$V45,0) -> 6 | BA45: =BA$1*标准英雄数值!$AB45 -> 397 | BB45: =BB$1*标准英雄数值!$AC45 -> 10 | BC45: =BC$1*标准英雄数值!$AE45 -> 10
A46: 44 | B46: =F47/$F$3 -> 8.564 | C46: 8.76 | F46: =ROUND(F$1*标准英雄数值!$E46,0) -> 8156 | G46: =ROUND(G$1*标准英雄数值!$G46,0) -> 0 | H46: =ROUND(H$1*标准英雄数值!$L46/I$1,0) -> 375 | I46: =I$1*标准英雄数值!$N46 -> 1 | J46: =J$1*标准英雄数值!$P46 -> 0.05 | K46: =K$1*标准英雄数值!$R46 -> 1.5 | L46: =L$1*标准英雄数值!$T46*I$1 -> 5 | M46: =ROUNDUP(M$1*标准英雄数值!$V46,0) -> 6 | N46: =N$1*标准英雄数值!$AB46 -> 0 | O46: =O$1*标准英雄数值!$AC46 -> 10 | P46: =P$1*标准英雄数值!$AE46 -> 10 | S46: =ROUND(S$1*标准英雄数值!$E46,0) -> 4078 | T46: =ROUND(T$1*标准英雄数值!$G46,0) -> 0 | U46: =ROUND(U$1*标准英雄数值!$L46/V$1,0) -> 834 | V46: =V$1*标准英雄数值!$N46 -> 1 | W46: =W$1*标准英雄数值!$P46 -> 0.05 | X46: =X$1*标准英雄数值!$R46 -> 1.5 | Y46: =Y$1*标准英雄数值!$T46*V$1 -> 5 | Z46: =ROUNDUP(Z$1*标准英雄数值!$V46,0) -> 6 | AA46: =AA$1*标准英雄数值!$AB46 -> 0 | AB46: =AB$1*标准英雄数值!$AC46 -> 10 | AC46: =AC$1*标准英雄数值!$AE46 -> 10 | AF46: =ROUND(AF$1*标准英雄数值!$E46,0) -> 4078 | AG46: =ROUND(AG$1*标准英雄数值!$G46,0) -> 0 | AH46: =ROUND(AH$1*标准英雄数值!$L46/AI$1,0) -> 626 | AI46: =AI$1*标准英雄数值!$N46 -> 1 | AJ46: =AJ$1*标准英雄数值!$P46 -> 0.05 | AK46: =AK$1*标准英雄数值!$R46 -> 1.5 | AL46: =AL$1*标准英雄数值!$T46*AI$1 -> 5 | AM46: =ROUNDUP(AM$1*标准英雄数值!$V46,0) -> 6 | AN46: =AN$1*标准英雄数值!$AB46 -> 0 | AO46: =AO$1*标准英雄数值!$AC46 -> 10 | AP46: =AP$1*标准英雄数值!$AE46 -> 10 | AS46: =ROUND(AS$1*标准英雄数值!$E46,0) -> 4894 | AT46: =ROUND(AT$1*标准英雄数值!$G46,0) -> 0 | AU46: =ROUND(AU$1*标准英雄数值!$L46/AV$1,0) -> 292 | AV46: =AV$1*标准英雄数值!$N46 -> 1 | AW46: =AW$1*标准英雄数值!$P46 -> 0.05 | AX46: =AX$1*标准英雄数值!$R46 -> 1.5 | AY46: =AY$1*标准英雄数值!$T46*AV$1 -> 5 | AZ46: =ROUNDUP(AZ$1*标准英雄数值!$V46,0) -> 6 | BA46: =BA$1*标准英雄数值!$AB46 -> 417 | BB46: =BB$1*标准英雄数值!$AC46 -> 10 | BC46: =BC$1*标准英雄数值!$AE46 -> 10
A47: 45 | B47: =F48/$F$3 -> 8.992 | C47: 9.2 | F47: =ROUND(F$1*标准英雄数值!$E47,0) -> 8564 | G47: =ROUND(G$1*标准英雄数值!$G47,0) -> 0 | H47: =ROUND(H$1*标准英雄数值!$L47/I$1,0) -> 394 | I47: =I$1*标准英雄数值!$N47 -> 1 | J47: =J$1*标准英雄数值!$P47 -> 0.05 | K47: =K$1*标准英雄数值!$R47 -> 1.5 | L47: =L$1*标准英雄数值!$T47*I$1 -> 5 | M47: =ROUNDUP(M$1*标准英雄数值!$V47,0) -> 6 | N47: =N$1*标准英雄数值!$AB47 -> 0 | O47: =O$1*标准英雄数值!$AC47 -> 10 | P47: =P$1*标准英雄数值!$AE47 -> 10 | S47: =ROUND(S$1*标准英雄数值!$E47,0) -> 4282 | T47: =ROUND(T$1*标准英雄数值!$G47,0) -> 0 | U47: =ROUND(U$1*标准英雄数值!$L47/V$1,0) -> 876 | V47: =V$1*标准英雄数值!$N47 -> 1 | W47: =W$1*标准英雄数值!$P47 -> 0.05 | X47: =X$1*标准英雄数值!$R47 -> 1.5 | Y47: =Y$1*标准英雄数值!$T47*V$1 -> 5 | Z47: =ROUNDUP(Z$1*标准英雄数值!$V47,0) -> 6 | AA47: =AA$1*标准英雄数值!$AB47 -> 0 | AB47: =AB$1*标准英雄数值!$AC47 -> 10 | AC47: =AC$1*标准英雄数值!$AE47 -> 10 | AF47: =ROUND(AF$1*标准英雄数值!$E47,0) -> 4282 | AG47: =ROUND(AG$1*标准英雄数值!$G47,0) -> 0 | AH47: =ROUND(AH$1*标准英雄数值!$L47/AI$1,0) -> 657 | AI47: =AI$1*标准英雄数值!$N47 -> 1 | AJ47: =AJ$1*标准英雄数值!$P47 -> 0.05 | AK47: =AK$1*标准英雄数值!$R47 -> 1.5 | AL47: =AL$1*标准英雄数值!$T47*AI$1 -> 5 | AM47: =ROUNDUP(AM$1*标准英雄数值!$V47,0) -> 6 | AN47: =AN$1*标准英雄数值!$AB47 -> 0 | AO47: =AO$1*标准英雄数值!$AC47 -> 10 | AP47: =AP$1*标准英雄数值!$AE47 -> 10 | AS47: =ROUND(AS$1*标准英雄数值!$E47,0) -> 5138 | AT47: =ROUND(AT$1*标准英雄数值!$G47,0) -> 0 | AU47: =ROUND(AU$1*标准英雄数值!$L47/AV$1,0) -> 307 | AV47: =AV$1*标准英雄数值!$N47 -> 1 | AW47: =AW$1*标准英雄数值!$P47 -> 0.05 | AX47: =AX$1*标准英雄数值!$R47 -> 1.5 | AY47: =AY$1*标准英雄数值!$T47*AV$1 -> 5 | AZ47: =ROUNDUP(AZ$1*标准英雄数值!$V47,0) -> 6 | BA47: =BA$1*标准英雄数值!$AB47 -> 438 | BB47: =BB$1*标准英雄数值!$AC47 -> 10 | BC47: =BC$1*标准英雄数值!$AE47 -> 10
A48: 46 | B48: =F49/$F$3 -> 9.442 | C48: 9.66 | F48: =ROUND(F$1*标准英雄数值!$E48,0) -> 8992 | G48: =ROUND(G$1*标准英雄数值!$G48,0) -> 0 | H48: =ROUND(H$1*标准英雄数值!$L48/I$1,0) -> 414 | I48: =I$1*标准英雄数值!$N48 -> 1 | J48: =J$1*标准英雄数值!$P48 -> 0.05 | K48: =K$1*标准英雄数值!$R48 -> 1.5 | L48: =L$1*标准英雄数值!$T48*I$1 -> 5 | M48: =ROUNDUP(M$1*标准英雄数值!$V48,0) -> 6 | N48: =N$1*标准英雄数值!$AB48 -> 0 | O48: =O$1*标准英雄数值!$AC48 -> 10 | P48: =P$1*标准英雄数值!$AE48 -> 10 | S48: =ROUND(S$1*标准英雄数值!$E48,0) -> 4496 | T48: =ROUND(T$1*标准英雄数值!$G48,0) -> 0 | U48: =ROUND(U$1*标准英雄数值!$L48/V$1,0) -> 920 | V48: =V$1*标准英雄数值!$N48 -> 1 | W48: =W$1*标准英雄数值!$P48 -> 0.05 | X48: =X$1*标准英雄数值!$R48 -> 1.5 | Y48: =Y$1*标准英雄数值!$T48*V$1 -> 5 | Z48: =ROUNDUP(Z$1*标准英雄数值!$V48,0) -> 6 | AA48: =AA$1*标准英雄数值!$AB48 -> 0 | AB48: =AB$1*标准英雄数值!$AC48 -> 10 | AC48: =AC$1*标准英雄数值!$AE48 -> 10 | AF48: =ROUND(AF$1*标准英雄数值!$E48,0) -> 4496 | AG48: =ROUND(AG$1*标准英雄数值!$G48,0) -> 0 | AH48: =ROUND(AH$1*标准英雄数值!$L48/AI$1,0) -> 690 | AI48: =AI$1*标准英雄数值!$N48 -> 1 | AJ48: =AJ$1*标准英雄数值!$P48 -> 0.05 | AK48: =AK$1*标准英雄数值!$R48 -> 1.5 | AL48: =AL$1*标准英雄数值!$T48*AI$1 -> 5 | AM48: =ROUNDUP(AM$1*标准英雄数值!$V48,0) -> 6 | AN48: =AN$1*标准英雄数值!$AB48 -> 0 | AO48: =AO$1*标准英雄数值!$AC48 -> 10 | AP48: =AP$1*标准英雄数值!$AE48 -> 10 | AS48: =ROUND(AS$1*标准英雄数值!$E48,0) -> 5395 | AT48: =ROUND(AT$1*标准英雄数值!$G48,0) -> 0 | AU48: =ROUND(AU$1*标准英雄数值!$L48/AV$1,0) -> 322 | AV48: =AV$1*标准英雄数值!$N48 -> 1 | AW48: =AW$1*标准英雄数值!$P48 -> 0.05 | AX48: =AX$1*标准英雄数值!$R48 -> 1.5 | AY48: =AY$1*标准英雄数值!$T48*AV$1 -> 5 | AZ48: =ROUNDUP(AZ$1*标准英雄数值!$V48,0) -> 6 | BA48: =BA$1*标准英雄数值!$AB48 -> 460 | BB48: =BB$1*标准英雄数值!$AC48 -> 10 | BC48: =BC$1*标准英雄数值!$AE48 -> 10
A49: 47 | B49: =F50/$F$3 -> 9.914 | C49: 10.14 | F49: =ROUND(F$1*标准英雄数值!$E49,0) -> 9442 | G49: =ROUND(G$1*标准英雄数值!$G49,0) -> 0 | H49: =ROUND(H$1*标准英雄数值!$L49/I$1,0) -> 435 | I49: =I$1*标准英雄数值!$N49 -> 1 | J49: =J$1*标准英雄数值!$P49 -> 0.05 | K49: =K$1*标准英雄数值!$R49 -> 1.5 | L49: =L$1*标准英雄数值!$T49*I$1 -> 5 | M49: =ROUNDUP(M$1*标准英雄数值!$V49,0) -> 6 | N49: =N$1*标准英雄数值!$AB49 -> 0 | O49: =O$1*标准英雄数值!$AC49 -> 10 | P49: =P$1*标准英雄数值!$AE49 -> 10 | S49: =ROUND(S$1*标准英雄数值!$E49,0) -> 4721 | T49: =ROUND(T$1*标准英雄数值!$G49,0) -> 0 | U49: =ROUND(U$1*标准英雄数值!$L49/V$1,0) -> 966 | V49: =V$1*标准英雄数值!$N49 -> 1 | W49: =W$1*标准英雄数值!$P49 -> 0.05 | X49: =X$1*标准英雄数值!$R49 -> 1.5 | Y49: =Y$1*标准英雄数值!$T49*V$1 -> 5 | Z49: =ROUNDUP(Z$1*标准英雄数值!$V49,0) -> 6 | AA49: =AA$1*标准英雄数值!$AB49 -> 0 | AB49: =AB$1*标准英雄数值!$AC49 -> 10 | AC49: =AC$1*标准英雄数值!$AE49 -> 10 | AF49: =ROUND(AF$1*标准英雄数值!$E49,0) -> 4721 | AG49: =ROUND(AG$1*标准英雄数值!$G49,0) -> 0 | AH49: =ROUND(AH$1*标准英雄数值!$L49/AI$1,0) -> 725 | AI49: =AI$1*标准英雄数值!$N49 -> 1 | AJ49: =AJ$1*标准英雄数值!$P49 -> 0.05 | AK49: =AK$1*标准英雄数值!$R49 -> 1.5 | AL49: =AL$1*标准英雄数值!$T49*AI$1 -> 5 | AM49: =ROUNDUP(AM$1*标准英雄数值!$V49,0) -> 6 | AN49: =AN$1*标准英雄数值!$AB49 -> 0 | AO49: =AO$1*标准英雄数值!$AC49 -> 10 | AP49: =AP$1*标准英雄数值!$AE49 -> 10 | AS49: =ROUND(AS$1*标准英雄数值!$E49,0) -> 5665 | AT49: =ROUND(AT$1*标准英雄数值!$G49,0) -> 0 | AU49: =ROUND(AU$1*标准英雄数值!$L49/AV$1,0) -> 338 | AV49: =AV$1*标准英雄数值!$N49 -> 1 | AW49: =AW$1*标准英雄数值!$P49 -> 0.05 | AX49: =AX$1*标准英雄数值!$R49 -> 1.5 | AY49: =AY$1*标准英雄数值!$T49*AV$1 -> 5 | AZ49: =ROUNDUP(AZ$1*标准英雄数值!$V49,0) -> 6 | BA49: =BA$1*标准英雄数值!$AB49 -> 483 | BB49: =BB$1*标准英雄数值!$AC49 -> 10 | BC49: =BC$1*标准英雄数值!$AE49 -> 10
A50: 48 | B50: =F51/$F$3 -> 10.41 | C50: 10.64 | F50: =ROUND(F$1*标准英雄数值!$E50,0) -> 9914 | G50: =ROUND(G$1*标准英雄数值!$G50,0) -> 0 | H50: =ROUND(H$1*标准英雄数值!$L50/I$1,0) -> 456 | I50: =I$1*标准英雄数值!$N50 -> 1 | J50: =J$1*标准英雄数值!$P50 -> 0.05 | K50: =K$1*标准英雄数值!$R50 -> 1.5 | L50: =L$1*标准英雄数值!$T50*I$1 -> 5 | M50: =ROUNDUP(M$1*标准英雄数值!$V50,0) -> 6 | N50: =N$1*标准英雄数值!$AB50 -> 0 | O50: =O$1*标准英雄数值!$AC50 -> 10 | P50: =P$1*标准英雄数值!$AE50 -> 10 | S50: =ROUND(S$1*标准英雄数值!$E50,0) -> 4957 | T50: =ROUND(T$1*标准英雄数值!$G50,0) -> 0 | U50: =ROUND(U$1*标准英雄数值!$L50/V$1,0) -> 1014 | V50: =V$1*标准英雄数值!$N50 -> 1 | W50: =W$1*标准英雄数值!$P50 -> 0.05 | X50: =X$1*标准英雄数值!$R50 -> 1.5 | Y50: =Y$1*标准英雄数值!$T50*V$1 -> 5 | Z50: =ROUNDUP(Z$1*标准英雄数值!$V50,0) -> 6 | AA50: =AA$1*标准英雄数值!$AB50 -> 0 | AB50: =AB$1*标准英雄数值!$AC50 -> 10 | AC50: =AC$1*标准英雄数值!$AE50 -> 10 | AF50: =ROUND(AF$1*标准英雄数值!$E50,0) -> 4957 | AG50: =ROUND(AG$1*标准英雄数值!$G50,0) -> 0 | AH50: =ROUND(AH$1*标准英雄数值!$L50/AI$1,0) -> 761 | AI50: =AI$1*标准英雄数值!$N50 -> 1 | AJ50: =AJ$1*标准英雄数值!$P50 -> 0.05 | AK50: =AK$1*标准英雄数值!$R50 -> 1.5 | AL50: =AL$1*标准英雄数值!$T50*AI$1 -> 5 | AM50: =ROUNDUP(AM$1*标准英雄数值!$V50,0) -> 6 | AN50: =AN$1*标准英雄数值!$AB50 -> 0 | AO50: =AO$1*标准英雄数值!$AC50 -> 10 | AP50: =AP$1*标准英雄数值!$AE50 -> 10 | AS50: =ROUND(AS$1*标准英雄数值!$E50,0) -> 5948 | AT50: =ROUND(AT$1*标准英雄数值!$G50,0) -> 0 | AU50: =ROUND(AU$1*标准英雄数值!$L50/AV$1,0) -> 355 | AV50: =AV$1*标准英雄数值!$N50 -> 1 | AW50: =AW$1*标准英雄数值!$P50 -> 0.05 | AX50: =AX$1*标准英雄数值!$R50 -> 1.5 | AY50: =AY$1*标准英雄数值!$T50*AV$1 -> 5 | AZ50: =ROUNDUP(AZ$1*标准英雄数值!$V50,0) -> 6 | BA50: =BA$1*标准英雄数值!$AB50 -> 507 | BB50: =BB$1*标准英雄数值!$AC50 -> 10 | BC50: =BC$1*标准英雄数值!$AE50 -> 10
